Workbook

Sheet Control
A1: State Inventory Tool - CO2 Emissions from Electricity Consumption Version 2024.2 This module provides default activity data, emission factors, and other relevant metrics for 1990-2021. Emission factors for 2022-2025 are proxied
A2: State
A3: 1. Choose a State
A4: This is very important - it selects the correct default variables for your state.
A6: 2. Complete the Emission Factor and Transmission Losses Worksheet.
A14: 3. through 6. Complete Individual Sector Worksheets
A19: Energy Conversion Factors
A20: A British thermal unit (Btu) is the quantity of heat required to raise the temperature of one pound of water one degree Fahrenheit at or near 39.2 Fahrenheit.
A23: Btu | B23: British thermal unit | D23: 1 Btu
A24: MBtu | B24: Thousand Btu | D24: 1x103 Btu
A25: MMBtu | B25: Million Btu | D25: 1x106 Btu
A26: BBtu | B26: Billion Btu | D26: 1x109 Btu
A27: TBtu | B27: Trillion Btu | D27: 1x1012 Btu
A28: QBtu | B28: Quadrillion Btu | D28: 1x1015 Btu
A31: 7. Review the Summary Information
A38: 8. Export the results for use in the Synthesis Tool.

Sheet Dataframe (hidden)
A1: Sector | B1: Category | C1: 1990 | D1: 1991 | E1: 1992 | F1: 1993 | G1: 1994 | H1: 1995 | I1: 1996 | J1: 1997 | K1: 1998 | L1: 1999 | M1: 2000 | N1: 2001 | O1: 2002 | P1: 2003 | Q1: 2004 | R1: 2005 | S1: 2006 | T1: 2007 | U1: 2008 | V1: 2009 | W1: 2010 | X1: 2011 | Y1: 2012 | Z1: 2013 | AA1: 2014 | AB1: 2015 | AC1: 2016 | AD1: 2017 | AE1: 2018 | AF1: 2019 | AG1: 2020 | AH1: 2021 | AI1: 2022 | AJ1: 2023 | AK1: 2024 | AL1: 2025
A2: Residential | B2: ="Indirect CO2 from Electricity Consumption - "&$A$2 -> Indirect CO2 from Electricity Consumption - Residential | C2: ='Summary-MMTCO2E'!C6 -> 0 | D2: ='Summary-MMTCO2E'!D6 -> 0 | E2: ='Summary-MMTCO2E'!E6 -> 0 | F2: ='Summary-MMTCO2E'!F6 -> 0 | G2: ='Summary-MMTCO2E'!G6 -> 0 | H2: ='Summary-MMTCO2E'!H6 -> 0 | I2: ='Summary-MMTCO2E'!I6 -> 0 | J2: ='Summary-MMTCO2E'!J6 -> 0 | K2: ='Summary-MMTCO2E'!K6 -> 0 | L2: ='Summary-MMTCO2E'!L6 -> 0 | M2: ='Summary-MMTCO2E'!M6 -> 0 | N2: ='Summary-MMTCO2E'!N6 -> 0 | O2: ='Summary-MMTCO2E'!O6 -> 0 | P2: ='Summary-MMTCO2E'!P6 -> 0 | Q2: ='Summary-MMTCO2E'!Q6 -> 0 | R2: ='Summary-MMTCO2E'!R6 -> 0 | S2: ='Summary-MMTCO2E'!S6 -> 0 | T2: ='Summary-MMTCO2E'!T6 -> 0 | U2: ='Summary-MMTCO2E'!U6 -> 0 | V2: ='Summary-MMTCO2E'!V6 -> 0 | W2: ='Summary-MMTCO2E'!W6 -> 0 | X2: ='Summary-MMTCO2E'!X6 -> 0 | Y2: ='Summary-MMTCO2E'!Y6 -> 0 | Z2: ='Summary-MMTCO2E'!Z6 -> 0 | AA2: ='Summary-MMTCO2E'!AA6 -> 0 | AB2: ='Summary-MMTCO2E'!AB6 -> 0 | AC2: ='Summary-MMTCO2E'!AC6 -> 0 | AD2: ='Summary-MMTCO2E'!AD6 -> 0 | AE2: ='Summary-MMTCO2E'!AE6 -> 0 | AF2: ='Summary-MMTCO2E'!AF6 -> 0 | AG2: ='Summary-MMTCO2E'!AG6 -> 0 | AH2: ='Summary-MMTCO2E'!AH6 -> 0 | AI2: ='Summary-MMTCO2E'!AI6 -> 0 | AJ2: ='Summary-MMTCO2E'!AJ6 -> 0 | AK2: ='Summary-MMTCO2E'!AK6 -> 0 | AL2: ='Summary-MMTCO2E'!AL6 -> 0
A3: Space Heating | B3: ="Indirect CO2 from Electricity Consumption - "&$A$2&" - "&A3 -> Indirect CO2 from Electricity Consumption - Residential - Space Heating | C3: ='Summary-MMTCO2E'!C7 -> 0 | D3: ='Summary-MMTCO2E'!D7 -> 0 | E3: ='Summary-MMTCO2E'!E7 -> 0 | F3: ='Summary-MMTCO2E'!F7 -> 0 | G3: ='Summary-MMTCO2E'!G7 -> 0 | H3: ='Summary-MMTCO2E'!H7 -> 0 | I3: ='Summary-MMTCO2E'!I7 -> 0 | J3: ='Summary-MMTCO2E'!J7 -> 0 | K3: ='Summary-MMTCO2E'!K7 -> 0 | L3: ='Summary-MMTCO2E'!L7 -> 0 | M3: ='Summary-MMTCO2E'!M7 -> 0 | N3: ='Summary-MMTCO2E'!N7 -> 0 | O3: ='Summary-MMTCO2E'!O7 -> 0 | P3: ='Summary-MMTCO2E'!P7 -> 0 | Q3: ='Summary-MMTCO2E'!Q7 -> 0 | R3: ='Summary-MMTCO2E'!R7 -> 0 | S3: ='Summary-MMTCO2E'!S7 -> 0 | T3: ='Summary-MMTCO2E'!T7 -> 0 | U3: ='Summary-MMTCO2E'!U7 -> 0 | V3: ='Summary-MMTCO2E'!V7 -> 0 | W3: ='Summary-MMTCO2E'!W7 -> 0 | X3: ='Summary-MMTCO2E'!X7 -> 0 | Y3: ='Summary-MMTCO2E'!Y7 -> 0 | Z3: ='Summary-MMTCO2E'!Z7 -> 0 | AA3: ='Summary-MMTCO2E'!AA7 -> 0 | AB3: ='Summary-MMTCO2E'!AB7 -> 0 | AC3: ='Summary-MMTCO2E'!AC7 -> 0 | AD3: ='Summary-MMTCO2E'!AD7 -> 0 | AE3: ='Summary-MMTCO2E'!AE7 -> 0 | AF3: ='Summary-MMTCO2E'!AF7 -> 0 | AG3: ='Summary-MMTCO2E'!AG7 -> 0 | AH3: ='Summary-MMTCO2E'!AH7 -> 0 | AI3: ='Summary-MMTCO2E'!AI7 -> 0 | AJ3: ='Summary-MMTCO2E'!AJ7 -> 0 | AK3: ='Summary-MMTCO2E'!AK7 -> 0 | AL3: ='Summary-MMTCO2E'!AL7 -> 0
A4: Air-conditioning | B4: ="Indirect CO2 from Electricity Consumption - "&$A$2&" - "&A4 -> Indirect CO2 from Electricity Consumption - Residential - Air-conditioning | C4: ='Summary-MMTCO2E'!C8 -> 0 | D4: ='Summary-MMTCO2E'!D8 -> 0 | E4: ='Summary-MMTCO2E'!E8 -> 0 | F4: ='Summary-MMTCO2E'!F8 -> 0 | G4: ='Summary-MMTCO2E'!G8 -> 0 | H4: ='Summary-MMTCO2E'!H8 -> 0 | I4: ='Summary-MMTCO2E'!I8 -> 0 | J4: ='Summary-MMTCO2E'!J8 -> 0 | K4: ='Summary-MMTCO2E'!K8 -> 0 | L4: ='Summary-MMTCO2E'!L8 -> 0 | M4: ='Summary-MMTCO2E'!M8 -> 0 | N4: ='Summary-MMTCO2E'!N8 -> 0 | O4: ='Summary-MMTCO2E'!O8 -> 0 | P4: ='Summary-MMTCO2E'!P8 -> 0 | Q4: ='Summary-MMTCO2E'!Q8 -> 0 | R4: ='Summary-MMTCO2E'!R8 -> 0 | S4: ='Summary-MMTCO2E'!S8 -> 0 | T4: ='Summary-MMTCO2E'!T8 -> 0 | U4: ='Summary-MMTCO2E'!U8 -> 0 | V4: ='Summary-MMTCO2E'!V8 -> 0 | W4: ='Summary-MMTCO2E'!W8 -> 0 | X4: ='Summary-MMTCO2E'!X8 -> 0 | Y4: ='Summary-MMTCO2E'!Y8 -> 0 | Z4: ='Summary-MMTCO2E'!Z8 -> 0 | AA4: ='Summary-MMTCO2E'!AA8 -> 0 | AB4: ='Summary-MMTCO2E'!AB8 -> 0 | AC4: ='Summary-MMTCO2E'!AC8 -> 0 | AD4: ='Summary-MMTCO2E'!AD8 -> 0 | AE4: ='Summary-MMTCO2E'!AE8 -> 0 | AF4: ='Summary-MMTCO2E'!AF8 -> 0 | AG4: ='Summary-MMTCO2E'!AG8 -> 0 | AH4: ='Summary-MMTCO2E'!AH8 -> 0 | AI4: ='Summary-MMTCO2E'!AI8 -> 0 | AJ4: ='Summary-MMTCO2E'!AJ8 -> 0 | AK4: ='Summary-MMTCO2E'!AK8 -> 0 | AL4: ='Summary-MMTCO2E'!AL8 -> 0
A5: Water Heating | B5: Indirect CO2 from Electricity Consumption - Residential - Water Heating | C5: ='Summary-MMTCO2E'!C9 -> 0 | D5: ='Summary-MMTCO2E'!D9 -> 0 | E5: ='Summary-MMTCO2E'!E9 -> 0 | F5: ='Summary-MMTCO2E'!F9 -> 0 | G5: ='Summary-MMTCO2E'!G9 -> 0 | H5: ='Summary-MMTCO2E'!H9 -> 0 | I5: ='Summary-MMTCO2E'!I9 -> 0 | J5: ='Summary-MMTCO2E'!J9 -> 0 | K5: ='Summary-MMTCO2E'!K9 -> 0 | L5: ='Summary-MMTCO2E'!L9 -> 0 | M5: ='Summary-MMTCO2E'!M9 -> 0 | N5: ='Summary-MMTCO2E'!N9 -> 0 | O5: ='Summary-MMTCO2E'!O9 -> 0 | P5: ='Summary-MMTCO2E'!P9 -> 0 | Q5: ='Summary-MMTCO2E'!Q9 -> 0 | R5: ='Summary-MMTCO2E'!R9 -> 0 | S5: ='Summary-MMTCO2E'!S9 -> 0 | T5: ='Summary-MMTCO2E'!T9 -> 0 | U5: ='Summary-MMTCO2E'!U9 -> 0 | V5: ='Summary-MMTCO2E'!V9 -> 0 | W5: ='Summary-MMTCO2E'!W9 -> 0 | X5: ='Summary-MMTCO2E'!X9 -> 0 | Y5: ='Summary-MMTCO2E'!Y9 -> 0 | Z5: ='Summary-MMTCO2E'!Z9 -> 0 | AA5: ='Summary-MMTCO2E'!AA9 -> 0 | AB5: ='Summary-MMTCO2E'!AB9 -> 0 | AC5: ='Summary-MMTCO2E'!AC9 -> 0 | AD5: ='Summary-MMTCO2E'!AD9 -> 0 | AE5: ='Summary-MMTCO2E'!AE9 -> 0 | AF5: ='Summary-MMTCO2E'!AF9 -> 0 | AG5: ='Summary-MMTCO2E'!AG9 -> 0 | AH5: ='Summary-MMTCO2E'!AH9 -> 0 | AI5: ='Summary-MMTCO2E'!AI9 -> 0 | AJ5: ='Summary-MMTCO2E'!AJ9 -> 0 | AK5: ='Summary-MMTCO2E'!AK9 -> 0 | AL5: ='Summary-MMTCO2E'!AL9 -> 0
A6: Refrigeration | B6: Indirect CO2 from Electricity Consumption - Residential - Refrigeration | C6: ='Summary-MMTCO2E'!C10 -> 0 | D6: ='Summary-MMTCO2E'!D10 -> 0 | E6: ='Summary-MMTCO2E'!E10 -> 0 | F6: ='Summary-MMTCO2E'!F10 -> 0 | G6: ='Summary-MMTCO2E'!G10 -> 0 | H6: ='Summary-MMTCO2E'!H10 -> 0 | I6: ='Summary-MMTCO2E'!I10 -> 0 | J6: ='Summary-MMTCO2E'!J10 -> 0 | K6: ='Summary-MMTCO2E'!K10 -> 0 | L6: ='Summary-MMTCO2E'!L10 -> 0 | M6: ='Summary-MMTCO2E'!M10 -> 0 | N6: ='Summary-MMTCO2E'!N10 -> 0 | O6: ='Summary-MMTCO2E'!O10 -> 0 | P6: ='Summary-MMTCO2E'!P10 -> 0 | Q6: ='Summary-MMTCO2E'!Q10 -> 0 | R6: ='Summary-MMTCO2E'!R10 -> 0 | S6: ='Summary-MMTCO2E'!S10 -> 0 | T6: ='Summary-MMTCO2E'!T10 -> 0 | U6: ='Summary-MMTCO2E'!U10 -> 0 | V6: ='Summary-MMTCO2E'!V10 -> 0 | W6: ='Summary-MMTCO2E'!W10 -> 0 | X6: ='Summary-MMTCO2E'!X10 -> 0 | Y6: ='Summary-MMTCO2E'!Y10 -> 0 | Z6: ='Summary-MMTCO2E'!Z10 -> 0 | AA6: ='Summary-MMTCO2E'!AA10 -> 0 | AB6: ='Summary-MMTCO2E'!AB10 -> 0 | AC6: ='Summary-MMTCO2E'!AC10 -> 0 | AD6: ='Summary-MMTCO2E'!AD10 -> 0 | AE6: ='Summary-MMTCO2E'!AE10 -> 0 | AF6: ='Summary-MMTCO2E'!AF10 -> 0 | AG6: ='Summary-MMTCO2E'!AG10 -> 0 | AH6: ='Summary-MMTCO2E'!AH10 -> 0 | AI6: ='Summary-MMTCO2E'!AI10 -> 0 | AJ6: ='Summary-MMTCO2E'!AJ10 -> 0 | AK6: ='Summary-MMTCO2E'!AK10 -> 0 | AL6: ='Summary-MMTCO2E'!AL10 -> 0
A7: Other Appliances and Lighting | B7: ="Indirect CO2 from Electricity Consumption - "&$A$2&" - "&A7 -> Indirect CO2 from Electricity Consumption - Residential - Other Appliances and Lighting | C7: ='Summary-MMTCO2E'!C11 -> 0 | D7: ='Summary-MMTCO2E'!D11 -> 0 | E7: ='Summary-MMTCO2E'!E11 -> 0 | F7: ='Summary-MMTCO2E'!F11 -> 0 | G7: ='Summary-MMTCO2E'!G11 -> 0 | H7: ='Summary-MMTCO2E'!H11 -> 0 | I7: ='Summary-MMTCO2E'!I11 -> 0 | J7: ='Summary-MMTCO2E'!J11 -> 0 | K7: ='Summary-MMTCO2E'!K11 -> 0 | L7: ='Summary-MMTCO2E'!L11 -> 0 | M7: ='Summary-MMTCO2E'!M11 -> 0 | N7: ='Summary-MMTCO2E'!N11 -> 0 | O7: ='Summary-MMTCO2E'!O11 -> 0 | P7: ='Summary-MMTCO2E'!P11 -> 0 | Q7: ='Summary-MMTCO2E'!Q11 -> 0 | R7: ='Summary-MMTCO2E'!R11 -> 0 | S7: ='Summary-MMTCO2E'!S11 -> 0 | T7: ='Summary-MMTCO2E'!T11 -> 0 | U7: ='Summary-MMTCO2E'!U11 -> 0 | V7: ='Summary-MMTCO2E'!V11 -> 0 | W7: ='Summary-MMTCO2E'!W11 -> 0 | X7: ='Summary-MMTCO2E'!X11 -> 0 | Y7: ='Summary-MMTCO2E'!Y11 -> 0 | Z7: ='Summary-MMTCO2E'!Z11 -> 0 | AA7: ='Summary-MMTCO2E'!AA11 -> 0 | AB7: ='Summary-MMTCO2E'!AB11 -> 0 | AC7: ='Summary-MMTCO2E'!AC11 -> 0 | AD7: ='Summary-MMTCO2E'!AD11 -> 0 | AE7: ='Summary-MMTCO2E'!AE11 -> 0 | AF7: ='Summary-MMTCO2E'!AF11 -> 0 | AG7: ='Summary-MMTCO2E'!AG11 -> 0 | AH7: ='Summary-MMTCO2E'!AH11 -> 0 | AI7: ='Summary-MMTCO2E'!AI11 -> 0 | AJ7: ='Summary-MMTCO2E'!AJ11 -> 0 | AK7: ='Summary-MMTCO2E'!AK11 -> 0 | AL7: ='Summary-MMTCO2E'!AL11 -> 0
A8: Commercial | B8: ="Indirect CO2 from Electricity Consumption - "&$A$8 -> Indirect CO2 from Electricity Consumption - Commercial | C8: ='Summary-MMTCO2E'!C12 -> 0 | D8: ='Summary-MMTCO2E'!D12 -> 0 | E8: ='Summary-MMTCO2E'!E12 -> 0 | F8: ='Summary-MMTCO2E'!F12 -> 0 | G8: ='Summary-MMTCO2E'!G12 -> 0 | H8: ='Summary-MMTCO2E'!H12 -> 0 | I8: ='Summary-MMTCO2E'!I12 -> 0 | J8: ='Summary-MMTCO2E'!J12 -> 0 | K8: ='Summary-MMTCO2E'!K12 -> 0 | L8: ='Summary-MMTCO2E'!L12 -> 0 | M8: ='Summary-MMTCO2E'!M12 -> 0 | N8: ='Summary-MMTCO2E'!N12 -> 0 | O8: ='Summary-MMTCO2E'!O12 -> 0 | P8: ='Summary-MMTCO2E'!P12 -> 0 | Q8: ='Summary-MMTCO2E'!Q12 -> 0 | R8: ='Summary-MMTCO2E'!R12 -> 0 | S8: ='Summary-MMTCO2E'!S12 -> 0 | T8: ='Summary-MMTCO2E'!T12 -> 0 | U8: ='Summary-MMTCO2E'!U12 -> 0 | V8: ='Summary-MMTCO2E'!V12 -> 0 | W8: ='Summary-MMTCO2E'!W12 -> 0 | X8: ='Summary-MMTCO2E'!X12 -> 0 | Y8: ='Summary-MMTCO2E'!Y12 -> 0 | Z8: ='Summary-MMTCO2E'!Z12 -> 0 | AA8: ='Summary-MMTCO2E'!AA12 -> 0 | AB8: ='Summary-MMTCO2E'!AB12 -> 0 | AC8: ='Summary-MMTCO2E'!AC12 -> 0 | AD8: ='Summary-MMTCO2E'!AD12 -> 0 | AE8: ='Summary-MMTCO2E'!AE12 -> 0 | AF8: ='Summary-MMTCO2E'!AF12 -> 0 | AG8: ='Summary-MMTCO2E'!AG12 -> 0 | AH8: ='Summary-MMTCO2E'!AH12 -> 0 | AI8: ='Summary-MMTCO2E'!AI12 -> 0 | AJ8: ='Summary-MMTCO2E'!AJ12 -> 0 | AK8: ='Summary-MMTCO2E'!AK12 -> 0 | AL8: ='Summary-MMTCO2E'!AL12 -> 0
A9: Space Heating | B9: ="Indirect CO2 from Electricity Consumption - "&$A$8&" - "&A9 -> Indirect CO2 from Electricity Consumption - Commercial - Space Heating | C9: ='Summary-MMTCO2E'!C13 -> 0 | D9: ='Summary-MMTCO2E'!D13 -> 0 | E9: ='Summary-MMTCO2E'!E13 -> 0 | F9: ='Summary-MMTCO2E'!F13 -> 0 | G9: ='Summary-MMTCO2E'!G13 -> 0 | H9: ='Summary-MMTCO2E'!H13 -> 0 | I9: ='Summary-MMTCO2E'!I13 -> 0 | J9: ='Summary-MMTCO2E'!J13 -> 0 | K9: ='Summary-MMTCO2E'!K13 -> 0 | L9: ='Summary-MMTCO2E'!L13 -> 0 | M9: ='Summary-MMTCO2E'!M13 -> 0 | N9: ='Summary-MMTCO2E'!N13 -> 0 | O9: ='Summary-MMTCO2E'!O13 -> 0 | P9: ='Summary-MMTCO2E'!P13 -> 0 | Q9: ='Summary-MMTCO2E'!Q13 -> 0 | R9: ='Summary-MMTCO2E'!R13 -> 0 | S9: ='Summary-MMTCO2E'!S13 -> 0 | T9: ='Summary-MMTCO2E'!T13 -> 0 | U9: ='Summary-MMTCO2E'!U13 -> 0 | V9: ='Summary-MMTCO2E'!V13 -> 0 | W9: ='Summary-MMTCO2E'!W13 -> 0 | X9: ='Summary-MMTCO2E'!X13 -> 0 | Y9: ='Summary-MMTCO2E'!Y13 -> 0 | Z9: ='Summary-MMTCO2E'!Z13 -> 0 | AA9: ='Summary-MMTCO2E'!AA13 -> 0 | AB9: ='Summary-MMTCO2E'!AB13 -> 0 | AC9: ='Summary-MMTCO2E'!AC13 -> 0 | AD9: ='Summary-MMTCO2E'!AD13 -> 0 | AE9: ='Summary-MMTCO2E'!AE13 -> 0 | AF9: ='Summary-MMTCO2E'!AF13 -> 0 | AG9: ='Summary-MMTCO2E'!AG13 -> 0 | AH9: ='Summary-MMTCO2E'!AH13 -> 0 | AI9: ='Summary-MMTCO2E'!AI13 -> 0 | AJ9: ='Summary-MMTCO2E'!AJ13 -> 0 | AK9: ='Summary-MMTCO2E'!AK13 -> 0 | AL9: ='Summary-MMTCO2E'!AL13 -> 0
A10: Cooling | B10: ="Indirect CO2 from Electricity Consumption - "&$A$8&" - "&A10 -> Indirect CO2 from Electricity Consumption - Commercial - Cooling | C10: ='Summary-MMTCO2E'!C14 -> 0 | D10: ='Summary-MMTCO2E'!D14 -> 0 | E10: ='Summary-MMTCO2E'!E14 -> 0 | F10: ='Summary-MMTCO2E'!F14 -> 0 | G10: ='Summary-MMTCO2E'!G14 -> 0 | H10: ='Summary-MMTCO2E'!H14 -> 0 | I10: ='Summary-MMTCO2E'!I14 -> 0 | J10: ='Summary-MMTCO2E'!J14 -> 0 | K10: ='Summary-MMTCO2E'!K14 -> 0 | L10: ='Summary-MMTCO2E'!L14 -> 0 | M10: ='Summary-MMTCO2E'!M14 -> 0 | N10: ='Summary-MMTCO2E'!N14 -> 0 | O10: ='Summary-MMTCO2E'!O14 -> 0 | P10: ='Summary-MMTCO2E'!P14 -> 0 | Q10: ='Summary-MMTCO2E'!Q14 -> 0 | R10: ='Summary-MMTCO2E'!R14 -> 0 | S10: ='Summary-MMTCO2E'!S14 -> 0 | T10: ='Summary-MMTCO2E'!T14 -> 0 | U10: ='Summary-MMTCO2E'!U14 -> 0 | V10: ='Summary-MMTCO2E'!V14 -> 0 | W10: ='Summary-MMTCO2E'!W14 -> 0 | X10: ='Summary-MMTCO2E'!X14 -> 0 | Y10: ='Summary-MMTCO2E'!Y14 -> 0 | Z10: ='Summary-MMTCO2E'!Z14 -> 0 | AA10: ='Summary-MMTCO2E'!AA14 -> 0 | AB10: ='Summary-MMTCO2E'!AB14 -> 0 | AC10: ='Summary-MMTCO2E'!AC14 -> 0 | AD10: ='Summary-MMTCO2E'!AD14 -> 0 | AE10: ='Summary-MMTCO2E'!AE14 -> 0 | AF10: ='Summary-MMTCO2E'!AF14 -> 0 | AG10: ='Summary-MMTCO2E'!AG14 -> 0 | AH10: ='Summary-MMTCO2E'!AH14 -> 0 | AI10: ='Summary-MMTCO2E'!AI14 -> 0 | AJ10: ='Summary-MMTCO2E'!AJ14 -> 0 | AK10: ='Summary-MMTCO2E'!AK14 -> 0 | AL10: ='Summary-MMTCO2E'!AL14 -> 0
A11: Ventilation | B11: Indirect CO2 from Electricity Consumption - Commercial - Ventilation | C11: ='Summary-MMTCO2E'!C15 -> 0 | D11: ='Summary-MMTCO2E'!D15 -> 0 | E11: ='Summary-MMTCO2E'!E15 -> 0 | F11: ='Summary-MMTCO2E'!F15 -> 0 | G11: ='Summary-MMTCO2E'!G15 -> 0 | H11: ='Summary-MMTCO2E'!H15 -> 0 | I11: ='Summary-MMTCO2E'!I15 -> 0 | J11: ='Summary-MMTCO2E'!J15 -> 0 | K11: ='Summary-MMTCO2E'!K15 -> 0 | L11: ='Summary-MMTCO2E'!L15 -> 0 | M11: ='Summary-MMTCO2E'!M15 -> 0 | N11: ='Summary-MMTCO2E'!N15 -> 0 | O11: ='Summary-MMTCO2E'!O15 -> 0 | P11: ='Summary-MMTCO2E'!P15 -> 0 | Q11: ='Summary-MMTCO2E'!Q15 -> 0 | R11: ='Summary-MMTCO2E'!R15 -> 0 | S11: ='Summary-MMTCO2E'!S15 -> 0 | T11: ='Summary-MMTCO2E'!T15 -> 0 | U11: ='Summary-MMTCO2E'!U15 -> 0 | V11: ='Summary-MMTCO2E'!V15 -> 0 | W11: ='Summary-MMTCO2E'!W15 -> 0 | X11: ='Summary-MMTCO2E'!X15 -> 0 | Y11: ='Summary-MMTCO2E'!Y15 -> 0 | Z11: ='Summary-MMTCO2E'!Z15 -> 0 | AA11: ='Summary-MMTCO2E'!AA15 -> 0 | AB11: ='Summary-MMTCO2E'!AB15 -> 0 | AC11: ='Summary-MMTCO2E'!AC15 -> 0 | AD11: ='Summary-MMTCO2E'!AD15 -> 0 | AE11: ='Summary-MMTCO2E'!AE15 -> 0 | AF11: ='Summary-MMTCO2E'!AF15 -> 0 | AG11: ='Summary-MMTCO2E'!AG15 -> 0 | AH11: ='Summary-MMTCO2E'!AH15 -> 0 | AI11: ='Summary-MMTCO2E'!AI15 -> 0 | AJ11: ='Summary-MMTCO2E'!AJ15 -> 0 | AK11: ='Summary-MMTCO2E'!AK15 -> 0 | AL11: ='Summary-MMTCO2E'!AL15 -> 0
A12: Water Heating | B12: Indirect CO2 from Electricity Consumption - Commercial - Water Heating | C12: ='Summary-MMTCO2E'!C16 -> 0 | D12: ='Summary-MMTCO2E'!D16 -> 0 | E12: ='Summary-MMTCO2E'!E16 -> 0 | F12: ='Summary-MMTCO2E'!F16 -> 0 | G12: ='Summary-MMTCO2E'!G16 -> 0 | H12: ='Summary-MMTCO2E'!H16 -> 0 | I12: ='Summary-MMTCO2E'!I16 -> 0 | J12: ='Summary-MMTCO2E'!J16 -> 0 | K12: ='Summary-MMTCO2E'!K16 -> 0 | L12: ='Summary-MMTCO2E'!L16 -> 0 | M12: ='Summary-MMTCO2E'!M16 -> 0 | N12: ='Summary-MMTCO2E'!N16 -> 0 | O12: ='Summary-MMTCO2E'!O16 -> 0 | P12: ='Summary-MMTCO2E'!P16 -> 0 | Q12: ='Summary-MMTCO2E'!Q16 -> 0 | R12: ='Summary-MMTCO2E'!R16 -> 0 | S12: ='Summary-MMTCO2E'!S16 -> 0 | T12: ='Summary-MMTCO2E'!T16 -> 0 | U12: ='Summary-MMTCO2E'!U16 -> 0 | V12: ='Summary-MMTCO2E'!V16 -> 0 | W12: ='Summary-MMTCO2E'!W16 -> 0 | X12: ='Summary-MMTCO2E'!X16 -> 0 | Y12: ='Summary-MMTCO2E'!Y16 -> 0 | Z12: ='Summary-MMTCO2E'!Z16 -> 0 | AA12: ='Summary-MMTCO2E'!AA16 -> 0 | AB12: ='Summary-MMTCO2E'!AB16 -> 0 | AC12: ='Summary-MMTCO2E'!AC16 -> 0 | AD12: ='Summary-MMTCO2E'!AD16 -> 0 | AE12: ='Summary-MMTCO2E'!AE16 -> 0 | AF12: ='Summary-MMTCO2E'!AF16 -> 0 | AG12: ='Summary-MMTCO2E'!AG16 -> 0 | AH12: ='Summary-MMTCO2E'!AH16 -> 0 | AI12: ='Summary-MMTCO2E'!AI16 -> 0 | AJ12: ='Summary-MMTCO2E'!AJ16 -> 0 | AK12: ='Summary-MMTCO2E'!AK16 -> 0 | AL12: ='Summary-MMTCO2E'!AL16 -> 0
A13: Lighting | B13: Indirect CO2 from Electricity Consumption - Commercial - Lighting | C13: ='Summary-MMTCO2E'!C17 -> 0 | D13: ='Summary-MMTCO2E'!D17 -> 0 | E13: ='Summary-MMTCO2E'!E17 -> 0 | F13: ='Summary-MMTCO2E'!F17 -> 0 | G13: ='Summary-MMTCO2E'!G17 -> 0 | H13: ='Summary-MMTCO2E'!H17 -> 0 | I13: ='Summary-MMTCO2E'!I17 -> 0 | J13: ='Summary-MMTCO2E'!J17 -> 0 | K13: ='Summary-MMTCO2E'!K17 -> 0 | L13: ='Summary-MMTCO2E'!L17 -> 0 | M13: ='Summary-MMTCO2E'!M17 -> 0 | N13: ='Summary-MMTCO2E'!N17 -> 0 | O13: ='Summary-MMTCO2E'!O17 -> 0 | P13: ='Summary-MMTCO2E'!P17 -> 0 | Q13: ='Summary-MMTCO2E'!Q17 -> 0 | R13: ='Summary-MMTCO2E'!R17 -> 0 | S13: ='Summary-MMTCO2E'!S17 -> 0 | T13: ='Summary-MMTCO2E'!T17 -> 0 | U13: ='Summary-MMTCO2E'!U17 -> 0 | V13: ='Summary-MMTCO2E'!V17 -> 0 | W13: ='Summary-MMTCO2E'!W17 -> 0 | X13: ='Summary-MMTCO2E'!X17 -> 0 | Y13: ='Summary-MMTCO2E'!Y17 -> 0 | Z13: ='Summary-MMTCO2E'!Z17 -> 0 | AA13: ='Summary-MMTCO2E'!AA17 -> 0 | AB13: ='Summary-MMTCO2E'!AB17 -> 0 | AC13: ='Summary-MMTCO2E'!AC17 -> 0 | AD13: ='Summary-MMTCO2E'!AD17 -> 0 | AE13: ='Summary-MMTCO2E'!AE17 -> 0 | AF13: ='Summary-MMTCO2E'!AF17 -> 0 | AG13: ='Summary-MMTCO2E'!AG17 -> 0 | AH13: ='Summary-MMTCO2E'!AH17 -> 0 | AI13: ='Summary-MMTCO2E'!AI17 -> 0 | AJ13: ='Summary-MMTCO2E'!AJ17 -> 0 | AK13: ='Summary-MMTCO2E'!AK17 -> 0 | AL13: ='Summary-MMTCO2E'!AL17 -> 0
A14: Cooking | B14: Indirect CO2 from Electricity Consumption - Commercial - Cooking | C14: ='Summary-MMTCO2E'!C18 -> 0 | D14: ='Summary-MMTCO2E'!D18 -> 0 | E14: ='Summary-MMTCO2E'!E18 -> 0 | F14: ='Summary-MMTCO2E'!F18 -> 0 | G14: ='Summary-MMTCO2E'!G18 -> 0 | H14: ='Summary-MMTCO2E'!H18 -> 0 | I14: ='Summary-MMTCO2E'!I18 -> 0 | J14: ='Summary-MMTCO2E'!J18 -> 0 | K14: ='Summary-MMTCO2E'!K18 -> 0 | L14: ='Summary-MMTCO2E'!L18 -> 0 | M14: ='Summary-MMTCO2E'!M18 -> 0 | N14: ='Summary-MMTCO2E'!N18 -> 0 | O14: ='Summary-MMTCO2E'!O18 -> 0 | P14: ='Summary-MMTCO2E'!P18 -> 0 | Q14: ='Summary-MMTCO2E'!Q18 -> 0 | R14: ='Summary-MMTCO2E'!R18 -> 0 | S14: ='Summary-MMTCO2E'!S18 -> 0 | T14: ='Summary-MMTCO2E'!T18 -> 0 | U14: ='Summary-MMTCO2E'!U18 -> 0 | V14: ='Summary-MMTCO2E'!V18 -> 0 | W14: ='Summary-MMTCO2E'!W18 -> 0 | X14: ='Summary-MMTCO2E'!X18 -> 0 | Y14: ='Summary-MMTCO2E'!Y18 -> 0 | Z14: ='Summary-MMTCO2E'!Z18 -> 0 | AA14: ='Summary-MMTCO2E'!AA18 -> 0 | AB14: ='Summary-MMTCO2E'!AB18 -> 0 | AC14: ='Summary-MMTCO2E'!AC18 -> 0 | AD14: ='Summary-MMTCO2E'!AD18 -> 0 | AE14: ='Summary-MMTCO2E'!AE18 -> 0 | AF14: ='Summary-MMTCO2E'!AF18 -> 0 | AG14: ='Summary-MMTCO2E'!AG18 -> 0 | AH14: ='Summary-MMTCO2E'!AH18 -> 0 | AI14: ='Summary-MMTCO2E'!AI18 -> 0 | AJ14: ='Summary-MMTCO2E'!AJ18 -> 0 | AK14: ='Summary-MMTCO2E'!AK18 -> 0 | AL14: ='Summary-MMTCO2E'!AL18 -> 0
A15: Refrigeration | B15: Indirect CO2 from Electricity Consumption - Commercial - Refrigeration | C15: ='Summary-MMTCO2E'!C19 -> 0 | D15: ='Summary-MMTCO2E'!D19 -> 0 | E15: ='Summary-MMTCO2E'!E19 -> 0 | F15: ='Summary-MMTCO2E'!F19 -> 0 | G15: ='Summary-MMTCO2E'!G19 -> 0 | H15: ='Summary-MMTCO2E'!H19 -> 0 | I15: ='Summary-MMTCO2E'!I19 -> 0 | J15: ='Summary-MMTCO2E'!J19 -> 0 | K15: ='Summary-MMTCO2E'!K19 -> 0 | L15: ='Summary-MMTCO2E'!L19 -> 0 | M15: ='Summary-MMTCO2E'!M19 -> 0 | N15: ='Summary-MMTCO2E'!N19 -> 0 | O15: ='Summary-MMTCO2E'!O19 -> 0 | P15: ='Summary-MMTCO2E'!P19 -> 0 | Q15: ='Summary-MMTCO2E'!Q19 -> 0 | R15: ='Summary-MMTCO2E'!R19 -> 0 | S15: ='Summary-MMTCO2E'!S19 -> 0 | T15: ='Summary-MMTCO2E'!T19 -> 0 | U15: ='Summary-MMTCO2E'!U19 -> 0 | V15: ='Summary-MMTCO2E'!V19 -> 0 | W15: ='Summary-MMTCO2E'!W19 -> 0 | X15: ='Summary-MMTCO2E'!X19 -> 0 | Y15: ='Summary-MMTCO2E'!Y19 -> 0 | Z15: ='Summary-MMTCO2E'!Z19 -> 0 | AA15: ='Summary-MMTCO2E'!AA19 -> 0 | AB15: ='Summary-MMTCO2E'!AB19 -> 0 | AC15: ='Summary-MMTCO2E'!AC19 -> 0 | AD15: ='Summary-MMTCO2E'!AD19 -> 0 | AE15: ='Summary-MMTCO2E'!AE19 -> 0 | AF15: ='Summary-MMTCO2E'!AF19 -> 0 | AG15: ='Summary-MMTCO2E'!AG19 -> 0 | AH15: ='Summary-MMTCO2E'!AH19 -> 0 | AI15: ='Summary-MMTCO2E'!AI19 -> 0 | AJ15: ='Summary-MMTCO2E'!AJ19 -> 0 | AK15: ='Summary-MMTCO2E'!AK19 -> 0 | AL15: ='Summary-MMTCO2E'!AL19 -> 0
A16: Office Equipment | B16: Indirect CO2 from Electricity Consumption - Commercial - Office Equipment | C16: ='Summary-MMTCO2E'!C20 -> 0 | D16: ='Summary-MMTCO2E'!D20 -> 0 | E16: ='Summary-MMTCO2E'!E20 -> 0 | F16: ='Summary-MMTCO2E'!F20 -> 0 | G16: ='Summary-MMTCO2E'!G20 -> 0 | H16: ='Summary-MMTCO2E'!H20 -> 0 | I16: ='Summary-MMTCO2E'!I20 -> 0 | J16: ='Summary-MMTCO2E'!J20 -> 0 | K16: ='Summary-MMTCO2E'!K20 -> 0 | L16: ='Summary-MMTCO2E'!L20 -> 0 | M16: ='Summary-MMTCO2E'!M20 -> 0 | N16: ='Summary-MMTCO2E'!N20 -> 0 | O16: ='Summary-MMTCO2E'!O20 -> 0 | P16: ='Summary-MMTCO2E'!P20 -> 0 | Q16: ='Summary-MMTCO2E'!Q20 -> 0 | R16: ='Summary-MMTCO2E'!R20 -> 0 | S16: ='Summary-MMTCO2E'!S20 -> 0 | T16: ='Summary-MMTCO2E'!T20 -> 0 | U16: ='Summary-MMTCO2E'!U20 -> 0 | V16: ='Summary-MMTCO2E'!V20 -> 0 | W16: ='Summary-MMTCO2E'!W20 -> 0 | X16: ='Summary-MMTCO2E'!X20 -> 0 | Y16: ='Summary-MMTCO2E'!Y20 -> 0 | Z16: ='Summary-MMTCO2E'!Z20 -> 0 | AA16: ='Summary-MMTCO2E'!AA20 -> 0 | AB16: ='Summary-MMTCO2E'!AB20 -> 0 | AC16: ='Summary-MMTCO2E'!AC20 -> 0 | AD16: ='Summary-MMTCO2E'!AD20 -> 0 | AE16: ='Summary-MMTCO2E'!AE20 -> 0 | AF16: ='Summary-MMTCO2E'!AF20 -> 0 | AG16: ='Summary-MMTCO2E'!AG20 -> 0 | AH16: ='Summary-MMTCO2E'!AH20 -> 0 | AI16: ='Summary-MMTCO2E'!AI20 -> 0 | AJ16: ='Summary-MMTCO2E'!AJ20 -> 0 | AK16: ='Summary-MMTCO2E'!AK20 -> 0 | AL16: ='Summary-MMTCO2E'!AL20 -> 0
A17: Computers | B17: Indirect CO2 from Electricity Consumption - Commercial - Computers | C17: ='Summary-MMTCO2E'!C21 -> 0 | D17: ='Summary-MMTCO2E'!D21 -> 0 | E17: ='Summary-MMTCO2E'!E21 -> 0 | F17: ='Summary-MMTCO2E'!F21 -> 0 | G17: ='Summary-MMTCO2E'!G21 -> 0 | H17: ='Summary-MMTCO2E'!H21 -> 0 | I17: ='Summary-MMTCO2E'!I21 -> 0 | J17: ='Summary-MMTCO2E'!J21 -> 0 | K17: ='Summary-MMTCO2E'!K21 -> 0 | L17: ='Summary-MMTCO2E'!L21 -> 0 | M17: ='Summary-MMTCO2E'!M21 -> 0 | N17: ='Summary-MMTCO2E'!N21 -> 0 | O17: ='Summary-MMTCO2E'!O21 -> 0 | P17: ='Summary-MMTCO2E'!P21 -> 0 | Q17: ='Summary-MMTCO2E'!Q21 -> 0 | R17: ='Summary-MMTCO2E'!R21 -> 0 | S17: ='Summary-MMTCO2E'!S21 -> 0 | T17: ='Summary-MMTCO2E'!T21 -> 0 | U17: ='Summary-MMTCO2E'!U21 -> 0 | V17: ='Summary-MMTCO2E'!V21 -> 0 | W17: ='Summary-MMTCO2E'!W21 -> 0 | X17: ='Summary-MMTCO2E'!X21 -> 0 | Y17: ='Summary-MMTCO2E'!Y21 -> 0 | Z17: ='Summary-MMTCO2E'!Z21 -> 0 | AA17: ='Summary-MMTCO2E'!AA21 -> 0 | AB17: ='Summary-MMTCO2E'!AB21 -> 0 | AC17: ='Summary-MMTCO2E'!AC21 -> 0 | AD17: ='Summary-MMTCO2E'!AD21 -> 0 | AE17: ='Summary-MMTCO2E'!AE21 -> 0 | AF17: ='Summary-MMTCO2E'!AF21 -> 0 | AG17: ='Summary-MMTCO2E'!AG21 -> 0 | AH17: ='Summary-MMTCO2E'!AH21 -> 0 | AI17: ='Summary-MMTCO2E'!AI21 -> 0 | AJ17: ='Summary-MMTCO2E'!AJ21 -> 0 | AK17: ='Summary-MMTCO2E'!AK21 -> 0 | AL17: ='Summary-MMTCO2E'!AL21 -> 0
A18: Other | B18: ="Indirect CO2 from Electricity Consumption - "&$A$8&" - "&A18 -> Indirect CO2 from Electricity Consumption - Commercial - Other | C18: ='Summary-MMTCO2E'!C22 -> 0 | D18: ='Summary-MMTCO2E'!D22 -> 0 | E18: ='Summary-MMTCO2E'!E22 -> 0 | F18: ='Summary-MMTCO2E'!F22 -> 0 | G18: ='Summary-MMTCO2E'!G22 -> 0 | H18: ='Summary-MMTCO2E'!H22 -> 0 | I18: ='Summary-MMTCO2E'!I22 -> 0 | J18: ='Summary-MMTCO2E'!J22 -> 0 | K18: ='Summary-MMTCO2E'!K22 -> 0 | L18: ='Summary-MMTCO2E'!L22 -> 0 | M18: ='Summary-MMTCO2E'!M22 -> 0 | N18: ='Summary-MMTCO2E'!N22 -> 0 | O18: ='Summary-MMTCO2E'!O22 -> 0 | P18: ='Summary-MMTCO2E'!P22 -> 0 | Q18: ='Summary-MMTCO2E'!Q22 -> 0 | R18: ='Summary-MMTCO2E'!R22 -> 0 | S18: ='Summary-MMTCO2E'!S22 -> 0 | T18: ='Summary-MMTCO2E'!T22 -> 0 | U18: ='Summary-MMTCO2E'!U22 -> 0 | V18: ='Summary-MMTCO2E'!V22 -> 0 | W18: ='Summary-MMTCO2E'!W22 -> 0 | X18: ='Summary-MMTCO2E'!X22 -> 0 | Y18: ='Summary-MMTCO2E'!Y22 -> 0 | Z18: ='Summary-MMTCO2E'!Z22 -> 0 | AA18: ='Summary-MMTCO2E'!AA22 -> 0 | AB18: ='Summary-MMTCO2E'!AB22 -> 0 | AC18: ='Summary-MMTCO2E'!AC22 -> 0 | AD18: ='Summary-MMTCO2E'!AD22 -> 0 | AE18: ='Summary-MMTCO2E'!AE22 -> 0 | AF18: ='Summary-MMTCO2E'!AF22 -> 0 | AG18: ='Summary-MMTCO2E'!AG22 -> 0 | AH18: ='Summary-MMTCO2E'!AH22 -> 0 | AI18: ='Summary-MMTCO2E'!AI22 -> 0 | AJ18: ='Summary-MMTCO2E'!AJ22 -> 0 | AK18: ='Summary-MMTCO2E'!AK22 -> 0 | AL18: ='Summary-MMTCO2E'!AL22 -> 0
A19: Industrial | B19: ="Indirect CO2 from Electricity Consumption - "&$A$19 -> Indirect CO2 from Electricity Consumption - Industrial | C19: ='Summary-MMTCO2E'!C23 -> 0 | D19: ='Summary-MMTCO2E'!D23 -> 0 | E19: ='Summary-MMTCO2E'!E23 -> 0 | F19: ='Summary-MMTCO2E'!F23 -> 0 | G19: ='Summary-MMTCO2E'!G23 -> 0 | H19: ='Summary-MMTCO2E'!H23 -> 0 | I19: ='Summary-MMTCO2E'!I23 -> 0 | J19: ='Summary-MMTCO2E'!J23 -> 0 | K19: ='Summary-MMTCO2E'!K23 -> 0 | L19: ='Summary-MMTCO2E'!L23 -> 0 | M19: ='Summary-MMTCO2E'!M23 -> 0 | N19: ='Summary-MMTCO2E'!N23 -> 0 | O19: ='Summary-MMTCO2E'!O23 -> 0 | P19: ='Summary-MMTCO2E'!P23 -> 0 | Q19: ='Summary-MMTCO2E'!Q23 -> 0 | R19: ='Summary-MMTCO2E'!R23 -> 0 | S19: ='Summary-MMTCO2E'!S23 -> 0 | T19: ='Summary-MMTCO2E'!T23 -> 0 | U19: ='Summary-MMTCO2E'!U23 -> 0 | V19: ='Summary-MMTCO2E'!V23 -> 0 | W19: ='Summary-MMTCO2E'!W23 -> 0 | X19: ='Summary-MMTCO2E'!X23 -> 0 | Y19: ='Summary-MMTCO2E'!Y23 -> 0 | Z19: ='Summary-MMTCO2E'!Z23 -> 0 | AA19: ='Summary-MMTCO2E'!AA23 -> 0 | AB19: ='Summary-MMTCO2E'!AB23 -> 0 | AC19: ='Summary-MMTCO2E'!AC23 -> 0 | AD19: ='Summary-MMTCO2E'!AD23 -> 0 | AE19: ='Summary-MMTCO2E'!AE23 -> 0 | AF19: ='Summary-MMTCO2E'!AF23 -> 0 | AG19: ='Summary-MMTCO2E'!AG23 -> 0 | AH19: ='Summary-MMTCO2E'!AH23 -> 0 | AI19: ='Summary-MMTCO2E'!AI23 -> 0 | AJ19: ='Summary-MMTCO2E'!AJ23 -> 0 | AK19: ='Summary-MMTCO2E'!AK23 -> 0 | AL19: ='Summary-MMTCO2E'!AL23 -> 0
A20: Indirect Uses-Boiler Fuel | B20: ="Indirect CO2 from Electricity Consumption - "&$A$19&" - "&$A$20 -> Indirect CO2 from Electricity Consumption - Industrial - Indirect Uses-Boiler Fuel | C20: ='Summary-MMTCO2E'!C24 -> 0 | D20: ='Summary-MMTCO2E'!D24 -> 0 | E20: ='Summary-MMTCO2E'!E24 -> 0 | F20: ='Summary-MMTCO2E'!F24 -> 0 | G20: ='Summary-MMTCO2E'!G24 -> 0 | H20: ='Summary-MMTCO2E'!H24 -> 0 | I20: ='Summary-MMTCO2E'!I24 -> 0 | J20: ='Summary-MMTCO2E'!J24 -> 0 | K20: ='Summary-MMTCO2E'!K24 -> 0 | L20: ='Summary-MMTCO2E'!L24 -> 0 | M20: ='Summary-MMTCO2E'!M24 -> 0 | N20: ='Summary-MMTCO2E'!N24 -> 0 | O20: ='Summary-MMTCO2E'!O24 -> 0 | P20: ='Summary-MMTCO2E'!P24 -> 0 | Q20: ='Summary-MMTCO2E'!Q24 -> 0 | R20: ='Summary-MMTCO2E'!R24 -> 0 | S20: ='Summary-MMTCO2E'!S24 -> 0 | T20: ='Summary-MMTCO2E'!T24 -> 0 | U20: ='Summary-MMTCO2E'!U24 -> 0 | V20: ='Summary-MMTCO2E'!V24 -> 0 | W20: ='Summary-MMTCO2E'!W24 -> 0 | X20: ='Summary-MMTCO2E'!X24 -> 0 | Y20: ='Summary-MMTCO2E'!Y24 -> 0 | Z20: ='Summary-MMTCO2E'!Z24 -> 0 | AA20: ='Summary-MMTCO2E'!AA24 -> 0 | AB20: ='Summary-MMTCO2E'!AB24 -> 0 | AC20: ='Summary-MMTCO2E'!AC24 -> 0 | AD20: ='Summary-MMTCO2E'!AD24 -> 0 | AE20: ='Summary-MMTCO2E'!AE24 -> 0 | AF20: ='Summary-MMTCO2E'!AF24 -> 0 | AG20: ='Summary-MMTCO2E'!AG24 -> 0 | AH20: ='Summary-MMTCO2E'!AH24 -> 0 | AI20: ='Summary-MMTCO2E'!AI24 -> 0 | AJ20: ='Summary-MMTCO2E'!AJ24 -> 0 | AK20: ='Summary-MMTCO2E'!AK24 -> 0 | AL20: ='Summary-MMTCO2E'!AL24 -> 0
A21: Conventional Boiler Use | B21: ="Indirect CO2 from Electricity Consumption - "&$A$19&" - "&$A$20&" - "&A21 -> Indirect CO2 from Electricity Consumption - Industrial - Indirect Uses-Boiler Fuel - Conventional Boiler Use | C21: ='Summary-MMTCO2E'!C25 -> 0 | D21: ='Summary-MMTCO2E'!D25 -> 0 | E21: ='Summary-MMTCO2E'!E25 -> 0 | F21: ='Summary-MMTCO2E'!F25 -> 0 | G21: ='Summary-MMTCO2E'!G25 -> 0 | H21: ='Summary-MMTCO2E'!H25 -> 0 | I21: ='Summary-MMTCO2E'!I25 -> 0 | J21: ='Summary-MMTCO2E'!J25 -> 0 | K21: ='Summary-MMTCO2E'!K25 -> 0 | L21: ='Summary-MMTCO2E'!L25 -> 0 | M21: ='Summary-MMTCO2E'!M25 -> 0 | N21: ='Summary-MMTCO2E'!N25 -> 0 | O21: ='Summary-MMTCO2E'!O25 -> 0 | P21: ='Summary-MMTCO2E'!P25 -> 0 | Q21: ='Summary-MMTCO2E'!Q25 -> 0 | R21: ='Summary-MMTCO2E'!R25 -> 0 | S21: ='Summary-MMTCO2E'!S25 -> 0 | T21: ='Summary-MMTCO2E'!T25 -> 0 | U21: ='Summary-MMTCO2E'!U25 -> 0 | V21: ='Summary-MMTCO2E'!V25 -> 0 | W21: ='Summary-MMTCO2E'!W25 -> 0 | X21: ='Summary-MMTCO2E'!X25 -> 0 | Y21: ='Summary-MMTCO2E'!Y25 -> 0 | Z21: ='Summary-MMTCO2E'!Z25 -> 0 | AA21: ='Summary-MMTCO2E'!AA25 -> 0 | AB21: ='Summary-MMTCO2E'!AB25 -> 0 | AC21: ='Summary-MMTCO2E'!AC25 -> 0 | AD21: ='Summary-MMTCO2E'!AD25 -> 0 | AE21: ='Summary-MMTCO2E'!AE25 -> 0 | AF21: ='Summary-MMTCO2E'!AF25 -> 0 | AG21: ='Summary-MMTCO2E'!AG25 -> 0 | AH21: ='Summary-MMTCO2E'!AH25 -> 0 | AI21: ='Summary-MMTCO2E'!AI25 -> 0 | AJ21: ='Summary-MMTCO2E'!AJ25 -> 0 | AK21: ='Summary-MMTCO2E'!AK25 -> 0 | AL21: ='Summary-MMTCO2E'!AL25 -> 0
A22: CHP and/or Cogeneration Process | B22: ="Indirect CO2 from Electricity Consumption - "&$A$19&" - "&$A$20&" - "&A22 -> Indirect CO2 from Electricity Consumption - Industrial - Indirect Uses-Boiler Fuel - CHP and/or Cogeneration Process | C22: ='Summary-MMTCO2E'!C26 -> 0 | D22: ='Summary-MMTCO2E'!D26 -> 0 | E22: ='Summary-MMTCO2E'!E26 -> 0 | F22: ='Summary-MMTCO2E'!F26 -> 0 | G22: ='Summary-MMTCO2E'!G26 -> 0 | H22: ='Summary-MMTCO2E'!H26 -> 0 | I22: ='Summary-MMTCO2E'!I26 -> 0 | J22: ='Summary-MMTCO2E'!J26 -> 0 | K22: ='Summary-MMTCO2E'!K26 -> 0 | L22: ='Summary-MMTCO2E'!L26 -> 0 | M22: ='Summary-MMTCO2E'!M26 -> 0 | N22: ='Summary-MMTCO2E'!N26 -> 0 | O22: ='Summary-MMTCO2E'!O26 -> 0 | P22: ='Summary-MMTCO2E'!P26 -> 0 | Q22: ='Summary-MMTCO2E'!Q26 -> 0 | R22: ='Summary-MMTCO2E'!R26 -> 0 | S22: ='Summary-MMTCO2E'!S26 -> 0 | T22: ='Summary-MMTCO2E'!T26 -> 0 | U22: ='Summary-MMTCO2E'!U26 -> 0 | V22: ='Summary-MMTCO2E'!V26 -> 0 | W22: ='Summary-MMTCO2E'!W26 -> 0 | X22: ='Summary-MMTCO2E'!X26 -> 0 | Y22: ='Summary-MMTCO2E'!Y26 -> 0 | Z22: ='Summary-MMTCO2E'!Z26 -> 0 | AA22: ='Summary-MMTCO2E'!AA26 -> 0 | AB22: ='Summary-MMTCO2E'!AB26 -> 0 | AC22: ='Summary-MMTCO2E'!AC26 -> 0 | AD22: ='Summary-MMTCO2E'!AD26 -> 0 | AE22: ='Summary-MMTCO2E'!AE26 -> 0 | AF22: ='Summary-MMTCO2E'!AF26 -> 0 | AG22: ='Summary-MMTCO2E'!AG26 -> 0 | AH22: ='Summary-MMTCO2E'!AH26 -> 0 | AI22: ='Summary-MMTCO2E'!AI26 -> 0 | AJ22: ='Summary-MMTCO2E'!AJ26 -> 0 | AK22: ='Summary-MMTCO2E'!AK26 -> 0 | AL22: ='Summary-MMTCO2E'!AL26 -> 0
A23: Direct Uses-Total Process | B23: ="Indirect CO2 from Electricity Consumption - "&$A$19&" - "&$A$23 -> Indirect CO2 from Electricity Consumption - Industrial - Direct Uses-Total Process | C23: ='Summary-MMTCO2E'!C27 -> 0 | D23: ='Summary-MMTCO2E'!D27 -> 0 | E23: ='Summary-MMTCO2E'!E27 -> 0 | F23: ='Summary-MMTCO2E'!F27 -> 0 | G23: ='Summary-MMTCO2E'!G27 -> 0 | H23: ='Summary-MMTCO2E'!H27 -> 0 | I23: ='Summary-MMTCO2E'!I27 -> 0 | J23: ='Summary-MMTCO2E'!J27 -> 0 | K23: ='Summary-MMTCO2E'!K27 -> 0 | L23: ='Summary-MMTCO2E'!L27 -> 0 | M23: ='Summary-MMTCO2E'!M27 -> 0 | N23: ='Summary-MMTCO2E'!N27 -> 0 | O23: ='Summary-MMTCO2E'!O27 -> 0 | P23: ='Summary-MMTCO2E'!P27 -> 0 | Q23: ='Summary-MMTCO2E'!Q27 -> 0 | R23: ='Summary-MMTCO2E'!R27 -> 0 | S23: ='Summary-MMTCO2E'!S27 -> 0 | T23: ='Summary-MMTCO2E'!T27 -> 0 | U23: ='Summary-MMTCO2E'!U27 -> 0 | V23: ='Summary-MMTCO2E'!V27 -> 0 | W23: ='Summary-MMTCO2E'!W27 -> 0 | X23: ='Summary-MMTCO2E'!X27 -> 0 | Y23: ='Summary-MMTCO2E'!Y27 -> 0 | Z23: ='Summary-MMTCO2E'!Z27 -> 0 | AA23: ='Summary-MMTCO2E'!AA27 -> 0 | AB23: ='Summary-MMTCO2E'!AB27 -> 0 | AC23: ='Summary-MMTCO2E'!AC27 -> 0 | AD23: ='Summary-MMTCO2E'!AD27 -> 0 | AE23: ='Summary-MMTCO2E'!AE27 -> 0 | AF23: ='Summary-MMTCO2E'!AF27 -> 0 | AG23: ='Summary-MMTCO2E'!AG27 -> 0 | AH23: ='Summary-MMTCO2E'!AH27 -> 0 | AI23: ='Summary-MMTCO2E'!AI27 -> 0 | AJ23: ='Summary-MMTCO2E'!AJ27 -> 0 | AK23: ='Summary-MMTCO2E'!AK27 -> 0 | AL23: ='Summary-MMTCO2E'!AL27 -> 0
A24: Process Heating | B24: ="Indirect CO2 from Electricity Consumption - "&$A$19&" - "&$A$23&" - "&A24 -> Indirect CO2 from Electricity Consumption - Industrial - Direct Uses-Total Process - Process Heating | C24: ='Summary-MMTCO2E'!C28 -> 0 | D24: ='Summary-MMTCO2E'!D28 -> 0 | E24: ='Summary-MMTCO2E'!E28 -> 0 | F24: ='Summary-MMTCO2E'!F28 -> 0 | G24: ='Summary-MMTCO2E'!G28 -> 0 | H24: ='Summary-MMTCO2E'!H28 -> 0 | I24: ='Summary-MMTCO2E'!I28 -> 0 | J24: ='Summary-MMTCO2E'!J28 -> 0 | K24: ='Summary-MMTCO2E'!K28 -> 0 | L24: ='Summary-MMTCO2E'!L28 -> 0 | M24: ='Summary-MMTCO2E'!M28 -> 0 | N24: ='Summary-MMTCO2E'!N28 -> 0 | O24: ='Summary-MMTCO2E'!O28 -> 0 | P24: ='Summary-MMTCO2E'!P28 -> 0 | Q24: ='Summary-MMTCO2E'!Q28 -> 0 | R24: ='Summary-MMTCO2E'!R28 -> 0 | S24: ='Summary-MMTCO2E'!S28 -> 0 | T24: ='Summary-MMTCO2E'!T28 -> 0 | U24: ='Summary-MMTCO2E'!U28 -> 0 | V24: ='Summary-MMTCO2E'!V28 -> 0 | W24: ='Summary-MMTCO2E'!W28 -> 0 | X24: ='Summary-MMTCO2E'!X28 -> 0 | Y24: ='Summary-MMTCO2E'!Y28 -> 0 | Z24: ='Summary-MMTCO2E'!Z28 -> 0 | AA24: ='Summary-MMTCO2E'!AA28 -> 0 | AB24: ='Summary-MMTCO2E'!AB28 -> 0 | AC24: ='Summary-MMTCO2E'!AC28 -> 0 | AD24: ='Summary-MMTCO2E'!AD28 -> 0 | AE24: ='Summary-MMTCO2E'!AE28 -> 0 | AF24: ='Summary-MMTCO2E'!AF28 -> 0 | AG24: ='Summary-MMTCO2E'!AG28 -> 0 | AH24: ='Summary-MMTCO2E'!AH28 -> 0 | AI24: ='Summary-MMTCO2E'!AI28 -> 0 | AJ24: ='Summary-MMTCO2E'!AJ28 -> 0 | AK24: ='Summary-MMTCO2E'!AK28 -> 0 | AL24: ='Summary-MMTCO2E'!AL28 -> 0
A25: Process Cooling and Refrigeration | B25: ="Indirect CO2 from Electricity Consumption - "&$A$19&" - "&$A$23&" - "&A25 -> Indirect CO2 from Electricity Consumption - Industrial - Direct Uses-Total Process - Process Cooling and Refrigeration | C25: ='Summary-MMTCO2E'!C29 -> 0 | D25: ='Summary-MMTCO2E'!D29 -> 0 | E25: ='Summary-MMTCO2E'!E29 -> 0 | F25: ='Summary-MMTCO2E'!F29 -> 0 | G25: ='Summary-MMTCO2E'!G29 -> 0 | H25: ='Summary-MMTCO2E'!H29 -> 0 | I25: ='Summary-MMTCO2E'!I29 -> 0 | J25: ='Summary-MMTCO2E'!J29 -> 0 | K25: ='Summary-MMTCO2E'!K29 -> 0 | L25: ='Summary-MMTCO2E'!L29 -> 0 | M25: ='Summary-MMTCO2E'!M29 -> 0 | N25: ='Summary-MMTCO2E'!N29 -> 0 | O25: ='Summary-MMTCO2E'!O29 -> 0 | P25: ='Summary-MMTCO2E'!P29 -> 0 | Q25: ='Summary-MMTCO2E'!Q29 -> 0 | R25: ='Summary-MMTCO2E'!R29 -> 0 | S25: ='Summary-MMTCO2E'!S29 -> 0 | T25: ='Summary-MMTCO2E'!T29 -> 0 | U25: ='Summary-MMTCO2E'!U29 -> 0 | V25: ='Summary-MMTCO2E'!V29 -> 0 | W25: ='Summary-MMTCO2E'!W29 -> 0 | X25: ='Summary-MMTCO2E'!X29 -> 0 | Y25: ='Summary-MMTCO2E'!Y29 -> 0 | Z25: ='Summary-MMTCO2E'!Z29 -> 0 | AA25: ='Summary-MMTCO2E'!AA29 -> 0 | AB25: ='Summary-MMTCO2E'!AB29 -> 0 | AC25: ='Summary-MMTCO2E'!AC29 -> 0 | AD25: ='Summary-MMTCO2E'!AD29 -> 0 | AE25: ='Summary-MMTCO2E'!AE29 -> 0 | AF25: ='Summary-MMTCO2E'!AF29 -> 0 | AG25: ='Summary-MMTCO2E'!AG29 -> 0 | AH25: ='Summary-MMTCO2E'!AH29 -> 0 | AI25: ='Summary-MMTCO2E'!AI29 -> 0 | AJ25: ='Summary-MMTCO2E'!AJ29 -> 0 | AK25: ='Summary-MMTCO2E'!AK29 -> 0 | AL25: ='Summary-MMTCO2E'!AL29 -> 0
A26: Machine Drive | B26: Indirect CO2 from Electricity Consumption - Industrial - Direct Uses-Total Process - Machine Drive | C26: ='Summary-MMTCO2E'!C30 -> 0 | D26: ='Summary-MMTCO2E'!D30 -> 0 | E26: ='Summary-MMTCO2E'!E30 -> 0 | F26: ='Summary-MMTCO2E'!F30 -> 0 | G26: ='Summary-MMTCO2E'!G30 -> 0 | H26: ='Summary-MMTCO2E'!H30 -> 0 | I26: ='Summary-MMTCO2E'!I30 -> 0 | J26: ='Summary-MMTCO2E'!J30 -> 0 | K26: ='Summary-MMTCO2E'!K30 -> 0 | L26: ='Summary-MMTCO2E'!L30 -> 0 | M26: ='Summary-MMTCO2E'!M30 -> 0 | N26: ='Summary-MMTCO2E'!N30 -> 0 | O26: ='Summary-MMTCO2E'!O30 -> 0 | P26: ='Summary-MMTCO2E'!P30 -> 0 | Q26: ='Summary-MMTCO2E'!Q30 -> 0 | R26: ='Summary-MMTCO2E'!R30 -> 0 | S26: ='Summary-MMTCO2E'!S30 -> 0 | T26: ='Summary-MMTCO2E'!T30 -> 0 | U26: ='Summary-MMTCO2E'!U30 -> 0 | V26: ='Summary-MMTCO2E'!V30 -> 0 | W26: ='Summary-MMTCO2E'!W30 -> 0 | X26: ='Summary-MMTCO2E'!X30 -> 0 | Y26: ='Summary-MMTCO2E'!Y30 -> 0 | Z26: ='Summary-MMTCO2E'!Z30 -> 0 | AA26: ='Summary-MMTCO2E'!AA30 -> 0 | AB26: ='Summary-MMTCO2E'!AB30 -> 0 | AC26: ='Summary-MMTCO2E'!AC30 -> 0 | AD26: ='Summary-MMTCO2E'!AD30 -> 0 | AE26: ='Summary-MMTCO2E'!AE30 -> 0 | AF26: ='Summary-MMTCO2E'!AF30 -> 0 | AG26: ='Summary-MMTCO2E'!AG30 -> 0 | AH26: ='Summary-MMTCO2E'!AH30 -> 0 | AI26: ='Summary-MMTCO2E'!AI30 -> 0 | AJ26: ='Summary-MMTCO2E'!AJ30 -> 0 | AK26: ='Summary-MMTCO2E'!AK30 -> 0 | AL26: ='Summary-MMTCO2E'!AL30 -> 0
A27: Electro-Chemical Processes | B27: Indirect CO2 from Electricity Consumption - Industrial - Direct Uses-Total Process - Electro-Chemical Processes | C27: ='Summary-MMTCO2E'!C31 -> 0 | D27: ='Summary-MMTCO2E'!D31 -> 0 | E27: ='Summary-MMTCO2E'!E31 -> 0 | F27: ='Summary-MMTCO2E'!F31 -> 0 | G27: ='Summary-MMTCO2E'!G31 -> 0 | H27: ='Summary-MMTCO2E'!H31 -> 0 | I27: ='Summary-MMTCO2E'!I31 -> 0 | J27: ='Summary-MMTCO2E'!J31 -> 0 | K27: ='Summary-MMTCO2E'!K31 -> 0 | L27: ='Summary-MMTCO2E'!L31 -> 0 | M27: ='Summary-MMTCO2E'!M31 -> 0 | N27: ='Summary-MMTCO2E'!N31 -> 0 | O27: ='Summary-MMTCO2E'!O31 -> 0 | P27: ='Summary-MMTCO2E'!P31 -> 0 | Q27: ='Summary-MMTCO2E'!Q31 -> 0 | R27: ='Summary-MMTCO2E'!R31 -> 0 | S27: ='Summary-MMTCO2E'!S31 -> 0 | T27: ='Summary-MMTCO2E'!T31 -> 0 | U27: ='Summary-MMTCO2E'!U31 -> 0 | V27: ='Summary-MMTCO2E'!V31 -> 0 | W27: ='Summary-MMTCO2E'!W31 -> 0 | X27: ='Summary-MMTCO2E'!X31 -> 0 | Y27: ='Summary-MMTCO2E'!Y31 -> 0 | Z27: ='Summary-MMTCO2E'!Z31 -> 0 | AA27: ='Summary-MMTCO2E'!AA31 -> 0 | AB27: ='Summary-MMTCO2E'!AB31 -> 0 | AC27: ='Summary-MMTCO2E'!AC31 -> 0 | AD27: ='Summary-MMTCO2E'!AD31 -> 0 | AE27: ='Summary-MMTCO2E'!AE31 -> 0 | AF27: ='Summary-MMTCO2E'!AF31 -> 0 | AG27: ='Summary-MMTCO2E'!AG31 -> 0 | AH27: ='Summary-MMTCO2E'!AH31 -> 0 | AI27: ='Summary-MMTCO2E'!AI31 -> 0 | AJ27: ='Summary-MMTCO2E'!AJ31 -> 0 | AK27: ='Summary-MMTCO2E'!AK31 -> 0 | AL27: ='Summary-MMTCO2E'!AL31 -> 0
A28: Other Process Use | B28: Indirect CO2 from Electricity Consumption - Industrial - Direct Uses-Total Process - Other Process Use | C28: ='Summary-MMTCO2E'!C32 -> 0 | D28: ='Summary-MMTCO2E'!D32 -> 0 | E28: ='Summary-MMTCO2E'!E32 -> 0 | F28: ='Summary-MMTCO2E'!F32 -> 0 | G28: ='Summary-MMTCO2E'!G32 -> 0 | H28: ='Summary-MMTCO2E'!H32 -> 0 | I28: ='Summary-MMTCO2E'!I32 -> 0 | J28: ='Summary-MMTCO2E'!J32 -> 0 | K28: ='Summary-MMTCO2E'!K32 -> 0 | L28: ='Summary-MMTCO2E'!L32 -> 0 | M28: ='Summary-MMTCO2E'!M32 -> 0 | N28: ='Summary-MMTCO2E'!N32 -> 0 | O28: ='Summary-MMTCO2E'!O32 -> 0 | P28: ='Summary-MMTCO2E'!P32 -> 0 | Q28: ='Summary-MMTCO2E'!Q32 -> 0 | R28: ='Summary-MMTCO2E'!R32 -> 0 | S28: ='Summary-MMTCO2E'!S32 -> 0 | T28: ='Summary-MMTCO2E'!T32 -> 0 | U28: ='Summary-MMTCO2E'!U32 -> 0 | V28: ='Summary-MMTCO2E'!V32 -> 0 | W28: ='Summary-MMTCO2E'!W32 -> 0 | X28: ='Summary-MMTCO2E'!X32 -> 0 | Y28: ='Summary-MMTCO2E'!Y32 -> 0 | Z28: ='Summary-MMTCO2E'!Z32 -> 0 | AA28: ='Summary-MMTCO2E'!AA32 -> 0 | AB28: ='Summary-MMTCO2E'!AB32 -> 0 | AC28: ='Summary-MMTCO2E'!AC32 -> 0 | AD28: ='Summary-MMTCO2E'!AD32 -> 0 | AE28: ='Summary-MMTCO2E'!AE32 -> 0 | AF28: ='Summary-MMTCO2E'!AF32 -> 0 | AG28: ='Summary-MMTCO2E'!AG32 -> 0 | AH28: ='Summary-MMTCO2E'!AH32 -> 0 | AI28: ='Summary-MMTCO2E'!AI32 -> 0 | AJ28: ='Summary-MMTCO2E'!AJ32 -> 0 | AK28: ='Summary-MMTCO2E'!AK32 -> 0 | AL28: ='Summary-MMTCO2E'!AL32 -> 0
A29: Direct Uses-Total Nonprocess | B29: ="Indirect CO2 from Electricity Consumption - "&$A$19&" - "&$A$29 -> Indirect CO2 from Electricity Consumption - Industrial - Direct Uses-Total Nonprocess | C29: ='Summary-MMTCO2E'!C33 -> 0 | D29: ='Summary-MMTCO2E'!D33 -> 0 | E29: ='Summary-MMTCO2E'!E33 -> 0 | F29: ='Summary-MMTCO2E'!F33 -> 0 | G29: ='Summary-MMTCO2E'!G33 -> 0 | H29: ='Summary-MMTCO2E'!H33 -> 0 | I29: ='Summary-MMTCO2E'!I33 -> 0 | J29: ='Summary-MMTCO2E'!J33 -> 0 | K29: ='Summary-MMTCO2E'!K33 -> 0 | L29: ='Summary-MMTCO2E'!L33 -> 0 | M29: ='Summary-MMTCO2E'!M33 -> 0 | N29: ='Summary-MMTCO2E'!N33 -> 0 | O29: ='Summary-MMTCO2E'!O33 -> 0 | P29: ='Summary-MMTCO2E'!P33 -> 0 | Q29: ='Summary-MMTCO2E'!Q33 -> 0 | R29: ='Summary-MMTCO2E'!R33 -> 0 | S29: ='Summary-MMTCO2E'!S33 -> 0 | T29: ='Summary-MMTCO2E'!T33 -> 0 | U29: ='Summary-MMTCO2E'!U33 -> 0 | V29: ='Summary-MMTCO2E'!V33 -> 0 | W29: ='Summary-MMTCO2E'!W33 -> 0 | X29: ='Summary-MMTCO2E'!X33 -> 0 | Y29: ='Summary-MMTCO2E'!Y33 -> 0 | Z29: ='Summary-MMTCO2E'!Z33 -> 0 | AA29: ='Summary-MMTCO2E'!AA33 -> 0 | AB29: ='Summary-MMTCO2E'!AB33 -> 0 | AC29: ='Summary-MMTCO2E'!AC33 -> 0 | AD29: ='Summary-MMTCO2E'!AD33 -> 0 | AE29: ='Summary-MMTCO2E'!AE33 -> 0 | AF29: ='Summary-MMTCO2E'!AF33 -> 0 | AG29: ='Summary-MMTCO2E'!AG33 -> 0 | AH29: ='Summary-MMTCO2E'!AH33 -> 0 | AI29: ='Summary-MMTCO2E'!AI33 -> 0 | AJ29: ='Summary-MMTCO2E'!AJ33 -> 0 | AK29: ='Summary-MMTCO2E'!AK33 -> 0 | AL29: ='Summary-MMTCO2E'!AL33 -> 0
A30: Facility HVAC | B30: ="Indirect CO2 from Electricity Consumption - "&$A$19&" - "&$A$29&" - "&A30 -> Indirect CO2 from Electricity Consumption - Industrial - Direct Uses-Total Nonprocess - Facility HVAC | C30: ='Summary-MMTCO2E'!C34 -> 0 | D30: ='Summary-MMTCO2E'!D34 -> 0 | E30: ='Summary-MMTCO2E'!E34 -> 0 | F30: ='Summary-MMTCO2E'!F34 -> 0 | G30: ='Summary-MMTCO2E'!G34 -> 0 | H30: ='Summary-MMTCO2E'!H34 -> 0 | I30: ='Summary-MMTCO2E'!I34 -> 0 | J30: ='Summary-MMTCO2E'!J34 -> 0 | K30: ='Summary-MMTCO2E'!K34 -> 0 | L30: ='Summary-MMTCO2E'!L34 -> 0 | M30: ='Summary-MMTCO2E'!M34 -> 0 | N30: ='Summary-MMTCO2E'!N34 -> 0 | O30: ='Summary-MMTCO2E'!O34 -> 0 | P30: ='Summary-MMTCO2E'!P34 -> 0 | Q30: ='Summary-MMTCO2E'!Q34 -> 0 | R30: ='Summary-MMTCO2E'!R34 -> 0 | S30: ='Summary-MMTCO2E'!S34 -> 0 | T30: ='Summary-MMTCO2E'!T34 -> 0 | U30: ='Summary-MMTCO2E'!U34 -> 0 | V30: ='Summary-MMTCO2E'!V34 -> 0 | W30: ='Summary-MMTCO2E'!W34 -> 0 | X30: ='Summary-MMTCO2E'!X34 -> 0 | Y30: ='Summary-MMTCO2E'!Y34 -> 0 | Z30: ='Summary-MMTCO2E'!Z34 -> 0 | AA30: ='Summary-MMTCO2E'!AA34 -> 0 | AB30: ='Summary-MMTCO2E'!AB34 -> 0 | AC30: ='Summary-MMTCO2E'!AC34 -> 0 | AD30: ='Summary-MMTCO2E'!AD34 -> 0 | AE30: ='Summary-MMTCO2E'!AE34 -> 0 | AF30: ='Summary-MMTCO2E'!AF34 -> 0 | AG30: ='Summary-MMTCO2E'!AG34 -> 0 | AH30: ='Summary-MMTCO2E'!AH34 -> 0 | AI30: ='Summary-MMTCO2E'!AI34 -> 0 | AJ30: ='Summary-MMTCO2E'!AJ34 -> 0 | AK30: ='Summary-MMTCO2E'!AK34 -> 0 | AL30: ='Summary-MMTCO2E'!AL34 -> 0
A31: Facility Lighting | B31: ="Indirect CO2 from Electricity Consumption - "&$A$19&" - "&$A$29&" - "&A31 -> Indirect CO2 from Electricity Consumption - Industrial - Direct Uses-Total Nonprocess - Facility Lighting | C31: ='Summary-MMTCO2E'!C35 -> 0 | D31: ='Summary-MMTCO2E'!D35 -> 0 | E31: ='Summary-MMTCO2E'!E35 -> 0 | F31: ='Summary-MMTCO2E'!F35 -> 0 | G31: ='Summary-MMTCO2E'!G35 -> 0 | H31: ='Summary-MMTCO2E'!H35 -> 0 | I31: ='Summary-MMTCO2E'!I35 -> 0 | J31: ='Summary-MMTCO2E'!J35 -> 0 | K31: ='Summary-MMTCO2E'!K35 -> 0 | L31: ='Summary-MMTCO2E'!L35 -> 0 | M31: ='Summary-MMTCO2E'!M35 -> 0 | N31: ='Summary-MMTCO2E'!N35 -> 0 | O31: ='Summary-MMTCO2E'!O35 -> 0 | P31: ='Summary-MMTCO2E'!P35 -> 0 | Q31: ='Summary-MMTCO2E'!Q35 -> 0 | R31: ='Summary-MMTCO2E'!R35 -> 0 | S31: ='Summary-MMTCO2E'!S35 -> 0 | T31: ='Summary-MMTCO2E'!T35 -> 0 | U31: ='Summary-MMTCO2E'!U35 -> 0 | V31: ='Summary-MMTCO2E'!V35 -> 0 | W31: ='Summary-MMTCO2E'!W35 -> 0 | X31: ='Summary-MMTCO2E'!X35 -> 0 | Y31: ='Summary-MMTCO2E'!Y35 -> 0 | Z31: ='Summary-MMTCO2E'!Z35 -> 0 | AA31: ='Summary-MMTCO2E'!AA35 -> 0 | AB31: ='Summary-MMTCO2E'!AB35 -> 0 | AC31: ='Summary-MMTCO2E'!AC35 -> 0 | AD31: ='Summary-MMTCO2E'!AD35 -> 0 | AE31: ='Summary-MMTCO2E'!AE35 -> 0 | AF31: ='Summary-MMTCO2E'!AF35 -> 0 | AG31: ='Summary-MMTCO2E'!AG35 -> 0 | AH31: ='Summary-MMTCO2E'!AH35 -> 0 | AI31: ='Summary-MMTCO2E'!AI35 -> 0 | AJ31: ='Summary-MMTCO2E'!AJ35 -> 0 | AK31: ='Summary-MMTCO2E'!AK35 -> 0 | AL31: ='Summary-MMTCO2E'!AL35 -> 0
A32: Other Facility Support | B32: Indirect CO2 from Electricity Consumption - Industrial - Direct Uses-Total Nonprocess - Other Facility Support | C32: ='Summary-MMTCO2E'!C36 -> 0 | D32: ='Summary-MMTCO2E'!D36 -> 0 | E32: ='Summary-MMTCO2E'!E36 -> 0 | F32: ='Summary-MMTCO2E'!F36 -> 0 | G32: ='Summary-MMTCO2E'!G36 -> 0 | H32: ='Summary-MMTCO2E'!H36 -> 0 | I32: ='Summary-MMTCO2E'!I36 -> 0 | J32: ='Summary-MMTCO2E'!J36 -> 0 | K32: ='Summary-MMTCO2E'!K36 -> 0 | L32: ='Summary-MMTCO2E'!L36 -> 0 | M32: ='Summary-MMTCO2E'!M36 -> 0 | N32: ='Summary-MMTCO2E'!N36 -> 0 | O32: ='Summary-MMTCO2E'!O36 -> 0 | P32: ='Summary-MMTCO2E'!P36 -> 0 | Q32: ='Summary-MMTCO2E'!Q36 -> 0 | R32: ='Summary-MMTCO2E'!R36 -> 0 | S32: ='Summary-MMTCO2E'!S36 -> 0 | T32: ='Summary-MMTCO2E'!T36 -> 0 | U32: ='Summary-MMTCO2E'!U36 -> 0 | V32: ='Summary-MMTCO2E'!V36 -> 0 | W32: ='Summary-MMTCO2E'!W36 -> 0 | X32: ='Summary-MMTCO2E'!X36 -> 0 | Y32: ='Summary-MMTCO2E'!Y36 -> 0 | Z32: ='Summary-MMTCO2E'!Z36 -> 0 | AA32: ='Summary-MMTCO2E'!AA36 -> 0 | AB32: ='Summary-MMTCO2E'!AB36 -> 0 | AC32: ='Summary-MMTCO2E'!AC36 -> 0 | AD32: ='Summary-MMTCO2E'!AD36 -> 0 | AE32: ='Summary-MMTCO2E'!AE36 -> 0 | AF32: ='Summary-MMTCO2E'!AF36 -> 0 | AG32: ='Summary-MMTCO2E'!AG36 -> 0 | AH32: ='Summary-MMTCO2E'!AH36 -> 0 | AI32: ='Summary-MMTCO2E'!AI36 -> 0 | AJ32: ='Summary-MMTCO2E'!AJ36 -> 0 | AK32: ='Summary-MMTCO2E'!AK36 -> 0 | AL32: ='Summary-MMTCO2E'!AL36 -> 0
A33: Onsite Transportation | B33: Indirect CO2 from Electricity Consumption - Industrial - Direct Uses-Total Nonprocess - Onsite Transportation | C33: ='Summary-MMTCO2E'!C37 -> 0 | D33: ='Summary-MMTCO2E'!D37 -> 0 | E33: ='Summary-MMTCO2E'!E37 -> 0 | F33: ='Summary-MMTCO2E'!F37 -> 0 | G33: ='Summary-MMTCO2E'!G37 -> 0 | H33: ='Summary-MMTCO2E'!H37 -> 0 | I33: ='Summary-MMTCO2E'!I37 -> 0 | J33: ='Summary-MMTCO2E'!J37 -> 0 | K33: ='Summary-MMTCO2E'!K37 -> 0 | L33: ='Summary-MMTCO2E'!L37 -> 0 | M33: ='Summary-MMTCO2E'!M37 -> 0 | N33: ='Summary-MMTCO2E'!N37 -> 0 | O33: ='Summary-MMTCO2E'!O37 -> 0 | P33: ='Summary-MMTCO2E'!P37 -> 0 | Q33: ='Summary-MMTCO2E'!Q37 -> 0 | R33: ='Summary-MMTCO2E'!R37 -> 0 | S33: ='Summary-MMTCO2E'!S37 -> 0 | T33: ='Summary-MMTCO2E'!T37 -> 0 | U33: ='Summary-MMTCO2E'!U37 -> 0 | V33: ='Summary-MMTCO2E'!V37 -> 0 | W33: ='Summary-MMTCO2E'!W37 -> 0 | X33: ='Summary-MMTCO2E'!X37 -> 0 | Y33: ='Summary-MMTCO2E'!Y37 -> 0 | Z33: ='Summary-MMTCO2E'!Z37 -> 0 | AA33: ='Summary-MMTCO2E'!AA37 -> 0 | AB33: ='Summary-MMTCO2E'!AB37 -> 0 | AC33: ='Summary-MMTCO2E'!AC37 -> 0 | AD33: ='Summary-MMTCO2E'!AD37 -> 0 | AE33: ='Summary-MMTCO2E'!AE37 -> 0 | AF33: ='Summary-MMTCO2E'!AF37 -> 0 | AG33: ='Summary-MMTCO2E'!AG37 -> 0 | AH33: ='Summary-MMTCO2E'!AH37 -> 0 | AI33: ='Summary-MMTCO2E'!AI37 -> 0 | AJ33: ='Summary-MMTCO2E'!AJ37 -> 0 | AK33: ='Summary-MMTCO2E'!AK37 -> 0 | AL33: ='Summary-MMTCO2E'!AL37 -> 0
A34: Other Nonprocess Use | B34: Indirect CO2 from Electricity Consumption - Industrial - Direct Uses-Total Nonprocess - Other Nonprocess Use | C34: ='Summary-MMTCO2E'!C38 -> 0 | D34: ='Summary-MMTCO2E'!D38 -> 0 | E34: ='Summary-MMTCO2E'!E38 -> 0 | F34: ='Summary-MMTCO2E'!F38 -> 0 | G34: ='Summary-MMTCO2E'!G38 -> 0 | H34: ='Summary-MMTCO2E'!H38 -> 0 | I34: ='Summary-MMTCO2E'!I38 -> 0 | J34: ='Summary-MMTCO2E'!J38 -> 0 | K34: ='Summary-MMTCO2E'!K38 -> 0 | L34: ='Summary-MMTCO2E'!L38 -> 0 | M34: ='Summary-MMTCO2E'!M38 -> 0 | N34: ='Summary-MMTCO2E'!N38 -> 0 | O34: ='Summary-MMTCO2E'!O38 -> 0 | P34: ='Summary-MMTCO2E'!P38 -> 0 | Q34: ='Summary-MMTCO2E'!Q38 -> 0 | R34: ='Summary-MMTCO2E'!R38 -> 0 | S34: ='Summary-MMTCO2E'!S38 -> 0 | T34: ='Summary-MMTCO2E'!T38 -> 0 | U34: ='Summary-MMTCO2E'!U38 -> 0 | V34: ='Summary-MMTCO2E'!V38 -> 0 | W34: ='Summary-MMTCO2E'!W38 -> 0 | X34: ='Summary-MMTCO2E'!X38 -> 0 | Y34: ='Summary-MMTCO2E'!Y38 -> 0 | Z34: ='Summary-MMTCO2E'!Z38 -> 0 | AA34: ='Summary-MMTCO2E'!AA38 -> 0 | AB34: ='Summary-MMTCO2E'!AB38 -> 0 | AC34: ='Summary-MMTCO2E'!AC38 -> 0 | AD34: ='Summary-MMTCO2E'!AD38 -> 0 | AE34: ='Summary-MMTCO2E'!AE38 -> 0 | AF34: ='Summary-MMTCO2E'!AF38 -> 0 | AG34: ='Summary-MMTCO2E'!AG38 -> 0 | AH34: ='Summary-MMTCO2E'!AH38 -> 0 | AI34: ='Summary-MMTCO2E'!AI38 -> 0 | AJ34: ='Summary-MMTCO2E'!AJ38 -> 0 | AK34: ='Summary-MMTCO2E'!AK38 -> 0 | AL34: ='Summary-MMTCO2E'!AL38 -> 0
A35: Other | B35: ="Indirect CO2 from Electricity Consumption - "&$A$19&" - "&A35 -> Indirect CO2 from Electricity Consumption - Industrial - Other | C35: ='Summary-MMTCO2E'!C39 -> 0 | D35: ='Summary-MMTCO2E'!D39 -> 0 | E35: ='Summary-MMTCO2E'!E39 -> 0 | F35: ='Summary-MMTCO2E'!F39 -> 0 | G35: ='Summary-MMTCO2E'!G39 -> 0 | H35: ='Summary-MMTCO2E'!H39 -> 0 | I35: ='Summary-MMTCO2E'!I39 -> 0 | J35: ='Summary-MMTCO2E'!J39 -> 0 | K35: ='Summary-MMTCO2E'!K39 -> 0 | L35: ='Summary-MMTCO2E'!L39 -> 0 | M35: ='Summary-MMTCO2E'!M39 -> 0 | N35: ='Summary-MMTCO2E'!N39 -> 0 | O35: ='Summary-MMTCO2E'!O39 -> 0 | P35: ='Summary-MMTCO2E'!P39 -> 0 | Q35: ='Summary-MMTCO2E'!Q39 -> 0 | R35: ='Summary-MMTCO2E'!R39 -> 0 | S35: ='Summary-MMTCO2E'!S39 -> 0 | T35: ='Summary-MMTCO2E'!T39 -> 0 | U35: ='Summary-MMTCO2E'!U39 -> 0 | V35: ='Summary-MMTCO2E'!V39 -> 0 | W35: ='Summary-MMTCO2E'!W39 -> 0 | X35: ='Summary-MMTCO2E'!X39 -> 0 | Y35: ='Summary-MMTCO2E'!Y39 -> 0 | Z35: ='Summary-MMTCO2E'!Z39 -> 0 | AA35: ='Summary-MMTCO2E'!AA39 -> 0 | AB35: ='Summary-MMTCO2E'!AB39 -> 0 | AC35: ='Summary-MMTCO2E'!AC39 -> 0 | AD35: ='Summary-MMTCO2E'!AD39 -> 0 | AE35: ='Summary-MMTCO2E'!AE39 -> 0 | AF35: ='Summary-MMTCO2E'!AF39 -> 0 | AG35: ='Summary-MMTCO2E'!AG39 -> 0 | AH35: ='Summary-MMTCO2E'!AH39 -> 0 | AI35: ='Summary-MMTCO2E'!AI39 -> 0 | AJ35: ='Summary-MMTCO2E'!AJ39 -> 0 | AK35: ='Summary-MMTCO2E'!AK39 -> 0 | AL35: ='Summary-MMTCO2E'!AL39 -> 0
A36: Transportation | B36: ="Indirect CO2 from Electricity Consumption - "&$A$36 -> Indirect CO2 from Electricity Consumption - Transportation | C36: ='Summary-MMTCO2E'!C40 -> 0 | D36: ='Summary-MMTCO2E'!D40 -> 0 | E36: ='Summary-MMTCO2E'!E40 -> 0 | F36: ='Summary-MMTCO2E'!F40 -> 0 | G36: ='Summary-MMTCO2E'!G40 -> 0 | H36: ='Summary-MMTCO2E'!H40 -> 0 | I36: ='Summary-MMTCO2E'!I40 -> 0 | J36: ='Summary-MMTCO2E'!J40 -> 0 | K36: ='Summary-MMTCO2E'!K40 -> 0 | L36: ='Summary-MMTCO2E'!L40 -> 0 | M36: ='Summary-MMTCO2E'!M40 -> 0 | N36: ='Summary-MMTCO2E'!N40 -> 0 | O36: ='Summary-MMTCO2E'!O40 -> 0 | P36: ='Summary-MMTCO2E'!P40 -> 0 | Q36: ='Summary-MMTCO2E'!Q40 -> 0 | R36: ='Summary-MMTCO2E'!R40 -> 0 | S36: ='Summary-MMTCO2E'!S40 -> 0 | T36: ='Summary-MMTCO2E'!T40 -> 0 | U36: ='Summary-MMTCO2E'!U40 -> 0 | V36: ='Summary-MMTCO2E'!V40 -> 0 | W36: ='Summary-MMTCO2E'!W40 -> 0 | X36: ='Summary-MMTCO2E'!X40 -> 0 | Y36: ='Summary-MMTCO2E'!Y40 -> 0 | Z36: ='Summary-MMTCO2E'!Z40 -> 0 | AA36: ='Summary-MMTCO2E'!AA40 -> 0 | AB36: ='Summary-MMTCO2E'!AB40 -> 0 | AC36: ='Summary-MMTCO2E'!AC40 -> 0 | AD36: ='Summary-MMTCO2E'!AD40 -> 0 | AE36: ='Summary-MMTCO2E'!AE40 -> 0 | AF36: ='Summary-MMTCO2E'!AF40 -> 0 | AG36: ='Summary-MMTCO2E'!AG40 -> 0 | AH36: ='Summary-MMTCO2E'!AH40 -> 0 | AI36: ='Summary-MMTCO2E'!AI40 -> 0 | AJ36: ='Summary-MMTCO2E'!AJ40 -> 0 | AK36: ='Summary-MMTCO2E'!AK40 -> 0 | AL36: ='Summary-MMTCO2E'!AL40 -> 0
A37: Automated Guideway | B37: ="Indirect CO2 from Electricity Consumption - "&$A$36&" - "&A37 -> Indirect CO2 from Electricity Consumption - Transportation - Automated Guideway | C37: ='Summary-MMTCO2E'!C41 -> 0 | D37: ='Summary-MMTCO2E'!D41 -> 0 | E37: ='Summary-MMTCO2E'!E41 -> 0 | F37: ='Summary-MMTCO2E'!F41 -> 0 | G37: ='Summary-MMTCO2E'!G41 -> 0 | H37: ='Summary-MMTCO2E'!H41 -> 0 | I37: ='Summary-MMTCO2E'!I41 -> 0 | J37: ='Summary-MMTCO2E'!J41 -> 0 | K37: ='Summary-MMTCO2E'!K41 -> 0 | L37: ='Summary-MMTCO2E'!L41 -> 0 | M37: ='Summary-MMTCO2E'!M41 -> 0 | N37: ='Summary-MMTCO2E'!N41 -> 0 | O37: ='Summary-MMTCO2E'!O41 -> 0 | P37: ='Summary-MMTCO2E'!P41 -> 0 | Q37: ='Summary-MMTCO2E'!Q41 -> 0 | R37: ='Summary-MMTCO2E'!R41 -> 0 | S37: ='Summary-MMTCO2E'!S41 -> 0 | T37: ='Summary-MMTCO2E'!T41 -> 0 | U37: ='Summary-MMTCO2E'!U41 -> 0 | V37: ='Summary-MMTCO2E'!V41 -> 0 | W37: ='Summary-MMTCO2E'!W41 -> 0 | X37: ='Summary-MMTCO2E'!X41 -> 0 | Y37: ='Summary-MMTCO2E'!Y41 -> 0 | Z37: ='Summary-MMTCO2E'!Z41 -> 0 | AA37: ='Summary-MMTCO2E'!AA41 -> 0 | AB37: ='Summary-MMTCO2E'!AB41 -> 0 | AC37: ='Summary-MMTCO2E'!AC41 -> 0 | AD37: ='Summary-MMTCO2E'!AD41 -> 0 | AE37: ='Summary-MMTCO2E'!AE41 -> 0 | AF37: ='Summary-MMTCO2E'!AF41 -> 0 | AG37: ='Summary-MMTCO2E'!AG41 -> 0 | AH37: ='Summary-MMTCO2E'!AH41 -> 0 | AI37: ='Summary-MMTCO2E'!AI41 -> 0 | AJ37: ='Summary-MMTCO2E'!AJ41 -> 0 | AK37: ='Summary-MMTCO2E'!AK41 -> 0 | AL37: ='Summary-MMTCO2E'!AL41 -> 0
A38: Bus (charged batteries) | B38: ="Indirect CO2 from Electricity Consumption - "&$A$36&" - "&A38 -> Indirect CO2 from Electricity Consumption - Transportation - Bus (charged batteries) | C38: ='Summary-MMTCO2E'!C42 -> 0 | D38: ='Summary-MMTCO2E'!D42 -> 0 | E38: ='Summary-MMTCO2E'!E42 -> 0 | F38: ='Summary-MMTCO2E'!F42 -> 0 | G38: ='Summary-MMTCO2E'!G42 -> 0 | H38: ='Summary-MMTCO2E'!H42 -> 0 | I38: ='Summary-MMTCO2E'!I42 -> 0 | J38: ='Summary-MMTCO2E'!J42 -> 0 | K38: ='Summary-MMTCO2E'!K42 -> 0 | L38: ='Summary-MMTCO2E'!L42 -> 0 | M38: ='Summary-MMTCO2E'!M42 -> 0 | N38: ='Summary-MMTCO2E'!N42 -> 0 | O38: ='Summary-MMTCO2E'!O42 -> 0 | P38: ='Summary-MMTCO2E'!P42 -> 0 | Q38: ='Summary-MMTCO2E'!Q42 -> 0 | R38: ='Summary-MMTCO2E'!R42 -> 0 | S38: ='Summary-MMTCO2E'!S42 -> 0 | T38: ='Summary-MMTCO2E'!T42 -> 0 | U38: ='Summary-MMTCO2E'!U42 -> 0 | V38: ='Summary-MMTCO2E'!V42 -> 0 | W38: ='Summary-MMTCO2E'!W42 -> 0 | X38: ='Summary-MMTCO2E'!X42 -> 0 | Y38: ='Summary-MMTCO2E'!Y42 -> 0 | Z38: ='Summary-MMTCO2E'!Z42 -> 0 | AA38: ='Summary-MMTCO2E'!AA42 -> 0 | AB38: ='Summary-MMTCO2E'!AB42 -> 0 | AC38: ='Summary-MMTCO2E'!AC42 -> 0 | AD38: ='Summary-MMTCO2E'!AD42 -> 0 | AE38: ='Summary-MMTCO2E'!AE42 -> 0 | AF38: ='Summary-MMTCO2E'!AF42 -> 0 | AG38: ='Summary-MMTCO2E'!AG42 -> 0 | AH38: ='Summary-MMTCO2E'!AH42 -> 0 | AI38: ='Summary-MMTCO2E'!AI42 -> 0 | AJ38: ='Summary-MMTCO2E'!AJ42 -> 0 | AK38: ='Summary-MMTCO2E'!AK42 -> 0 | AL38: ='Summary-MMTCO2E'!AL42 -> 0
A39: Cable Car | B39: Indirect CO2 from Electricity Consumption - Transportation - Cable Car | C39: ='Summary-MMTCO2E'!C43 -> 0 | D39: ='Summary-MMTCO2E'!D43 -> 0 | E39: ='Summary-MMTCO2E'!E43 -> 0 | F39: ='Summary-MMTCO2E'!F43 -> 0 | G39: ='Summary-MMTCO2E'!G43 -> 0 | H39: ='Summary-MMTCO2E'!H43 -> 0 | I39: ='Summary-MMTCO2E'!I43 -> 0 | J39: ='Summary-MMTCO2E'!J43 -> 0 | K39: ='Summary-MMTCO2E'!K43 -> 0 | L39: ='Summary-MMTCO2E'!L43 -> 0 | M39: ='Summary-MMTCO2E'!M43 -> 0 | N39: ='Summary-MMTCO2E'!N43 -> 0 | O39: ='Summary-MMTCO2E'!O43 -> 0 | P39: ='Summary-MMTCO2E'!P43 -> 0 | Q39: ='Summary-MMTCO2E'!Q43 -> 0 | R39: ='Summary-MMTCO2E'!R43 -> 0 | S39: ='Summary-MMTCO2E'!S43 -> 0 | T39: ='Summary-MMTCO2E'!T43 -> 0 | U39: ='Summary-MMTCO2E'!U43 -> 0 | V39: ='Summary-MMTCO2E'!V43 -> 0 | W39: ='Summary-MMTCO2E'!W43 -> 0 | X39: ='Summary-MMTCO2E'!X43 -> 0 | Y39: ='Summary-MMTCO2E'!Y43 -> 0 | Z39: ='Summary-MMTCO2E'!Z43 -> 0 | AA39: ='Summary-MMTCO2E'!AA43 -> 0 | AB39: ='Summary-MMTCO2E'!AB43 -> 0 | AC39: ='Summary-MMTCO2E'!AC43 -> 0 | AD39: ='Summary-MMTCO2E'!AD43 -> 0 | AE39: ='Summary-MMTCO2E'!AE43 -> 0 | AF39: ='Summary-MMTCO2E'!AF43 -> 0 | AG39: ='Summary-MMTCO2E'!AG43 -> 0 | AH39: ='Summary-MMTCO2E'!AH43 -> 0 | AI39: ='Summary-MMTCO2E'!AI43 -> 0 | AJ39: ='Summary-MMTCO2E'!AJ43 -> 0 | AK39: ='Summary-MMTCO2E'!AK43 -> 0 | AL39: ='Summary-MMTCO2E'!AL43 -> 0
A40: Commuter Rail | B40: Indirect CO2 from Electricity Consumption - Transportation - Commuter Rail | C40: ='Summary-MMTCO2E'!C44 -> 0 | D40: ='Summary-MMTCO2E'!D44 -> 0 | E40: ='Summary-MMTCO2E'!E44 -> 0 | F40: ='Summary-MMTCO2E'!F44 -> 0 | G40: ='Summary-MMTCO2E'!G44 -> 0 | H40: ='Summary-MMTCO2E'!H44 -> 0 | I40: ='Summary-MMTCO2E'!I44 -> 0 | J40: ='Summary-MMTCO2E'!J44 -> 0 | K40: ='Summary-MMTCO2E'!K44 -> 0 | L40: ='Summary-MMTCO2E'!L44 -> 0 | M40: ='Summary-MMTCO2E'!M44 -> 0 | N40: ='Summary-MMTCO2E'!N44 -> 0 | O40: ='Summary-MMTCO2E'!O44 -> 0 | P40: ='Summary-MMTCO2E'!P44 -> 0 | Q40: ='Summary-MMTCO2E'!Q44 -> 0 | R40: ='Summary-MMTCO2E'!R44 -> 0 | S40: ='Summary-MMTCO2E'!S44 -> 0 | T40: ='Summary-MMTCO2E'!T44 -> 0 | U40: ='Summary-MMTCO2E'!U44 -> 0 | V40: ='Summary-MMTCO2E'!V44 -> 0 | W40: ='Summary-MMTCO2E'!W44 -> 0 | X40: ='Summary-MMTCO2E'!X44 -> 0 | Y40: ='Summary-MMTCO2E'!Y44 -> 0 | Z40: ='Summary-MMTCO2E'!Z44 -> 0 | AA40: ='Summary-MMTCO2E'!AA44 -> 0 | AB40: ='Summary-MMTCO2E'!AB44 -> 0 | AC40: ='Summary-MMTCO2E'!AC44 -> 0 | AD40: ='Summary-MMTCO2E'!AD44 -> 0 | AE40: ='Summary-MMTCO2E'!AE44 -> 0 | AF40: ='Summary-MMTCO2E'!AF44 -> 0 | AG40: ='Summary-MMTCO2E'!AG44 -> 0 | AH40: ='Summary-MMTCO2E'!AH44 -> 0 | AI40: ='Summary-MMTCO2E'!AI44 -> 0 | AJ40: ='Summary-MMTCO2E'!AJ44 -> 0 | AK40: ='Summary-MMTCO2E'!AK44 -> 0 | AL40: ='Summary-MMTCO2E'!AL44 -> 0
A41: Heavy Rail | B41: Indirect CO2 from Electricity Consumption - Transportation - Heavy Rail | C41: ='Summary-MMTCO2E'!C45 -> 0 | D41: ='Summary-MMTCO2E'!D45 -> 0 | E41: ='Summary-MMTCO2E'!E45 -> 0 | F41: ='Summary-MMTCO2E'!F45 -> 0 | G41: ='Summary-MMTCO2E'!G45 -> 0 | H41: ='Summary-MMTCO2E'!H45 -> 0 | I41: ='Summary-MMTCO2E'!I45 -> 0 | J41: ='Summary-MMTCO2E'!J45 -> 0 | K41: ='Summary-MMTCO2E'!K45 -> 0 | L41: ='Summary-MMTCO2E'!L45 -> 0 | M41: ='Summary-MMTCO2E'!M45 -> 0 | N41: ='Summary-MMTCO2E'!N45 -> 0 | O41: ='Summary-MMTCO2E'!O45 -> 0 | P41: ='Summary-MMTCO2E'!P45 -> 0 | Q41: ='Summary-MMTCO2E'!Q45 -> 0 | R41: ='Summary-MMTCO2E'!R45 -> 0 | S41: ='Summary-MMTCO2E'!S45 -> 0 | T41: ='Summary-MMTCO2E'!T45 -> 0 | U41: ='Summary-MMTCO2E'!U45 -> 0 | V41: ='Summary-MMTCO2E'!V45 -> 0 | W41: ='Summary-MMTCO2E'!W45 -> 0 | X41: ='Summary-MMTCO2E'!X45 -> 0 | Y41: ='Summary-MMTCO2E'!Y45 -> 0 | Z41: ='Summary-MMTCO2E'!Z45 -> 0 | AA41: ='Summary-MMTCO2E'!AA45 -> 0 | AB41: ='Summary-MMTCO2E'!AB45 -> 0 | AC41: ='Summary-MMTCO2E'!AC45 -> 0 | AD41: ='Summary-MMTCO2E'!AD45 -> 0 | AE41: ='Summary-MMTCO2E'!AE45 -> 0 | AF41: ='Summary-MMTCO2E'!AF45 -> 0 | AG41: ='Summary-MMTCO2E'!AG45 -> 0 | AH41: ='Summary-MMTCO2E'!AH45 -> 0 | AI41: ='Summary-MMTCO2E'!AI45 -> 0 | AJ41: ='Summary-MMTCO2E'!AJ45 -> 0 | AK41: ='Summary-MMTCO2E'!AK45 -> 0 | AL41: ='Summary-MMTCO2E'!AL45 -> 0
A42: Inclined Plane | B42: Indirect CO2 from Electricity Consumption - Transportation - Inclined Plane | C42: ='Summary-MMTCO2E'!C46 -> 0 | D42: ='Summary-MMTCO2E'!D46 -> 0 | E42: ='Summary-MMTCO2E'!E46 -> 0 | F42: ='Summary-MMTCO2E'!F46 -> 0 | G42: ='Summary-MMTCO2E'!G46 -> 0 | H42: ='Summary-MMTCO2E'!H46 -> 0 | I42: ='Summary-MMTCO2E'!I46 -> 0 | J42: ='Summary-MMTCO2E'!J46 -> 0 | K42: ='Summary-MMTCO2E'!K46 -> 0 | L42: ='Summary-MMTCO2E'!L46 -> 0 | M42: ='Summary-MMTCO2E'!M46 -> 0 | N42: ='Summary-MMTCO2E'!N46 -> 0 | O42: ='Summary-MMTCO2E'!O46 -> 0 | P42: ='Summary-MMTCO2E'!P46 -> 0 | Q42: ='Summary-MMTCO2E'!Q46 -> 0 | R42: ='Summary-MMTCO2E'!R46 -> 0 | S42: ='Summary-MMTCO2E'!S46 -> 0 | T42: ='Summary-MMTCO2E'!T46 -> 0 | U42: ='Summary-MMTCO2E'!U46 -> 0 | V42: ='Summary-MMTCO2E'!V46 -> 0 | W42: ='Summary-MMTCO2E'!W46 -> 0 | X42: ='Summary-MMTCO2E'!X46 -> 0 | Y42: ='Summary-MMTCO2E'!Y46 -> 0 | Z42: ='Summary-MMTCO2E'!Z46 -> 0 | AA42: ='Summary-MMTCO2E'!AA46 -> 0 | AB42: ='Summary-MMTCO2E'!AB46 -> 0 | AC42: ='Summary-MMTCO2E'!AC46 -> 0 | AD42: ='Summary-MMTCO2E'!AD46 -> 0 | AE42: ='Summary-MMTCO2E'!AE46 -> 0 | AF42: ='Summary-MMTCO2E'!AF46 -> 0 | AG42: ='Summary-MMTCO2E'!AG46 -> 0 | AH42: ='Summary-MMTCO2E'!AH46 -> 0 | AI42: ='Summary-MMTCO2E'!AI46 -> 0 | AJ42: ='Summary-MMTCO2E'!AJ46 -> 0 | AK42: ='Summary-MMTCO2E'!AK46 -> 0 | AL42: ='Summary-MMTCO2E'!AL46 -> 0
A43: Light Rail | B43: Indirect CO2 from Electricity Consumption - Transportation - Light Rail | C43: ='Summary-MMTCO2E'!C47 -> 0 | D43: ='Summary-MMTCO2E'!D47 -> 0 | E43: ='Summary-MMTCO2E'!E47 -> 0 | F43: ='Summary-MMTCO2E'!F47 -> 0 | G43: ='Summary-MMTCO2E'!G47 -> 0 | H43: ='Summary-MMTCO2E'!H47 -> 0 | I43: ='Summary-MMTCO2E'!I47 -> 0 | J43: ='Summary-MMTCO2E'!J47 -> 0 | K43: ='Summary-MMTCO2E'!K47 -> 0 | L43: ='Summary-MMTCO2E'!L47 -> 0 | M43: ='Summary-MMTCO2E'!M47 -> 0 | N43: ='Summary-MMTCO2E'!N47 -> 0 | O43: ='Summary-MMTCO2E'!O47 -> 0 | P43: ='Summary-MMTCO2E'!P47 -> 0 | Q43: ='Summary-MMTCO2E'!Q47 -> 0 | R43: ='Summary-MMTCO2E'!R47 -> 0 | S43: ='Summary-MMTCO2E'!S47 -> 0 | T43: ='Summary-MMTCO2E'!T47 -> 0 | U43: ='Summary-MMTCO2E'!U47 -> 0 | V43: ='Summary-MMTCO2E'!V47 -> 0 | W43: ='Summary-MMTCO2E'!W47 -> 0 | X43: ='Summary-MMTCO2E'!X47 -> 0 | Y43: ='Summary-MMTCO2E'!Y47 -> 0 | Z43: ='Summary-MMTCO2E'!Z47 -> 0 | AA43: ='Summary-MMTCO2E'!AA47 -> 0 | AB43: ='Summary-MMTCO2E'!AB47 -> 0 | AC43: ='Summary-MMTCO2E'!AC47 -> 0 | AD43: ='Summary-MMTCO2E'!AD47 -> 0 | AE43: ='Summary-MMTCO2E'!AE47 -> 0 | AF43: ='Summary-MMTCO2E'!AF47 -> 0 | AG43: ='Summary-MMTCO2E'!AG47 -> 0 | AH43: ='Summary-MMTCO2E'!AH47 -> 0 | AI43: ='Summary-MMTCO2E'!AI47 -> 0 | AJ43: ='Summary-MMTCO2E'!AJ47 -> 0 | AK43: ='Summary-MMTCO2E'!AK47 -> 0 | AL43: ='Summary-MMTCO2E'!AL47 -> 0
A44: Trolleybus | B44: Indirect CO2 from Electricity Consumption - Transportation - Trolleybus | C44: ='Summary-MMTCO2E'!C48 -> 0 | D44: ='Summary-MMTCO2E'!D48 -> 0 | E44: ='Summary-MMTCO2E'!E48 -> 0 | F44: ='Summary-MMTCO2E'!F48 -> 0 | G44: ='Summary-MMTCO2E'!G48 -> 0 | H44: ='Summary-MMTCO2E'!H48 -> 0 | I44: ='Summary-MMTCO2E'!I48 -> 0 | J44: ='Summary-MMTCO2E'!J48 -> 0 | K44: ='Summary-MMTCO2E'!K48 -> 0 | L44: ='Summary-MMTCO2E'!L48 -> 0 | M44: ='Summary-MMTCO2E'!M48 -> 0 | N44: ='Summary-MMTCO2E'!N48 -> 0 | O44: ='Summary-MMTCO2E'!O48 -> 0 | P44: ='Summary-MMTCO2E'!P48 -> 0 | Q44: ='Summary-MMTCO2E'!Q48 -> 0 | R44: ='Summary-MMTCO2E'!R48 -> 0 | S44: ='Summary-MMTCO2E'!S48 -> 0 | T44: ='Summary-MMTCO2E'!T48 -> 0 | U44: ='Summary-MMTCO2E'!U48 -> 0 | V44: ='Summary-MMTCO2E'!V48 -> 0 | W44: ='Summary-MMTCO2E'!W48 -> 0 | X44: ='Summary-MMTCO2E'!X48 -> 0 | Y44: ='Summary-MMTCO2E'!Y48 -> 0 | Z44: ='Summary-MMTCO2E'!Z48 -> 0 | AA44: ='Summary-MMTCO2E'!AA48 -> 0 | AB44: ='Summary-MMTCO2E'!AB48 -> 0 | AC44: ='Summary-MMTCO2E'!AC48 -> 0 | AD44: ='Summary-MMTCO2E'!AD48 -> 0 | AE44: ='Summary-MMTCO2E'!AE48 -> 0 | AF44: ='Summary-MMTCO2E'!AF48 -> 0 | AG44: ='Summary-MMTCO2E'!AG48 -> 0 | AH44: ='Summary-MMTCO2E'!AH48 -> 0 | AI44: ='Summary-MMTCO2E'!AI48 -> 0 | AJ44: ='Summary-MMTCO2E'!AJ48 -> 0 | AK44: ='Summary-MMTCO2E'!AK48 -> 0 | AL44: ='Summary-MMTCO2E'!AL48 -> 0
A45: Other | B45: Indirect CO2 from Electricity Consumption - Transportation - Other | C45: ='Summary-MMTCO2E'!C49 -> 0 | D45: ='Summary-MMTCO2E'!D49 -> 0 | E45: ='Summary-MMTCO2E'!E49 -> 0 | F45: ='Summary-MMTCO2E'!F49 -> 0 | G45: ='Summary-MMTCO2E'!G49 -> 0 | H45: ='Summary-MMTCO2E'!H49 -> 0 | I45: ='Summary-MMTCO2E'!I49 -> 0 | J45: ='Summary-MMTCO2E'!J49 -> 0 | K45: ='Summary-MMTCO2E'!K49 -> 0 | L45: ='Summary-MMTCO2E'!L49 -> 0 | M45: ='Summary-MMTCO2E'!M49 -> 0 | N45: ='Summary-MMTCO2E'!N49 -> 0 | O45: ='Summary-MMTCO2E'!O49 -> 0 | P45: ='Summary-MMTCO2E'!P49 -> 0 | Q45: ='Summary-MMTCO2E'!Q49 -> 0 | R45: ='Summary-MMTCO2E'!R49 -> 0 | S45: ='Summary-MMTCO2E'!S49 -> 0 | T45: ='Summary-MMTCO2E'!T49 -> 0 | U45: ='Summary-MMTCO2E'!U49 -> 0 | V45: ='Summary-MMTCO2E'!V49 -> 0 | W45: ='Summary-MMTCO2E'!W49 -> 0 | X45: ='Summary-MMTCO2E'!X49 -> 0 | Y45: ='Summary-MMTCO2E'!Y49 -> 0 | Z45: ='Summary-MMTCO2E'!Z49 -> 0 | AA45: ='Summary-MMTCO2E'!AA49 -> 0 | AB45: ='Summary-MMTCO2E'!AB49 -> 0 | AC45: ='Summary-MMTCO2E'!AC49 -> 0 | AD45: ='Summary-MMTCO2E'!AD49 -> 0 | AE45: ='Summary-MMTCO2E'!AE49 -> 0 | AF45: ='Summary-MMTCO2E'!AF49 -> 0 | AG45: ='Summary-MMTCO2E'!AG49 -> 0 | AH45: ='Summary-MMTCO2E'!AH49 -> 0 | AI45: ='Summary-MMTCO2E'!AI49 -> 0 | AJ45: ='Summary-MMTCO2E'!AJ49 -> 0 | AK45: ='Summary-MMTCO2E'!AK49 -> 0 | AL45: ='Summary-MMTCO2E'!AL49 -> 0

Sheet Dataframe_Sum (hidden)
A1: Sector | B1: Category | C1: 1990 | D1: 1991 | E1: 1992 | F1: 1993 | G1: 1994 | H1: 1995 | I1: 1996 | J1: 1997 | K1: 1998 | L1: 1999 | M1: 2000 | N1: 2001 | O1: 2002 | P1: 2003 | Q1: 2004 | R1: 2005 | S1: 2006 | T1: 2007 | U1: 2008 | V1: 2009 | W1: 2010 | X1: 2011 | Y1: 2012 | Z1: 2013 | AA1: 2014 | AB1: 2015 | AC1: 2016 | AD1: 2017 | AE1: 2018 | AF1: 2019 | AG1: 2020 | AH1: 2021 | AI1: 2022 | AJ1: 2023 | AK1: 2024 | AL1: 2025
A2: Total | B2: ="Indirect CO2 from Electricity Consumption - "&$A2 -> Indirect CO2 from Electricity Consumption - Total | C2: ='Summary-MMTCO2E'!C50 -> 0 | D2: ='Summary-MMTCO2E'!D50 -> 0 | E2: ='Summary-MMTCO2E'!E50 -> 0 | F2: ='Summary-MMTCO2E'!F50 -> 0 | G2: ='Summary-MMTCO2E'!G50 -> 0 | H2: ='Summary-MMTCO2E'!H50 -> 0 | I2: ='Summary-MMTCO2E'!I50 -> 0 | J2: ='Summary-MMTCO2E'!J50 -> 0 | K2: ='Summary-MMTCO2E'!K50 -> 0 | L2: ='Summary-MMTCO2E'!L50 -> 0 | M2: ='Summary-MMTCO2E'!M50 -> 0 | N2: ='Summary-MMTCO2E'!N50 -> 0 | O2: ='Summary-MMTCO2E'!O50 -> 0 | P2: ='Summary-MMTCO2E'!P50 -> 0 | Q2: ='Summary-MMTCO2E'!Q50 -> 0 | R2: ='Summary-MMTCO2E'!R50 -> 0 | S2: ='Summary-MMTCO2E'!S50 -> 0 | T2: ='Summary-MMTCO2E'!T50 -> 0 | U2: ='Summary-MMTCO2E'!U50 -> 0 | V2: ='Summary-MMTCO2E'!V50 -> 0 | W2: ='Summary-MMTCO2E'!W50 -> 0 | X2: ='Summary-MMTCO2E'!X50 -> 0 | Y2: ='Summary-MMTCO2E'!Y50 -> 0 | Z2: ='Summary-MMTCO2E'!Z50 -> 0 | AA2: ='Summary-MMTCO2E'!AA50 -> 0 | AB2: ='Summary-MMTCO2E'!AB50 -> 0 | AC2: ='Summary-MMTCO2E'!AC50 -> 0 | AD2: ='Summary-MMTCO2E'!AD50 -> 0 | AE2: ='Summary-MMTCO2E'!AE50 -> 0 | AF2: ='Summary-MMTCO2E'!AF50 -> 0 | AG2: ='Summary-MMTCO2E'!AG50 -> 0 | AH2: ='Summary-MMTCO2E'!AH50 -> 0 | AI2: ='Summary-MMTCO2E'!AI50 -> 0 | AJ2: ='Summary-MMTCO2E'!AJ50 -> 0 | AK2: ='Summary-MMTCO2E'!AK50 -> 0 | AL2: ='Summary-MMTCO2E'!AL50 -> 0
A3: Residential | B3: ="Indirect CO2 from Electricity Consumption - "&$A3 -> Indirect CO2 from Electricity Consumption - Residential | C3: ='Summary-MMTCO2E'!C51 -> 0 | D3: ='Summary-MMTCO2E'!D51 -> 0 | E3: ='Summary-MMTCO2E'!E51 -> 0 | F3: ='Summary-MMTCO2E'!F51 -> 0 | G3: ='Summary-MMTCO2E'!G51 -> 0 | H3: ='Summary-MMTCO2E'!H51 -> 0 | I3: ='Summary-MMTCO2E'!I51 -> 0 | J3: ='Summary-MMTCO2E'!J51 -> 0 | K3: ='Summary-MMTCO2E'!K51 -> 0 | L3: ='Summary-MMTCO2E'!L51 -> 0 | M3: ='Summary-MMTCO2E'!M51 -> 0 | N3: ='Summary-MMTCO2E'!N51 -> 0 | O3: ='Summary-MMTCO2E'!O51 -> 0 | P3: ='Summary-MMTCO2E'!P51 -> 0 | Q3: ='Summary-MMTCO2E'!Q51 -> 0 | R3: ='Summary-MMTCO2E'!R51 -> 0 | S3: ='Summary-MMTCO2E'!S51 -> 0 | T3: ='Summary-MMTCO2E'!T51 -> 0 | U3: ='Summary-MMTCO2E'!U51 -> 0 | V3: ='Summary-MMTCO2E'!V51 -> 0 | W3: ='Summary-MMTCO2E'!W51 -> 0 | X3: ='Summary-MMTCO2E'!X51 -> 0 | Y3: ='Summary-MMTCO2E'!Y51 -> 0 | Z3: ='Summary-MMTCO2E'!Z51 -> 0 | AA3: ='Summary-MMTCO2E'!AA51 -> 0 | AB3: ='Summary-MMTCO2E'!AB51 -> 0 | AC3: ='Summary-MMTCO2E'!AC51 -> 0 | AD3: ='Summary-MMTCO2E'!AD51 -> 0 | AE3: ='Summary-MMTCO2E'!AE51 -> 0 | AF3: ='Summary-MMTCO2E'!AF51 -> 0 | AG3: ='Summary-MMTCO2E'!AG51 -> 0 | AH3: ='Summary-MMTCO2E'!AH51 -> 0 | AI3: ='Summary-MMTCO2E'!AI51 -> 0 | AJ3: ='Summary-MMTCO2E'!AJ51 -> 0 | AK3: ='Summary-MMTCO2E'!AK51 -> 0 | AL3: ='Summary-MMTCO2E'!AL51 -> 0
A4: Commercial | B4: Indirect CO2 from Electricity Consumption - Commercial | C4: ='Summary-MMTCO2E'!C52 -> 0 | D4: ='Summary-MMTCO2E'!D52 -> 0 | E4: ='Summary-MMTCO2E'!E52 -> 0 | F4: ='Summary-MMTCO2E'!F52 -> 0 | G4: ='Summary-MMTCO2E'!G52 -> 0 | H4: ='Summary-MMTCO2E'!H52 -> 0 | I4: ='Summary-MMTCO2E'!I52 -> 0 | J4: ='Summary-MMTCO2E'!J52 -> 0 | K4: ='Summary-MMTCO2E'!K52 -> 0 | L4: ='Summary-MMTCO2E'!L52 -> 0 | M4: ='Summary-MMTCO2E'!M52 -> 0 | N4: ='Summary-MMTCO2E'!N52 -> 0 | O4: ='Summary-MMTCO2E'!O52 -> 0 | P4: ='Summary-MMTCO2E'!P52 -> 0 | Q4: ='Summary-MMTCO2E'!Q52 -> 0 | R4: ='Summary-MMTCO2E'!R52 -> 0 | S4: ='Summary-MMTCO2E'!S52 -> 0 | T4: ='Summary-MMTCO2E'!T52 -> 0 | U4: ='Summary-MMTCO2E'!U52 -> 0 | V4: ='Summary-MMTCO2E'!V52 -> 0 | W4: ='Summary-MMTCO2E'!W52 -> 0 | X4: ='Summary-MMTCO2E'!X52 -> 0 | Y4: ='Summary-MMTCO2E'!Y52 -> 0 | Z4: ='Summary-MMTCO2E'!Z52 -> 0 | AA4: ='Summary-MMTCO2E'!AA52 -> 0 | AB4: ='Summary-MMTCO2E'!AB52 -> 0 | AC4: ='Summary-MMTCO2E'!AC52 -> 0 | AD4: ='Summary-MMTCO2E'!AD52 -> 0 | AE4: ='Summary-MMTCO2E'!AE52 -> 0 | AF4: ='Summary-MMTCO2E'!AF52 -> 0 | AG4: ='Summary-MMTCO2E'!AG52 -> 0 | AH4: ='Summary-MMTCO2E'!AH52 -> 0 | AI4: ='Summary-MMTCO2E'!AI52 -> 0 | AJ4: ='Summary-MMTCO2E'!AJ52 -> 0 | AK4: ='Summary-MMTCO2E'!AK52 -> 0 | AL4: ='Summary-MMTCO2E'!AL52 -> 0
A5: Industrial | B5: Indirect CO2 from Electricity Consumption - Industrial | C5: ='Summary-MMTCO2E'!C53 -> 0 | D5: ='Summary-MMTCO2E'!D53 -> 0 | E5: ='Summary-MMTCO2E'!E53 -> 0 | F5: ='Summary-MMTCO2E'!F53 -> 0 | G5: ='Summary-MMTCO2E'!G53 -> 0 | H5: ='Summary-MMTCO2E'!H53 -> 0 | I5: ='Summary-MMTCO2E'!I53 -> 0 | J5: ='Summary-MMTCO2E'!J53 -> 0 | K5: ='Summary-MMTCO2E'!K53 -> 0 | L5: ='Summary-MMTCO2E'!L53 -> 0 | M5: ='Summary-MMTCO2E'!M53 -> 0 | N5: ='Summary-MMTCO2E'!N53 -> 0 | O5: ='Summary-MMTCO2E'!O53 -> 0 | P5: ='Summary-MMTCO2E'!P53 -> 0 | Q5: ='Summary-MMTCO2E'!Q53 -> 0 | R5: ='Summary-MMTCO2E'!R53 -> 0 | S5: ='Summary-MMTCO2E'!S53 -> 0 | T5: ='Summary-MMTCO2E'!T53 -> 0 | U5: ='Summary-MMTCO2E'!U53 -> 0 | V5: ='Summary-MMTCO2E'!V53 -> 0 | W5: ='Summary-MMTCO2E'!W53 -> 0 | X5: ='Summary-MMTCO2E'!X53 -> 0 | Y5: ='Summary-MMTCO2E'!Y53 -> 0 | Z5: ='Summary-MMTCO2E'!Z53 -> 0 | AA5: ='Summary-MMTCO2E'!AA53 -> 0 | AB5: ='Summary-MMTCO2E'!AB53 -> 0 | AC5: ='Summary-MMTCO2E'!AC53 -> 0 | AD5: ='Summary-MMTCO2E'!AD53 -> 0 | AE5: ='Summary-MMTCO2E'!AE53 -> 0 | AF5: ='Summary-MMTCO2E'!AF53 -> 0 | AG5: ='Summary-MMTCO2E'!AG53 -> 0 | AH5: ='Summary-MMTCO2E'!AH53 -> 0 | AI5: ='Summary-MMTCO2E'!AI53 -> 0 | AJ5: ='Summary-MMTCO2E'!AJ53 -> 0 | AK5: ='Summary-MMTCO2E'!AK53 -> 0 | AL5: ='Summary-MMTCO2E'!AL53 -> 0
A6: Transportation | B6: Indirect CO2 from Electricity Consumption - Transportation | C6: ='Summary-MMTCO2E'!C54 -> 0 | D6: ='Summary-MMTCO2E'!D54 -> 0 | E6: ='Summary-MMTCO2E'!E54 -> 0 | F6: ='Summary-MMTCO2E'!F54 -> 0 | G6: ='Summary-MMTCO2E'!G54 -> 0 | H6: ='Summary-MMTCO2E'!H54 -> 0 | I6: ='Summary-MMTCO2E'!I54 -> 0 | J6: ='Summary-MMTCO2E'!J54 -> 0 | K6: ='Summary-MMTCO2E'!K54 -> 0 | L6: ='Summary-MMTCO2E'!L54 -> 0 | M6: ='Summary-MMTCO2E'!M54 -> 0 | N6: ='Summary-MMTCO2E'!N54 -> 0 | O6: ='Summary-MMTCO2E'!O54 -> 0 | P6: ='Summary-MMTCO2E'!P54 -> 0 | Q6: ='Summary-MMTCO2E'!Q54 -> 0 | R6: ='Summary-MMTCO2E'!R54 -> 0 | S6: ='Summary-MMTCO2E'!S54 -> 0 | T6: ='Summary-MMTCO2E'!T54 -> 0 | U6: ='Summary-MMTCO2E'!U54 -> 0 | V6: ='Summary-MMTCO2E'!V54 -> 0 | W6: ='Summary-MMTCO2E'!W54 -> 0 | X6: ='Summary-MMTCO2E'!X54 -> 0 | Y6: ='Summary-MMTCO2E'!Y54 -> 0 | Z6: ='Summary-MMTCO2E'!Z54 -> 0 | AA6: ='Summary-MMTCO2E'!AA54 -> 0 | AB6: ='Summary-MMTCO2E'!AB54 -> 0 | AC6: ='Summary-MMTCO2E'!AC54 -> 0 | AD6: ='Summary-MMTCO2E'!AD54 -> 0 | AE6: ='Summary-MMTCO2E'!AE54 -> 0 | AF6: ='Summary-MMTCO2E'!AF54 -> 0 | AG6: ='Summary-MMTCO2E'!AG54 -> 0 | AH6: ='Summary-MMTCO2E'!AH54 -> 0 | AI6: ='Summary-MMTCO2E'!AI54 -> 0 | AJ6: ='Summary-MMTCO2E'!AJ54 -> 0 | AK6: ='Summary-MMTCO2E'!AK54 -> 0 | AL6: ='Summary-MMTCO2E'!AL54 -> 0

Sheet EF Selection
A1: ="2. Electricity Emission Factors and Transmission Loss Factors in "&'List Data'!E3 -> 2. Electricity Emission Factors and Transmission Loss Factors in Select a State . . .
A2: ='List Data'!F3 -> XX | B2: Industrial | C2: ='List Data'!E3 -> Select a State . . .
D3: Industrial | G3: =" " ->  | H3: ='List Data'!E3 -> Select a State . . .
A5: Emission and Transmission Loss Factors | D5: 1990
C6: Electricity Emission Factor | E6: Transmission loss
C7: (lbs CO2E/kWh) | E7: Factor (%)
A10: Emission and Transmission Loss Factors | D10: 1991
C11: Electricity Emission Factor | E11: Transmission loss
C12: (lbs CO2E/kWh) | E12: Factor (%)
A15: Emission and Transmission Loss Factors | D15: 1992
C16: Electricity Emission Factor | E16: Transmission loss
C17: (lbs CO2E/kWh) | E17: Factor (%)
A20: Emission and Transmission Loss Factors | D20: 1993
C21: Electricity Emission Factor | E21: Transmission loss
C22: (lbs CO2E/kWh) | E22: Factor (%)
A25: Emission and Transmission Loss Factors | D25: 1994
C26: Electricity Emission Factor | E26: Transmission loss
C27: (lbs CO2E/kWh) | E27: Factor (%)
A30: Emission and Transmission Loss Factors | D30: 1995
C31: Electricity Emission Factor | E31: Transmission loss
C32: (lbs CO2E/kWh) | E32: Factor (%)
A35: Emission and Transmission Loss Factors | D35: 1996
C36: Electricity Emission Factor | E36: Transmission loss
C37: (lbs CO2E/kWh) | E37: Factor (%)
A40: Emission and Transmission Loss Factors | D40: 1997
C41: Electricity Emission Factor | E41: Transmission loss
C42: (lbs CO2E/kWh) | E42: Factor (%)
A45: Emission and Transmission Loss Factors | D45: 1998
C46: Electricity Emission Factor | E46: Transmission loss
C47: (lbs CO2E/kWh) | E47: Factor (%)
A50: Emission and Transmission Loss Factors | D50: 1999
C51: Electricity Emission Factor | E51: Transmission loss
C52: (lbs CO2E/kWh) | E52: Factor (%)
A55: Emission and Transmission Loss Factors | D55: 2000
C56: Electricity Emission Factor | E56: Transmission loss
C57: (lbs CO2E/kWh) | E57: Factor (%)
A60: Emission and Transmission Loss Factors | D60: 2001
C61: Electricity Emission Factor | E61: Transmission loss
C62: (lbs CO2E/kWh) | E62: Factor (%)
A65: Emission and Transmission Loss Factors | D65: 2002
C66: Electricity Emission Factor | E66: Transmission loss
C67: (lbs CO2E/kWh) | E67: Factor (%)
A70: Emission and Transmission Loss Factors | D70: 2003
C71: Electricity Emission Factor | E71: Transmission loss
C72: (lbs CO2E/kWh) | E72: Factor (%)
A75: Emission and Transmission Loss Factors | D75: 2004
C76: Electricity Emission Factor | E76: Transmission loss
C77: (lbs CO2E/kWh) | E77: Factor (%)
A80: Emission and Transmission Loss Factors | D80: 2005
C81: Electricity Emission Factor | E81: Transmission loss
C82: (lbs CO2E/kWh) | E82: Factor (%)
A85: Emission and Transmission Loss Factors | D85: 2006
C86: Electricity Emission Factor | E86: Transmission loss
C87: (lbs CO2E/kWh) | E87: Factor (%)
A90: Emission and Transmission Loss Factors | D90: 2007
C91: Electricity Emission Factor | E91: Transmission loss
C92: (lbs CO2E/kWh) | E92: Factor (%)
A95: Emission and Transmission Loss Factors | D95: 2008
C96: Electricity Emission Factor | E96: Transmission loss
C97: (lbs CO2E/kWh) | E97: Factor (%)
A100: Emission and Transmission Loss Factors | D100: 2009
C101: Electricity Emission Factor | E101: Transmission loss
C102: (lbs CO2E/kWh) | E102: Factor (%)
A105: Emission and Transmission Loss Factors | D105: 2010
C106: Electricity Emission Factor | E106: Transmission loss
C107: (lbs CO2E/kWh) | E107: Factor (%)
A110: Emission and Transmission Loss Factors | D110: 2011
C111: Electricity Emission Factor | E111: Transmission loss
C112: (lbs CO2E/kWh) | E112: Factor (%)
A115: Emission and Transmission Loss Factors | D115: 2012
C116: Electricity Emission Factor | E116: Transmission loss
C117: (lbs CO2E/kWh) | E117: Factor (%)
A120: Emission and Transmission Loss Factors | D120: 2013
C121: Electricity Emission Factor | E121: Transmission loss
C122: (lbs CO2E/kWh) | E122: Factor (%)
A125: Emission and Transmission Loss Factors | D125: 2014
C126: Electricity Emission Factor | E126: Transmission loss
C127: (lbs CO2E/kWh) | E127: Factor (%)
A130: Emission and Transmission Loss Factors | D130: 2015
C131: Electricity Emission Factor | E131: Transmission loss
C132: (lbs CO2E/kWh) | E132: Factor (%)
A135: Emission and Transmission Loss Factors | D135: 2016
C136: Electricity Emission Factor | E136: Transmission loss
C137: (lbs CO2E/kWh) | E137: Factor (%)
A140: Emission and Transmission Loss Factors | D140: 2017
C141: Electricity Emission Factor | E141: Transmission loss
C142: (lbs CO2E/kWh) | E142: Factor (%)
A145: Emission and Transmission Loss Factors | D145: 2018
C146: Electricity Emission Factor | E146: Transmission loss
C147: (lbs CO2E/kWh) | E147: Factor (%)
A150: Emission and Transmission Loss Factors | D150: 2019
C151: Electricity Emission Factor | E151: Transmission loss
C152: (lbs CO2E/kWh) | E152: Factor (%)
A155: Emission and Transmission Loss Factors | D155: 2020
C156: Electricity Emission Factor | E156: Transmission loss
C157: (lbs CO2E/kWh) | E157: Factor (%)
A160: Emission and Transmission Loss Factors | D160: 2021
C161: Electricity Emission Factor | E161: Transmission loss
C162: (lbs CO2E/kWh) | E162: Factor (%)
A165: Emission and Transmission Loss Factors | D165: 2022
C166: Electricity Emission Factor | E166: Transmission loss
C167: (lbs CO2E/kWh) | E167: Factor (%)
A170: Emission and Transmission Loss Factors | D170: 2023
C171: Electricity Emission Factor | E171: Transmission loss
C172: (lbs CO2E/kWh) | E172: Factor (%)
A175: Emission and Transmission Loss Factors | D175: 2024
C176: Electricity Emission Factor | E176: Transmission loss
C177: (lbs CO2E/kWh) | E177: Factor (%)
A180: Emission and Transmission Loss Factors | D180: 2025
C181: Electricity Emission Factor | E181: Transmission loss
C182: (lbs CO2E/kWh) | E182: Factor (%)

Sheet Residential C
A1: ="3. Residential Electricity Consumption in "&'List Data'!E3 -> 3. Residential Electricity Consumption in Select a State . . .
A2: ='List Data'!F3 -> XX | B2: Residential | C2: ='List Data'!E3 -> Select a State . . . | D2: =VLOOKUP(C2,'List Data'!$B$4:$D$54,3,FALSE) -> 
D3: Industrial | G3: =" " ->  | H3: ='List Data'!E3 -> Select a State . . .
A5: Residential | B5: 1990
B6: Total State | D6: % End Use of Sector | F6: Sub-sector | L6: Emission Factor
B7: Consumption | D7: Consumption | F7: Consumption | H7: Transmission loss | J7: Emission Factor | L7: Including losses | N7: Emissions | P7: Emissions | R7: Emissions | T7: Emissions
A8: Sub-sector | B8: (kWh) | D8: (%) | F8: (kWh) | H8: Factor (%) | J8: (lbs CO2E/kWh) | L8: (lbs CO2E/kWh) | N8: (lbs carbon) | P8: (short tons carbon) | R8: (MMTCE) | T8: (MMTCO2E)
A9: Space Heating | C9: =$B$5 -> 1990 | E9: = { | F9: =D9*$B$14 -> 0 | G9: ÷ (1 - | H9: =TLF_1990 -> 0 | I9: )} x | J9: =CO2EF_1990 -> 0 | K9: = | L9: =H9*(1+J9) -> 0 | M9: = | N9: =IF(F9>0,((F9/(1-H9))*J9)/C_CO2,0) -> 0 | O9: = | P9: =N9*Conversions!$B$11 -> 0 | Q9: = | R9: =P9*Short_Metric/1000000 -> 0 | S9: = | T9: =R9*C_CO2 -> 0
A10: Air-conditioning | C10: =$B$5 -> 1990 | E10: = { | F10: =D10*$B$14 -> 0 | G10: ÷ (1 - | H10: 0 | I10: )} x | J10: 0 | K10: = | L10: 0 | M10: = | N10: 0 | O10: = | P10: =N10*Conversions!$B$11 -> 0 | Q10: = | R10: 0 | S10: = | T10: 0
A11: Water Heating | C11: =$B$5 -> 1990 | E11: = { | F11: =D11*$B$14 -> 0 | G11: ÷ (1 - | H11: 0 | I11: )} x | J11: 0 | K11: = | L11: 0 | M11: = | N11: 0 | O11: = | P11: =N11*Conversions!$B$11 -> 0 | Q11: = | R11: 0 | S11: = | T11: 0
A12: Refrigeration | C12: =$B$5 -> 1990 | E12: = { | F12: =D12*$B$14 -> 0 | G12: ÷ (1 - | H12: 0 | I12: )} x | J12: 0 | K12: = | L12: 0 | M12: = | N12: 0 | O12: = | P12: =N12*Conversions!$B$11 -> 0 | Q12: = | R12: 0 | S12: = | T12: 0
A13: Other Appliances and Lighting | C13: =$B$5 -> 1990 | E13: = { | F13: =D13*$B$14 -> 0 | G13: ÷ (1 - | H13: 0 | I13: )} x | J13: 0 | K13: = | L13: 0 | M13: = | N13: 0 | O13: = | P13: =N13*Conversions!$B$11 -> 0 | Q13: = | R13: 0 | S13: = | T13: 0
A14: TOTAL | C14: x | D14: =SUM(D9:D13) -> 0 | E14: = { | F14: =SUM(F9:F13) -> 0 | G14: ÷ (1 - | H14: 0 | I14: )} x | J14: 0 | K14: = | L14: 0 | M14: = | N14: 0 | O14: = | P14: =N14*Conversions!$B$11 -> 0 | Q14: = | R14: 0 | S14: = | T14: 0
D15: =IF(D14=100%,"Okay", "Column total must equal 100%") -> Column total must equal 100%
A16: Residential | B16: =B5+1 -> 1991
B17: Total State | D17: % End Use of Sector | F17: Sub-sector | L17: Emission Factor
B18: Consumption | D18: Consumption | F18: Consumption | H18: Transmission loss | J18: Emission Factor | L18: Including losses | N18: Emissions | P18: Emissions | R18: Emissions | T18: Emissions
A19: Sub-sector | B19: (kWh) | D19: (%) | F19: (kWh) | H19: Factor (%) | J19: (lbs CO2E/kWh) | L19: (lbs CO2E/kWh) | N19: (lbs carbon) | P19: (short tons carbon) | R19: (MMTCE) | T19: (MMTCO2E)
A20: Space Heating | C20: =$B$16 -> 1991 | E20: = { | F20: =D20*$B$25 -> 0 | G20: ÷ (1 - | H20: =TLF_1991 -> 0 | I20: )} x | J20: =CO2EF_1991 -> 0 | K20: )] = | L20: =H20*(1+J20) -> 0 | M20: = | N20: =IF(F20>0,((F20/(1-H20))*J20)/C_CO2,0) -> 0 | O20: = | P20: =N20*Conversions!$B$11 -> 0 | Q20: = | R20: =P20*Short_Metric/1000000 -> 0 | S20: = | T20: =R20*C_CO2 -> 0
A21: Air-conditioning | C21: =$B$16 -> 1991 | E21: = { | F21: =D21*$B$25 -> 0 | G21: ÷ (1 - | H21: 0 | I21: )} x | J21: 0 | K21: )] = | L21: 0 | M21: = | N21: 0 | O21: = | P21: =N21*Conversions!$B$11 -> 0 | Q21: = | R21: 0 | S21: = | T21: 0
A22: Water Heating | C22: =$B$16 -> 1991 | E22: = { | F22: =D22*$B$25 -> 0 | G22: ÷ (1 - | H22: 0 | I22: )} x | J22: 0 | K22: )] = | L22: 0 | M22: = | N22: 0 | O22: = | P22: =N22*Conversions!$B$11 -> 0 | Q22: = | R22: 0 | S22: = | T22: 0
A23: Refrigeration | C23: =$B$16 -> 1991 | E23: = { | F23: =D23*$B$25 -> 0 | G23: ÷ (1 - | H23: 0 | I23: )} x | J23: 0 | K23: )] = | L23: 0 | M23: = | N23: 0 | O23: = | P23: =N23*Conversions!$B$11 -> 0 | Q23: = | R23: 0 | S23: = | T23: 0
A24: Other Appliances and Lighting | C24: =$B$16 -> 1991 | E24: = { | F24: =D24*$B$25 -> 0 | G24: ÷ (1 - | H24: 0 | I24: )} x | J24: 0 | K24: )] = | L24: 0 | M24: = | N24: 0 | O24: = | P24: =N24*Conversions!$B$11 -> 0 | Q24: = | R24: 0 | S24: = | T24: 0
A25: TOTAL | C25: x | D25: =SUM(D20:D24) -> 0 | E25: = { | F25: =SUM(F20:F24) -> 0 | G25: ÷ (1 - | H25: 0 | I25: )} x | J25: 0 | K25: )] = | L25: 0 | M25: = | N25: 0 | O25: = | P25: =N25*Conversions!$B$11 -> 0 | Q25: = | R25: 0 | S25: = | T25: 0
D26: =IF(D25=100%,"Okay", "Column total must equal 100%") -> Column total must equal 100%
A27: Residential | B27: =B16+1 -> 1992
B28: Total State | D28: % End Use of Sector | F28: Sub-sector | L28: Emission Factor
B29: Consumption | D29: Consumption | F29: Consumption | H29: Transmission loss | J29: Emission Factor | L29: Including losses | N29: Emissions | P29: Emissions | R29: Emissions | T29: Emissions
A30: Sub-sector | B30: (kWh) | D30: (%) | F30: (kWh) | H30: Factor (%) | J30: (lbs CO2E/kWh) | L30: (lbs CO2E/kWh) | N30: (lbs carbon) | P30: (short tons carbon) | R30: (MMTCE) | T30: (MMTCO2E)
A31: Space Heating | C31: =$B$27 -> 1992 | E31: = { | F31: =D31*$B$36 -> 0 | G31: ÷ (1 - | H31: =TLF_1992 -> 0 | I31: )} x | J31: =CO2EF_1992 -> 0 | K31: )] = | L31: =H31*(1+J31) -> 0 | M31: = | N31: =IF(F31>0,((F31/(1-H31))*J31)/C_CO2,0) -> 0 | O31: = | P31: =N31*Conversions!$B$11 -> 0 | Q31: = | R31: =P31*Short_Metric/1000000 -> 0 | S31: = | T31: =R31*C_CO2 -> 0
A32: Air-conditioning | C32: =$B$27 -> 1992 | E32: = { | F32: =D32*$B$36 -> 0 | G32: ÷ (1 - | H32: 0 | I32: )} x | J32: 0 | K32: )] = | L32: 0 | M32: = | N32: 0 | O32: = | P32: =N32*Conversions!$B$11 -> 0 | Q32: = | R32: 0 | S32: = | T32: 0
A33: Water Heating | C33: =$B$27 -> 1992 | E33: = { | F33: =D33*$B$36 -> 0 | G33: ÷ (1 - | H33: 0 | I33: )} x | J33: 0 | K33: )] = | L33: 0 | M33: = | N33: 0 | O33: = | P33: =N33*Conversions!$B$11 -> 0 | Q33: = | R33: 0 | S33: = | T33: 0
A34: Refrigeration | C34: =$B$27 -> 1992 | E34: = { | F34: =D34*$B$36 -> 0 | G34: ÷ (1 - | H34: 0 | I34: )} x | J34: 0 | K34: )] = | L34: 0 | M34: = | N34: 0 | O34: = | P34: =N34*Conversions!$B$11 -> 0 | Q34: = | R34: 0 | S34: = | T34: 0
A35: Other Appliances and Lighting | C35: =$B$27 -> 1992 | E35: = { | F35: =D35*$B$36 -> 0 | G35: ÷ (1 - | H35: 0 | I35: )} x | J35: 0 | K35: )] = | L35: 0 | M35: = | N35: 0 | O35: = | P35: =N35*Conversions!$B$11 -> 0 | Q35: = | R35: 0 | S35: = | T35: 0
A36: TOTAL | C36: x | D36: =SUM(D31:D35) -> 0 | E36: = { | F36: =SUM(F31:F35) -> 0 | G36: ÷ (1 - | H36: 0 | I36: )} x | J36: 0 | K36: )] = | L36: 0 | M36: = | N36: 0 | O36: = | P36: =N36*Conversions!$B$11 -> 0 | Q36: = | R36: 0 | S36: = | T36: 0
D37: =IF(D36=100%,"Okay", "Column total must equal 100%") -> Column total must equal 100%
A38: Residential | B38: =B27+1 -> 1993
B39: Total State | D39: % End Use of Sector | F39: Sub-sector | L39: Emission Factor
B40: Consumption | D40: Consumption | F40: Consumption | H40: Transmission loss | J40: Emission Factor | L40: Including losses | N40: Emissions | P40: Emissions | R40: Emissions | T40: Emissions
A41: Sub-sector | B41: (kWh) | D41: (%) | F41: (kWh) | H41: Factor (%) | J41: (lbs CO2E/kWh) | L41: (lbs CO2E/kWh) | N41: (lbs carbon) | P41: (short tons carbon) | R41: (MMTCE) | T41: (MMTCO2E)
A42: Space Heating | C42: =$B$38 -> 1993 | E42: = { | F42: =D42*$B$47 -> 0 | G42: ÷ (1 - | H42: =TLF_1993 -> 0 | I42: )} x | J42: =CO2EF_1993 -> 0 | K42: )] = | L42: =H42*(1+J42) -> 0 | M42: = | N42: =IF(F42>0,((F42/(1-H42))*J42)/C_CO2,0) -> 0 | O42: = | P42: =N42*Conversions!$B$11 -> 0 | Q42: = | R42: =P42*Short_Metric/1000000 -> 0 | S42: = | T42: =R42*C_CO2 -> 0
A43: Air-conditioning | C43: =$B$38 -> 1993 | E43: = { | F43: =D43*$B$47 -> 0 | G43: ÷ (1 - | H43: 0 | I43: )} x | J43: 0 | K43: )] = | L43: 0 | M43: = | N43: 0 | O43: = | P43: =N43*Conversions!$B$11 -> 0 | Q43: = | R43: 0 | S43: = | T43: 0
A44: Water Heating | C44: =$B$38 -> 1993 | E44: = { | F44: =D44*$B$47 -> 0 | G44: ÷ (1 - | H44: 0 | I44: )} x | J44: 0 | K44: )] = | L44: 0 | M44: = | N44: 0 | O44: = | P44: =N44*Conversions!$B$11 -> 0 | Q44: = | R44: 0 | S44: = | T44: 0
A45: Refrigeration | C45: =$B$38 -> 1993 | E45: = { | F45: =D45*$B$47 -> 0 | G45: ÷ (1 - | H45: 0 | I45: )} x | J45: 0 | K45: )] = | L45: 0 | M45: = | N45: 0 | O45: = | P45: =N45*Conversions!$B$11 -> 0 | Q45: = | R45: 0 | S45: = | T45: 0
A46: Other Appliances and Lighting | C46: =$B$38 -> 1993 | E46: = { | F46: =D46*$B$47 -> 0 | G46: ÷ (1 - | H46: 0 | I46: )} x | J46: 0 | K46: )] = | L46: 0 | M46: = | N46: 0 | O46: = | P46: =N46*Conversions!$B$11 -> 0 | Q46: = | R46: 0 | S46: = | T46: 0
A47: TOTAL | C47: x | D47: =SUM(D42:D46) -> 0 | E47: = { | F47: =SUM(F42:F46) -> 0 | G47: ÷ (1 - | H47: 0 | I47: )} x | J47: 0 | K47: )] = | L47: 0 | M47: = | N47: 0 | O47: = | P47: =N47*Conversions!$B$11 -> 0 | Q47: = | R47: 0 | S47: = | T47: 0
D48: =IF(D47=100%,"Okay", "Column total must equal 100%") -> Column total must equal 100%
A49: Residential | B49: =B38+1 -> 1994
B50: Total State | D50: % End Use of Sector | F50: Sub-sector | L50: Emission Factor
B51: Consumption | D51: Consumption | F51: Consumption | H51: Transmission loss | J51: Emission Factor | L51: Including losses | N51: Emissions | P51: Emissions | R51: Emissions | T51: Emissions
A52: Sub-sector | B52: (kWh) | D52: (%) | F52: (kWh) | H52: Factor (%) | J52: (lbs CO2E/kWh) | L52: (lbs CO2E/kWh) | N52: (lbs carbon) | P52: (short tons carbon) | R52: (MMTCE) | T52: (MMTCO2E)
A53: Space Heating | C53: =$B$49 -> 1994 | E53: = { | F53: =D53*$B$58 -> 0 | G53: ÷ (1 - | H53: =TLF_1994 -> 0 | I53: )} x | J53: =CO2EF_1994 -> 0 | K53: )] = | L53: =H53*(1+J53) -> 0 | M53: = | N53: =IF(F53>0,((F53/(1-H53))*J53)/C_CO2,0) -> 0 | O53: = | P53: =N53*Conversions!$B$11 -> 0 | Q53: = | R53: =P53*Short_Metric/1000000 -> 0 | S53: = | T53: =R53*C_CO2 -> 0
A54: Air-conditioning | C54: =$B$49 -> 1994 | E54: = { | F54: =D54*$B$58 -> 0 | G54: ÷ (1 - | H54: 0 | I54: )} x | J54: 0 | K54: )] = | L54: 0 | M54: = | N54: 0 | O54: = | P54: =N54*Conversions!$B$11 -> 0 | Q54: = | R54: 0 | S54: = | T54: 0
A55: Water Heating | C55: =$B$49 -> 1994 | E55: = { | F55: =D55*$B$58 -> 0 | G55: ÷ (1 - | H55: 0 | I55: )} x | J55: 0 | K55: )] = | L55: 0 | M55: = | N55: 0 | O55: = | P55: =N55*Conversions!$B$11 -> 0 | Q55: = | R55: 0 | S55: = | T55: 0
A56: Refrigeration | C56: =$B$49 -> 1994 | E56: = { | F56: =D56*$B$58 -> 0 | G56: ÷ (1 - | H56: 0 | I56: )} x | J56: 0 | K56: )] = | L56: 0 | M56: = | N56: 0 | O56: = | P56: =N56*Conversions!$B$11 -> 0 | Q56: = | R56: 0 | S56: = | T56: 0
A57: Other Appliances and Lighting | C57: =$B$49 -> 1994 | E57: = { | F57: =D57*$B$58 -> 0 | G57: ÷ (1 - | H57: 0 | I57: )} x | J57: 0 | K57: )] = | L57: 0 | M57: = | N57: 0 | O57: = | P57: =N57*Conversions!$B$11 -> 0 | Q57: = | R57: 0 | S57: = | T57: 0
A58: TOTAL | C58: x | D58: =SUM(D53:D57) -> 0 | E58: = { | F58: =SUM(F53:F57) -> 0 | G58: ÷ (1 - | H58: 0 | I58: )} x | J58: 0 | K58: )] = | L58: 0 | M58: = | N58: 0 | O58: = | P58: =N58*Conversions!$B$11 -> 0 | Q58: = | R58: 0 | S58: = | T58: 0
D59: =IF(D58=100%,"Okay", "Column total must equal 100%") -> Column total must equal 100%
A60: Residential | B60: =B49+1 -> 1995
B61: Total State | D61: % End Use of Sector | F61: Sub-sector | L61: Emission Factor
B62: Consumption | D62: Consumption | F62: Consumption | H62: Transmission loss | J62: Emission Factor | L62: Including losses | N62: Emissions | P62: Emissions | R62: Emissions | T62: Emissions
A63: Sub-sector | B63: (kWh) | D63: (%) | F63: (kWh) | H63: Factor (%) | J63: (lbs CO2E/kWh) | L63: (lbs CO2E/kWh) | N63: (lbs carbon) | P63: (short tons carbon) | R63: (MMTCE) | T63: (MMTCO2E)
A64: Space Heating | C64: =$B$60 -> 1995 | E64: = { | F64: =D64*$B$69 -> 0 | G64: ÷ (1 - | H64: =TLF_1995 -> 0 | I64: )} x | J64: =CO2EF_1995 -> 0 | K64: )] = | L64: =H64*(1+J64) -> 0 | M64: = | N64: =IF(F64>0,((F64/(1-H64))*J64)/C_CO2,0) -> 0 | O64: = | P64: =N64*Conversions!$B$11 -> 0 | Q64: = | R64: =P64*Short_Metric/1000000 -> 0 | S64: = | T64: =R64*C_CO2 -> 0
A65: Air-conditioning | C65: =$B$60 -> 1995 | E65: = { | F65: =D65*$B$69 -> 0 | G65: ÷ (1 - | H65: 0 | I65: )} x | J65: 0 | K65: )] = | L65: 0 | M65: = | N65: 0 | O65: = | P65: =N65*Conversions!$B$11 -> 0 | Q65: = | R65: 0 | S65: = | T65: 0
A66: Water Heating | C66: =$B$60 -> 1995 | E66: = { | F66: =D66*$B$69 -> 0 | G66: ÷ (1 - | H66: 0 | I66: )} x | J66: 0 | K66: )] = | L66: 0 | M66: = | N66: 0 | O66: = | P66: =N66*Conversions!$B$11 -> 0 | Q66: = | R66: 0 | S66: = | T66: 0
A67: Refrigeration | C67: =$B$60 -> 1995 | E67: = { | F67: =D67*$B$69 -> 0 | G67: ÷ (1 - | H67: 0 | I67: )} x | J67: 0 | K67: )] = | L67: 0 | M67: = | N67: 0 | O67: = | P67: =N67*Conversions!$B$11 -> 0 | Q67: = | R67: 0 | S67: = | T67: 0
A68: Other Appliances and Lighting | C68: =$B$60 -> 1995 | E68: = { | F68: =D68*$B$69 -> 0 | G68: ÷ (1 - | H68: 0 | I68: )} x | J68: 0 | K68: )] = | L68: 0 | M68: = | N68: =IF(F68>0,((F68/(1-H68))*J68)/C_CO2,0) -> 0 | O68: = | P68: =N68*Conversions!$B$11 -> 0 | Q68: = | R68: 0 | S68: = | T68: 0
A69: TOTAL | C69: x | D69: =SUM(D64:D68) -> 0 | E69: = { | F69: =SUM(F64:F68) -> 0 | G69: ÷ (1 - | H69: 0 | I69: )} x | J69: 0 | K69: )] = | L69: 0 | M69: = | N69: 0 | O69: = | P69: =N69*Conversions!$B$11 -> 0 | Q69: = | R69: 0 | S69: = | T69: 0
D70: =IF(D69=100%,"Okay", "Column total must equal 100%") -> Column total must equal 100%
A71: Residential | B71: =B60+1 -> 1996
B72: Total State | D72: % End Use of Sector | F72: Sub-sector | L72: Emission Factor
B73: Consumption | D73: Consumption | F73: Consumption | H73: Transmission loss | J73: Emission Factor | L73: Including losses | N73: Emissions | P73: Emissions | R73: Emissions | T73: Emissions
A74: Sub-sector | B74: (kWh) | D74: (%) | F74: (kWh) | H74: Factor (%) | J74: (lbs CO2E/kWh) | L74: (lbs CO2E/kWh) | N74: (lbs carbon) | P74: (short tons carbon) | R74: (MMTCE) | T74: (MMTCO2E)
A75: Space Heating | C75: =$B$71 -> 1996 | E75: = { | F75: =D75*$B$80 -> 0 | G75: ÷ (1 - | H75: =TLF_1996 -> 0 | I75: )} x | J75: =CO2EF_1996 -> 0 | K75: )] = | L75: =H75*(1+J75) -> 0 | M75: = | N75: =IF(F75>0,((F75/(1-H75))*J75)/C_CO2,0) -> 0 | O75: = | P75: =N75*Conversions!$B$11 -> 0 | Q75: = | R75: =P75*Short_Metric/1000000 -> 0 | S75: = | T75: =R75*C_CO2 -> 0
A76: Air-conditioning | C76: =$B$71 -> 1996 | E76: = { | F76: =D76*$B$80 -> 0 | G76: ÷ (1 - | H76: 0 | I76: )} x | J76: 0 | K76: )] = | L76: 0 | M76: = | N76: 0 | O76: = | P76: =N76*Conversions!$B$11 -> 0 | Q76: = | R76: 0 | S76: = | T76: 0
A77: Water Heating | C77: =$B$71 -> 1996 | E77: = { | F77: =D77*$B$80 -> 0 | G77: ÷ (1 - | H77: 0 | I77: )} x | J77: 0 | K77: )] = | L77: 0 | M77: = | N77: 0 | O77: = | P77: =N77*Conversions!$B$11 -> 0 | Q77: = | R77: 0 | S77: = | T77: 0
A78: Refrigeration | C78: =$B$71 -> 1996 | E78: = { | F78: =D78*$B$80 -> 0 | G78: ÷ (1 - | H78: 0 | I78: )} x | J78: 0 | K78: )] = | L78: 0 | M78: = | N78: 0 | O78: = | P78: =N78*Conversions!$B$11 -> 0 | Q78: = | R78: 0 | S78: = | T78: 0
A79: Other Appliances and Lighting | C79: =$B$71 -> 1996 | E79: = { | F79: =D79*$B$80 -> 0 | G79: ÷ (1 - | H79: 0 | I79: )} x | J79: 0 | K79: )] = | L79: 0 | M79: = | N79: 0 | O79: = | P79: =N79*Conversions!$B$11 -> 0 | Q79: = | R79: 0 | S79: = | T79: 0
A80: TOTAL | C80: x | D80: =SUM(D75:D79) -> 0 | E80: = { | F80: =SUM(F75:F79) -> 0 | G80: ÷ (1 - | H80: 0 | I80: )} x | J80: 0 | K80: )] = | L80: 0 | M80: = | N80: 0 | O80: = | P80: =N80*Conversions!$B$11 -> 0 | Q80: = | R80: 0 | S80: = | T80: 0
D81: =IF(D80=100%,"Okay", "Column total must equal 100%") -> Column total must equal 100%
A82: Residential | B82: =B71+1 -> 1997
B83: Total State | D83: % End Use of Sector | F83: Sub-sector | L83: Emission Factor
B84: Consumption | D84: Consumption | F84: Consumption | H84: Transmission loss | J84: Emission Factor | L84: Including losses | N84: Emissions | P84: Emissions | R84: Emissions | T84: Emissions
A85: Sub-sector | B85: (kWh) | D85: (%) | F85: (kWh) | H85: Factor (%) | J85: (lbs CO2E/kWh) | L85: (lbs CO2E/kWh) | N85: (lbs carbon) | P85: (short tons carbon) | R85: (MMTCE) | T85: (MMTCO2E)
A86: Space Heating | C86: =$B$82 -> 1997 | E86: = { | F86: =D86*$B$91 -> 0 | G86: ÷ (1 - | H86: =TLF_1997 -> 0 | I86: )} x | J86: =CO2EF_1997 -> 0 | K86: )] = | L86: =H86*(1+J86) -> 0 | M86: = | N86: =IF(F86>0,((F86/(1-H86))*J86)/C_CO2,0) -> 0 | O86: = | P86: =N86*Conversions!$B$11 -> 0 | Q86: = | R86: =P86*Short_Metric/1000000 -> 0 | S86: = | T86: =R86*C_CO2 -> 0
A87: Air-conditioning | C87: =$B$82 -> 1997 | E87: = { | F87: =D87*$B$91 -> 0 | G87: ÷ (1 - | H87: 0 | I87: )} x | J87: 0 | K87: )] = | L87: 0 | M87: = | N87: 0 | O87: = | P87: =N87*Conversions!$B$11 -> 0 | Q87: = | R87: 0 | S87: = | T87: 0
A88: Water Heating | C88: =$B$82 -> 1997 | E88: = { | F88: =D88*$B$91 -> 0 | G88: ÷ (1 - | H88: 0 | I88: )} x | J88: 0 | K88: )] = | L88: 0 | M88: = | N88: 0 | O88: = | P88: =N88*Conversions!$B$11 -> 0 | Q88: = | R88: 0 | S88: = | T88: 0
A89: Refrigeration | C89: =$B$82 -> 1997 | E89: = { | F89: =D89*$B$91 -> 0 | G89: ÷ (1 - | H89: 0 | I89: )} x | J89: 0 | K89: )] = | L89: 0 | M89: = | N89: 0 | O89: = | P89: =N89*Conversions!$B$11 -> 0 | Q89: = | R89: 0 | S89: = | T89: 0
A90: Other Appliances and Lighting | C90: =$B$82 -> 1997 | E90: = { | F90: =D90*$B$91 -> 0 | G90: ÷ (1 - | H90: 0 | I90: )} x | J90: 0 | K90: )] = | L90: 0 | M90: = | N90: 0 | O90: = | P90: =N90*Conversions!$B$11 -> 0 | Q90: = | R90: 0 | S90: = | T90: 0
A91: TOTAL | C91: x | D91: =SUM(D86:D90) -> 0 | E91: = { | F91: =SUM(F86:F90) -> 0 | G91: ÷ (1 - | H91: 0 | I91: )} x | J91: 0 | K91: )] = | L91: 0 | M91: = | N91: 0 | O91: = | P91: =N91*Conversions!$B$11 -> 0 | Q91: = | R91: 0 | S91: = | T91: 0
D92: =IF(D91=100%,"Okay", "Column total must equal 100%") -> Column total must equal 100%
A93: Residential | B93: =B82+1 -> 1998
B94: Total State | D94: % End Use of Sector | F94: Sub-sector | L94: Emission Factor
B95: Consumption | D95: Consumption | F95: Consumption | H95: Transmission loss | J95: Emission Factor | L95: Including losses | N95: Emissions | P95: Emissions | R95: Emissions | T95: Emissions
A96: Sub-sector | B96: (kWh) | D96: (%) | F96: (kWh) | H96: Factor (%) | J96: (lbs CO2E/kWh) | L96: (lbs CO2E/kWh) | N96: (lbs carbon) | P96: (short tons carbon) | R96: (MMTCE) | T96: (MMTCO2E)
A97: Space Heating | C97: =$B$93 -> 1998 | E97: = { | F97: =D97*$B$102 -> 0 | G97: ÷ (1 - | H97: =TLF_1998 -> 0 | I97: )} x | J97: =CO2EF_1998 -> 0 | K97: )] = | L97: =H97*(1+J97) -> 0 | M97: = | N97: =IF(F97>0,((F97/(1-H97))*J97)/C_CO2,0) -> 0 | O97: = | P97: =N97*Conversions!$B$11 -> 0 | Q97: = | R97: =P97*Short_Metric/1000000 -> 0 | S97: = | T97: =R97*C_CO2 -> 0
A98: Air-conditioning | C98: =$B$93 -> 1998 | E98: = { | F98: =D98*$B$102 -> 0 | G98: ÷ (1 - | H98: 0 | I98: )} x | J98: 0 | K98: )] = | L98: 0 | M98: = | N98: 0 | O98: = | P98: =N98*Conversions!$B$11 -> 0 | Q98: = | R98: 0 | S98: = | T98: 0
A99: Water Heating | C99: =$B$93 -> 1998 | E99: = { | F99: =D99*$B$102 -> 0 | G99: ÷ (1 - | H99: 0 | I99: )} x | J99: 0 | K99: )] = | L99: 0 | M99: = | N99: 0 | O99: = | P99: =N99*Conversions!$B$11 -> 0 | Q99: = | R99: 0 | S99: = | T99: 0
A100: Refrigeration | C100: =$B$93 -> 1998 | E100: = { | F100: =D100*$B$102 -> 0 | G100: ÷ (1 - | H100: 0 | I100: )} x | J100: 0 | K100: )] = | L100: 0 | M100: = | N100: 0 | O100: = | P100: =N100*Conversions!$B$11 -> 0 | Q100: = | R100: 0 | S100: = | T100: 0
A101: Other Appliances and Lighting | C101: =$B$93 -> 1998 | E101: = { | F101: =D101*$B$102 -> 0 | G101: ÷ (1 - | H101: 0 | I101: )} x | J101: 0 | K101: )] = | L101: 0 | M101: = | N101: 0 | O101: = | P101: =N101*Conversions!$B$11 -> 0 | Q101: = | R101: 0 | S101: = | T101: 0
A102: TOTAL | C102: x | D102: =SUM(D97:D101) -> 0 | E102: = { | F102: =SUM(F97:F101) -> 0 | G102: ÷ (1 - | H102: 0 | I102: )} x | J102: 0 | K102: )] = | L102: 0 | M102: = | N102: 0 | O102: = | P102: =N102*Conversions!$B$11 -> 0 | Q102: = | R102: 0 | S102: = | T102: 0
D103: =IF(D102=100%,"Okay", "Column total must equal 100%") -> Column total must equal 100%
A104: Residential | B104: =B93+1 -> 1999
B105: Total State | D105: % End Use of Sector | F105: Sub-sector | L105: Emission Factor
B106: Consumption | D106: Consumption | F106: Consumption | H106: Transmission loss | J106: Emission Factor | L106: Including losses | N106: Emissions | P106: Emissions | R106: Emissions | T106: Emissions
A107: Sub-sector | B107: (kWh) | D107: (%) | F107: (kWh) | H107: Factor (%) | J107: (lbs CO2E/kWh) | L107: (lbs CO2E/kWh) | N107: (lbs carbon) | P107: (short tons carbon) | R107: (MMTCE) | T107: (MMTCO2E)
A108: Space Heating | C108: =$B$104 -> 1999 | E108: = { | F108: =D108*$B$113 -> 0 | G108: ÷ (1 - | H108: =TLF_1999 -> 0 | I108: )} x | J108: =CO2EF_1999 -> 0 | K108: )] = | L108: =H108*(1+J108) -> 0 | M108: = | N108: =IF(F108>0,((F108/(1-H108))*J108)/C_CO2,0) -> 0 | O108: = | P108: =N108*Conversions!$B$11 -> 0 | Q108: = | R108: =P108*Short_Metric/1000000 -> 0 | S108: = | T108: =R108*C_CO2 -> 0
A109: Air-conditioning | C109: =$B$104 -> 1999 | E109: = { | F109: =D109*$B$113 -> 0 | G109: ÷ (1 - | H109: 0 | I109: )} x | J109: 0 | K109: )] = | L109: 0 | M109: = | N109: 0 | O109: = | P109: =N109*Conversions!$B$11 -> 0 | Q109: = | R109: 0 | S109: = | T109: 0
A110: Water Heating | C110: =$B$104 -> 1999 | E110: = { | F110: =D110*$B$113 -> 0 | G110: ÷ (1 - | H110: 0 | I110: )} x | J110: 0 | K110: )] = | L110: 0 | M110: = | N110: 0 | O110: = | P110: =N110*Conversions!$B$11 -> 0 | Q110: = | R110: 0 | S110: = | T110: 0
A111: Refrigeration | C111: =$B$104 -> 1999 | E111: = { | F111: =D111*$B$113 -> 0 | G111: ÷ (1 - | H111: 0 | I111: )} x | J111: 0 | K111: )] = | L111: 0 | M111: = | N111: 0 | O111: = | P111: =N111*Conversions!$B$11 -> 0 | Q111: = | R111: 0 | S111: = | T111: 0
A112: Other Appliances and Lighting | C112: =$B$104 -> 1999 | E112: = { | F112: =D112*$B$113 -> 0 | G112: ÷ (1 - | H112: 0 | I112: )} x | J112: 0 | K112: )] = | L112: 0 | M112: = | N112: 0 | O112: = | P112: =N112*Conversions!$B$11 -> 0 | Q112: = | R112: 0 | S112: = | T112: 0
A113: TOTAL | C113: x | D113: =SUM(D108:D112) -> 0 | E113: = { | F113: =SUM(F108:F112) -> 0 | G113: ÷ (1 - | H113: 0 | I113: )} x | J113: 0 | K113: )] = | L113: 0 | M113: = | N113: 0 | O113: = | P113: =N113*Conversions!$B$11 -> 0 | Q113: = | R113: 0 | S113: = | T113: 0
D114: =IF(D113=100%,"Okay", "Column total must equal 100%") -> Column total must equal 100%
A115: Residential | B115: 2000
B116: Total State | D116: % End Use of Sector | F116: Sub-sector | L116: Emission Factor
B117: Consumption | D117: Consumption | F117: Consumption | H117: Transmission loss | J117: Emission Factor | L117: Including losses | N117: Emissions | P117: Emissions | R117: Emissions | T117: Emissions
A118: Sub-sector | B118: (kWh) | D118: (%) | F118: (kWh) | H118: Factor (%) | J118: (lbs CO2E/kWh) | L118: (lbs CO2E/kWh) | N118: (lbs carbon) | P118: (short tons carbon) | R118: (MMTCE) | T118: (MMTCO2E)
A119: Space Heating | C119: =$B$115 -> 2000 | E119: = { | F119: =D119*$B$124 -> 0 | G119: ÷ (1 - | H119: =TLF_2000 -> 0 | I119: )} x | J119: =CO2EF_2000 -> 0 | K119: = | L119: =H119*(1+J119) -> 0 | M119: = | N119: =IF(F119>0,((F119/(1-H119))*J119)/C_CO2,0) -> 0 | O119: = | P119: =N119*Conversions!$B$11 -> 0 | Q119: = | R119: =P119*Short_Metric/1000000 -> 0 | S119: = | T119: =R119*C_CO2 -> 0
A120: Air-conditioning | C120: =$B$115 -> 2000 | E120: = { | F120: =D120*$B$124 -> 0 | G120: ÷ (1 - | H120: 0 | I120: )} x | J120: 0 | K120: = | L120: 0 | M120: = | N120: 0 | O120: = | P120: =N120*Conversions!$B$11 -> 0 | Q120: = | R120: 0 | S120: = | T120: 0
A121: Water Heating | C121: =$B$115 -> 2000 | E121: = { | F121: =D121*$B$124 -> 0 | G121: ÷ (1 - | H121: 0 | I121: )} x | J121: 0 | K121: = | L121: 0 | M121: = | N121: 0 | O121: = | P121: =N121*Conversions!$B$11 -> 0 | Q121: = | R121: 0 | S121: = | T121: 0
A122: Refrigeration | C122: =$B$115 -> 2000 | E122: = { | F122: =D122*$B$124 -> 0 | G122: ÷ (1 - | H122: 0 | I122: )} x | J122: 0 | K122: = | L122: 0 | M122: = | N122: 0 | O122: = | P122: =N122*Conversions!$B$11 -> 0 | Q122: = | R122: 0 | S122: = | T122: 0
A123: Other Appliances and Lighting | C123: =$B$115 -> 2000 | E123: = { | F123: =D123*$B$124 -> 0 | G123: ÷ (1 - | H123: 0 | I123: )} x | J123: 0 | K123: = | L123: 0 | M123: = | N123: 0 | O123: = | P123: =N123*Conversions!$B$11 -> 0 | Q123: = | R123: 0 | S123: = | T123: 0
A124: TOTAL | D124: =SUM(D119:D123) -> 0 | E124: = { | F124: =SUM(F119:F123) -> 0 | G124: ÷ (1 - | H124: 0 | I124: )} x | J124: 0 | K124: = | L124: 0 | M124: = | N124: 0 | O124: = | P124: =N124*Conversions!$B$11 -> 0 | Q124: = | R124: 0 | S124: = | T124: 0
D125: =IF(D124=100%,"Okay", "Column total must equal 100%") -> Column total must equal 100%
A126: Residential | B126: =B115+1 -> 2001
B127: Total State | D127: % End Use of Sector | F127: Sub-sector | L127: Emission Factor
B128: Consumption | D128: Consumption | F128: Consumption | H128: Transmission loss | J128: Emission Factor | L128: Including losses | N128: Emissions | P128: Emissions | R128: Emissions | T128: Emissions
A129: Sub-sector | B129: (kWh) | D129: (%) | F129: (kWh) | H129: Factor (%) | J129: (lbs CO2E/kWh) | L129: (lbs CO2E/kWh) | N129: (lbs carbon) | P129: (short tons carbon) | R129: (MMTCE) | T129: (MMTCO2E)
A130: Space Heating | C130: =$B$126 -> 2001 | E130: = { | F130: =D130*$B$135 -> 0 | G130: ÷ (1 - | H130: =TLF_2001 -> 0 | I130: )} x | J130: =CO2EF_2001 -> 0 | K130: )] = | L130: =H130*(1+J130) -> 0 | M130: = | N130: =IF(F130>0,((F130/(1-H130))*J130)/C_CO2,0) -> 0 | O130: = | P130: =N130*Conversions!$B$11 -> 0 | Q130: = | R130: =P130*Short_Metric/1000000 -> 0 | S130: = | T130: =R130*C_CO2 -> 0
A131: Air-conditioning | C131: =$B$126 -> 2001 | E131: = { | F131: =D131*$B$135 -> 0 | G131: ÷ (1 - | H131: 0 | I131: )} x | J131: 0 | K131: )] = | L131: 0 | M131: = | N131: 0 | O131: = | P131: =N131*Conversions!$B$11 -> 0 | Q131: = | R131: 0 | S131: = | T131: 0
A132: Water Heating | C132: =$B$126 -> 2001 | E132: = { | F132: =D132*$B$135 -> 0 | G132: ÷ (1 - | H132: 0 | I132: )} x | J132: 0 | K132: )] = | L132: 0 | M132: = | N132: 0 | O132: = | P132: =N132*Conversions!$B$11 -> 0 | Q132: = | R132: 0 | S132: = | T132: 0
A133: Refrigeration | C133: =$B$126 -> 2001 | E133: = { | F133: =D133*$B$135 -> 0 | G133: ÷ (1 - | H133: 0 | I133: )} x | J133: 0 | K133: )] = | L133: 0 | M133: = | N133: 0 | O133: = | P133: =N133*Conversions!$B$11 -> 0 | Q133: = | R133: 0 | S133: = | T133: 0
A134: Other Appliances and Lighting | C134: =$B$126 -> 2001 | E134: = { | F134: =D134*$B$135 -> 0 | G134: ÷ (1 - | H134: 0 | I134: )} x | J134: 0 | K134: )] = | L134: 0 | M134: = | N134: 0 | O134: = | P134: =N134*Conversions!$B$11 -> 0 | Q134: = | R134: 0 | S134: = | T134: 0
A135: TOTAL | C135: x | D135: =SUM(D130:D134) -> 0 | E135: = { | F135: =SUM(F130:F134) -> 0 | G135: ÷ (1 - | H135: 0 | I135: )} x | J135: 0 | K135: )] = | L135: 0 | M135: = | N135: 0 | O135: = | P135: =N135*Conversions!$B$11 -> 0 | Q135: = | R135: 0 | S135: = | T135: 0
D136: =IF(D135=100%,"Okay", "Column total must equal 100%") -> Column total must equal 100%
A137: Residential | B137: =B126+1 -> 2002
B138: Total State | D138: % End Use of Sector | F138: Sub-sector | L138: Emission Factor
B139: Consumption | D139: Consumption | F139: Consumption | H139: Transmission loss | J139: Emission Factor | L139: Including losses | N139: Emissions | P139: Emissions | R139: Emissions | T139: Emissions
A140: Sub-sector | B140: (kWh) | D140: (%) | F140: (kWh) | H140: Factor (%) | J140: (lbs CO2E/kWh) | L140: (lbs CO2E/kWh) | N140: (lbs carbon) | P140: (short tons carbon) | R140: (MMTCE) | T140: (MMTCO2E)
A141: Space Heating | C141: =$B$137 -> 2002 | E141: = { | F141: =D141*$B$146 -> 0 | G141: ÷ (1 - | H141: =TLF_2002 -> 0 | I141: )} x | J141: =CO2EF_2002 -> 0 | K141: )] = | L141: =H141*(1+J141) -> 0 | M141: = | N141: =IF(F141>0,((F141/(1-H141))*J141)/C_CO2,0) -> 0 | O141: = | P141: =N141*Conversions!$B$11 -> 0 | Q141: = | R141: =P141*Short_Metric/1000000 -> 0 | S141: = | T141: =R141*C_CO2 -> 0
A142: Air-conditioning | C142: =$B$137 -> 2002 | E142: = { | F142: =D142*$B$146 -> 0 | G142: ÷ (1 - | H142: 0 | I142: )} x | J142: 0 | K142: )] = | L142: 0 | M142: = | N142: 0 | O142: = | P142: =N142*Conversions!$B$11 -> 0 | Q142: = | R142: 0 | S142: = | T142: 0
A143: Water Heating | C143: =$B$137 -> 2002 | E143: = { | F143: =D143*$B$146 -> 0 | G143: ÷ (1 - | H143: 0 | I143: )} x | J143: 0 | K143: )] = | L143: 0 | M143: = | N143: 0 | O143: = | P143: =N143*Conversions!$B$11 -> 0 | Q143: = | R143: 0 | S143: = | T143: 0
A144: Refrigeration | C144: =$B$137 -> 2002 | E144: = { | F144: =D144*$B$146 -> 0 | G144: ÷ (1 - | H144: 0 | I144: )} x | J144: 0 | K144: )] = | L144: 0 | M144: = | N144: 0 | O144: = | P144: =N144*Conversions!$B$11 -> 0 | Q144: = | R144: 0 | S144: = | T144: 0
A145: Other Appliances and Lighting | C145: =$B$137 -> 2002 | E145: = { | F145: =D145*$B$146 -> 0 | G145: ÷ (1 - | H145: 0 | I145: )} x | J145: 0 | K145: )] = | L145: 0 | M145: = | N145: 0 | O145: = | P145: =N145*Conversions!$B$11 -> 0 | Q145: = | R145: 0 | S145: = | T145: 0
A146: TOTAL | C146: x | D146: =SUM(D141:D145) -> 0 | E146: = { | F146: =SUM(F141:F145) -> 0 | G146: ÷ (1 - | H146: 0 | I146: )} x | J146: 0 | K146: )] = | L146: 0 | M146: = | N146: 0 | O146: = | P146: =N146*Conversions!$B$11 -> 0 | Q146: = | R146: 0 | S146: = | T146: 0
D147: =IF(D146=100%,"Okay", "Column total must equal 100%") -> Column total must equal 100%
A148: Residential | B148: =B137+1 -> 2003
B149: Total State | D149: % End Use of Sector | F149: Sub-sector | L149: Emission Factor
B150: Consumption | D150: Consumption | F150: Consumption | H150: Transmission loss | J150: Emission Factor | L150: Including losses | N150: Emissions | P150: Emissions | R150: Emissions | T150: Emissions
A151: Sub-sector | B151: (kWh) | D151: (%) | F151: (kWh) | H151: Factor (%) | J151: (lbs CO2E/kWh) | L151: (lbs CO2E/kWh) | N151: (lbs carbon) | P151: (short tons carbon) | R151: (MMTCE) | T151: (MMTCO2E)
A152: Space Heating | C152: =$B$148 -> 2003 | E152: = { | F152: =D152*$B$157 -> 0 | G152: ÷ (1 - | H152: =TLF_2003 -> 0 | I152: )} x | J152: =CO2EF_2003 -> 0 | K152: )] = | L152: =H152*(1+J152) -> 0 | M152: = | N152: =IF(F152>0,((F152/(1-H152))*J152)/C_CO2,0) -> 0 | O152: = | P152: =N152*Conversions!$B$11 -> 0 | Q152: = | R152: =P152*Short_Metric/1000000 -> 0 | S152: = | T152: =R152*C_CO2 -> 0
A153: Air-conditioning | C153: =$B$148 -> 2003 | E153: = { | F153: =D153*$B$157 -> 0 | G153: ÷ (1 - | H153: 0 | I153: )} x | J153: 0 | K153: )] = | L153: 0 | M153: = | N153: 0 | O153: = | P153: =N153*Conversions!$B$11 -> 0 | Q153: = | R153: 0 | S153: = | T153: 0
A154: Water Heating | C154: =$B$148 -> 2003 | E154: = { | F154: =D154*$B$157 -> 0 | G154: ÷ (1 - | H154: 0 | I154: )} x | J154: 0 | K154: )] = | L154: 0 | M154: = | N154: 0 | O154: = | P154: =N154*Conversions!$B$11 -> 0 | Q154: = | R154: 0 | S154: = | T154: 0
A155: Refrigeration | C155: =$B$148 -> 2003 | E155: = { | F155: =D155*$B$157 -> 0 | G155: ÷ (1 - | H155: 0 | I155: )} x | J155: 0 | K155: )] = | L155: 0 | M155: = | N155: 0 | O155: = | P155: =N155*Conversions!$B$11 -> 0 | Q155: = | R155: 0 | S155: = | T155: 0
A156: Other Appliances and Lighting | C156: =$B$148 -> 2003 | E156: = { | F156: =D156*$B$157 -> 0 | G156: ÷ (1 - | H156: 0 | I156: )} x | J156: 0 | K156: )] = | L156: 0 | M156: = | N156: 0 | O156: = | P156: =N156*Conversions!$B$11 -> 0 | Q156: = | R156: 0 | S156: = | T156: 0
A157: TOTAL | C157: x | D157: =SUM(D152:D156) -> 0 | E157: = { | F157: =SUM(F152:F156) -> 0 | G157: ÷ (1 - | H157: 0 | I157: )} x | J157: 0 | K157: )] = | L157: 0 | M157: = | N157: 0 | O157: = | P157: =N157*Conversions!$B$11 -> 0 | Q157: = | R157: 0 | S157: = | T157: 0
D158: =IF(D157=100%,"Okay", "Column total must equal 100%") -> Column total must equal 100%
A159: Residential | B159: =B148+1 -> 2004
B160: Total State | D160: % End Use of Sector | F160: Sub-sector | L160: Emission Factor
B161: Consumption | D161: Consumption | F161: Consumption | H161: Transmission loss | J161: Emission Factor | L161: Including losses | N161: Emissions | P161: Emissions | R161: Emissions | T161: Emissions
A162: Sub-sector | B162: (kWh) | D162: (%) | F162: (kWh) | H162: Factor (%) | J162: (lbs CO2E/kWh) | L162: (lbs CO2E/kWh) | N162: (lbs carbon) | P162: (short tons carbon) | R162: (MMTCE) | T162: (MMTCO2E)
A163: Space Heating | C163: =$B$159 -> 2004 | E163: = { | F163: =D163*$B$168 -> 0 | G163: ÷ (1 - | H163: =TLF_2004 -> 0 | I163: )} x | J163: =CO2EF_2004 -> 0 | K163: )] = | L163: =H163*(1+J163) -> 0 | M163: = | N163: =IF(F163>0,((F163/(1-H163))*J163)/C_CO2,0) -> 0 | O163: = | P163: =N163*Conversions!$B$11 -> 0 | Q163: = | R163: =P163*Short_Metric/1000000 -> 0 | S163: = | T163: =R163*C_CO2 -> 0
A164: Air-conditioning | C164: =$B$159 -> 2004 | E164: = { | F164: =D164*$B$168 -> 0 | G164: ÷ (1 - | H164: 0 | I164: )} x | J164: 0 | K164: )] = | L164: 0 | M164: = | N164: 0 | O164: = | P164: =N164*Conversions!$B$11 -> 0 | Q164: = | R164: 0 | S164: = | T164: 0
A165: Water Heating | C165: =$B$159 -> 2004 | E165: = { | F165: =D165*$B$168 -> 0 | G165: ÷ (1 - | H165: 0 | I165: )} x | J165: 0 | K165: )] = | L165: 0 | M165: = | N165: 0 | O165: = | P165: =N165*Conversions!$B$11 -> 0 | Q165: = | R165: 0 | S165: = | T165: 0
A166: Refrigeration | C166: =$B$159 -> 2004 | E166: = { | F166: =D166*$B$168 -> 0 | G166: ÷ (1 - | H166: 0 | I166: )} x | J166: 0 | K166: )] = | L166: 0 | M166: = | N166: 0 | O166: = | P166: =N166*Conversions!$B$11 -> 0 | Q166: = | R166: 0 | S166: = | T166: 0
A167: Other Appliances and Lighting | C167: =$B$159 -> 2004 | E167: = { | F167: =D167*$B$168 -> 0 | G167: ÷ (1 - | H167: 0 | I167: )} x | J167: 0 | K167: )] = | L167: 0 | M167: = | N167: 0 | O167: = | P167: =N167*Conversions!$B$11 -> 0 | Q167: = | R167: 0 | S167: = | T167: 0
A168: TOTAL | C168: x | D168: =SUM(D163:D167) -> 0 | E168: = { | F168: =SUM(F163:F167) -> 0 | G168: ÷ (1 - | H168: 0 | I168: )} x | J168: 0 | K168: )] = | L168: 0 | M168: = | N168: 0 | O168: = | P168: =N168*Conversions!$B$11 -> 0 | Q168: = | R168: 0 | S168: = | T168: 0
D169: =IF(D168=100%,"Okay", "Column total must equal 100%") -> Column total must equal 100%
A170: Residential | B170: =B159+1 -> 2005
B171: Total State | D171: % End Use of Sector | F171: Sub-sector | L171: Emission Factor
B172: Consumption | D172: Consumption | F172: Consumption | H172: Transmission loss | J172: Emission Factor | L172: Including losses | N172: Emissions | P172: Emissions | R172: Emissions | T172: Emissions
A173: Sub-sector | B173: (kWh) | D173: (%) | F173: (kWh) | H173: Factor (%) | J173: (lbs CO2E/kWh) | L173: (lbs CO2E/kWh) | N173: (lbs carbon) | P173: (short tons carbon) | R173: (MMTCE) | T173: (MMTCO2E)
A174: Space Heating | C174: =$B$170 -> 2005 | E174: = { | F174: =D174*$B$179 -> 0 | G174: ÷ (1 - | H174: =TLF_2005 -> 0 | I174: )} x | J174: =CO2EF_2005 -> 0 | K174: )] = | L174: =H174*(1+J174) -> 0 | M174: = | N174: =IF(F174>0,((F174/(1-H174))*J174)/C_CO2,0) -> 0 | O174: = | P174: =N174*Conversions!$B$11 -> 0 | Q174: = | R174: =P174*Short_Metric/1000000 -> 0 | S174: = | T174: =R174*C_CO2 -> 0
A175: Air-conditioning | C175: =$B$170 -> 2005 | E175: = { | F175: =D175*$B$179 -> 0 | G175: ÷ (1 - | H175: 0 | I175: )} x | J175: 0 | K175: )] = | L175: 0 | M175: = | N175: 0 | O175: = | P175: =N175*Conversions!$B$11 -> 0 | Q175: = | R175: 0 | S175: = | T175: 0
A176: Water Heating | C176: =$B$170 -> 2005 | E176: = { | F176: =D176*$B$179 -> 0 | G176: ÷ (1 - | H176: 0 | I176: )} x | J176: 0 | K176: )] = | L176: 0 | M176: = | N176: 0 | O176: = | P176: =N176*Conversions!$B$11 -> 0 | Q176: = | R176: 0 | S176: = | T176: 0
A177: Refrigeration | C177: =$B$170 -> 2005 | E177: = { | F177: =D177*$B$179 -> 0 | G177: ÷ (1 - | H177: 0 | I177: )} x | J177: 0 | K177: )] = | L177: 0 | M177: = | N177: 0 | O177: = | P177: =N177*Conversions!$B$11 -> 0 | Q177: = | R177: 0 | S177: = | T177: 0
A178: Other Appliances and Lighting | C178: =$B$170 -> 2005 | E178: = { | F178: =D178*$B$179 -> 0 | G178: ÷ (1 - | H178: 0 | I178: )} x | J178: 0 | K178: )] = | L178: 0 | M178: = | N178: 0 | O178: = | P178: =N178*Conversions!$B$11 -> 0 | Q178: = | R178: 0 | S178: = | T178: 0
A179: TOTAL | C179: x | D179: =SUM(D174:D178) -> 0 | E179: = { | F179: =SUM(F174:F178) -> 0 | G179: ÷ (1 - | H179: 0 | I179: )} x | J179: 0 | K179: )] = | L179: 0 | M179: = | N179: 0 | O179: = | P179: =N179*Conversions!$B$11 -> 0 | Q179: = | R179: 0 | S179: = | T179: 0
D180: =IF(D179=100%,"Okay", "Column total must equal 100%") -> Column total must equal 100%
A181: Residential | B181: =B170+1 -> 2006
B182: Total State | D182: % End Use of Sector | F182: Sub-sector | L182: Emission Factor
B183: Consumption | D183: Consumption | F183: Consumption | H183: Transmission loss | J183: Emission Factor | L183: Including losses | N183: Emissions | P183: Emissions | R183: Emissions | T183: Emissions
A184: Sub-sector | B184: (kWh) | D184: (%) | F184: (kWh) | H184: Factor (%) | J184: (lbs CO2E/kWh) | L184: (lbs CO2E/kWh) | N184: (lbs carbon) | P184: (short tons carbon) | R184: (MMTCE) | T184: (MMTCO2E)
A185: Space Heating | C185: =$B$181 -> 2006 | E185: = { | F185: =D185*$B$190 -> 0 | G185: ÷ (1 - | H185: =TLF_2006 -> 0 | I185: )} x | J185: =CO2EF_2006 -> 0 | K185: )] = | L185: =H185*(1+J185) -> 0 | M185: = | N185: =IF(F185>0,((F185/(1-H185))*J185)/C_CO2,0) -> 0 | O185: = | P185: =N185*Conversions!$B$11 -> 0 | Q185: = | R185: =P185*Short_Metric/1000000 -> 0 | S185: = | T185: =R185*C_CO2 -> 0
A186: Air-conditioning | C186: =$B$181 -> 2006 | E186: = { | F186: =D186*$B$190 -> 0 | G186: ÷ (1 - | H186: 0 | I186: )} x | J186: 0 | K186: )] = | L186: 0 | M186: = | N186: 0 | O186: = | P186: =N186*Conversions!$B$11 -> 0 | Q186: = | R186: 0 | S186: = | T186: 0
A187: Water Heating | C187: =$B$181 -> 2006 | E187: = { | F187: =D187*$B$190 -> 0 | G187: ÷ (1 - | H187: 0 | I187: )} x | J187: 0 | K187: )] = | L187: 0 | M187: = | N187: 0 | O187: = | P187: =N187*Conversions!$B$11 -> 0 | Q187: = | R187: 0 | S187: = | T187: 0
A188: Refrigeration | C188: =$B$181 -> 2006 | E188: = { | F188: =D188*$B$190 -> 0 | G188: ÷ (1 - | H188: 0 | I188: )} x | J188: 0 | K188: )] = | L188: 0 | M188: = | N188: 0 | O188: = | P188: =N188*Conversions!$B$11 -> 0 | Q188: = | R188: 0 | S188: = | T188: 0
A189: Other Appliances and Lighting | C189: =$B$181 -> 2006 | E189: = { | F189: =D189*$B$190 -> 0 | G189: ÷ (1 - | H189: 0 | I189: )} x | J189: 0 | K189: )] = | L189: 0 | M189: = | N189: 0 | O189: = | P189: =N189*Conversions!$B$11 -> 0 | Q189: = | R189: 0 | S189: = | T189: 0
A190: TOTAL | C190: x | D190: =SUM(D185:D189) -> 0 | E190: = { | F190: =SUM(F185:F189) -> 0 | G190: ÷ (1 - | H190: 0 | I190: )} x | J190: 0 | K190: )] = | L190: 0 | M190: = | N190: 0 | O190: = | P190: =N190*Conversions!$B$11 -> 0 | Q190: = | R190: 0 | S190: = | T190: 0
D191: =IF(D190=100%,"Okay", "Column total must equal 100%") -> Column total must equal 100%
A192: Residential | B192: =B181+1 -> 2007
B193: Total State | D193: % End Use of Sector | F193: Sub-sector | L193: Emission Factor
B194: Consumption | D194: Consumption | F194: Consumption | H194: Transmission loss | J194: Emission Factor | L194: Including losses | N194: Emissions | P194: Emissions | R194: Emissions | T194: Emissions
A195: Sub-sector | B195: (kWh) | D195: (%) | F195: (kWh) | H195: Factor (%) | J195: (lbs CO2E/kWh) | L195: (lbs CO2E/kWh) | N195: (lbs carbon) | P195: (short tons carbon) | R195: (MMTCE) | T195: (MMTCO2E)
A196: Space Heating | C196: =$B$192 -> 2007 | E196: = { | F196: =D196*$B$201 -> 0 | G196: ÷ (1 - | H196: =TLF_2007 -> 0 | I196: )} x | J196: =CO2EF_2007 -> 0 | K196: )] = | L196: =H196*(1+J196) -> 0 | M196: = | N196: =IF(F196>0,((F196/(1-H196))*J196)/C_CO2,0) -> 0 | O196: = | P196: =N196*Conversions!$B$11 -> 0 | Q196: = | R196: =P196*Short_Metric/1000000 -> 0 | S196: = | T196: =R196*C_CO2 -> 0
A197: Air-conditioning | C197: =$B$192 -> 2007 | E197: = { | F197: =D197*$B$201 -> 0 | G197: ÷ (1 - | H197: 0 | I197: )} x | J197: 0 | K197: )] = | L197: 0 | M197: = | N197: 0 | O197: = | P197: =N197*Conversions!$B$11 -> 0 | Q197: = | R197: 0 | S197: = | T197: 0
A198: Water Heating | C198: =$B$192 -> 2007 | E198: = { | F198: =D198*$B$201 -> 0 | G198: ÷ (1 - | H198: 0 | I198: )} x | J198: 0 | K198: )] = | L198: 0 | M198: = | N198: 0 | O198: = | P198: =N198*Conversions!$B$11 -> 0 | Q198: = | R198: 0 | S198: = | T198: 0
A199: Refrigeration | C199: =$B$192 -> 2007 | E199: = { | F199: =D199*$B$201 -> 0 | G199: ÷ (1 - | H199: 0 | I199: )} x | J199: 0 | K199: )] = | L199: 0 | M199: = | N199: 0 | O199: = | P199: =N199*Conversions!$B$11 -> 0 | Q199: = | R199: 0 | S199: = | T199: 0
A200: Other Appliances and Lighting | C200: =$B$192 -> 2007 | E200: = { | F200: =D200*$B$201 -> 0 | G200: ÷ (1 - | H200: 0 | I200: )} x | J200: 0 | K200: )] = | L200: 0 | M200: = | N200: 0 | O200: = | P200: =N200*Conversions!$B$11 -> 0 | Q200: = | R200: 0 | S200: = | T200: 0
A201: TOTAL | C201: x | D201: =SUM(D196:D200) -> 0 | E201: = { | F201: =SUM(F196:F200) -> 0 | G201: ÷ (1 - | H201: 0 | I201: )} x | J201: 0 | K201: )] = | L201: 0 | M201: = | N201: 0 | O201: = | P201: =N201*Conversions!$B$11 -> 0 | Q201: = | R201: 0 | S201: = | T201: 0
... 199 more rows

Sheet Electric Power C (hidden)
A1: ="Electricity Consumption in "&'List Data'!E3 -> Electricity Consumption in Select a State . . .
A2: Other possible data sources include compiling transit agency by agency w/in a state, for example | B2: Industrial | C2: =" " ->  | D2: ='List Data'!E3 -> Select a State . . .
A4: Electric Power Sector | D4: 2005
B5: Total
B6: Consumption | D6: Transmission loss | F6: Emission Factor | H6: Emissions | J6: Emissions | L6: Emissions
A7: Sub-sector | B7: KWh | D7: Factor (%) | F7: (lbs CO2E/KWh) | H7: (short tons carbon) | J7: (MMTCE) | L7: (MMTCO2E)
C8: x | D8: =CoalEff ->  | E8: x | F8: =IF(ISNUMBER(CokeCoalCC),CokeCoalCC,VLOOKUP($A$2& " Coking Coal CC",CoalCoeffBlock,F4-1988,FALSE)) ->  | G8: = | H8: =#REF!*D8*F8*1000*lbs_shortt ->  | I8: = | J8: =H8*Short_Metric/1000000 ->  | K8: = | L8: =J8*C_CO2 -> 
C9: x | D9: =CoalEff ->  | E9: x | F9: =IF(ISNUMBER(OtherCoalCC),OtherCoalCC,VLOOKUP($A$2 & " Other Coal CC",CoalCoeffBlock,F4-1988,FALSE)) ->  | G9: = | H9: =#REF!*D9*F9*1000*lbs_shortt ->  | I9: = | J9: =H9*Short_Metric/1000000 ->  | K9: = | L9: =J9*C_CO2 -> 
C10: x | D10: =PetroEff ->  | E10: x | F10: =AsphaltCC ->  | G10: = | H10: =#REF!*D10*F10*1000*lbs_shortt ->  | I10: = | J10: =H10*Short_Metric/1000000 ->  | K10: = | L10: =J10*C_CO2 -> 
A11: TOTAL | C11: x | D11: =PetroEff ->  | E11: x | F11: =AvBlendCC ->  | G11: = | H11: =#REF!*D11*F11*1000*lbs_shortt ->  | I11: = | J11: =H11*Short_Metric/1000000 ->  | K11: = | L11: =J11*C_CO2 -> 

Sheet Commercial C
A1: ="4. Commercial Electricity Consumption in "&'List Data'!E3 -> 4. Commercial Electricity Consumption in Select a State . . .
A2: ='List Data'!F3 -> XX | B2: Industrial | C2: ='List Data'!E3 -> Select a State . . .
D3: Industrial | G3: =" " ->  | H3: ='List Data'!E3 -> Select a State . . .
A5: Commercial | B5: 1990
B6: Total State | D6: % End Use of Sector | F6: Sub-sector | L6: Emission Factor
B7: Consumption | D7: Consumption | F7: Consumption | H7: Transmission loss | J7: Emission Factor | L7: Including losses | N7: Emissions | P7: Emissions | R7: Emissions | T7: Emissions
A8: Sub-sector | B8: (kWh) | D8: (%) | F8: (kWh) | H8: Factor (%) | J8: (lbs CO2E/kWh) | L8: (lbs CO2E/kWh) | N8: (lbs carbon) | P8: (short tons carbon) | R8: (MMTCE) | T8: (MMTCO2E)
A9: Space Heating | C9: =$B$5 -> 1990 | E9: = { | F9: =$B$19*D9 -> 0 | G9: ÷ (1 - | H9: =TLF_1990 -> 0 | I9: )} x | J9: =CO2EF_1990 -> 0 | K9: )] = | L9: =H9*(1+J9) -> 0 | M9: = | N9: =IF(F9>0,((F9/(1-H9))*J9)/C_CO2,0) -> 0 | O9: = | P9: =N9*Conversions!$B$11 -> 0 | Q9: = | R9: =P9*Short_Metric/1000000 -> 0 | S9: = | T9: =R9*C_CO2 -> 0
A10: Cooling | C10: =$B$5 -> 1990 | E10: = { | F10: =$B$19*D10 -> 0 | G10: ÷ (1 - | H10: 0 | I10: )} x | J10: 0 | K10: )] = | L10: =H10*(1+J10) -> 0 | M10: = | N10: =IF(F10>0,((F10/(1-H10))*J10)/C_CO2,0) -> 0 | O10: = | P10: =N10*Conversions!$B$11 -> 0 | Q10: = | R10: 0 | S10: = | T10: 0
A11: Ventilation | C11: 1990 | E11: = { | F11: 0 | G11: ÷ (1 - | H11: 0 | I11: )} x | J11: 0 | K11: )] = | L11: 0 | M11: = | N11: 0 | O11: = | P11: =N11*Conversions!$B$11 -> 0 | Q11: = | R11: 0 | S11: = | T11: 0 | X11: =IF(ISERROR(VLOOKUP(U11,Ind_Breakout,3,FALSE)),"-",VLOOKUP(U11,Ind_Breakout,3,FALSE)) -> -
A12: Water Heating | C12: 1990 | E12: = { | F12: 0 | G12: ÷ (1 - | H12: 0 | I12: )} x | J12: 0 | K12: )] = | L12: 0 | M12: = | N12: 0 | O12: = | P12: =N12*Conversions!$B$11 -> 0 | Q12: = | R12: 0 | S12: = | T12: 0
A13: Lighting | C13: 1990 | E13: = { | F13: 0 | G13: ÷ (1 - | H13: 0 | I13: )} x | J13: 0 | K13: )] = | L13: 0 | M13: = | N13: 0 | O13: = | P13: =N13*Conversions!$B$11 -> 0 | Q13: = | R13: 0 | S13: = | T13: 0
A14: Cooking | C14: 1990 | E14: = { | F14: 0 | G14: ÷ (1 - | H14: 0 | I14: )} x | J14: 0 | K14: )] = | L14: 0 | M14: = | N14: 0 | O14: = | P14: =N14*Conversions!$B$11 -> 0 | Q14: = | R14: 0 | S14: = | T14: 0
A15: Refrigeration | C15: 1990 | E15: = { | F15: 0 | G15: ÷ (1 - | H15: 0 | I15: )} x | J15: 0 | K15: )] = | L15: 0 | M15: = | N15: 0 | O15: = | P15: =N15*Conversions!$B$11 -> 0 | Q15: = | R15: 0 | S15: = | T15: 0
A16: Office Equipment | C16: 1990 | E16: = { | F16: 0 | G16: ÷ (1 - | H16: 0 | I16: )} x | J16: 0 | K16: )] = | L16: 0 | M16: = | N16: 0 | O16: = | P16: =N16*Conversions!$B$11 -> 0 | Q16: = | R16: 0 | S16: = | T16: 0
A17: Computers | C17: 1990 | E17: = { | F17: 0 | G17: ÷ (1 - | H17: 0 | I17: )} x | J17: 0 | K17: )] = | L17: 0 | M17: = | N17: 0 | O17: = | P17: =N17*Conversions!$B$11 -> 0 | Q17: = | R17: 0 | S17: = | T17: 0
A18: Other | C18: 1990 | E18: = { | F18: 0 | G18: ÷ (1 - | H18: 0 | I18: )} x | J18: 0 | K18: )] = | L18: 0 | M18: = | N18: 0 | O18: = | P18: =N18*Conversions!$B$11 -> 0 | Q18: = | R18: 0 | S18: = | T18: 0
A19: TOTAL | C19: x | D19: =SUM(D9:D18) -> 0 | E19: = { | F19: =SUM(F9:F18) -> 0 | G19: ÷ (1 - | H19: 0 | I19: )} x | J19: 0 | K19: )] = | L19: 0 | M19: = | N19: 0 | O19: = | P19: =N19*Conversions!$B$11 -> 0 | Q19: = | R19: 0 | S19: = | T19: 0
D20: =IF(D19=100%,"Okay", "Column total must equal 100%") -> Column total must equal 100%
A21: Commercial | B21: =B5+1 -> 1991
B22: Total State | D22: % End Use of Sector | F22: Sub-sector | L22: Emission Factor
B23: Consumption | D23: Consumption | F23: Consumption | H23: Transmission loss | J23: Emission Factor | L23: Including losses | N23: Emissions | P23: Emissions | R23: Emissions | T23: Emissions
A24: Sub-sector | B24: (kWh) | D24: (%) | F24: (kWh) | H24: Factor (%) | J24: (lbs CO2E/kWh) | L24: (lbs CO2E/kWh) | N24: (lbs carbon) | P24: (short tons carbon) | R24: (MMTCE) | T24: (MMTCO2E)
A25: Space Heating | C25: =$B$21 -> 1991 | E25: = { | F25: =$B$35*D25 -> 0 | G25: ÷ (1 - | H25: =TLF_1991 -> 0 | I25: )} x | J25: =CO2EF_1991 -> 0 | K25: )] = | L25: =H25*(1+J25) -> 0 | M25: = | N25: =IF(F25>0,((F25/(1-H25))*J25)/C_CO2,0) -> 0 | O25: = | P25: =N25*Conversions!$B$11 -> 0 | Q25: = | R25: =P25*Short_Metric/1000000 -> 0 | S25: = | T25: =R25*C_CO2 -> 0
A26: Cooling | C26: =$B$21 -> 1991 | E26: = { | F26: =$B$35*D26 -> 0 | G26: ÷ (1 - | H26: 0 | I26: )} x | J26: 0 | K26: )] = | L26: =H26*(1+J26) -> 0 | M26: = | N26: =IF(F26>0,((F26/(1-H26))*J26)/C_CO2,0) -> 0 | O26: = | P26: =N26*Conversions!$B$11 -> 0 | Q26: = | R26: =P26*Short_Metric/1000000 -> 0 | S26: = | T26: =R26*C_CO2 -> 0
A27: Ventilation | C27: 1991 | E27: = { | F27: 0 | G27: ÷ (1 - | H27: 0 | I27: )} x | J27: 0 | K27: )] = | L27: 0 | M27: = | N27: 0 | O27: = | P27: =N27*Conversions!$B$11 -> 0 | Q27: = | R27: 0 | S27: = | T27: 0 | X27: =IF(ISERROR(VLOOKUP(U27,Ind_Breakout,3,FALSE)),"-",VLOOKUP(U27,Ind_Breakout,3,FALSE)) -> -
A28: Water Heating | C28: 1991 | E28: = { | F28: 0 | G28: ÷ (1 - | H28: 0 | I28: )} x | J28: 0 | K28: )] = | L28: 0 | M28: = | N28: 0 | O28: = | P28: =N28*Conversions!$B$11 -> 0 | Q28: = | R28: 0 | S28: = | T28: 0
A29: Lighting | C29: 1991 | E29: = { | F29: 0 | G29: ÷ (1 - | H29: 0 | I29: )} x | J29: 0 | K29: )] = | L29: 0 | M29: = | N29: 0 | O29: = | P29: =N29*Conversions!$B$11 -> 0 | Q29: = | R29: 0 | S29: = | T29: 0
A30: Cooking | C30: 1991 | E30: = { | F30: 0 | G30: ÷ (1 - | H30: 0 | I30: )} x | J30: 0 | K30: )] = | L30: 0 | M30: = | N30: 0 | O30: = | P30: =N30*Conversions!$B$11 -> 0 | Q30: = | R30: 0 | S30: = | T30: 0
A31: Refrigeration | C31: 1991 | E31: = { | F31: 0 | G31: ÷ (1 - | H31: 0 | I31: )} x | J31: 0 | K31: )] = | L31: 0 | M31: = | N31: 0 | O31: = | P31: =N31*Conversions!$B$11 -> 0 | Q31: = | R31: 0 | S31: = | T31: 0
A32: Office Equipment | C32: 1991 | E32: = { | F32: =$B$35*D32 -> 0 | G32: ÷ (1 - | H32: 0 | I32: )} x | J32: 0 | K32: )] = | L32: 0 | M32: = | N32: 0 | O32: = | P32: =N32*Conversions!$B$11 -> 0 | Q32: = | R32: 0 | S32: = | T32: 0
A33: Computers | C33: 1991 | E33: = { | F33: 0 | G33: ÷ (1 - | H33: 0 | I33: )} x | J33: 0 | K33: )] = | L33: 0 | M33: = | N33: 0 | O33: = | P33: =N33*Conversions!$B$11 -> 0 | Q33: = | R33: 0 | S33: = | T33: 0
A34: Other | C34: 1991 | E34: = { | F34: 0 | G34: ÷ (1 - | H34: 0 | I34: )} x | J34: 0 | K34: )] = | L34: 0 | M34: = | N34: 0 | O34: = | P34: =N34*Conversions!$B$11 -> 0 | Q34: = | R34: 0 | S34: = | T34: 0
A35: TOTAL | C35: x | D35: =SUM(D25:D34) -> 0 | E35: = { | F35: =SUM(F25:F34) -> 0 | G35: ÷ (1 - | H35: 0 | I35: )} x | J35: 0 | K35: )] = | L35: 0 | M35: = | N35: 0 | O35: = | P35: =N35*Conversions!$B$11 -> 0 | Q35: = | R35: 0 | S35: = | T35: 0
D36: =IF(D35=100%,"Okay", "Column total must equal 100%") -> Column total must equal 100%
A37: Commercial | B37: =B21+1 -> 1992
B38: Total State | D38: % End Use of Sector | F38: Sub-sector | L38: Emission Factor
B39: Consumption | D39: Consumption | F39: Consumption | H39: Transmission loss | J39: Emission Factor | L39: Including losses | N39: Emissions | P39: Emissions | R39: Emissions | T39: Emissions
A40: Sub-sector | B40: (kWh) | D40: (%) | F40: (kWh) | H40: Factor (%) | J40: (lbs CO2E/kWh) | L40: (lbs CO2E/kWh) | N40: (lbs carbon) | P40: (short tons carbon) | R40: (MMTCE) | T40: (MMTCO2E)
A41: Space Heating | C41: =$B$37 -> 1992 | E41: = { | F41: =$B$51*D41 -> 0 | G41: ÷ (1 - | H41: =TLF_1992 -> 0 | I41: )} x | J41: =CO2EF_1992 -> 0 | K41: )] = | L41: =H41*(1+J41) -> 0 | M41: = | N41: =IF(F41>0,((F41/(1-H41))*J41)/C_CO2,0) -> 0 | O41: = | P41: =N41*Conversions!$B$11 -> 0 | Q41: = | R41: =P41*Short_Metric/1000000 -> 0 | S41: = | T41: =R41*C_CO2 -> 0
A42: Cooling | C42: =$B$37 -> 1992 | E42: = { | F42: =$B$51*D42 -> 0 | G42: ÷ (1 - | H42: 0 | I42: )} x | J42: 0 | K42: )] = | L42: =H42*(1+J42) -> 0 | M42: = | N42: 0 | O42: = | P42: =N42*Conversions!$B$11 -> 0 | Q42: = | R42: 0 | S42: = | T42: 0
A43: Ventilation | C43: 1992 | E43: = { | F43: 0 | G43: ÷ (1 - | H43: 0 | I43: )} x | J43: 0 | K43: )] = | L43: 0 | M43: = | N43: 0 | O43: = | P43: =N43*Conversions!$B$11 -> 0 | Q43: = | R43: 0 | S43: = | T43: 0 | X43: =IF(ISERROR(VLOOKUP(U43,Ind_Breakout,3,FALSE)),"-",VLOOKUP(U43,Ind_Breakout,3,FALSE)) -> -
A44: Water Heating | C44: 1992 | E44: = { | F44: 0 | G44: ÷ (1 - | H44: 0 | I44: )} x | J44: 0 | K44: )] = | L44: 0 | M44: = | N44: 0 | O44: = | P44: =N44*Conversions!$B$11 -> 0 | Q44: = | R44: 0 | S44: = | T44: 0
A45: Lighting | C45: 1992 | E45: = { | F45: 0 | G45: ÷ (1 - | H45: 0 | I45: )} x | J45: 0 | K45: )] = | L45: 0 | M45: = | N45: 0 | O45: = | P45: =N45*Conversions!$B$11 -> 0 | Q45: = | R45: 0 | S45: = | T45: 0
A46: Cooking | C46: 1992 | E46: = { | F46: 0 | G46: ÷ (1 - | H46: 0 | I46: )} x | J46: 0 | K46: )] = | L46: 0 | M46: = | N46: 0 | O46: = | P46: =N46*Conversions!$B$11 -> 0 | Q46: = | R46: 0 | S46: = | T46: 0
A47: Refrigeration | C47: 1992 | E47: = { | F47: 0 | G47: ÷ (1 - | H47: 0 | I47: )} x | J47: 0 | K47: )] = | L47: 0 | M47: = | N47: 0 | O47: = | P47: =N47*Conversions!$B$11 -> 0 | Q47: = | R47: 0 | S47: = | T47: 0
A48: Office Equipment | C48: 1992 | E48: = { | F48: 0 | G48: ÷ (1 - | H48: 0 | I48: )} x | J48: 0 | K48: )] = | L48: 0 | M48: = | N48: 0 | O48: = | P48: =N48*Conversions!$B$11 -> 0 | Q48: = | R48: 0 | S48: = | T48: 0
A49: Computers | C49: 1992 | E49: = { | F49: 0 | G49: ÷ (1 - | H49: 0 | I49: )} x | J49: 0 | K49: )] = | L49: 0 | M49: = | N49: 0 | O49: = | P49: =N49*Conversions!$B$11 -> 0 | Q49: = | R49: 0 | S49: = | T49: 0
A50: Other | C50: 1992 | E50: = { | F50: 0 | G50: ÷ (1 - | H50: 0 | I50: )} x | J50: 0 | K50: )] = | L50: 0 | M50: = | N50: 0 | O50: = | P50: =N50*Conversions!$B$11 -> 0 | Q50: = | R50: 0 | S50: = | T50: 0
A51: TOTAL | C51: x | D51: =SUM(D41:D50) -> 0 | E51: = { | F51: =SUM(F41:F50) -> 0 | G51: ÷ (1 - | H51: 0 | I51: )} x | J51: 0 | K51: )] = | L51: 0 | M51: = | N51: 0 | O51: = | P51: =N51*Conversions!$B$11 -> 0 | Q51: = | R51: 0 | S51: = | T51: 0
D52: =IF(D51=100%,"Okay", "Column total must equal 100%") -> Column total must equal 100%
A53: Commercial | B53: =B37+1 -> 1993
B54: Total State | D54: % End Use of Sector | F54: Sub-sector | L54: Emission Factor
B55: Consumption | D55: Consumption | F55: Consumption | H55: Transmission loss | J55: Emission Factor | L55: Including losses | N55: Emissions | P55: Emissions | R55: Emissions | T55: Emissions
A56: Sub-sector | B56: (kWh) | D56: (%) | F56: (kWh) | H56: Factor (%) | J56: (lbs CO2E/kWh) | L56: (lbs CO2E/kWh) | N56: (lbs carbon) | P56: (short tons carbon) | R56: (MMTCE) | T56: (MMTCO2E)
A57: Space Heating | C57: =$B$53 -> 1993 | E57: = { | F57: =$B$67*D57 -> 0 | G57: ÷ (1 - | H57: =TLF_1993 -> 0 | I57: )} x | J57: =CO2EF_1993 -> 0 | K57: )] = | L57: =H57*(1+J57) -> 0 | M57: = | N57: =IF(F57>0,((F57/(1-H57))*J57)/C_CO2,0) -> 0 | O57: = | P57: =N57*Conversions!$B$11 -> 0 | Q57: = | R57: =P57*Short_Metric/1000000 -> 0 | S57: = | T57: =R57*C_CO2 -> 0
A58: Cooling | C58: =$B$53 -> 1993 | E58: = { | F58: =$B$67*D58 -> 0 | G58: ÷ (1 - | H58: 0 | I58: )} x | J58: 0 | K58: )] = | L58: =H58*(1+J58) -> 0 | M58: = | N58: 0 | O58: = | P58: =N58*Conversions!$B$11 -> 0 | Q58: = | R58: 0 | S58: = | T58: 0
A59: Ventilation | C59: 1993 | E59: = { | F59: 0 | G59: ÷ (1 - | H59: 0 | I59: )} x | J59: 0 | K59: )] = | L59: 0 | M59: = | N59: 0 | O59: = | P59: =N59*Conversions!$B$11 -> 0 | Q59: = | R59: 0 | S59: = | T59: 0 | X59: =IF(ISERROR(VLOOKUP(U59,Ind_Breakout,3,FALSE)),"-",VLOOKUP(U59,Ind_Breakout,3,FALSE)) -> -
A60: Water Heating | C60: 1993 | E60: = { | F60: 0 | G60: ÷ (1 - | H60: 0 | I60: )} x | J60: 0 | K60: )] = | L60: 0 | M60: = | N60: 0 | O60: = | P60: =N60*Conversions!$B$11 -> 0 | Q60: = | R60: 0 | S60: = | T60: 0
A61: Lighting | C61: 1993 | E61: = { | F61: 0 | G61: ÷ (1 - | H61: 0 | I61: )} x | J61: 0 | K61: )] = | L61: 0 | M61: = | N61: 0 | O61: = | P61: =N61*Conversions!$B$11 -> 0 | Q61: = | R61: 0 | S61: = | T61: 0
A62: Cooking | C62: 1993 | E62: = { | F62: 0 | G62: ÷ (1 - | H62: 0 | I62: )} x | J62: 0 | K62: )] = | L62: 0 | M62: = | N62: 0 | O62: = | P62: =N62*Conversions!$B$11 -> 0 | Q62: = | R62: 0 | S62: = | T62: 0
A63: Refrigeration | C63: 1993 | E63: = { | F63: 0 | G63: ÷ (1 - | H63: 0 | I63: )} x | J63: 0 | K63: )] = | L63: 0 | M63: = | N63: 0 | O63: = | P63: =N63*Conversions!$B$11 -> 0 | Q63: = | R63: 0 | S63: = | T63: 0
A64: Office Equipment | C64: 1993 | E64: = { | F64: 0 | G64: ÷ (1 - | H64: 0 | I64: )} x | J64: 0 | K64: )] = | L64: 0 | M64: = | N64: 0 | O64: = | P64: =N64*Conversions!$B$11 -> 0 | Q64: = | R64: 0 | S64: = | T64: 0
A65: Computers | C65: 1993 | E65: = { | F65: 0 | G65: ÷ (1 - | H65: 0 | I65: )} x | J65: 0 | K65: )] = | L65: 0 | M65: = | N65: 0 | O65: = | P65: =N65*Conversions!$B$11 -> 0 | Q65: = | R65: 0 | S65: = | T65: 0
A66: Other | C66: 1993 | E66: = { | F66: 0 | G66: ÷ (1 - | H66: 0 | I66: )} x | J66: 0 | K66: )] = | L66: 0 | M66: = | N66: 0 | O66: = | P66: =N66*Conversions!$B$11 -> 0 | Q66: = | R66: 0 | S66: = | T66: 0
A67: TOTAL | C67: x | D67: =SUM(D57:D66) -> 0 | E67: = { | F67: =SUM(F57:F66) -> 0 | G67: ÷ (1 - | H67: 0 | I67: )} x | J67: 0 | K67: )] = | L67: 0 | M67: = | N67: 0 | O67: = | P67: =N67*Conversions!$B$11 -> 0 | Q67: = | R67: 0 | S67: = | T67: 0
D68: =IF(D67=100%,"Okay", "Column total must equal 100%") -> Column total must equal 100%
A69: Commercial | B69: =B53+1 -> 1994
B70: Total State | D70: % End Use of Sector | F70: Sub-sector | L70: Emission Factor
B71: Consumption | D71: Consumption | F71: Consumption | H71: Transmission loss | J71: Emission Factor | L71: Including losses | N71: Emissions | P71: Emissions | R71: Emissions | T71: Emissions
A72: Sub-sector | B72: (kWh) | D72: (%) | F72: (kWh) | H72: Factor (%) | J72: (lbs CO2E/kWh) | L72: (lbs CO2E/kWh) | N72: (lbs carbon) | P72: (short tons carbon) | R72: (MMTCE) | T72: (MMTCO2E)
A73: Space Heating | C73: =$B$69 -> 1994 | E73: = { | F73: =$B$83*D73 -> 0 | G73: ÷ (1 - | H73: =TLF_1994 -> 0 | I73: )} x | J73: =CO2EF_1994 -> 0 | K73: )] = | L73: =H73*(1+J73) -> 0 | M73: = | N73: =IF(F73>0,((F73/(1-H73))*J73)/C_CO2,0) -> 0 | O73: = | P73: =N73*Conversions!$B$11 -> 0 | Q73: = | R73: =P73*Short_Metric/1000000 -> 0 | S73: = | T73: =R73*C_CO2 -> 0
A74: Cooling | C74: =$B$69 -> 1994 | E74: = { | F74: =$B$83*D74 -> 0 | G74: ÷ (1 - | H74: 0 | I74: )} x | J74: 0 | K74: )] = | L74: =H74*(1+J74) -> 0 | M74: = | N74: 0 | O74: = | P74: =N74*Conversions!$B$11 -> 0 | Q74: = | R74: 0 | S74: = | T74: 0
A75: Ventilation | C75: 1994 | E75: = { | F75: 0 | G75: ÷ (1 - | H75: 0 | I75: )} x | J75: 0 | K75: )] = | L75: 0 | M75: = | N75: 0 | O75: = | P75: =N75*Conversions!$B$11 -> 0 | Q75: = | R75: 0 | S75: = | T75: 0 | X75: =IF(ISERROR(VLOOKUP(U75,Ind_Breakout,3,FALSE)),"-",VLOOKUP(U75,Ind_Breakout,3,FALSE)) -> -
A76: Water Heating | C76: 1994 | E76: = { | F76: 0 | G76: ÷ (1 - | H76: 0 | I76: )} x | J76: 0 | K76: )] = | L76: 0 | M76: = | N76: 0 | O76: = | P76: =N76*Conversions!$B$11 -> 0 | Q76: = | R76: 0 | S76: = | T76: 0
A77: Lighting | C77: 1994 | E77: = { | F77: 0 | G77: ÷ (1 - | H77: 0 | I77: )} x | J77: 0 | K77: )] = | L77: 0 | M77: = | N77: 0 | O77: = | P77: =N77*Conversions!$B$11 -> 0 | Q77: = | R77: 0 | S77: = | T77: 0
A78: Cooking | C78: 1994 | E78: = { | F78: 0 | G78: ÷ (1 - | H78: 0 | I78: )} x | J78: 0 | K78: )] = | L78: 0 | M78: = | N78: 0 | O78: = | P78: =N78*Conversions!$B$11 -> 0 | Q78: = | R78: 0 | S78: = | T78: 0
A79: Refrigeration | C79: 1994 | E79: = { | F79: 0 | G79: ÷ (1 - | H79: 0 | I79: )} x | J79: 0 | K79: )] = | L79: 0 | M79: = | N79: 0 | O79: = | P79: =N79*Conversions!$B$11 -> 0 | Q79: = | R79: 0 | S79: = | T79: 0
A80: Office Equipment | C80: 1994 | E80: = { | F80: 0 | G80: ÷ (1 - | H80: 0 | I80: )} x | J80: 0 | K80: )] = | L80: 0 | M80: = | N80: 0 | O80: = | P80: =N80*Conversions!$B$11 -> 0 | Q80: = | R80: 0 | S80: = | T80: 0
A81: Computers | C81: 1994 | E81: = { | F81: 0 | G81: ÷ (1 - | H81: 0 | I81: )} x | J81: 0 | K81: )] = | L81: 0 | M81: = | N81: 0 | O81: = | P81: =N81*Conversions!$B$11 -> 0 | Q81: = | R81: 0 | S81: = | T81: 0
A82: Other | C82: 1994 | E82: = { | F82: 0 | G82: ÷ (1 - | H82: 0 | I82: )} x | J82: 0 | K82: )] = | L82: 0 | M82: = | N82: 0 | O82: = | P82: =N82*Conversions!$B$11 -> 0 | Q82: = | R82: 0 | S82: = | T82: 0
A83: TOTAL | C83: x | D83: =SUM(D73:D82) -> 0 | E83: = { | F83: =SUM(F73:F82) -> 0 | G83: ÷ (1 - | H83: 0 | I83: )} x | J83: 0 | K83: )] = | L83: 0 | M83: = | N83: 0 | O83: = | P83: =N83*Conversions!$B$11 -> 0 | Q83: = | R83: 0 | S83: = | T83: 0
D84: =IF(D83=100%,"Okay", "Column total must equal 100%") -> Column total must equal 100%
A85: Commercial | B85: =B69+1 -> 1995
B86: Total State | D86: % End Use of Sector | F86: Sub-sector | L86: Emission Factor
B87: Consumption | D87: Consumption | F87: Consumption | H87: Transmission loss | J87: Emission Factor | L87: Including losses | N87: Emissions | P87: Emissions | R87: Emissions | T87: Emissions
A88: Sub-sector | B88: (kWh) | D88: (%) | F88: (kWh) | H88: Factor (%) | J88: (lbs CO2E/kWh) | L88: (lbs CO2E/kWh) | N88: (lbs carbon) | P88: (short tons carbon) | R88: (MMTCE) | T88: (MMTCO2E)
A89: Space Heating | C89: =$B$85 -> 1995 | E89: = { | F89: =$B$99*D89 -> 0 | G89: ÷ (1 - | H89: =TLF_1995 -> 0 | I89: )} x | J89: =CO2EF_1995 -> 0 | K89: )] = | L89: =H89*(1+J89) -> 0 | M89: = | N89: =IF(F89>0,((F89/(1-H89))*J89)/C_CO2,0) -> 0 | O89: = | P89: =N89*Conversions!$B$11 -> 0 | Q89: = | R89: =P89*Short_Metric/1000000 -> 0 | S89: = | T89: =R89*C_CO2 -> 0
A90: Cooling | C90: =$B$85 -> 1995 | E90: = { | F90: =$B$99*D90 -> 0 | G90: ÷ (1 - | H90: 0 | I90: )} x | J90: 0 | K90: )] = | L90: =H90*(1+J90) -> 0 | M90: = | N90: 0 | O90: = | P90: =N90*Conversions!$B$11 -> 0 | Q90: = | R90: 0 | S90: = | T90: 0
A91: Ventilation | C91: 1995 | E91: = { | F91: 0 | G91: ÷ (1 - | H91: 0 | I91: )} x | J91: 0 | K91: )] = | L91: 0 | M91: = | N91: 0 | O91: = | P91: =N91*Conversions!$B$11 -> 0 | Q91: = | R91: 0 | S91: = | T91: 0 | X91: =IF(ISERROR(VLOOKUP(U91,Ind_Breakout,3,FALSE)),"-",VLOOKUP(U91,Ind_Breakout,3,FALSE)) -> -
A92: Water Heating | C92: 1995 | E92: = { | F92: 0 | G92: ÷ (1 - | H92: 0 | I92: )} x | J92: 0 | K92: )] = | L92: 0 | M92: = | N92: 0 | O92: = | P92: =N92*Conversions!$B$11 -> 0 | Q92: = | R92: 0 | S92: = | T92: 0
A93: Lighting | C93: 1995 | E93: = { | F93: 0 | G93: ÷ (1 - | H93: 0 | I93: )} x | J93: 0 | K93: )] = | L93: 0 | M93: = | N93: 0 | O93: = | P93: =N93*Conversions!$B$11 -> 0 | Q93: = | R93: 0 | S93: = | T93: 0
A94: Cooking | C94: 1995 | E94: = { | F94: 0 | G94: ÷ (1 - | H94: 0 | I94: )} x | J94: 0 | K94: )] = | L94: 0 | M94: = | N94: 0 | O94: = | P94: =N94*Conversions!$B$11 -> 0 | Q94: = | R94: 0 | S94: = | T94: 0
A95: Refrigeration | C95: 1995 | E95: = { | F95: 0 | G95: ÷ (1 - | H95: 0 | I95: )} x | J95: 0 | K95: )] = | L95: 0 | M95: = | N95: 0 | O95: = | P95: =N95*Conversions!$B$11 -> 0 | Q95: = | R95: 0 | S95: = | T95: 0
A96: Office Equipment | C96: 1995 | E96: = { | F96: 0 | G96: ÷ (1 - | H96: 0 | I96: )} x | J96: 0 | K96: )] = | L96: 0 | M96: = | N96: 0 | O96: = | P96: =N96*Conversions!$B$11 -> 0 | Q96: = | R96: 0 | S96: = | T96: 0
A97: Computers | C97: 1995 | E97: = { | F97: 0 | G97: ÷ (1 - | H97: 0 | I97: )} x | J97: 0 | K97: )] = | L97: 0 | M97: = | N97: 0 | O97: = | P97: =N97*Conversions!$B$11 -> 0 | Q97: = | R97: 0 | S97: = | T97: 0
A98: Other | C98: 1995 | E98: = { | F98: 0 | G98: ÷ (1 - | H98: 0 | I98: )} x | J98: 0 | K98: )] = | L98: 0 | M98: = | N98: 0 | O98: = | P98: =N98*Conversions!$B$11 -> 0 | Q98: = | R98: 0 | S98: = | T98: 0
A99: TOTAL | C99: x | D99: =SUM(D89:D98) -> 0 | E99: = { | F99: =SUM(F89:F98) -> 0 | G99: ÷ (1 - | H99: 0 | I99: )} x | J99: 0 | K99: )] = | L99: 0 | M99: = | N99: 0 | O99: = | P99: =N99*Conversions!$B$11 -> 0 | Q99: = | R99: 0 | S99: = | T99: 0
D100: =IF(D99=100%,"Okay", "Column total must equal 100%") -> Column total must equal 100%
A101: Commercial | B101: =B85+1 -> 1996
B102: Total State | D102: % End Use of Sector | F102: Sub-sector | L102: Emission Factor
B103: Consumption | D103: Consumption | F103: Consumption | H103: Transmission loss | J103: Emission Factor | L103: Including losses | N103: Emissions | P103: Emissions | R103: Emissions | T103: Emissions
A104: Sub-sector | B104: (kWh) | D104: (%) | F104: (kWh) | H104: Factor (%) | J104: (lbs CO2E/kWh) | L104: (lbs CO2E/kWh) | N104: (lbs carbon) | P104: (short tons carbon) | R104: (MMTCE) | T104: (MMTCO2E)
A105: Space Heating | C105: =$B$101 -> 1996 | E105: = { | F105: =$B$115*D105 -> 0 | G105: ÷ (1 - | H105: =TLF_1996 -> 0 | I105: )} x | J105: =CO2EF_1996 -> 0 | K105: )] = | L105: =H105*(1+J105) -> 0 | M105: = | N105: =IF(F105>0,((F105/(1-H105))*J105)/C_CO2,0) -> 0 | O105: = | P105: =N105*Conversions!$B$11 -> 0 | Q105: = | R105: =P105*Short_Metric/1000000 -> 0 | S105: = | T105: =R105*C_CO2 -> 0
A106: Cooling | C106: =$B$101 -> 1996 | E106: = { | F106: =$B$115*D106 -> 0 | G106: ÷ (1 - | H106: 0 | I106: )} x | J106: 0 | K106: )] = | L106: =H106*(1+J106) -> 0 | M106: = | N106: 0 | O106: = | P106: =N106*Conversions!$B$11 -> 0 | Q106: = | R106: 0 | S106: = | T106: 0
A107: Ventilation | C107: 1996 | E107: = { | F107: 0 | G107: ÷ (1 - | H107: 0 | I107: )} x | J107: 0 | K107: )] = | L107: 0 | M107: = | N107: 0 | O107: = | P107: =N107*Conversions!$B$11 -> 0 | Q107: = | R107: 0 | S107: = | T107: 0 | X107: =IF(ISERROR(VLOOKUP(U107,Ind_Breakout,3,FALSE)),"-",VLOOKUP(U107,Ind_Breakout,3,FALSE)) -> -
A108: Water Heating | C108: 1996 | E108: = { | F108: 0 | G108: ÷ (1 - | H108: 0 | I108: )} x | J108: 0 | K108: )] = | L108: 0 | M108: = | N108: 0 | O108: = | P108: =N108*Conversions!$B$11 -> 0 | Q108: = | R108: 0 | S108: = | T108: 0
A109: Lighting | C109: 1996 | E109: = { | F109: 0 | G109: ÷ (1 - | H109: 0 | I109: )} x | J109: 0 | K109: )] = | L109: 0 | M109: = | N109: 0 | O109: = | P109: =N109*Conversions!$B$11 -> 0 | Q109: = | R109: 0 | S109: = | T109: 0
A110: Cooking | C110: 1996 | E110: = { | F110: 0 | G110: ÷ (1 - | H110: 0 | I110: )} x | J110: 0 | K110: )] = | L110: 0 | M110: = | N110: 0 | O110: = | P110: =N110*Conversions!$B$11 -> 0 | Q110: = | R110: 0 | S110: = | T110: 0
A111: Refrigeration | C111: 1996 | E111: = { | F111: 0 | G111: ÷ (1 - | H111: 0 | I111: )} x | J111: 0 | K111: )] = | L111: 0 | M111: = | N111: 0 | O111: = | P111: =N111*Conversions!$B$11 -> 0 | Q111: = | R111: 0 | S111: = | T111: 0
A112: Office Equipment | C112: 1996 | E112: = { | F112: =$B$115*D112 -> 0 | G112: ÷ (1 - | H112: 0 | I112: )} x | J112: 0 | K112: )] = | L112: 0 | M112: = | N112: 0 | O112: = | P112: =N112*Conversions!$B$11 -> 0 | Q112: = | R112: 0 | S112: = | T112: 0
A113: Computers | C113: 1996 | E113: = { | F113: 0 | G113: ÷ (1 - | H113: 0 | I113: )} x | J113: 0 | K113: )] = | L113: 0 | M113: = | N113: 0 | O113: = | P113: =N113*Conversions!$B$11 -> 0 | Q113: = | R113: 0 | S113: = | T113: 0
A114: Other | C114: 1996 | E114: = { | F114: 0 | G114: ÷ (1 - | H114: 0 | I114: )} x | J114: 0 | K114: )] = | L114: 0 | M114: = | N114: 0 | O114: = | P114: =N114*Conversions!$B$11 -> 0 | Q114: = | R114: 0 | S114: = | T114: 0
A115: TOTAL | C115: x | D115: =SUM(D105:D114) -> 0 | E115: = { | F115: =SUM(F105:F114) -> 0 | G115: ÷ (1 - | H115: 0 | I115: )} x | J115: 0 | K115: )] = | L115: 0 | M115: = | N115: 0 | O115: = | P115: =N115*Conversions!$B$11 -> 0 | Q115: = | R115: 0 | S115: = | T115: 0
D116: =IF(D115=100%,"Okay", "Column total must equal 100%") -> Column total must equal 100%
A117: Commercial | B117: =B101+1 -> 1997
B118: Total State | D118: % End Use of Sector | F118: Sub-sector | L118: Emission Factor
B119: Consumption | D119: Consumption | F119: Consumption | H119: Transmission loss | J119: Emission Factor | L119: Including losses | N119: Emissions | P119: Emissions | R119: Emissions | T119: Emissions
A120: Sub-sector | B120: (kWh) | D120: (%) | F120: (kWh) | H120: Factor (%) | J120: (lbs CO2E/kWh) | L120: (lbs CO2E/kWh) | N120: (lbs carbon) | P120: (short tons carbon) | R120: (MMTCE) | T120: (MMTCO2E)
A121: Space Heating | C121: =$B$117 -> 1997 | E121: = { | F121: =$B$131*D121 -> 0 | G121: ÷ (1 - | H121: =TLF_1997 -> 0 | I121: )} x | J121: =CO2EF_1997 -> 0 | K121: )] = | L121: =H121*(1+J121) -> 0 | M121: = | N121: =IF(F121>0,((F121/(1-H121))*J121)/C_CO2,0) -> 0 | O121: = | P121: =N121*Conversions!$B$11 -> 0 | Q121: = | R121: =P121*Short_Metric/1000000 -> 0 | S121: = | T121: =R121*C_CO2 -> 0
A122: Cooling | C122: =$B$117 -> 1997 | E122: = { | F122: =$B$131*D122 -> 0 | G122: ÷ (1 - | H122: 0 | I122: )} x | J122: 0 | K122: )] = | L122: =H122*(1+J122) -> 0 | M122: = | N122: 0 | O122: = | P122: =N122*Conversions!$B$11 -> 0 | Q122: = | R122: 0 | S122: = | T122: 0
A123: Ventilation | C123: 1997 | E123: = { | F123: 0 | G123: ÷ (1 - | H123: 0 | I123: )} x | J123: 0 | K123: )] = | L123: 0 | M123: = | N123: 0 | O123: = | P123: =N123*Conversions!$B$11 -> 0 | Q123: = | R123: 0 | S123: = | T123: 0 | X123: =IF(ISERROR(VLOOKUP(U123,Ind_Breakout,3,FALSE)),"-",VLOOKUP(U123,Ind_Breakout,3,FALSE)) -> -
A124: Water Heating | C124: 1997 | E124: = { | F124: 0 | G124: ÷ (1 - | H124: 0 | I124: )} x | J124: 0 | K124: )] = | L124: 0 | M124: = | N124: 0 | O124: = | P124: =N124*Conversions!$B$11 -> 0 | Q124: = | R124: 0 | S124: = | T124: 0
A125: Lighting | C125: 1997 | E125: = { | F125: 0 | G125: ÷ (1 - | H125: 0 | I125: )} x | J125: 0 | K125: )] = | L125: 0 | M125: = | N125: 0 | O125: = | P125: =N125*Conversions!$B$11 -> 0 | Q125: = | R125: 0 | S125: = | T125: 0
A126: Cooking | C126: 1997 | E126: = { | F126: 0 | G126: ÷ (1 - | H126: 0 | I126: )} x | J126: 0 | K126: )] = | L126: 0 | M126: = | N126: 0 | O126: = | P126: =N126*Conversions!$B$11 -> 0 | Q126: = | R126: 0 | S126: = | T126: 0
A127: Refrigeration | C127: 1997 | E127: = { | F127: 0 | G127: ÷ (1 - | H127: 0 | I127: )} x | J127: 0 | K127: )] = | L127: 0 | M127: = | N127: 0 | O127: = | P127: =N127*Conversions!$B$11 -> 0 | Q127: = | R127: 0 | S127: = | T127: 0
A128: Office Equipment | C128: 1997 | E128: = { | F128: 0 | G128: ÷ (1 - | H128: 0 | I128: )} x | J128: 0 | K128: )] = | L128: 0 | M128: = | N128: 0 | O128: = | P128: =N128*Conversions!$B$11 -> 0 | Q128: = | R128: 0 | S128: = | T128: 0
A129: Computers | C129: 1997 | E129: = { | F129: 0 | G129: ÷ (1 - | H129: 0 | I129: )} x | J129: 0 | K129: )] = | L129: 0 | M129: = | N129: 0 | O129: = | P129: =N129*Conversions!$B$11 -> 0 | Q129: = | R129: 0 | S129: = | T129: 0
A130: Other | C130: 1997 | E130: = { | F130: 0 | G130: ÷ (1 - | H130: 0 | I130: )} x | J130: 0 | K130: )] = | L130: 0 | M130: = | N130: 0 | O130: = | P130: =N130*Conversions!$B$11 -> 0 | Q130: = | R130: 0 | S130: = | T130: 0
A131: TOTAL | C131: x | D131: =SUM(D121:D130) -> 0 | E131: = { | F131: =SUM(F121:F130) -> 0 | G131: ÷ (1 - | H131: 0 | I131: )} x | J131: 0 | K131: )] = | L131: 0 | M131: = | N131: 0 | O131: = | P131: =N131*Conversions!$B$11 -> 0 | Q131: = | R131: 0 | S131: = | T131: 0
D132: =IF(D131=100%,"Okay", "Column total must equal 100%") -> Column total must equal 100%
A133: Commercial | B133: =B117+1 -> 1998
B134: Total State | D134: % End Use of Sector | F134: Sub-sector | L134: Emission Factor
B135: Consumption | D135: Consumption | F135: Consumption | H135: Transmission loss | J135: Emission Factor | L135: Including losses | N135: Emissions | P135: Emissions | R135: Emissions | T135: Emissions
A136: Sub-sector | B136: (kWh) | D136: (%) | F136: (kWh) | H136: Factor (%) | J136: (lbs CO2E/kWh) | L136: (lbs CO2E/kWh) | N136: (lbs carbon) | P136: (short tons carbon) | R136: (MMTCE) | T136: (MMTCO2E)
A137: Space Heating | C137: =$B$133 -> 1998 | E137: = { | F137: =$B$147*D137 -> 0 | G137: ÷ (1 - | H137: =TLF_1998 -> 0 | I137: )} x | J137: =CO2EF_1998 -> 0 | K137: )] = | L137: =H137*(1+J137) -> 0 | M137: = | N137: =IF(F137>0,((F137/(1-H137))*J137)/C_CO2,0) -> 0 | O137: = | P137: =N137*Conversions!$B$11 -> 0 | Q137: = | R137: =P137*Short_Metric/1000000 -> 0 | S137: = | T137: =R137*C_CO2 -> 0
A138: Cooling | C138: =$B$133 -> 1998 | E138: = { | F138: =$B$147*D138 -> 0 | G138: ÷ (1 - | H138: 0 | I138: )} x | J138: 0 | K138: )] = | L138: =H138*(1+J138) -> 0 | M138: = | N138: 0 | O138: = | P138: =N138*Conversions!$B$11 -> 0 | Q138: = | R138: 0 | S138: = | T138: 0
A139: Ventilation | C139: 1998 | E139: = { | F139: 0 | G139: ÷ (1 - | H139: 0 | I139: )} x | J139: 0 | K139: )] = | L139: 0 | M139: = | N139: 0 | O139: = | P139: =N139*Conversions!$B$11 -> 0 | Q139: = | R139: 0 | S139: = | T139: 0 | X139: =IF(ISERROR(VLOOKUP(U139,Ind_Breakout,3,FALSE)),"-",VLOOKUP(U139,Ind_Breakout,3,FALSE)) -> -
A140: Water Heating | C140: 1998 | E140: = { | F140: 0 | G140: ÷ (1 - | H140: 0 | I140: )} x | J140: 0 | K140: )] = | L140: 0 | M140: = | N140: 0 | O140: = | P140: =N140*Conversions!$B$11 -> 0 | Q140: = | R140: 0 | S140: = | T140: 0
A141: Lighting | C141: 1998 | E141: = { | F141: 0 | G141: ÷ (1 - | H141: 0 | I141: )} x | J141: 0 | K141: )] = | L141: 0 | M141: = | N141: 0 | O141: = | P141: =N141*Conversions!$B$11 -> 0 | Q141: = | R141: 0 | S141: = | T141: 0
A142: Cooking | C142: 1998 | E142: = { | F142: 0 | G142: ÷ (1 - | H142: 0 | I142: )} x | J142: 0 | K142: )] = | L142: 0 | M142: = | N142: 0 | O142: = | P142: =N142*Conversions!$B$11 -> 0 | Q142: = | R142: 0 | S142: = | T142: 0
A143: Refrigeration | C143: 1998 | E143: = { | F143: 0 | G143: ÷ (1 - | H143: 0 | I143: )} x | J143: 0 | K143: )] = | L143: 0 | M143: = | N143: 0 | O143: = | P143: =N143*Conversions!$B$11 -> 0 | Q143: = | R143: 0 | S143: = | T143: 0
A144: Office Equipment | C144: 1998 | E144: = { | F144: 0 | G144: ÷ (1 - | H144: 0 | I144: )} x | J144: 0 | K144: )] = | L144: 0 | M144: = | N144: 0 | O144: = | P144: =N144*Conversions!$B$11 -> 0 | Q144: = | R144: 0 | S144: = | T144: 0
A145: Computers | C145: 1998 | E145: = { | F145: 0 | G145: ÷ (1 - | H145: 0 | I145: )} x | J145: 0 | K145: )] = | L145: 0 | M145: = | N145: 0 | O145: = | P145: =N145*Conversions!$B$11 -> 0 | Q145: = | R145: 0 | S145: = | T145: 0
A146: Other | C146: 1998 | E146: = { | F146: 0 | G146: ÷ (1 - | H146: 0 | I146: )} x | J146: 0 | K146: )] = | L146: 0 | M146: = | N146: 0 | O146: = | P146: =N146*Conversions!$B$11 -> 0 | Q146: = | R146: 0 | S146: = | T146: 0
A147: TOTAL | C147: x | D147: =SUM(D137:D146) -> 0 | E147: = { | F147: =SUM(F137:F146) -> 0 | G147: ÷ (1 - | H147: 0 | I147: )} x | J147: 0 | K147: )] = | L147: 0 | M147: = | N147: 0 | O147: = | P147: =N147*Conversions!$B$11 -> 0 | Q147: = | R147: 0 | S147: = | T147: 0
D148: =IF(D147=100%,"Okay", "Column total must equal 100%") -> Column total must equal 100%
A149: Commercial | B149: =B133+1 -> 1999
B150: Total State | D150: % End Use of Sector | F150: Sub-sector | L150: Emission Factor
B151: Consumption | D151: Consumption | F151: Consumption | H151: Transmission loss | J151: Emission Factor | L151: Including losses | N151: Emissions | P151: Emissions | R151: Emissions | T151: Emissions
A152: Sub-sector | B152: (kWh) | D152: (%) | F152: (kWh) | H152: Factor (%) | J152: (lbs CO2E/kWh) | L152: (lbs CO2E/kWh) | N152: (lbs carbon) | P152: (short tons carbon) | R152: (MMTCE) | T152: (MMTCO2E)
A153: Space Heating | C153: =$B$149 -> 1999 | E153: = { | F153: =$B$163*D153 -> 0 | G153: ÷ (1 - | H153: =TLF_1999 -> 0 | I153: )} x | J153: =CO2EF_1999 -> 0 | K153: )] = | L153: =H153*(1+J153) -> 0 | M153: = | N153: =IF(F153>0,((F153/(1-H153))*J153)/C_CO2,0) -> 0 | O153: = | P153: =N153*Conversions!$B$11 -> 0 | Q153: = | R153: =P153*Short_Metric/1000000 -> 0 | S153: = | T153: =R153*C_CO2 -> 0
A154: Cooling | C154: =$B$149 -> 1999 | E154: = { | F154: =$B$163*D154 -> 0 | G154: ÷ (1 - | H154: 0 | I154: )} x | J154: 0 | K154: )] = | L154: =H154*(1+J154) -> 0 | M154: = | N154: 0 | O154: = | P154: =N154*Conversions!$B$11 -> 0 | Q154: = | R154: 0 | S154: = | T154: 0
A155: Ventilation | C155: 1999 | E155: = { | F155: 0 | G155: ÷ (1 - | H155: 0 | I155: )} x | J155: 0 | K155: )] = | L155: 0 | M155: = | N155: 0 | O155: = | P155: =N155*Conversions!$B$11 -> 0 | Q155: = | R155: 0 | S155: = | T155: 0 | X155: =IF(ISERROR(VLOOKUP(U155,Ind_Breakout,3,FALSE)),"-",VLOOKUP(U155,Ind_Breakout,3,FALSE)) -> -
A156: Water Heating | C156: 1999 | E156: = { | F156: 0 | G156: ÷ (1 - | H156: 0 | I156: )} x | J156: 0 | K156: )] = | L156: 0 | M156: = | N156: 0 | O156: = | P156: =N156*Conversions!$B$11 -> 0 | Q156: = | R156: 0 | S156: = | T156: 0
A157: Lighting | C157: 1999 | E157: = { | F157: 0 | G157: ÷ (1 - | H157: 0 | I157: )} x | J157: 0 | K157: )] = | L157: 0 | M157: = | N157: 0 | O157: = | P157: =N157*Conversions!$B$11 -> 0 | Q157: = | R157: 0 | S157: = | T157: 0
A158: Cooking | C158: 1999 | E158: = { | F158: 0 | G158: ÷ (1 - | H158: 0 | I158: )} x | J158: 0 | K158: )] = | L158: 0 | M158: = | N158: 0 | O158: = | P158: =N158*Conversions!$B$11 -> 0 | Q158: = | R158: 0 | S158: = | T158: 0
A159: Refrigeration | C159: 1999 | E159: = { | F159: 0 | G159: ÷ (1 - | H159: 0 | I159: )} x | J159: 0 | K159: )] = | L159: 0 | M159: = | N159: 0 | O159: = | P159: =N159*Conversions!$B$11 -> 0 | Q159: = | R159: 0 | S159: = | T159: 0
A160: Office Equipment | C160: 1999 | E160: = { | F160: 0 | G160: ÷ (1 - | H160: 0 | I160: )} x | J160: 0 | K160: )] = | L160: 0 | M160: = | N160: 0 | O160: = | P160: =N160*Conversions!$B$11 -> 0 | Q160: = | R160: 0 | S160: = | T160: 0
A161: Computers | C161: 1999 | E161: = { | F161: 0 | G161: ÷ (1 - | H161: 0 | I161: )} x | J161: 0 | K161: )] = | L161: 0 | M161: = | N161: 0 | O161: = | P161: =N161*Conversions!$B$11 -> 0 | Q161: = | R161: 0 | S161: = | T161: 0
A162: Other | C162: 1999 | E162: = { | F162: 0 | G162: ÷ (1 - | H162: 0 | I162: )} x | J162: 0 | K162: )] = | L162: 0 | M162: = | N162: 0 | O162: = | P162: =N162*Conversions!$B$11 -> 0 | Q162: = | R162: 0 | S162: = | T162: 0
A163: TOTAL | C163: x | D163: =SUM(D153:D162) -> 0 | E163: = { | F163: =SUM(F153:F162) -> 0 | G163: ÷ (1 - | H163: 0 | I163: )} x | J163: 0 | K163: )] = | L163: 0 | M163: = | N163: 0 | O163: = | P163: =N163*Conversions!$B$11 -> 0 | Q163: = | R163: 0 | S163: = | T163: 0
D164: =IF(D163=100%,"Okay", "Column total must equal 100%") -> Column total must equal 100%
A165: Commercial | B165: 2000
B166: Total State | D166: % End Use of Sector | F166: Sub-sector | L166: Emission Factor
B167: Consumption | D167: Consumption | F167: Consumption | H167: Transmission loss | J167: Emission Factor | L167: Including losses | N167: Emissions | P167: Emissions | R167: Emissions | T167: Emissions
A168: Sub-sector | B168: (kWh) | D168: (%) | F168: (kWh) | H168: Factor (%) | J168: (lbs CO2E/kWh) | L168: (lbs CO2E/kWh) | N168: (lbs carbon) | P168: (short tons carbon) | R168: (MMTCE) | T168: (MMTCO2E)
A169: Space Heating | C169: =B$165 -> 2000 | E169: = { | F169: =$B$179*D169 -> 0 | G169: ÷ (1 - | H169: =TLF_2000 -> 0 | I169: )} x | J169: =CO2EF_2000 -> 0 | K169: )] = | L169: =H169*(1+J169) -> 0 | M169: = | N169: =IF(F169>0,((F169/(1-H169))*J169)/C_CO2,0) -> 0 | O169: = | P169: =N169*Conversions!$B$11 -> 0 | Q169: = | R169: =P169*Short_Metric/1000000 -> 0 | S169: = | T169: =R169*C_CO2 -> 0
A170: Cooling | C170: =B$165 -> 2000 | E170: = { | F170: =$B$179*D170 -> 0 | G170: ÷ (1 - | H170: 0 | I170: )} x | J170: 0 | K170: )] = | L170: =H170*(1+J170) -> 0 | M170: = | N170: 0 | O170: = | P170: =N170*Conversions!$B$11 -> 0 | Q170: = | R170: 0 | S170: = | T170: 0
A171: Ventilation | C171: =B$165 -> 2000 | E171: = { | F171: 0 | G171: ÷ (1 - | H171: 0 | I171: )} x | J171: 0 | K171: )] = | L171: 0 | M171: = | N171: 0 | O171: = | P171: =N171*Conversions!$B$11 -> 0 | Q171: = | R171: 0 | S171: = | T171: 0 | X171: =IF(ISERROR(VLOOKUP(U171,Ind_Breakout,3,FALSE)),"-",VLOOKUP(U171,Ind_Breakout,3,FALSE)) -> -
A172: Water Heating | C172: 2000 | E172: = { | F172: 0 | G172: ÷ (1 - | H172: 0 | I172: )} x | J172: 0 | K172: )] = | L172: 0 | M172: = | N172: 0 | O172: = | P172: =N172*Conversions!$B$11 -> 0 | Q172: = | R172: 0 | S172: = | T172: 0
A173: Lighting | C173: 2000 | E173: = { | F173: 0 | G173: ÷ (1 - | H173: 0 | I173: )} x | J173: 0 | K173: )] = | L173: 0 | M173: = | N173: 0 | O173: = | P173: =N173*Conversions!$B$11 -> 0 | Q173: = | R173: 0 | S173: = | T173: 0
A174: Cooking | C174: 2000 | E174: = { | F174: 0 | G174: ÷ (1 - | H174: 0 | I174: )} x | J174: 0 | K174: )] = | L174: 0 | M174: = | N174: 0 | O174: = | P174: =N174*Conversions!$B$11 -> 0 | Q174: = | R174: 0 | S174: = | T174: 0
A175: Refrigeration | C175: 2000 | E175: = { | F175: 0 | G175: ÷ (1 - | H175: 0 | I175: )} x | J175: 0 | K175: )] = | L175: 0 | M175: = | N175: 0 | O175: = | P175: =N175*Conversions!$B$11 -> 0 | Q175: = | R175: 0 | S175: = | T175: 0
A176: Office Equipment | C176: 2000 | E176: = { | F176: 0 | G176: ÷ (1 - | H176: 0 | I176: )} x | J176: 0 | K176: )] = | L176: 0 | M176: = | N176: 0 | O176: = | P176: =N176*Conversions!$B$11 -> 0 | Q176: = | R176: 0 | S176: = | T176: 0
A177: Computers | C177: 2000 | E177: = { | F177: 0 | G177: ÷ (1 - | H177: 0 | I177: )} x | J177: 0 | K177: )] = | L177: 0 | M177: = | N177: 0 | O177: = | P177: =N177*Conversions!$B$11 -> 0 | Q177: = | R177: 0 | S177: = | T177: 0
A178: Other | C178: 2000 | E178: = { | F178: 0 | G178: ÷ (1 - | H178: 0 | I178: )} x | J178: 0 | K178: )] = | L178: 0 | M178: = | N178: 0 | O178: = | P178: =N178*Conversions!$B$11 -> 0 | Q178: = | R178: 0 | S178: = | T178: 0
A179: TOTAL | C179: x | D179: =SUM(D169:D178) -> 0 | E179: = { | F179: =SUM(F169:F178) -> 0 | G179: ÷ (1 - | H179: 0 | I179: )} x | J179: 0 | K179: )] = | L179: 0 | M179: = | N179: 0 | O179: = | P179: =N179*Conversions!$B$11 -> 0 | Q179: = | R179: 0 | S179: = | T179: 0
D180: =IF(D179=100%,"Okay", "Column total must equal 100%") -> Column total must equal 100%
A181: Commercial | B181: =B165+1 -> 2001
B182: Total State | D182: % End Use of Sector | F182: Sub-sector | L182: Emission Factor
B183: Consumption | D183: Consumption | F183: Consumption | H183: Transmission loss | J183: Emission Factor | L183: Including losses | N183: Emissions | P183: Emissions | R183: Emissions | T183: Emissions
A184: Sub-sector | B184: (kWh) | D184: (%) | F184: (kWh) | H184: Factor (%) | J184: (lbs CO2E/kWh) | L184: (lbs CO2E/kWh) | N184: (lbs carbon) | P184: (short tons carbon) | R184: (MMTCE) | T184: (MMTCO2E)
A185: Space Heating | C185: =B$181 -> 2001 | E185: = { | F185: =$B$195*D185 -> 0 | G185: ÷ (1 - | H185: =TLF_2001 -> 0 | I185: )} x | J185: =CO2EF_2001 -> 0 | K185: )] = | L185: =H185*(1+J185) -> 0 | M185: = | N185: =IF(F185>0,((F185/(1-H185))*J185)/C_CO2,0) -> 0 | O185: = | P185: =N185*Conversions!$B$11 -> 0 | Q185: = | R185: =P185*Short_Metric/1000000 -> 0 | S185: = | T185: =R185*C_CO2 -> 0
A186: Cooling | C186: =B$181 -> 2001 | E186: = { | F186: =$B$195*D186 -> 0 | G186: ÷ (1 - | H186: 0 | I186: )} x | J186: 0 | K186: )] = | L186: =H186*(1+J186) -> 0 | M186: = | N186: 0 | O186: = | P186: =N186*Conversions!$B$11 -> 0 | Q186: = | R186: 0 | S186: = | T186: 0
A187: Ventilation | C187: 2001 | E187: = { | F187: 0 | G187: ÷ (1 - | H187: 0 | I187: )} x | J187: 0 | K187: )] = | L187: 0 | M187: = | N187: 0 | O187: = | P187: =N187*Conversions!$B$11 -> 0 | Q187: = | R187: 0 | S187: = | T187: 0 | X187: =IF(ISERROR(VLOOKUP(U187,Ind_Breakout,3,FALSE)),"-",VLOOKUP(U187,Ind_Breakout,3,FALSE)) -> -
A188: Water Heating | C188: 2001 | E188: = { | F188: 0 | G188: ÷ (1 - | H188: 0 | I188: )} x | J188: 0 | K188: )] = | L188: 0 | M188: = | N188: 0 | O188: = | P188: =N188*Conversions!$B$11 -> 0 | Q188: = | R188: 0 | S188: = | T188: 0
A189: Lighting | C189: 2001 | E189: = { | F189: 0 | G189: ÷ (1 - | H189: 0 | I189: )} x | J189: 0 | K189: )] = | L189: 0 | M189: = | N189: 0 | O189: = | P189: =N189*Conversions!$B$11 -> 0 | Q189: = | R189: 0 | S189: = | T189: 0
A190: Cooking | C190: 2001 | E190: = { | F190: 0 | G190: ÷ (1 - | H190: 0 | I190: )} x | J190: 0 | K190: )] = | L190: 0 | M190: = | N190: 0 | O190: = | P190: =N190*Conversions!$B$11 -> 0 | Q190: = | R190: 0 | S190: = | T190: 0
A191: Refrigeration | C191: 2001 | E191: = { | F191: 0 | G191: ÷ (1 - | H191: 0 | I191: )} x | J191: 0 | K191: )] = | L191: 0 | M191: = | N191: 0 | O191: = | P191: =N191*Conversions!$B$11 -> 0 | Q191: = | R191: 0 | S191: = | T191: 0
A192: Office Equipment | C192: 2001 | E192: = { | F192: 0 | G192: ÷ (1 - | H192: 0 | I192: )} x | J192: 0 | K192: )] = | L192: 0 | M192: = | N192: 0 | O192: = | P192: =N192*Conversions!$B$11 -> 0 | Q192: = | R192: 0 | S192: = | T192: 0
A193: Computers | C193: 2001 | E193: = { | F193: 0 | G193: ÷ (1 - | H193: 0 | I193: )} x | J193: 0 | K193: )] = | L193: 0 | M193: = | N193: 0 | O193: = | P193: =N193*Conversions!$B$11 -> 0 | Q193: = | R193: 0 | S193: = | T193: 0
A194: Other | C194: 2001 | E194: = { | F194: 0 | G194: ÷ (1 - | H194: 0 | I194: )} x | J194: 0 | K194: )] = | L194: 0 | M194: = | N194: 0 | O194: = | P194: =N194*Conversions!$B$11 -> 0 | Q194: = | R194: 0 | S194: = | T194: 0
A195: TOTAL | C195: x | D195: =SUM(D185:D194) -> 0 | E195: = { | F195: =SUM(F185:F194) -> 0 | G195: ÷ (1 - | H195: 0 | I195: )} x | J195: 0 | K195: )] = | L195: 0 | M195: = | N195: 0 | O195: = | P195: =N195*Conversions!$B$11 -> 0 | Q195: = | R195: 0 | S195: = | T195: 0
D196: =IF(D195=100%,"Okay", "Column total must equal 100%") -> Column total must equal 100%
A197: Commercial | B197: =B181+1 -> 2002
B198: Total State | D198: % End Use of Sector | F198: Sub-sector | L198: Emission Factor
B199: Consumption | D199: Consumption | F199: Consumption | H199: Transmission loss | J199: Emission Factor | L199: Including losses | N199: Emissions | P199: Emissions | R199: Emissions | T199: Emissions
A200: Sub-sector | B200: (kWh) | D200: (%) | F200: (kWh) | H200: Factor (%) | J200: (lbs CO2E/kWh) | L200: (lbs CO2E/kWh) | N200: (lbs carbon) | P200: (short tons carbon) | R200: (MMTCE) | T200: (MMTCO2E)
A201: Space Heating | C201: =B$197 -> 2002 | E201: = { | F201: =$B$211*D201 -> 0 | G201: ÷ (1 - | H201: =TLF_2002 -> 0 | I201: )} x | J201: =CO2EF_2002 -> 0 | K201: )] = | L201: =H201*(1+J201) -> 0 | M201: = | N201: =IF(F201>0,((F201/(1-H201))*J201)/C_CO2,0) -> 0 | O201: = | P201: =N201*Conversions!$B$11 -> 0 | Q201: = | R201: =P201*Short_Metric/1000000 -> 0 | S201: = | T201: =R201*C_CO2 -> 0
... 379 more rows

Sheet Transportation C
A1: ="5. Transportation Electricity Consumption in "&'List Data'!E3 -> 5. Transportation Electricity Consumption in Select a State . . .
A2: ='List Data'!F3 -> XX | B2: Industrial | C2: ='List Data'!E3 -> Select a State . . .
D3: Industrial | G3: =" " ->  | H3: ='List Data'!E3 -> Select a State . . .
A5: Transportation | B5: 1990
B6: Total State | D6: % End Use of Sector | F6: Sub-sector | L6: Emission Factor
B7: Consumption | D7: Consumption | F7: Consumption | H7: Transmission loss | J7: Emission Factor | L7: Including losses | N7: Emissions | P7: Emissions | R7: Emissions | T7: Emissions
A8: Sub-sector | B8: (kWh) | D8: (%) | F8: (kWh) | H8: Factor (%) | J8: (lbs CO2E/kWh) | L8: (lbs CO2E/kWh) | N8: (lbs carbon) | P8: (short tons carbon) | R8: (MMTCE) | T8: (MMTCO2E)
A9: Automated Guideway | C9: =$B$5 -> 1990 | E9: = { | F9: =IF(ISERROR($B$18*D9),0,($B$18*D9)) -> 0 | G9: ÷ (1 - | H9: =TLF_1990 -> 0 | I9: )} x | J9: =CO2EF_1990 -> 0 | K9: )]= | L9: =H9*(1+J9) -> 0 | M9: = | N9: =IF(F9>0,((F9/(1-H9))*J9)/C_CO2,0) -> 0 | O9: = | P9: =N9*Conversions!$B$11 -> 0 | Q9: = | R9: =P9*Short_Metric/1000000 -> 0 | S9: = | T9: =R9*C_CO2 -> 0
A10: Bus (charged batteries) | C10: =$B$5 -> 1990 | E10: = { | F10: =IF(ISERROR($B$18*D10),0,($B$18*D10)) -> 0 | G10: ÷ (1 - | H10: 0 | I10: )} x | J10: 0 | K10: )]= | L10: =H10*(1+J10) -> 0 | M10: = | N10: 0 | O10: = | P10: =N10*Conversions!$B$11 -> 0 | Q10: = | R10: 0 | S10: = | T10: 0
A11: Cable Car | C11: 1990 | E11: = { | F11: =IF(ISERROR($B$18*D11),0,($B$18*D11)) -> 0 | G11: ÷ (1 - | H11: 0 | I11: )} x | J11: 0 | K11: )]= | L11: 0 | M11: = | N11: 0 | O11: = | P11: =N11*Conversions!$B$11 -> 0 | Q11: = | R11: 0 | S11: = | T11: 0
A12: Commuter Rail | C12: 1990 | E12: = { | F12: 0 | G12: ÷ (1 - | H12: 0 | I12: )} x | J12: 0 | K12: )]= | L12: 0 | M12: = | N12: 0 | O12: = | P12: =N12*Conversions!$B$11 -> 0 | Q12: = | R12: 0 | S12: = | T12: 0
A13: Heavy Rail | C13: 1990 | E13: = { | F13: 0 | G13: ÷ (1 - | H13: 0 | I13: )} x | J13: 0 | K13: )]= | L13: 0 | M13: = | N13: 0 | O13: = | P13: =N13*Conversions!$B$11 -> 0 | Q13: = | R13: 0 | S13: = | T13: 0
A14: Inclined Plane | C14: 1990 | E14: = { | F14: 0 | G14: ÷ (1 - | H14: 0 | I14: )} x | J14: 0 | K14: )]= | L14: 0 | M14: = | N14: 0 | O14: = | P14: =N14*Conversions!$B$11 -> 0 | Q14: = | R14: 0 | S14: = | T14: 0
A15: Light Rail | C15: 1990 | E15: = { | F15: =IF(ISERROR($B$18*D15),0,($B$18*D15)) -> 0 | G15: ÷ (1 - | H15: =TLF_1990 -> 0 | I15: )} x | J15: =CO2EF_1990 -> 0 | K15: )]= | L15: 0 | M15: = | N15: =IF(F15>0,((F15/(1-H15))*J15)/C_CO2,0) -> 0 | O15: = | P15: =N15*Conversions!$B$11 -> 0 | Q15: = | R15: =P15*Short_Metric/1000000 -> 0 | S15: = | T15: =R15*C_CO2 -> 0
A16: Trolleybus | C16: 1990 | E16: = { | F16: 0 | G16: ÷ (1 - | H16: 0 | I16: )} x | J16: 0 | K16: )]= | L16: 0 | M16: = | N16: 0 | O16: = | P16: =N16*Conversions!$B$11 -> 0 | Q16: = | R16: 0 | S16: = | T16: 0
A17: Other | C17: 1990 | E17: = { | F17: =IF(ISERROR($B$18*D17),0,($B$18*D17)) -> 0 | G17: ÷ (1 - | H17: 0 | I17: )} x | J17: 0 | K17: )]= | L17: 0 | M17: = | N17: 0 | O17: = | P17: =N17*Conversions!$B$11 -> 0 | Q17: = | R17: 0 | S17: = | T17: 0
A18: TOTAL | C18: x | D18: =SUM(D9:D17) -> 0 | E18: = { | F18: =SUM(F9:F17) -> 0 | G18: ÷ (1 - | H18: 0 | I18: )} x | J18: 0 | K18: )]= | L18: =H18*(1+J18) -> 0 | M18: = | N18: 0 | O18: = | P18: =N18*Conversions!$B$11 -> 0 | Q18: = | R18: 0 | S18: = | T18: 0
D19: =IF(D18=100%,"Okay", IF(D18=0%, "Okay", "Column total must equal 100%")) -> Okay
A20: Transportation | B20: =B5+1 -> 1991
B21: Total State | D21: % End Use of Sector | F21: Sub-sector | L21: Emission Factor
B22: Consumption | D22: Consumption | F22: Consumption | H22: Transmission loss | J22: Emission Factor | L22: Including losses | N22: Emissions | P22: Emissions | R22: Emissions | T22: Emissions
A23: Sub-sector | B23: (kWh) | D23: (%) | F23: (kWh) | H23: Factor (%) | J23: (lbs CO2E/kWh) | L23: (lbs CO2E/kWh) | N23: (lbs carbon) | P23: (short tons carbon) | R23: (MMTCE) | T23: (MMTCO2E)
A24: Automated Guideway | C24: =$B$20 -> 1991 | E24: = { | F24: =IF(ISERROR($B$33*D24),0,($B$33*D24)) -> 0 | G24: ÷ (1 - | H24: =TLF_1991 -> 0 | I24: )} x | J24: =CO2EF_1991 -> 0 | K24: )]= | L24: =H24*(1+J24) -> 0 | M24: = | N24: =IF(F24>0,((F24/(1-H24))*J24)/C_CO2,0) -> 0 | O24: = | P24: =N24*Conversions!$B$11 -> 0 | Q24: = | R24: =P24*Short_Metric/1000000 -> 0 | S24: = | T24: =R24*C_CO2 -> 0
A25: Bus (charged batteries) | C25: =$B$20 -> 1991 | E25: = { | F25: =IF(ISERROR($B$33*D25),0,($B$33*D25)) -> 0 | G25: ÷ (1 - | H25: 0 | I25: )} x | J25: 0 | K25: )]= | L25: =H25*(1+J25) -> 0 | M25: = | N25: 0 | O25: = | P25: =N25*Conversions!$B$11 -> 0 | Q25: = | R25: 0 | S25: = | T25: 0
A26: Cable Car | C26: 1991 | E26: = { | F26: =IF(ISERROR($B$33*D26),0,($B$33*D26)) -> 0 | G26: ÷ (1 - | H26: 0 | I26: )} x | J26: 0 | K26: )]= | L26: 0 | M26: = | N26: 0 | O26: = | P26: =N26*Conversions!$B$11 -> 0 | Q26: = | R26: 0 | S26: = | T26: 0
A27: Commuter Rail | C27: 1991 | E27: = { | F27: 0 | G27: ÷ (1 - | H27: 0 | I27: )} x | J27: 0 | K27: )]= | L27: 0 | M27: = | N27: 0 | O27: = | P27: =N27*Conversions!$B$11 -> 0 | Q27: = | R27: 0 | S27: = | T27: 0
A28: Heavy Rail | C28: 1991 | E28: = { | F28: =IF(ISERROR($B$33*D28),0,($B$33*D28)) -> 0 | G28: ÷ (1 - | H28: 0 | I28: )} x | J28: 0 | K28: )]= | L28: 0 | M28: = | N28: 0 | O28: = | P28: =N28*Conversions!$B$11 -> 0 | Q28: = | R28: 0 | S28: = | T28: 0
A29: Inclined Plane | C29: 1991 | E29: = { | F29: 0 | G29: ÷ (1 - | H29: 0 | I29: )} x | J29: 0 | K29: )]= | L29: 0 | M29: = | N29: 0 | O29: = | P29: =N29*Conversions!$B$11 -> 0 | Q29: = | R29: 0 | S29: = | T29: 0
A30: Light Rail | C30: 1991 | E30: = { | F30: =IF(ISERROR($B$33*D30),0,($B$33*D30)) -> 0 | G30: ÷ (1 - | H30: =TLF_1991 -> 0 | I30: )} x | J30: 0 | K30: )]= | L30: 0 | M30: = | N30: =IF(F30>0,((F30/(1-H30))*J30)/C_CO2,0) -> 0 | O30: = | P30: =N30*Conversions!$B$11 -> 0 | Q30: = | R30: 0 | S30: = | T30: 0
A31: Trolleybus | C31: 1991 | E31: = { | F31: =IF(ISERROR($B$33*D31),0,($B$33*D31)) -> 0 | G31: ÷ (1 - | H31: 0 | I31: )} x | J31: 0 | K31: )]= | L31: 0 | M31: = | N31: 0 | O31: = | P31: =N31*Conversions!$B$11 -> 0 | Q31: = | R31: 0 | S31: = | T31: 0
A32: Other | C32: 1991 | E32: = { | F32: 0 | G32: ÷ (1 - | H32: 0 | I32: )} x | J32: 0 | K32: )]= | L32: 0 | M32: = | N32: 0 | O32: = | P32: =N32*Conversions!$B$11 -> 0 | Q32: = | R32: 0 | S32: = | T32: 0
A33: TOTAL | C33: x | D33: =SUM(D24:D32) -> 0 | E33: = { | F33: =SUM(F24:F32) -> 0 | G33: ÷ (1 - | H33: 0 | I33: )} x | J33: 0 | K33: )]= | L33: =H33*(1+J33) -> 0 | M33: = | N33: 0 | O33: = | P33: =N33*Conversions!$B$11 -> 0 | Q33: = | R33: 0 | S33: = | T33: 0
D34: =IF(D33=100%,"Okay", IF(D33=0%, "Okay", "Column total must equal 100%")) -> Okay
A35: Transportation | B35: =B20+1 -> 1992
B36: Total State | D36: % End Use of Sector | F36: Sub-sector | L36: Emission Factor
B37: Consumption | D37: Consumption | F37: Consumption | H37: Transmission loss | J37: Emission Factor | L37: Including losses | N37: Emissions | P37: Emissions | R37: Emissions | T37: Emissions
A38: Sub-sector | B38: (kWh) | D38: (%) | F38: (kWh) | H38: Factor (%) | J38: (lbs CO2E/kWh) | L38: (lbs CO2E/kWh) | N38: (lbs carbon) | P38: (short tons carbon) | R38: (MMTCE) | T38: (MMTCO2E)
A39: Automated Guideway | C39: =$B$35 -> 1992 | E39: = { | F39: =IF(ISERROR($B$48*D39),0,($B$48*D39)) -> 0 | G39: ÷ (1 - | H39: =TLF_1992 -> 0 | I39: )} x | J39: =CO2EF_1992 -> 0 | K39: )]= | L39: =H39*(1+J39) -> 0 | M39: = | N39: =IF(F39>0,((F39/(1-H39))*J39)/C_CO2,0) -> 0 | O39: = | P39: =N39*Conversions!$B$11 -> 0 | Q39: = | R39: =P39*Short_Metric/1000000 -> 0 | S39: = | T39: =R39*C_CO2 -> 0
A40: Bus (charged batteries) | C40: =$B$35 -> 1992 | E40: = { | F40: =IF(ISERROR($B$48*D40),0,($B$48*D40)) -> 0 | G40: ÷ (1 - | H40: 0 | I40: )} x | J40: 0 | K40: )]= | L40: =H40*(1+J40) -> 0 | M40: = | N40: 0 | O40: = | P40: =N40*Conversions!$B$11 -> 0 | Q40: = | R40: 0 | S40: = | T40: 0
A41: Cable Car | C41: 1992 | E41: = { | F41: =IF(ISERROR($B$48*D41),0,($B$48*D41)) -> 0 | G41: ÷ (1 - | H41: 0 | I41: )} x | J41: 0 | K41: )]= | L41: 0 | M41: = | N41: 0 | O41: = | P41: =N41*Conversions!$B$11 -> 0 | Q41: = | R41: 0 | S41: = | T41: 0
A42: Commuter Rail | C42: 1992 | E42: = { | F42: 0 | G42: ÷ (1 - | H42: 0 | I42: )} x | J42: 0 | K42: )]= | L42: 0 | M42: = | N42: 0 | O42: = | P42: =N42*Conversions!$B$11 -> 0 | Q42: = | R42: 0 | S42: = | T42: 0
A43: Heavy Rail | C43: 1992 | E43: = { | F43: 0 | G43: ÷ (1 - | H43: 0 | I43: )} x | J43: 0 | K43: )]= | L43: 0 | M43: = | N43: 0 | O43: = | P43: =N43*Conversions!$B$11 -> 0 | Q43: = | R43: 0 | S43: = | T43: 0
A44: Inclined Plane | C44: 1992 | E44: = { | F44: 0 | G44: ÷ (1 - | H44: 0 | I44: )} x | J44: 0 | K44: )]= | L44: 0 | M44: = | N44: 0 | O44: = | P44: =N44*Conversions!$B$11 -> 0 | Q44: = | R44: 0 | S44: = | T44: 0
A45: Light Rail | C45: 1992 | E45: = { | F45: =IF(ISERROR($B$48*D45),0,($B$48*D45)) -> 0 | G45: ÷ (1 - | H45: =TLF_1992 -> 0 | I45: )} x | J45: =CO2EF_1992 -> 0 | K45: )]= | L45: 0 | M45: = | N45: =IF(F45>0,((F45/(1-H45))*J45)/C_CO2,0) -> 0 | O45: = | P45: =N45*Conversions!$B$11 -> 0 | Q45: = | R45: =P45*Short_Metric/1000000 -> 0 | S45: = | T45: =R45*C_CO2 -> 0
A46: Trolleybus | C46: 1992 | E46: = { | F46: 0 | G46: ÷ (1 - | H46: 0 | I46: )} x | J46: 0 | K46: )]= | L46: 0 | M46: = | N46: 0 | O46: = | P46: =N46*Conversions!$B$11 -> 0 | Q46: = | R46: 0 | S46: = | T46: 0
A47: Other | C47: 1992 | E47: = { | F47: 0 | G47: ÷ (1 - | H47: 0 | I47: )} x | J47: 0 | K47: )]= | L47: 0 | M47: = | N47: 0 | O47: = | P47: =N47*Conversions!$B$11 -> 0 | Q47: = | R47: 0 | S47: = | T47: 0
A48: TOTAL | C48: x | D48: =SUM(D39:D47) -> 0 | E48: = { | F48: =SUM(F39:F47) -> 0 | G48: ÷ (1 - | H48: 0 | I48: )} x | J48: 0 | K48: )]= | L48: =H48*(1+J48) -> 0 | M48: = | N48: 0 | O48: = | P48: =N48*Conversions!$B$11 -> 0 | Q48: = | R48: 0 | S48: = | T48: 0
D49: =IF(D48=100%,"Okay", IF(D48=0%, "Okay", "Column total must equal 100%")) -> Okay
A50: Transportation | B50: =B35+1 -> 1993
B51: Total State | D51: % End Use of Sector | F51: Sub-sector | L51: Emission Factor
B52: Consumption | D52: Consumption | F52: Consumption | H52: Transmission loss | J52: Emission Factor | L52: Including losses | N52: Emissions | P52: Emissions | R52: Emissions | T52: Emissions
A53: Sub-sector | B53: (kWh) | D53: (%) | F53: (kWh) | H53: Factor (%) | J53: (lbs CO2E/kWh) | L53: (lbs CO2E/kWh) | N53: (lbs carbon) | P53: (short tons carbon) | R53: (MMTCE) | T53: (MMTCO2E)
A54: Automated Guideway | C54: =$B$50 -> 1993 | E54: = { | F54: =IF(ISERROR($B$63*D54),0,($B$63*D54)) -> 0 | G54: ÷ (1 - | H54: =TLF_1993 -> 0 | I54: )} x | J54: =CO2EF_1993 -> 0 | K54: )]= | L54: =H54*(1+J54) -> 0 | M54: = | N54: =IF(F54>0,((F54/(1-H54))*J54)/C_CO2,0) -> 0 | O54: = | P54: =N54*Conversions!$B$11 -> 0 | Q54: = | R54: =P54*Short_Metric/1000000 -> 0 | S54: = | T54: =R54*C_CO2 -> 0
A55: Bus (charged batteries) | C55: =$B$50 -> 1993 | E55: = { | F55: =IF(ISERROR($B$63*D55),0,($B$63*D55)) -> 0 | G55: ÷ (1 - | H55: 0 | I55: )} x | J55: 0 | K55: )]= | L55: =H55*(1+J55) -> 0 | M55: = | N55: 0 | O55: = | P55: =N55*Conversions!$B$11 -> 0 | Q55: = | R55: 0 | S55: = | T55: 0
A56: Cable Car | C56: 1993 | E56: = { | F56: =IF(ISERROR($B$63*D56),0,($B$63*D56)) -> 0 | G56: ÷ (1 - | H56: 0 | I56: )} x | J56: 0 | K56: )]= | L56: 0 | M56: = | N56: 0 | O56: = | P56: =N56*Conversions!$B$11 -> 0 | Q56: = | R56: 0 | S56: = | T56: 0
A57: Commuter Rail | C57: 1993 | E57: = { | F57: =IF(ISERROR($B$63*D57),0,($B$63*D57)) -> 0 | G57: ÷ (1 - | H57: 0 | I57: )} x | J57: 0 | K57: )]= | L57: 0 | M57: = | N57: 0 | O57: = | P57: =N57*Conversions!$B$11 -> 0 | Q57: = | R57: 0 | S57: = | T57: 0
A58: Heavy Rail | C58: 1993 | E58: = { | F58: 0 | G58: ÷ (1 - | H58: 0 | I58: )} x | J58: 0 | K58: )]= | L58: 0 | M58: = | N58: 0 | O58: = | P58: =N58*Conversions!$B$11 -> 0 | Q58: = | R58: 0 | S58: = | T58: 0
A59: Inclined Plane | C59: 1993 | E59: = { | F59: 0 | G59: ÷ (1 - | H59: 0 | I59: )} x | J59: 0 | K59: )]= | L59: 0 | M59: = | N59: 0 | O59: = | P59: =N59*Conversions!$B$11 -> 0 | Q59: = | R59: 0 | S59: = | T59: 0
A60: Light Rail | C60: 1993 | E60: = { | F60: =IF(ISERROR($B$63*D60),0,($B$63*D60)) -> 0 | G60: ÷ (1 - | H60: 0 | I60: )} x | J60: 0 | K60: )]= | L60: 0 | M60: = | N60: 0 | O60: = | P60: =N60*Conversions!$B$11 -> 0 | Q60: = | R60: 0 | S60: = | T60: 0
A61: Trolleybus | C61: 1993 | E61: = { | F61: 0 | G61: ÷ (1 - | H61: 0 | I61: )} x | J61: 0 | K61: )]= | L61: 0 | M61: = | N61: 0 | O61: = | P61: =N61*Conversions!$B$11 -> 0 | Q61: = | R61: 0 | S61: = | T61: 0
A62: Other | C62: 1993 | E62: = { | F62: 0 | G62: ÷ (1 - | H62: 0 | I62: )} x | J62: 0 | K62: )]= | L62: 0 | M62: = | N62: 0 | O62: = | P62: =N62*Conversions!$B$11 -> 0 | Q62: = | R62: 0 | S62: = | T62: 0
A63: TOTAL | C63: x | D63: =SUM(D54:D62) -> 0 | E63: = { | F63: =SUM(F54:F62) -> 0 | G63: ÷ (1 - | H63: 0 | I63: )} x | J63: 0 | K63: )]= | L63: =H63*(1+J63) -> 0 | M63: = | N63: 0 | O63: = | P63: =N63*Conversions!$B$11 -> 0 | Q63: = | R63: 0 | S63: = | T63: 0
D64: =IF(D63=100%,"Okay", IF(D63=0%, "Okay", "Column total must equal 100%")) -> Okay
A65: Transportation | B65: =B50+1 -> 1994
B66: Total State | D66: % End Use of Sector | F66: Sub-sector | L66: Emission Factor
B67: Consumption | D67: Consumption | F67: Consumption | H67: Transmission loss | J67: Emission Factor | L67: Including losses | N67: Emissions | P67: Emissions | R67: Emissions | T67: Emissions
A68: Sub-sector | B68: (kWh) | D68: (%) | F68: (kWh) | H68: Factor (%) | J68: (lbs CO2E/kWh) | L68: (lbs CO2E/kWh) | N68: (lbs carbon) | P68: (short tons carbon) | R68: (MMTCE) | T68: (MMTCO2E)
A69: Automated Guideway | C69: =$B$65 -> 1994 | E69: = { | F69: =IF(ISERROR($B$78*D69),0,($B$78*D69)) -> 0 | G69: ÷ (1 - | H69: =TLF_1994 -> 0 | I69: )} x | J69: =CO2EF_1994 -> 0 | K69: )]= | L69: =H69*(1+J69) -> 0 | M69: = | N69: =IF(F69>0,((F69/(1-H69))*J69)/C_CO2,0) -> 0 | O69: = | P69: =N69*Conversions!$B$11 -> 0 | Q69: = | R69: =P69*Short_Metric/1000000 -> 0 | S69: = | T69: =R69*C_CO2 -> 0
A70: Bus (charged batteries) | C70: =$B$65 -> 1994 | E70: = { | F70: =IF(ISERROR($B$78*D70),0,($B$78*D70)) -> 0 | G70: ÷ (1 - | H70: 0 | I70: )} x | J70: 0 | K70: )]= | L70: =H70*(1+J70) -> 0 | M70: = | N70: 0 | O70: = | P70: =N70*Conversions!$B$11 -> 0 | Q70: = | R70: 0 | S70: = | T70: 0
A71: Cable Car | C71: 1994 | E71: = { | F71: =IF(ISERROR($B$78*D71),0,($B$78*D71)) -> 0 | G71: ÷ (1 - | H71: 0 | I71: )} x | J71: 0 | K71: )]= | L71: 0 | M71: = | N71: 0 | O71: = | P71: =N71*Conversions!$B$11 -> 0 | Q71: = | R71: 0 | S71: = | T71: 0
A72: Commuter Rail | C72: 1994 | E72: = { | F72: 0 | G72: ÷ (1 - | H72: 0 | I72: )} x | J72: 0 | K72: )]= | L72: 0 | M72: = | N72: 0 | O72: = | P72: =N72*Conversions!$B$11 -> 0 | Q72: = | R72: 0 | S72: = | T72: 0
A73: Heavy Rail | C73: 1994 | E73: = { | F73: 0 | G73: ÷ (1 - | H73: 0 | I73: )} x | J73: 0 | K73: )]= | L73: 0 | M73: = | N73: 0 | O73: = | P73: =N73*Conversions!$B$11 -> 0 | Q73: = | R73: 0 | S73: = | T73: 0
A74: Inclined Plane | C74: 1994 | E74: = { | F74: 0 | G74: ÷ (1 - | H74: 0 | I74: )} x | J74: 0 | K74: )]= | L74: 0 | M74: = | N74: 0 | O74: = | P74: =N74*Conversions!$B$11 -> 0 | Q74: = | R74: 0 | S74: = | T74: 0
A75: Light Rail | C75: 1994 | E75: = { | F75: =IF(ISERROR($B$78*D75),0,($B$78*D75)) -> 0 | G75: ÷ (1 - | H75: =TLF_1994 -> 0 | I75: )} x | J75: 0 | K75: )]= | L75: 0 | M75: = | N75: =IF(F75>0,((F75/(1-H75))*J75)/C_CO2,0) -> 0 | O75: = | P75: =N75*Conversions!$B$11 -> 0 | Q75: = | R75: 0 | S75: = | T75: 0
A76: Trolleybus | C76: 1994 | E76: = { | F76: 0 | G76: ÷ (1 - | H76: 0 | I76: )} x | J76: 0 | K76: )]= | L76: 0 | M76: = | N76: 0 | O76: = | P76: =N76*Conversions!$B$11 -> 0 | Q76: = | R76: 0 | S76: = | T76: 0
A77: Other | C77: 1994 | E77: = { | F77: 0 | G77: ÷ (1 - | H77: 0 | I77: )} x | J77: 0 | K77: )]= | L77: 0 | M77: = | N77: 0 | O77: = | P77: =N77*Conversions!$B$11 -> 0 | Q77: = | R77: 0 | S77: = | T77: 0
A78: TOTAL | C78: x | D78: =SUM(D69:D77) -> 0 | E78: = { | F78: =SUM(F69:F77) -> 0 | G78: ÷ (1 - | H78: 0 | I78: )} x | J78: 0 | K78: )]= | L78: =H78*(1+J78) -> 0 | M78: = | N78: 0 | O78: = | P78: =N78*Conversions!$B$11 -> 0 | Q78: = | R78: 0 | S78: = | T78: 0
D79: =IF(D78=100%,"Okay", IF(D78=0%, "Okay", "Column total must equal 100%")) -> Okay
A80: Transportation | B80: =B65+1 -> 1995
B81: Total State | D81: % End Use of Sector | F81: Sub-sector | L81: Emission Factor
B82: Consumption | D82: Consumption | F82: Consumption | H82: Transmission loss | J82: Emission Factor | L82: Including losses | N82: Emissions | P82: Emissions | R82: Emissions | T82: Emissions
A83: Sub-sector | B83: (kWh) | D83: (%) | F83: (kWh) | H83: Factor (%) | J83: (lbs CO2E/kWh) | L83: (lbs CO2E/kWh) | N83: (lbs carbon) | P83: (short tons carbon) | R83: (MMTCE) | T83: (MMTCO2E)
A84: Automated Guideway | C84: =$B$80 -> 1995 | E84: = { | F84: =IF(ISERROR($B$93*D84),0,($B$93*D84)) -> 0 | G84: ÷ (1 - | H84: =TLF_1995 -> 0 | I84: )} x | J84: =CO2EF_1995 -> 0 | K84: )]= | L84: =H84*(1+J84) -> 0 | M84: = | N84: =IF(F84>0,((F84/(1-H84))*J84)/C_CO2,0) -> 0 | O84: = | P84: =N84*Conversions!$B$11 -> 0 | Q84: = | R84: =P84*Short_Metric/1000000 -> 0 | S84: = | T84: =R84*C_CO2 -> 0
A85: Bus (charged batteries) | C85: =$B$80 -> 1995 | E85: = { | F85: =IF(ISERROR($B$93*D85),0,($B$93*D85)) -> 0 | G85: ÷ (1 - | H85: 0 | I85: )} x | J85: 0 | K85: )]= | L85: =H85*(1+J85) -> 0 | M85: = | N85: 0 | O85: = | P85: =N85*Conversions!$B$11 -> 0 | Q85: = | R85: 0 | S85: = | T85: 0
A86: Cable Car | C86: 1995 | E86: = { | F86: =IF(ISERROR($B$93*D86),0,($B$93*D86)) -> 0 | G86: ÷ (1 - | H86: 0 | I86: )} x | J86: 0 | K86: )]= | L86: 0 | M86: = | N86: 0 | O86: = | P86: =N86*Conversions!$B$11 -> 0 | Q86: = | R86: 0 | S86: = | T86: 0
A87: Commuter Rail | C87: 1995 | E87: = { | F87: 0 | G87: ÷ (1 - | H87: 0 | I87: )} x | J87: 0 | K87: )]= | L87: 0 | M87: = | N87: 0 | O87: = | P87: =N87*Conversions!$B$11 -> 0 | Q87: = | R87: 0 | S87: = | T87: 0
A88: Heavy Rail | C88: 1995 | E88: = { | F88: 0 | G88: ÷ (1 - | H88: 0 | I88: )} x | J88: 0 | K88: )]= | L88: 0 | M88: = | N88: 0 | O88: = | P88: =N88*Conversions!$B$11 -> 0 | Q88: = | R88: 0 | S88: = | T88: 0
A89: Inclined Plane | C89: 1995 | E89: = { | F89: 0 | G89: ÷ (1 - | H89: 0 | I89: )} x | J89: 0 | K89: )]= | L89: 0 | M89: = | N89: 0 | O89: = | P89: =N89*Conversions!$B$11 -> 0 | Q89: = | R89: 0 | S89: = | T89: 0
A90: Light Rail | C90: 1995 | E90: = { | F90: 0 | G90: ÷ (1 - | H90: 0 | I90: )} x | J90: 0 | K90: )]= | L90: 0 | M90: = | N90: =IF(F90>0,((F90/(1-H90))*J90)/C_CO2,0) -> 0 | O90: = | P90: =N90*Conversions!$B$11 -> 0 | Q90: = | R90: =P90*Short_Metric/1000000 -> 0 | S90: = | T90: 0
A91: Trolleybus | C91: 1995 | E91: = { | F91: 0 | G91: ÷ (1 - | H91: 0 | I91: )} x | J91: 0 | K91: )]= | L91: 0 | M91: = | N91: 0 | O91: = | P91: =N91*Conversions!$B$11 -> 0 | Q91: = | R91: 0 | S91: = | T91: 0
A92: Other | C92: 1995 | E92: = { | F92: 0 | G92: ÷ (1 - | H92: 0 | I92: )} x | J92: 0 | K92: )]= | L92: 0 | M92: = | N92: 0 | O92: = | P92: =N92*Conversions!$B$11 -> 0 | Q92: = | R92: 0 | S92: = | T92: 0
A93: TOTAL | C93: x | D93: =SUM(D84:D92) -> 0 | E93: = { | F93: =SUM(F84:F92) -> 0 | G93: ÷ (1 - | H93: 0 | I93: )} x | J93: 0 | K93: )]= | L93: =H93*(1+J93) -> 0 | M93: = | N93: 0 | O93: = | P93: =N93*Conversions!$B$11 -> 0 | Q93: = | R93: 0 | S93: = | T93: 0
D94: =IF(D93=100%,"Okay", IF(D93=0%, "Okay", "Column total must equal 100%")) -> Okay
A95: Transportation | B95: =B80+1 -> 1996
B96: Total State | D96: % End Use of Sector | F96: Sub-sector | L96: Emission Factor
B97: Consumption | D97: Consumption | F97: Consumption | H97: Transmission loss | J97: Emission Factor | L97: Including losses | N97: Emissions | P97: Emissions | R97: Emissions | T97: Emissions
A98: Sub-sector | B98: (kWh) | D98: (%) | F98: (kWh) | H98: Factor (%) | J98: (lbs CO2E/kWh) | L98: (lbs CO2E/kWh) | N98: (lbs carbon) | P98: (short tons carbon) | R98: (MMTCE) | T98: (MMTCO2E)
A99: Automated Guideway | C99: =$B$95 -> 1996 | E99: = { | F99: =IF(ISERROR($B$108*D99),0,($B$108*D99)) -> 0 | G99: ÷ (1 - | H99: =TLF_1996 -> 0 | I99: )} x | J99: =CO2EF_1996 -> 0 | K99: )]= | L99: =H99*(1+J99) -> 0 | M99: = | N99: =IF(F99>0,((F99/(1-H99))*J99)/C_CO2,0) -> 0 | O99: = | P99: =N99*Conversions!$B$11 -> 0 | Q99: = | R99: =P99*Short_Metric/1000000 -> 0 | S99: = | T99: =R99*C_CO2 -> 0
A100: Bus (charged batteries) | C100: =$B$95 -> 1996 | E100: = { | F100: =IF(ISERROR($B$108*D100),0,($B$108*D100)) -> 0 | G100: ÷ (1 - | H100: 0 | I100: )} x | J100: 0 | K100: )]= | L100: =H100*(1+J100) -> 0 | M100: = | N100: 0 | O100: = | P100: =N100*Conversions!$B$11 -> 0 | Q100: = | R100: 0 | S100: = | T100: 0
A101: Cable Car | C101: 1996 | E101: = { | F101: 0 | G101: ÷ (1 - | H101: 0 | I101: )} x | J101: 0 | K101: )]= | L101: 0 | M101: = | N101: 0 | O101: = | P101: =N101*Conversions!$B$11 -> 0 | Q101: = | R101: 0 | S101: = | T101: 0
A102: Commuter Rail | C102: 1996 | E102: = { | F102: =IF(ISERROR($B$108*D102),0,($B$108*D102)) -> 0 | G102: ÷ (1 - | H102: 0 | I102: )} x | J102: 0 | K102: )]= | L102: 0 | M102: = | N102: 0 | O102: = | P102: =N102*Conversions!$B$11 -> 0 | Q102: = | R102: 0 | S102: = | T102: 0
A103: Heavy Rail | C103: 1996 | E103: = { | F103: 0 | G103: ÷ (1 - | H103: 0 | I103: )} x | J103: 0 | K103: )]= | L103: 0 | M103: = | N103: 0 | O103: = | P103: =N103*Conversions!$B$11 -> 0 | Q103: = | R103: 0 | S103: = | T103: 0
A104: Inclined Plane | C104: 1996 | E104: = { | F104: 0 | G104: ÷ (1 - | H104: 0 | I104: )} x | J104: 0 | K104: )]= | L104: 0 | M104: = | N104: 0 | O104: = | P104: =N104*Conversions!$B$11 -> 0 | Q104: = | R104: 0 | S104: = | T104: 0
A105: Light Rail | C105: 1996 | E105: = { | F105: =IF(ISERROR($B$108*D105),0,($B$108*D105)) -> 0 | G105: ÷ (1 - | H105: 0 | I105: )} x | J105: 0 | K105: )]= | L105: 0 | M105: = | N105: =IF(F105>0,((F105/(1-H105))*J105)/C_CO2,0) -> 0 | O105: = | P105: =N105*Conversions!$B$11 -> 0 | Q105: = | R105: 0 | S105: = | T105: 0
A106: Trolleybus | C106: 1996 | E106: = { | F106: 0 | G106: ÷ (1 - | H106: 0 | I106: )} x | J106: 0 | K106: )]= | L106: 0 | M106: = | N106: 0 | O106: = | P106: =N106*Conversions!$B$11 -> 0 | Q106: = | R106: 0 | S106: = | T106: 0
A107: Other | C107: 1996 | E107: = { | F107: 0 | G107: ÷ (1 - | H107: 0 | I107: )} x | J107: 0 | K107: )]= | L107: 0 | M107: = | N107: 0 | O107: = | P107: =N107*Conversions!$B$11 -> 0 | Q107: = | R107: 0 | S107: = | T107: 0
A108: TOTAL | C108: x | D108: =SUM(D99:D107) -> 0 | E108: = { | F108: =SUM(F99:F107) -> 0 | G108: ÷ (1 - | H108: 0 | I108: )} x | J108: 0 | K108: )]= | L108: =H108*(1+J108) -> 0 | M108: = | N108: 0 | O108: = | P108: =N108*Conversions!$B$11 -> 0 | Q108: = | R108: 0 | S108: = | T108: 0
D109: =IF(D108=100%,"Okay", IF(D108=0%, "Okay", "Column total must equal 100%")) -> Okay
A110: Transportation | B110: =B95+1 -> 1997
B111: Total State | D111: % End Use of Sector | F111: Sub-sector | L111: Emission Factor
B112: Consumption | D112: Consumption | F112: Consumption | H112: Transmission loss | J112: Emission Factor | L112: Including losses | N112: Emissions | P112: Emissions | R112: Emissions | T112: Emissions
A113: Sub-sector | B113: (kWh) | D113: (%) | F113: (kWh) | H113: Factor (%) | J113: (lbs CO2E/kWh) | L113: (lbs CO2E/kWh) | N113: (lbs carbon) | P113: (short tons carbon) | R113: (MMTCE) | T113: (MMTCO2E)
A114: Automated Guideway | C114: =$B$110 -> 1997 | E114: = { | F114: =IF(ISERROR($B$123*D114),0,($B$123*D114)) -> 0 | G114: ÷ (1 - | H114: =TLF_1997 -> 0 | I114: )} x | J114: =CO2EF_1997 -> 0 | K114: )]= | L114: =H114*(1+J114) -> 0 | M114: = | N114: =IF(F114>0,((F114/(1-H114))*J114)/C_CO2,0) -> 0 | O114: = | P114: =N114*Conversions!$B$11 -> 0 | Q114: = | R114: =P114*Short_Metric/1000000 -> 0 | S114: = | T114: =R114*C_CO2 -> 0
A115: Bus (charged batteries) | C115: =$B$110 -> 1997 | E115: = { | F115: =IF(ISERROR($B$123*D115),0,($B$123*D115)) -> 0 | G115: ÷ (1 - | H115: 0 | I115: )} x | J115: 0 | K115: )]= | L115: =H115*(1+J115) -> 0 | M115: = | N115: 0 | O115: = | P115: =N115*Conversions!$B$11 -> 0 | Q115: = | R115: 0 | S115: = | T115: 0
A116: Cable Car | C116: 1997 | E116: = { | F116: 0 | G116: ÷ (1 - | H116: 0 | I116: )} x | J116: 0 | K116: )]= | L116: 0 | M116: = | N116: 0 | O116: = | P116: =N116*Conversions!$B$11 -> 0 | Q116: = | R116: 0 | S116: = | T116: 0
A117: Commuter Rail | C117: 1997 | E117: = { | F117: 0 | G117: ÷ (1 - | H117: 0 | I117: )} x | J117: 0 | K117: )]= | L117: 0 | M117: = | N117: 0 | O117: = | P117: =N117*Conversions!$B$11 -> 0 | Q117: = | R117: 0 | S117: = | T117: 0
A118: Heavy Rail | C118: 1997 | E118: = { | F118: 0 | G118: ÷ (1 - | H118: 0 | I118: )} x | J118: 0 | K118: )]= | L118: 0 | M118: = | N118: 0 | O118: = | P118: =N118*Conversions!$B$11 -> 0 | Q118: = | R118: 0 | S118: = | T118: 0
A119: Inclined Plane | C119: 1997 | E119: = { | F119: =IF(ISERROR($B$123*D119),0,($B$123*D119)) -> 0 | G119: ÷ (1 - | H119: 0 | I119: )} x | J119: 0 | K119: )]= | L119: 0 | M119: = | N119: 0 | O119: = | P119: =N119*Conversions!$B$11 -> 0 | Q119: = | R119: 0 | S119: = | T119: 0
A120: Light Rail | C120: 1997 | E120: = { | F120: =IF(ISERROR($B$123*D120),0,($B$123*D120)) -> 0 | G120: ÷ (1 - | H120: 0 | I120: )} x | J120: 0 | K120: )]= | L120: 0 | M120: = | N120: =IF(F120>0,((F120/(1-H120))*J120)/C_CO2,0) -> 0 | O120: = | P120: =N120*Conversions!$B$11 -> 0 | Q120: = | R120: =P120*Short_Metric/1000000 -> 0 | S120: = | T120: =R120*C_CO2 -> 0
A121: Trolleybus | C121: 1997 | E121: = { | F121: 0 | G121: ÷ (1 - | H121: 0 | I121: )} x | J121: 0 | K121: )]= | L121: 0 | M121: = | N121: 0 | O121: = | P121: =N121*Conversions!$B$11 -> 0 | Q121: = | R121: 0 | S121: = | T121: 0
A122: Other | C122: 1997 | E122: = { | F122: 0 | G122: ÷ (1 - | H122: 0 | I122: )} x | J122: 0 | K122: )]= | L122: 0 | M122: = | N122: 0 | O122: = | P122: =N122*Conversions!$B$11 -> 0 | Q122: = | R122: 0 | S122: = | T122: 0
A123: TOTAL | C123: x | D123: =SUM(D114:D122) -> 0 | E123: = { | F123: =SUM(F114:F122) -> 0 | G123: ÷ (1 - | H123: 0 | I123: )} x | J123: 0 | K123: )]= | L123: =H123*(1+J123) -> 0 | M123: = | N123: 0 | O123: = | P123: =N123*Conversions!$B$11 -> 0 | Q123: = | R123: 0 | S123: = | T123: 0
D124: =IF(D123=100%,"Okay", IF(D123=0%, "Okay", "Column total must equal 100%")) -> Okay
A125: Transportation | B125: =B110+1 -> 1998
B126: Total State | D126: % End Use of Sector | F126: Sub-sector | L126: Emission Factor
B127: Consumption | D127: Consumption | F127: Consumption | H127: Transmission loss | J127: Emission Factor | L127: Including losses | N127: Emissions | P127: Emissions | R127: Emissions | T127: Emissions
A128: Sub-sector | B128: (kWh) | D128: (%) | F128: (kWh) | H128: Factor (%) | J128: (lbs CO2E/kWh) | L128: (lbs CO2E/kWh) | N128: (lbs carbon) | P128: (short tons carbon) | R128: (MMTCE) | T128: (MMTCO2E)
A129: Automated Guideway | C129: =$B$125 -> 1998 | E129: = { | F129: =IF(ISERROR($B$138*D129),0,($B$138*D129)) -> 0 | G129: ÷ (1 - | H129: =TLF_1998 -> 0 | I129: )} x | J129: =CO2EF_1998 -> 0 | K129: )]= | L129: =H129*(1+J129) -> 0 | M129: = | N129: =IF(F129>0,((F129/(1-H129))*J129)/C_CO2,0) -> 0 | O129: = | P129: =N129*Conversions!$B$11 -> 0 | Q129: = | R129: =P129*Short_Metric/1000000 -> 0 | S129: = | T129: =R129*C_CO2 -> 0
A130: Bus (charged batteries) | C130: =$B$125 -> 1998 | E130: = { | F130: =IF(ISERROR($B$138*D130),0,($B$138*D130)) -> 0 | G130: ÷ (1 - | H130: 0 | I130: )} x | J130: 0 | K130: )]= | L130: =H130*(1+J130) -> 0 | M130: = | N130: 0 | O130: = | P130: =N130*Conversions!$B$11 -> 0 | Q130: = | R130: 0 | S130: = | T130: 0
A131: Cable Car | C131: 1998 | E131: = { | F131: 0 | G131: ÷ (1 - | H131: 0 | I131: )} x | J131: 0 | K131: )]= | L131: 0 | M131: = | N131: 0 | O131: = | P131: =N131*Conversions!$B$11 -> 0 | Q131: = | R131: 0 | S131: = | T131: 0
A132: Commuter Rail | C132: 1998 | E132: = { | F132: 0 | G132: ÷ (1 - | H132: 0 | I132: )} x | J132: 0 | K132: )]= | L132: 0 | M132: = | N132: 0 | O132: = | P132: =N132*Conversions!$B$11 -> 0 | Q132: = | R132: 0 | S132: = | T132: 0
A133: Heavy Rail | C133: 1998 | E133: = { | F133: =IF(ISERROR($B$138*D133),0,($B$138*D133)) -> 0 | G133: ÷ (1 - | H133: 0 | I133: )} x | J133: 0 | K133: )]= | L133: 0 | M133: = | N133: 0 | O133: = | P133: =N133*Conversions!$B$11 -> 0 | Q133: = | R133: 0 | S133: = | T133: 0
A134: Inclined Plane | C134: 1998 | E134: = { | F134: 0 | G134: ÷ (1 - | H134: 0 | I134: )} x | J134: 0 | K134: )]= | L134: 0 | M134: = | N134: 0 | O134: = | P134: =N134*Conversions!$B$11 -> 0 | Q134: = | R134: 0 | S134: = | T134: 0
A135: Light Rail | C135: 1998 | E135: = { | F135: =IF(ISERROR($B$138*D135),0,($B$138*D135)) -> 0 | G135: ÷ (1 - | H135: =TLF_1998 -> 0 | I135: )} x | J135: 0 | K135: )]= | L135: 0 | M135: = | N135: =IF(F135>0,((F135/(1-H135))*J135)/C_CO2,0) -> 0 | O135: = | P135: =N135*Conversions!$B$11 -> 0 | Q135: = | R135: 0 | S135: = | T135: 0
A136: Trolleybus | C136: 1998 | E136: = { | F136: 0 | G136: ÷ (1 - | H136: 0 | I136: )} x | J136: 0 | K136: )]= | L136: 0 | M136: = | N136: 0 | O136: = | P136: =N136*Conversions!$B$11 -> 0 | Q136: = | R136: 0 | S136: = | T136: 0
A137: Other | C137: 1998 | E137: = { | F137: 0 | G137: ÷ (1 - | H137: 0 | I137: )} x | J137: 0 | K137: )]= | L137: 0 | M137: = | N137: 0 | O137: = | P137: =N137*Conversions!$B$11 -> 0 | Q137: = | R137: 0 | S137: = | T137: 0
A138: TOTAL | C138: x | D138: =SUM(D129:D137) -> 0 | E138: = { | F138: =SUM(F129:F137) -> 0 | G138: ÷ (1 - | H138: 0 | I138: )} x | J138: 0 | K138: )]= | L138: =H138*(1+J138) -> 0 | M138: = | N138: 0 | O138: = | P138: =N138*Conversions!$B$11 -> 0 | Q138: = | R138: 0 | S138: = | T138: 0
D139: =IF(D138=100%,"Okay", IF(D138=0%, "Okay", "Column total must equal 100%")) -> Okay
A140: Transportation | B140: =B125+1 -> 1999
B141: Total State | D141: % End Use of Sector | F141: Sub-sector | L141: Emission Factor
B142: Consumption | D142: Consumption | F142: Consumption | H142: Transmission loss | J142: Emission Factor | L142: Including losses | N142: Emissions | P142: Emissions | R142: Emissions | T142: Emissions
A143: Sub-sector | B143: (kWh) | D143: (%) | F143: (kWh) | H143: Factor (%) | J143: (lbs CO2E/kWh) | L143: (lbs CO2E/kWh) | N143: (lbs carbon) | P143: (short tons carbon) | R143: (MMTCE) | T143: (MMTCO2E)
A144: Automated Guideway | C144: =$B$140 -> 1999 | E144: = { | F144: =IF(ISERROR($B$153*D144),0,($B$153*D144)) -> 0 | G144: ÷ (1 - | H144: =TLF_1999 -> 0 | I144: )} x | J144: =CO2EF_1999 -> 0 | K144: )]= | L144: =H144*(1+J144) -> 0 | M144: = | N144: =IF(F144>0,((F144/(1-H144))*J144)/C_CO2,0) -> 0 | O144: = | P144: =N144*Conversions!$B$11 -> 0 | Q144: = | R144: =P144*Short_Metric/1000000 -> 0 | S144: = | T144: =R144*C_CO2 -> 0
A145: Bus (charged batteries) | C145: =$B$140 -> 1999 | E145: = { | F145: =IF(ISERROR($B$153*D145),0,($B$153*D145)) -> 0 | G145: ÷ (1 - | H145: 0 | I145: )} x | J145: 0 | K145: )]= | L145: =H145*(1+J145) -> 0 | M145: = | N145: 0 | O145: = | P145: =N145*Conversions!$B$11 -> 0 | Q145: = | R145: 0 | S145: = | T145: 0
A146: Cable Car | C146: 1999 | E146: = { | F146: 0 | G146: ÷ (1 - | H146: 0 | I146: )} x | J146: 0 | K146: )]= | L146: 0 | M146: = | N146: 0 | O146: = | P146: =N146*Conversions!$B$11 -> 0 | Q146: = | R146: 0 | S146: = | T146: 0
A147: Commuter Rail | C147: 1999 | E147: = { | F147: =IF(ISERROR($B$153*D147),0,($B$153*D147)) -> 0 | G147: ÷ (1 - | H147: 0 | I147: )} x | J147: 0 | K147: )]= | L147: 0 | M147: = | N147: 0 | O147: = | P147: =N147*Conversions!$B$11 -> 0 | Q147: = | R147: 0 | S147: = | T147: 0
A148: Heavy Rail | C148: 1999 | E148: = { | F148: 0 | G148: ÷ (1 - | H148: 0 | I148: )} x | J148: 0 | K148: )]= | L148: 0 | M148: = | N148: 0 | O148: = | P148: =N148*Conversions!$B$11 -> 0 | Q148: = | R148: 0 | S148: = | T148: 0
A149: Inclined Plane | C149: 1999 | E149: = { | F149: 0 | G149: ÷ (1 - | H149: 0 | I149: )} x | J149: 0 | K149: )]= | L149: 0 | M149: = | N149: 0 | O149: = | P149: =N149*Conversions!$B$11 -> 0 | Q149: = | R149: 0 | S149: = | T149: 0
A150: Light Rail | C150: 1999 | E150: = { | F150: =IF(ISERROR($B$153*D150),0,($B$153*D150)) -> 0 | G150: ÷ (1 - | H150: =TLF_1999 -> 0 | I150: )} x | J150: 0 | K150: )]= | L150: 0 | M150: = | N150: =IF(F150>0,((F150/(1-H150))*J150)/C_CO2,0) -> 0 | O150: = | P150: =N150*Conversions!$B$11 -> 0 | Q150: = | R150: =P150*Short_Metric/1000000 -> 0 | S150: = | T150: =R150*C_CO2 -> 0
A151: Trolleybus | C151: 1999 | E151: = { | F151: 0 | G151: ÷ (1 - | H151: 0 | I151: )} x | J151: 0 | K151: )]= | L151: 0 | M151: = | N151: 0 | O151: = | P151: =N151*Conversions!$B$11 -> 0 | Q151: = | R151: 0 | S151: = | T151: 0
A152: Other | C152: 1999 | E152: = { | F152: 0 | G152: ÷ (1 - | H152: 0 | I152: )} x | J152: 0 | K152: )]= | L152: 0 | M152: = | N152: 0 | O152: = | P152: =N152*Conversions!$B$11 -> 0 | Q152: = | R152: 0 | S152: = | T152: 0
A153: TOTAL | C153: x | D153: =SUM(D144:D152) -> 0 | E153: = { | F153: =SUM(F144:F152) -> 0 | G153: ÷ (1 - | H153: 0 | I153: )} x | J153: 0 | K153: )]= | L153: =H153*(1+J153) -> 0 | M153: = | N153: 0 | O153: = | P153: =N153*Conversions!$B$11 -> 0 | Q153: = | R153: 0 | S153: = | T153: 0
D154: =IF(D153=100%,"Okay", IF(D153=0%, "Okay", "Column total must equal 100%")) -> Okay
A155: Transportation | B155: 2000
B156: Total State | D156: % End Use of Sector | F156: Sub-sector | L156: Emission Factor
B157: Consumption | D157: Consumption | F157: Consumption | H157: Transmission loss | J157: Emission Factor | L157: Including losses | N157: Emissions | P157: Emissions | R157: Emissions | T157: Emissions
A158: Sub-sector | B158: (kWh) | D158: (%) | F158: (kWh) | H158: Factor (%) | J158: (lbs CO2E/kWh) | L158: (lbs CO2E/kWh) | N158: (lbs carbon) | P158: (short tons carbon) | R158: (MMTCE) | T158: (MMTCO2E)
A159: Automated Guideway | C159: =$B$155 -> 2000 | E159: = { | F159: =IF(ISERROR($B$168*D159),0,($B$168*D159)) -> 0 | G159: ÷ (1 - | H159: =TLF_2000 -> 0 | I159: )} x | J159: =CO2EF_2000 -> 0 | K159: )]= | L159: =H159*(1+J159) -> 0 | M159: = | N159: =IF(F159>0,((F159/(1-H159))*J159)/C_CO2,0) -> 0 | O159: = | P159: =N159*Conversions!$B$11 -> 0 | Q159: = | R159: =P159*Short_Metric/1000000 -> 0 | S159: = | T159: =R159*C_CO2 -> 0
A160: Bus (charged batteries) | C160: =$B$155 -> 2000 | E160: = { | F160: 0 | G160: ÷ (1 - | H160: 0 | I160: )} x | J160: 0 | K160: )]= | L160: =H160*(1+J160) -> 0 | M160: = | N160: 0 | O160: = | P160: =N160*Conversions!$B$11 -> 0 | Q160: = | R160: 0 | S160: = | T160: 0
A161: Cable Car | C161: 2000 | E161: = { | F161: 0 | G161: ÷ (1 - | H161: 0 | I161: )} x | J161: 0 | K161: )]= | L161: 0 | M161: = | N161: 0 | O161: = | P161: =N161*Conversions!$B$11 -> 0 | Q161: = | R161: 0 | S161: = | T161: 0
A162: Commuter Rail | C162: 2000 | E162: = { | F162: =IF(ISERROR($B$168*D162),0,($B$168*D162)) -> 0 | G162: ÷ (1 - | H162: 0 | I162: )} x | J162: 0 | K162: )]= | L162: 0 | M162: = | N162: 0 | O162: = | P162: =N162*Conversions!$B$11 -> 0 | Q162: = | R162: 0 | S162: = | T162: 0
A163: Heavy Rail | C163: 2000 | E163: = { | F163: 0 | G163: ÷ (1 - | H163: 0 | I163: )} x | J163: 0 | K163: )]= | L163: 0 | M163: = | N163: 0 | O163: = | P163: =N163*Conversions!$B$11 -> 0 | Q163: = | R163: 0 | S163: = | T163: 0
A164: Inclined Plane | C164: 2000 | E164: = { | F164: 0 | G164: ÷ (1 - | H164: 0 | I164: )} x | J164: 0 | K164: )]= | L164: 0 | M164: = | N164: 0 | O164: = | P164: =N164*Conversions!$B$11 -> 0 | Q164: = | R164: 0 | S164: = | T164: 0
A165: Light Rail | C165: 2000 | E165: = { | F165: 0 | G165: ÷ (1 - | H165: 0 | I165: )} x | J165: 0 | K165: )]= | L165: 0 | M165: = | N165: 0 | O165: = | P165: =N165*Conversions!$B$11 -> 0 | Q165: = | R165: 0 | S165: = | T165: 0
A166: Trolleybus | C166: 2000 | E166: = { | F166: 0 | G166: ÷ (1 - | H166: 0 | I166: )} x | J166: 0 | K166: )]= | L166: 0 | M166: = | N166: 0 | O166: = | P166: =N166*Conversions!$B$11 -> 0 | Q166: = | R166: 0 | S166: = | T166: 0
A167: Other | C167: 2000 | E167: = { | F167: 0 | G167: ÷ (1 - | H167: 0 | I167: )} x | J167: 0 | K167: )]= | L167: 0 | M167: = | N167: 0 | O167: = | P167: =N167*Conversions!$B$11 -> 0 | Q167: = | R167: 0 | S167: = | T167: 0
A168: TOTAL | C168: x | D168: =SUM(D159:D167) -> 0 | E168: = { | F168: =SUM(F159:F167) -> 0 | G168: ÷ (1 - | H168: 0 | I168: )} x | J168: 0 | K168: )]= | L168: =H168*(1+J168) -> 0 | M168: = | N168: 0 | O168: = | P168: =N168*Conversions!$B$11 -> 0 | Q168: = | R168: 0 | S168: = | T168: 0
D169: =IF(D168=100%,"Okay", IF(D168=0%, "Okay", "Column total must equal 100%")) -> Okay
A170: Transportation | B170: =B155+1 -> 2001
B171: Total State | D171: % End Use of Sector | F171: Sub-sector | L171: Emission Factor
B172: Consumption | D172: Consumption | F172: Consumption | H172: Transmission loss | J172: Emission Factor | L172: Including losses | N172: Emissions | P172: Emissions | R172: Emissions | T172: Emissions
A173: Sub-sector | B173: (kWh) | D173: (%) | F173: (kWh) | H173: Factor (%) | J173: (lbs CO2E/kWh) | L173: (lbs CO2E/kWh) | N173: (lbs carbon) | P173: (short tons carbon) | R173: (MMTCE) | T173: (MMTCO2E)
A174: Automated Guideway | C174: =$B$170 -> 2001 | E174: = { | F174: =IF(ISERROR($B$183*D174),0,($B$183*D174)) -> 0 | G174: ÷ (1 - | H174: =TLF_2001 -> 0 | I174: )} x | J174: =CO2EF_2001 -> 0 | K174: )]= | L174: =H174*(1+J174) -> 0 | M174: = | N174: =IF(F174>0,((F174/(1-H174))*J174)/C_CO2,0) -> 0 | O174: = | P174: =N174*Conversions!$B$11 -> 0 | Q174: = | R174: =P174*Short_Metric/1000000 -> 0 | S174: = | T174: =R174*C_CO2 -> 0
A175: Bus (charged batteries) | C175: =$B$170 -> 2001 | E175: = { | F175: =IF(ISERROR($B$183*D175),0,($B$183*D175)) -> 0 | G175: ÷ (1 - | H175: 0 | I175: )} x | J175: 0 | K175: )]= | L175: =H175*(1+J175) -> 0 | M175: = | N175: 0 | O175: = | P175: =N175*Conversions!$B$11 -> 0 | Q175: = | R175: 0 | S175: = | T175: 0
A176: Cable Car | C176: 2001 | E176: = { | F176: =IF(ISERROR($B$183*D176),0,($B$183*D176)) -> 0 | G176: ÷ (1 - | H176: 0 | I176: )} x | J176: 0 | K176: )]= | L176: 0 | M176: = | N176: 0 | O176: = | P176: =N176*Conversions!$B$11 -> 0 | Q176: = | R176: 0 | S176: = | T176: 0
A177: Commuter Rail | C177: 2001 | E177: = { | F177: 0 | G177: ÷ (1 - | H177: 0 | I177: )} x | J177: 0 | K177: )]= | L177: 0 | M177: = | N177: 0 | O177: = | P177: =N177*Conversions!$B$11 -> 0 | Q177: = | R177: 0 | S177: = | T177: 0
A178: Heavy Rail | C178: 2001 | E178: = { | F178: 0 | G178: ÷ (1 - | H178: 0 | I178: )} x | J178: 0 | K178: )]= | L178: 0 | M178: = | N178: 0 | O178: = | P178: =N178*Conversions!$B$11 -> 0 | Q178: = | R178: 0 | S178: = | T178: 0
A179: Inclined Plane | C179: 2001 | E179: = { | F179: 0 | G179: ÷ (1 - | H179: 0 | I179: )} x | J179: 0 | K179: )]= | L179: 0 | M179: = | N179: 0 | O179: = | P179: =N179*Conversions!$B$11 -> 0 | Q179: = | R179: 0 | S179: = | T179: 0
A180: Light Rail | C180: 2001 | E180: = { | F180: 0 | G180: ÷ (1 - | H180: 0 | I180: )} x | J180: 0 | K180: )]= | L180: 0 | M180: = | N180: 0 | O180: = | P180: =N180*Conversions!$B$11 -> 0 | Q180: = | R180: 0 | S180: = | T180: 0
A181: Trolleybus | C181: 2001 | E181: = { | F181: 0 | G181: ÷ (1 - | H181: 0 | I181: )} x | J181: 0 | K181: )]= | L181: 0 | M181: = | N181: 0 | O181: = | P181: =N181*Conversions!$B$11 -> 0 | Q181: = | R181: 0 | S181: = | T181: 0
A182: Other | C182: 2001 | E182: = { | F182: 0 | G182: ÷ (1 - | H182: 0 | I182: )} x | J182: 0 | K182: )]= | L182: 0 | M182: = | N182: 0 | O182: = | P182: =N182*Conversions!$B$11 -> 0 | Q182: = | R182: 0 | S182: = | T182: 0
A183: TOTAL | C183: x | D183: =SUM(D174:D182) -> 0 | E183: = { | F183: =SUM(F174:F182) -> 0 | G183: ÷ (1 - | H183: 0 | I183: )} x | J183: 0 | K183: )]= | L183: =H183*(1+J183) -> 0 | M183: = | N183: 0 | O183: = | P183: =N183*Conversions!$B$11 -> 0 | Q183: = | R183: 0 | S183: = | T183: 0
D184: =IF(D183=100%,"Okay", IF(D183=0%, "Okay", "Column total must equal 100%")) -> Okay
A185: Transportation | B185: =B170+1 -> 2002
B186: Total State | D186: % End Use of Sector | F186: Sub-sector | L186: Emission Factor
B187: Consumption | D187: Consumption | F187: Consumption | H187: Transmission loss | J187: Emission Factor | L187: Including losses | N187: Emissions | P187: Emissions | R187: Emissions | T187: Emissions
A188: Sub-sector | B188: (kWh) | D188: (%) | F188: (kWh) | H188: Factor (%) | J188: (lbs CO2E/kWh) | L188: (lbs CO2E/kWh) | N188: (lbs carbon) | P188: (short tons carbon) | R188: (MMTCE) | T188: (MMTCO2E)
A189: Automated Guideway | C189: =$B$185 -> 2002 | E189: = { | F189: =IF(ISERROR($B$198*D189),0,($B$198*D189)) -> 0 | G189: ÷ (1 - | H189: =TLF_2002 -> 0 | I189: )} x | J189: =CO2EF_2002 -> 0 | K189: )]= | L189: =H189*(1+J189) -> 0 | M189: = | N189: =IF(F189>0,((F189/(1-H189))*J189)/C_CO2,0) -> 0 | O189: = | P189: =N189*Conversions!$B$11 -> 0 | Q189: = | R189: =P189*Short_Metric/1000000 -> 0 | S189: = | T189: =R189*C_CO2 -> 0
A190: Bus (charged batteries) | C190: =$B$185 -> 2002 | E190: = { | F190: =IF(ISERROR($B$198*D190),0,($B$198*D190)) -> 0 | G190: ÷ (1 - | H190: 0 | I190: )} x | J190: 0 | K190: )]= | L190: =H190*(1+J190) -> 0 | M190: = | N190: 0 | O190: = | P190: =N190*Conversions!$B$11 -> 0 | Q190: = | R190: 0 | S190: = | T190: 0
A191: Cable Car | C191: 2002 | E191: = { | F191: 0 | G191: ÷ (1 - | H191: 0 | I191: )} x | J191: 0 | K191: )]= | L191: 0 | M191: = | N191: 0 | O191: = | P191: =N191*Conversions!$B$11 -> 0 | Q191: = | R191: 0 | S191: = | T191: 0
A192: Commuter Rail | C192: 2002 | E192: = { | F192: 0 | G192: ÷ (1 - | H192: 0 | I192: )} x | J192: 0 | K192: )]= | L192: 0 | M192: = | N192: 0 | O192: = | P192: =N192*Conversions!$B$11 -> 0 | Q192: = | R192: 0 | S192: = | T192: 0
A193: Heavy Rail | C193: 2002 | E193: = { | F193: 0 | G193: ÷ (1 - | H193: 0 | I193: )} x | J193: 0 | K193: )]= | L193: 0 | M193: = | N193: 0 | O193: = | P193: =N193*Conversions!$B$11 -> 0 | Q193: = | R193: 0 | S193: = | T193: 0
A194: Inclined Plane | C194: 2002 | E194: = { | F194: 0 | G194: ÷ (1 - | H194: 0 | I194: )} x | J194: 0 | K194: )]= | L194: 0 | M194: = | N194: 0 | O194: = | P194: =N194*Conversions!$B$11 -> 0 | Q194: = | R194: 0 | S194: = | T194: 0
A195: Light Rail | C195: 2002 | E195: = { | F195: 0 | G195: ÷ (1 - | H195: 0 | I195: )} x | J195: 0 | K195: )]= | L195: 0 | M195: = | N195: 0 | O195: = | P195: =N195*Conversions!$B$11 -> 0 | Q195: = | R195: 0 | S195: = | T195: 0
A196: Trolleybus | C196: 2002 | E196: = { | F196: 0 | G196: ÷ (1 - | H196: 0 | I196: )} x | J196: 0 | K196: )]= | L196: 0 | M196: = | N196: 0 | O196: = | P196: =N196*Conversions!$B$11 -> 0 | Q196: = | R196: 0 | S196: = | T196: 0
A197: Other | C197: 2002 | E197: = { | F197: 0 | G197: ÷ (1 - | H197: 0 | I197: )} x | J197: 0 | K197: )]= | L197: 0 | M197: = | N197: 0 | O197: = | P197: =N197*Conversions!$B$11 -> 0 | Q197: = | R197: 0 | S197: = | T197: 0
A198: TOTAL | C198: x | D198: =SUM(D189:D197) -> 0 | E198: = { | F198: =SUM(F189:F197) -> 0 | G198: ÷ (1 - | H198: 0 | I198: )} x | J198: 0 | K198: )]= | L198: =H198*(1+J198) -> 0 | M198: = | N198: 0 | O198: = | P198: =N198*Conversions!$B$11 -> 0 | Q198: = | R198: 0 | S198: = | T198: 0
D199: =IF(D198=100%,"Okay", IF(D198=0%, "Okay", "Column total must equal 100%")) -> Okay
A200: Transportation | B200: =B185+1 -> 2003
B201: Total State | D201: % End Use of Sector | F201: Sub-sector | L201: Emission Factor
... 338 more rows

Sheet Industrial C
A1: ="6. Industrial Electricity Consumption in "&'List Data'!E3 -> 6. Industrial Electricity Consumption in Select a State . . .
A2: ='List Data'!F3 -> XX | B2: Industrial | C2: ='List Data'!E3 -> Select a State . . .
D3: Industrial | G3: =" " ->  | H3: ='List Data'!E3 -> Select a State . . .
A5: Industrial | B5: 1990
B6: Total State | D6: % End Use of Sector | F6: Sub-sector | L6: Emission Factor
B7: Consumption | D7: Consumption | F7: Consumption | H7: Transmission loss | J7: Emission Factor | L7: Including losses | N7: Emissions | P7: Emissions | R7: Emissions | T7: Emissions
A8: Sub-sector | B8: (kWh) | F8: (kWh) | H8: Factor (%) | J8: (lbs CO2E/kWh) | L8: (lbs CO2E/kWh) | N8: (lbs carbon) | P8: (short tons carbon) | R8: (MMTCE) | T8: (MMTCO2E)
A9: Indirect Uses-Boiler Fuel
A10: Conventional Boiler Use | B10: =$B$25 -> 0 | C10: =$B$5 -> 1990 | E10: = { | F10: =D10*B10 -> 0 | G10: ÷ (1 - | H10: =TLF_1990 -> 0 | I10: )} x | J10: =CO2EF_1990 -> 0 | K10: )] = | L10: =H10*(1+J10) -> 0 | M10: = | N10: =IF(F10>0,((F10/(1-H10))*J10)/C_CO2,0) -> 0 | O10: = | P10: =N10*Conversions!$B$11 -> 0 | Q10: = | R10: =P10*Short_Metric/1000000 -> 0 | S10: = | T10: =R10*C_CO2 -> 0
A11: CHP and/or Cogeneration Process | B11: =$B$25 -> 0 | C11: =$B$5 -> 1990 | E11: = { | F11: =D11*B11 -> 0 | G11: ÷ (1 - | H11: =TLF_1990 -> 0 | I11: )} x | J11: =CO2EF_1990 -> 0 | K11: )] = | L11: =H11*(1+J11) -> 0 | M11: = | N11: =IF(F11>0,((F11/(1-H11))*J11)/C_CO2,0) -> 0 | O11: = | P11: =N11*Conversions!$B$11 -> 0 | Q11: = | R11: =P11*Short_Metric/1000000 -> 0 | S11: = | T11: =R11*C_CO2 -> 0 | X11: =IF(ISERROR(VLOOKUP(U11,Ind_Breakout,3,FALSE)),"-",VLOOKUP(U11,Ind_Breakout,3,FALSE)) -> -
A12: Direct Uses-Total Process
A13: Process Heating | B13: =$B$25 -> 0 | C13: =$B$5 -> 1990 | E13: = { | F13: =D13*B13 -> 0 | G13: ÷ (1 - | H13: =TLF_1990 -> 0 | I13: )} x | J13: =CO2EF_1990 -> 0 | K13: )] = | L13: =H13*(1+J13) -> 0 | M13: = | N13: =IF(F13>0,((F13/(1-H13))*J13)/C_CO2,0) -> 0 | O13: = | P13: =N13*Conversions!$B$11 -> 0 | Q13: = | R13: =P13*Short_Metric/1000000 -> 0 | S13: = | T13: =R13*C_CO2 -> 0
A14: Process Cooling and Refrigeration | B14: =$B$25 -> 0 | C14: =$B$5 -> 1990 | E14: = { | F14: =D14*B14 -> 0 | G14: ÷ (1 - | H14: =TLF_1990 -> 0 | I14: )} x | J14: =CO2EF_1990 -> 0 | K14: )] = | L14: =H14*(1+J14) -> 0 | M14: = | N14: =IF(F14>0,((F14/(1-H14))*J14)/C_CO2,0) -> 0 | O14: = | P14: =N14*Conversions!$B$11 -> 0 | Q14: = | R14: =P14*Short_Metric/1000000 -> 0 | S14: = | T14: =R14*C_CO2 -> 0
A15: Machine Drive | B15: =$B$25 -> 0 | C15: =$B$5 -> 1990 | E15: = { | F15: =D15*B15 -> 0 | G15: ÷ (1 - | H15: =TLF_1990 -> 0 | I15: )} x | J15: =CO2EF_1990 -> 0 | K15: )] = | L15: =H15*(1+J15) -> 0 | M15: = | N15: =IF(F15>0,((F15/(1-H15))*J15)/C_CO2,0) -> 0 | O15: = | P15: =N15*Conversions!$B$11 -> 0 | Q15: = | R15: =P15*Short_Metric/1000000 -> 0 | S15: = | T15: =R15*C_CO2 -> 0
A16: Electro-Chemical Processes | B16: =$B$25 -> 0 | C16: =$B$5 -> 1990 | E16: = { | F16: =D16*B16 -> 0 | G16: ÷ (1 - | H16: =TLF_1990 -> 0 | I16: )} x | J16: =CO2EF_1990 -> 0 | K16: )] = | L16: =H16*(1+J16) -> 0 | M16: = | N16: =IF(F16>0,((F16/(1-H16))*J16)/C_CO2,0) -> 0 | O16: = | P16: =N16*Conversions!$B$11 -> 0 | Q16: = | R16: =P16*Short_Metric/1000000 -> 0 | S16: = | T16: =R16*C_CO2 -> 0
A17: Other Process Use | B17: =$B$25 -> 0 | C17: =$B$5 -> 1990 | E17: = { | F17: =D17*B17 -> 0 | G17: ÷ (1 - | H17: =TLF_1990 -> 0 | I17: )} x | J17: =CO2EF_1990 -> 0 | K17: )] = | L17: =H17*(1+J17) -> 0 | M17: = | N17: =IF(F17>0,((F17/(1-H17))*J17)/C_CO2,0) -> 0 | O17: = | P17: =N17*Conversions!$B$11 -> 0 | Q17: = | R17: =P17*Short_Metric/1000000 -> 0 | S17: = | T17: =R17*C_CO2 -> 0
A18: Direct Uses-Total Nonprocess
A19: Facility HVAC | B19: =$B$25 -> 0 | C19: =$B$5 -> 1990 | E19: = { | F19: =D19*B19 -> 0 | G19: ÷ (1 - | H19: =TLF_1990 -> 0 | I19: )} x | J19: =CO2EF_1990 -> 0 | K19: )] = | L19: =H19*(1+J19) -> 0 | M19: = | N19: =IF(F19>0,((F19/(1-H19))*J19)/C_CO2,0) -> 0 | O19: = | P19: =N19*Conversions!$B$11 -> 0 | Q19: = | R19: =P19*Short_Metric/1000000 -> 0 | S19: = | T19: =R19*C_CO2 -> 0
A20: Facility Lighting | B20: 0 | C20: 1990 | E20: = { | F20: 0 | G20: ÷ (1 - | H20: 0 | I20: )} x | J20: 0 | K20: )] = | L20: 0 | M20: = | N20: 0 | O20: = | P20: =N20*Conversions!$B$11 -> 0 | Q20: = | R20: 0 | S20: = | T20: 0
A21: Other Facility Support | B21: 0 | C21: 1990 | E21: = { | F21: 0 | G21: ÷ (1 - | H21: 0 | I21: )} x | J21: 0 | K21: )] = | L21: 0 | M21: = | N21: 0 | O21: = | P21: =N21*Conversions!$B$11 -> 0 | Q21: = | R21: 0 | S21: = | T21: 0
A22: Onsite Transportation | B22: 0 | C22: 1990 | E22: = { | F22: 0 | G22: ÷ (1 - | H22: 0 | I22: )} x | J22: 0 | K22: )] = | L22: 0 | M22: = | N22: 0 | O22: = | P22: =N22*Conversions!$B$11 -> 0 | Q22: = | R22: 0 | S22: = | T22: 0
A23: Other Nonprocess Use | B23: 0 | C23: 1990 | E23: = { | F23: 0 | G23: ÷ (1 - | H23: 0 | I23: )} x | J23: 0 | K23: )] = | L23: 0 | M23: = | N23: 0 | O23: = | P23: =N23*Conversions!$B$11 -> 0 | Q23: = | R23: 0 | S23: = | T23: 0
A24: Other | B24: 0 | C24: 1990 | E24: = { | F24: 0 | G24: ÷ (1 - | H24: 0 | I24: )} x | J24: 0 | K24: )] = | L24: 0 | M24: = | N24: 0 | O24: = | P24: =N24*Conversions!$B$11 -> 0 | Q24: = | R24: 0 | S24: = | T24: 0
A25: TOTAL | C25: x | D25: =SUM(D10:D11,D13:D17,D19:D24) -> 0 | E25: = { | F25: =SUM(F19:F24,F13:F17,F10:F11) -> 0 | G25: ÷ (1 - | H25: 0 | I25: )} x | J25: 0 | K25: )] = | L25: 0 | M25: = | N25: 0 | O25: = | P25: =N25*Conversions!$B$11 -> 0 | Q25: = | R25: 0 | S25: = | T25: 0
D26: =IF(D25=100%,"Okay", "Column total must equal 100%") -> Column total must equal 100%
A27: Industrial | B27: 1991
B28: Total State | D28: % End Use of Sector | F28: Sub-sector | L28: Emission Factor
B29: Consumption | D29: Consumption | F29: Consumption | H29: Transmission loss | J29: Emission Factor | L29: Including losses | N29: Emissions | P29: Emissions | R29: Emissions | T29: Emissions
A30: Sub-sector | B30: (kWh) | F30: (kWh) | H30: Factor (%) | J30: (lbs CO2E/kWh) | L30: (lbs CO2E/kWh) | N30: (lbs carbon) | P30: (short tons carbon) | R30: (MMTCE) | T30: (MMTCO2E)
A31: Indirect Uses-Boiler Fuel
A32: Conventional Boiler Use | B32: =$B$47 -> 0 | C32: =$B$27 -> 1991 | E32: = { | F32: =D32*B32 -> 0 | G32: ÷ (1 - | H32: =TLF_1991 -> 0 | I32: )} x | J32: =CO2EF_1991 -> 0 | K32: )] = | L32: =H32*(1+J32) -> 0 | M32: = | N32: =IF(F32>0,((F32/(1-H32))*J32)/C_CO2,0) -> 0 | O32: = | P32: =N32*Conversions!$B$11 -> 0 | Q32: = | R32: =P32*Short_Metric/1000000 -> 0 | S32: = | T32: =R32*C_CO2 -> 0
A33: CHP and/or Cogeneration Process | B33: =$B$47 -> 0 | C33: =$B$27 -> 1991 | E33: = { | F33: =D33*B33 -> 0 | G33: ÷ (1 - | H33: =TLF_1991 -> 0 | I33: )} x | J33: =CO2EF_1991 -> 0 | K33: )] = | L33: =H33*(1+J33) -> 0 | M33: = | N33: =IF(F33>0,((F33/(1-H33))*J33)/C_CO2,0) -> 0 | O33: = | P33: =N33*Conversions!$B$11 -> 0 | Q33: = | R33: =P33*Short_Metric/1000000 -> 0 | S33: = | T33: =R33*C_CO2 -> 0 | X33: =IF(ISERROR(VLOOKUP(U33,Ind_Breakout,3,FALSE)),"-",VLOOKUP(U33,Ind_Breakout,3,FALSE)) -> -
A34: Direct Uses-Total Process
A35: Process Heating | B35: =$B$47 -> 0 | C35: =$B$27 -> 1991 | E35: = { | F35: =D35*B35 -> 0 | G35: ÷ (1 - | H35: =TLF_1991 -> 0 | I35: )} x | J35: =CO2EF_1991 -> 0 | K35: )] = | L35: =H35*(1+J35) -> 0 | M35: = | N35: =IF(F35>0,((F35/(1-H35))*J35)/C_CO2,0) -> 0 | O35: = | P35: =N35*Conversions!$B$11 -> 0 | Q35: = | R35: =P35*Short_Metric/1000000 -> 0 | S35: = | T35: =R35*C_CO2 -> 0
A36: Process Cooling and Refrigeration | B36: =$B$47 -> 0 | C36: =$B$27 -> 1991 | E36: = { | F36: =D36*B36 -> 0 | G36: ÷ (1 - | H36: =TLF_1991 -> 0 | I36: )} x | J36: =CO2EF_1991 -> 0 | K36: )] = | L36: =H36*(1+J36) -> 0 | M36: = | N36: =IF(F36>0,((F36/(1-H36))*J36)/C_CO2,0) -> 0 | O36: = | P36: =N36*Conversions!$B$11 -> 0 | Q36: = | R36: =P36*Short_Metric/1000000 -> 0 | S36: = | T36: =R36*C_CO2 -> 0
A37: Machine Drive | B37: =$B$47 -> 0 | C37: =$B$27 -> 1991 | E37: = { | F37: =D37*B37 -> 0 | G37: ÷ (1 - | H37: =TLF_1991 -> 0 | I37: )} x | J37: =CO2EF_1991 -> 0 | K37: )] = | L37: =H37*(1+J37) -> 0 | M37: = | N37: =IF(F37>0,((F37/(1-H37))*J37)/C_CO2,0) -> 0 | O37: = | P37: =N37*Conversions!$B$11 -> 0 | Q37: = | R37: =P37*Short_Metric/1000000 -> 0 | S37: = | T37: =R37*C_CO2 -> 0
A38: Electro-Chemical Processes | B38: =$B$47 -> 0 | C38: =$B$27 -> 1991 | E38: = { | F38: =D38*B38 -> 0 | G38: ÷ (1 - | H38: =TLF_1991 -> 0 | I38: )} x | J38: =CO2EF_1991 -> 0 | K38: )] = | L38: =H38*(1+J38) -> 0 | M38: = | N38: =IF(F38>0,((F38/(1-H38))*J38)/C_CO2,0) -> 0 | O38: = | P38: =N38*Conversions!$B$11 -> 0 | Q38: = | R38: =P38*Short_Metric/1000000 -> 0 | S38: = | T38: =R38*C_CO2 -> 0
A39: Other Process Use | B39: =$B$47 -> 0 | C39: =$B$27 -> 1991 | E39: = { | F39: =D39*B39 -> 0 | G39: ÷ (1 - | H39: =TLF_1991 -> 0 | I39: )} x | J39: =CO2EF_1991 -> 0 | K39: )] = | L39: =H39*(1+J39) -> 0 | M39: = | N39: =IF(F39>0,((F39/(1-H39))*J39)/C_CO2,0) -> 0 | O39: = | P39: =N39*Conversions!$B$11 -> 0 | Q39: = | R39: =P39*Short_Metric/1000000 -> 0 | S39: = | T39: =R39*C_CO2 -> 0
A40: Direct Uses-Total Nonprocess
A41: Facility HVAC | B41: =$B$47 -> 0 | C41: =$B$27 -> 1991 | E41: = { | F41: =D41*B41 -> 0 | G41: ÷ (1 - | H41: =TLF_1991 -> 0 | I41: )} x | J41: =CO2EF_1991 -> 0 | K41: )] = | L41: =H41*(1+J41) -> 0 | M41: = | N41: =IF(F41>0,((F41/(1-H41))*J41)/C_CO2,0) -> 0 | O41: = | P41: =N41*Conversions!$B$11 -> 0 | Q41: = | R41: =P41*Short_Metric/1000000 -> 0 | S41: = | T41: =R41*C_CO2 -> 0
A42: Facility Lighting | B42: 0 | C42: 1991 | E42: = { | F42: 0 | G42: ÷ (1 - | H42: 0 | I42: )} x | J42: 0 | K42: )] = | L42: 0 | M42: = | N42: 0 | O42: = | P42: =N42*Conversions!$B$11 -> 0 | Q42: = | R42: 0 | S42: = | T42: 0
A43: Other Facility Support | B43: 0 | C43: 1991 | E43: = { | F43: 0 | G43: ÷ (1 - | H43: 0 | I43: )} x | J43: 0 | K43: )] = | L43: 0 | M43: = | N43: 0 | O43: = | P43: =N43*Conversions!$B$11 -> 0 | Q43: = | R43: 0 | S43: = | T43: 0
A44: Onsite Transportation | B44: 0 | C44: 1991 | E44: = { | F44: 0 | G44: ÷ (1 - | H44: 0 | I44: )} x | J44: 0 | K44: )] = | L44: 0 | M44: = | N44: 0 | O44: = | P44: =N44*Conversions!$B$11 -> 0 | Q44: = | R44: 0 | S44: = | T44: 0
A45: Other Nonprocess Use | B45: 0 | C45: 1991 | E45: = { | F45: 0 | G45: ÷ (1 - | H45: 0 | I45: )} x | J45: 0 | K45: )] = | L45: 0 | M45: = | N45: 0 | O45: = | P45: =N45*Conversions!$B$11 -> 0 | Q45: = | R45: 0 | S45: = | T45: 0
A46: Other | B46: 0 | C46: 1991 | E46: = { | F46: 0 | G46: ÷ (1 - | H46: 0 | I46: )} x | J46: 0 | K46: )] = | L46: 0 | M46: = | N46: 0 | O46: = | P46: =N46*Conversions!$B$11 -> 0 | Q46: = | R46: 0 | S46: = | T46: 0
A47: TOTAL | C47: x | D47: =SUM(D32:D33,D35:D39,D41:D46) -> 0 | E47: = { | F47: =SUM(F41:F46,F35:F39,F32:F33) -> 0 | G47: ÷ (1 - | H47: 0 | I47: )} x | J47: 0 | K47: )] = | L47: 0 | M47: = | N47: 0 | O47: = | P47: =N47*Conversions!$B$11 -> 0 | Q47: = | R47: 0 | S47: = | T47: 0
D48: =IF(D47=100%,"Okay", "Column total must equal 100%") -> Column total must equal 100%
A49: Industrial | B49: 1992
B50: Total State | D50: % End Use of Sector | F50: Sub-sector | L50: Emission Factor
B51: Consumption | D51: Consumption | F51: Consumption | H51: Transmission loss | J51: Emission Factor | L51: Including losses | N51: Emissions | P51: Emissions | R51: Emissions | T51: Emissions
A52: Sub-sector | B52: (kWh) | F52: (kWh) | H52: Factor (%) | J52: (lbs CO2E/kWh) | L52: (lbs CO2E/kWh) | N52: (lbs carbon) | P52: (short tons carbon) | R52: (MMTCE) | T52: (MMTCO2E)
A53: Indirect Uses-Boiler Fuel
A54: Conventional Boiler Use | B54: =$B$69 -> 0 | C54: =$B$49 -> 1992 | E54: = { | F54: =D54*B54 -> 0 | G54: ÷ (1 - | H54: =TLF_1992 -> 0 | I54: )} x | J54: =CO2EF_1992 -> 0 | K54: )] = | L54: =H54*(1+J54) -> 0 | M54: = | N54: =IF(F54>0,((F54/(1-H54))*J54)/C_CO2,0) -> 0 | O54: = | P54: =N54*Conversions!$B$11 -> 0 | Q54: = | R54: =P54*Short_Metric/1000000 -> 0 | S54: = | T54: =R54*C_CO2 -> 0
A55: CHP and/or Cogeneration Process | B55: =$B$69 -> 0 | C55: =$B$49 -> 1992 | E55: = { | F55: =D55*B55 -> 0 | G55: ÷ (1 - | H55: =TLF_1992 -> 0 | I55: )} x | J55: =CO2EF_1992 -> 0 | K55: )] = | L55: =H55*(1+J55) -> 0 | M55: = | N55: =IF(F55>0,((F55/(1-H55))*J55)/C_CO2,0) -> 0 | O55: = | P55: =N55*Conversions!$B$11 -> 0 | Q55: = | R55: =P55*Short_Metric/1000000 -> 0 | S55: = | T55: =R55*C_CO2 -> 0 | X55: =IF(ISERROR(VLOOKUP(U55,Ind_Breakout,3,FALSE)),"-",VLOOKUP(U55,Ind_Breakout,3,FALSE)) -> -
A56: Direct Uses-Total Process
A57: Process Heating | B57: =$B$69 -> 0 | C57: =$B$49 -> 1992 | E57: = { | F57: =D57*B57 -> 0 | G57: ÷ (1 - | H57: =TLF_1992 -> 0 | I57: )} x | J57: =CO2EF_1992 -> 0 | K57: )] = | L57: =H57*(1+J57) -> 0 | M57: = | N57: =IF(F57>0,((F57/(1-H57))*J57)/C_CO2,0) -> 0 | O57: = | P57: =N57*Conversions!$B$11 -> 0 | Q57: = | R57: =P57*Short_Metric/1000000 -> 0 | S57: = | T57: =R57*C_CO2 -> 0
A58: Process Cooling and Refrigeration | B58: =$B$69 -> 0 | C58: =$B$49 -> 1992 | E58: = { | F58: =D58*B58 -> 0 | G58: ÷ (1 - | H58: =TLF_1992 -> 0 | I58: )} x | J58: =CO2EF_1992 -> 0 | K58: )] = | L58: =H58*(1+J58) -> 0 | M58: = | N58: =IF(F58>0,((F58/(1-H58))*J58)/C_CO2,0) -> 0 | O58: = | P58: =N58*Conversions!$B$11 -> 0 | Q58: = | R58: =P58*Short_Metric/1000000 -> 0 | S58: = | T58: =R58*C_CO2 -> 0
A59: Machine Drive | B59: =$B$69 -> 0 | C59: =$B$49 -> 1992 | E59: = { | F59: =D59*B59 -> 0 | G59: ÷ (1 - | H59: =TLF_1992 -> 0 | I59: )} x | J59: =CO2EF_1992 -> 0 | K59: )] = | L59: =H59*(1+J59) -> 0 | M59: = | N59: =IF(F59>0,((F59/(1-H59))*J59)/C_CO2,0) -> 0 | O59: = | P59: =N59*Conversions!$B$11 -> 0 | Q59: = | R59: =P59*Short_Metric/1000000 -> 0 | S59: = | T59: =R59*C_CO2 -> 0
A60: Electro-Chemical Processes | B60: =$B$69 -> 0 | C60: =$B$49 -> 1992 | E60: = { | F60: =D60*B60 -> 0 | G60: ÷ (1 - | H60: =TLF_1992 -> 0 | I60: )} x | J60: =CO2EF_1992 -> 0 | K60: )] = | L60: =H60*(1+J60) -> 0 | M60: = | N60: =IF(F60>0,((F60/(1-H60))*J60)/C_CO2,0) -> 0 | O60: = | P60: =N60*Conversions!$B$11 -> 0 | Q60: = | R60: =P60*Short_Metric/1000000 -> 0 | S60: = | T60: =R60*C_CO2 -> 0
A61: Other Process Use | B61: =$B$69 -> 0 | C61: =$B$49 -> 1992 | E61: = { | F61: =D61*B61 -> 0 | G61: ÷ (1 - | H61: =TLF_1992 -> 0 | I61: )} x | J61: =CO2EF_1992 -> 0 | K61: )] = | L61: =H61*(1+J61) -> 0 | M61: = | N61: =IF(F61>0,((F61/(1-H61))*J61)/C_CO2,0) -> 0 | O61: = | P61: =N61*Conversions!$B$11 -> 0 | Q61: = | R61: =P61*Short_Metric/1000000 -> 0 | S61: = | T61: =R61*C_CO2 -> 0
A62: Direct Uses-Total Nonprocess
A63: Facility HVAC | B63: =$B$69 -> 0 | C63: =$B$49 -> 1992 | E63: = { | F63: =D63*B63 -> 0 | G63: ÷ (1 - | H63: =TLF_1992 -> 0 | I63: )} x | J63: =CO2EF_1992 -> 0 | K63: )] = | L63: =H63*(1+J63) -> 0 | M63: = | N63: =IF(F63>0,((F63/(1-H63))*J63)/C_CO2,0) -> 0 | O63: = | P63: =N63*Conversions!$B$11 -> 0 | Q63: = | R63: =P63*Short_Metric/1000000 -> 0 | S63: = | T63: =R63*C_CO2 -> 0
A64: Facility Lighting | B64: 0 | C64: 1992 | E64: = { | F64: 0 | G64: ÷ (1 - | H64: 0 | I64: )} x | J64: 0 | K64: )] = | L64: 0 | M64: = | N64: 0 | O64: = | P64: =N64*Conversions!$B$11 -> 0 | Q64: = | R64: 0 | S64: = | T64: 0
A65: Other Facility Support | B65: 0 | C65: 1992 | E65: = { | F65: 0 | G65: ÷ (1 - | H65: 0 | I65: )} x | J65: 0 | K65: )] = | L65: 0 | M65: = | N65: 0 | O65: = | P65: =N65*Conversions!$B$11 -> 0 | Q65: = | R65: 0 | S65: = | T65: 0
A66: Onsite Transportation | B66: 0 | C66: 1992 | E66: = { | F66: 0 | G66: ÷ (1 - | H66: 0 | I66: )} x | J66: 0 | K66: )] = | L66: 0 | M66: = | N66: 0 | O66: = | P66: =N66*Conversions!$B$11 -> 0 | Q66: = | R66: 0 | S66: = | T66: 0
A67: Other Nonprocess Use | B67: 0 | C67: 1992 | E67: = { | F67: 0 | G67: ÷ (1 - | H67: 0 | I67: )} x | J67: 0 | K67: )] = | L67: 0 | M67: = | N67: 0 | O67: = | P67: =N67*Conversions!$B$11 -> 0 | Q67: = | R67: 0 | S67: = | T67: 0
A68: Other | B68: 0 | C68: 1992 | E68: = { | F68: 0 | G68: ÷ (1 - | H68: 0 | I68: )} x | J68: 0 | K68: )] = | L68: 0 | M68: = | N68: 0 | O68: = | P68: =N68*Conversions!$B$11 -> 0 | Q68: = | R68: 0 | S68: = | T68: 0
A69: TOTAL | C69: x | D69: =SUM(D54:D55,D57:D61,D63:D68) -> 0 | E69: = { | F69: =SUM(F63:F68,F57:F61,F54:F55) -> 0 | G69: ÷ (1 - | H69: 0 | I69: )} x | J69: 0 | K69: )] = | L69: 0 | M69: = | N69: 0 | O69: = | P69: =N69*Conversions!$B$11 -> 0 | Q69: = | R69: 0 | S69: = | T69: 0
D70: =IF(D69=100%,"Okay", "Column total must equal 100%") -> Column total must equal 100%
A71: Industrial | B71: 1993
B72: Total State | D72: % End Use of Sector | F72: Sub-sector | L72: Emission Factor
B73: Consumption | D73: Consumption | F73: Consumption | H73: Transmission loss | J73: Emission Factor | L73: Including losses | N73: Emissions | P73: Emissions | R73: Emissions | T73: Emissions
A74: Sub-sector | B74: (kWh) | F74: (kWh) | H74: Factor (%) | J74: (lbs CO2E/kWh) | L74: (lbs CO2E/kWh) | N74: (lbs carbon) | P74: (short tons carbon) | R74: (MMTCE) | T74: (MMTCO2E)
A75: Indirect Uses-Boiler Fuel
A76: Conventional Boiler Use | B76: =$B$91 -> 0 | C76: =$B$71 -> 1993 | E76: = { | F76: =D76*B76 -> 0 | G76: ÷ (1 - | H76: =TLF_1993 -> 0 | I76: )} x | J76: =CO2EF_1993 -> 0 | K76: )] = | L76: =H76*(1+J76) -> 0 | M76: = | N76: =IF(F76>0,((F76/(1-H76))*J76)/C_CO2,0) -> 0 | O76: = | P76: =N76*Conversions!$B$11 -> 0 | Q76: = | R76: =P76*Short_Metric/1000000 -> 0 | S76: = | T76: =R76*C_CO2 -> 0
A77: CHP and/or Cogeneration Process | B77: =$B$91 -> 0 | C77: =$B$71 -> 1993 | E77: = { | F77: =D77*B77 -> 0 | G77: ÷ (1 - | H77: =TLF_1993 -> 0 | I77: )} x | J77: =CO2EF_1993 -> 0 | K77: )] = | L77: =H77*(1+J77) -> 0 | M77: = | N77: =IF(F77>0,((F77/(1-H77))*J77)/C_CO2,0) -> 0 | O77: = | P77: =N77*Conversions!$B$11 -> 0 | Q77: = | R77: =P77*Short_Metric/1000000 -> 0 | S77: = | T77: =R77*C_CO2 -> 0 | X77: =IF(ISERROR(VLOOKUP(U77,Ind_Breakout,3,FALSE)),"-",VLOOKUP(U77,Ind_Breakout,3,FALSE)) -> -
A78: Direct Uses-Total Process
A79: Process Heating | B79: =$B$91 -> 0 | C79: =$B$71 -> 1993 | E79: = { | F79: =D79*B79 -> 0 | G79: ÷ (1 - | H79: =TLF_1993 -> 0 | I79: )} x | J79: =CO2EF_1993 -> 0 | K79: )] = | L79: =H79*(1+J79) -> 0 | M79: = | N79: =IF(F79>0,((F79/(1-H79))*J79)/C_CO2,0) -> 0 | O79: = | P79: =N79*Conversions!$B$11 -> 0 | Q79: = | R79: =P79*Short_Metric/1000000 -> 0 | S79: = | T79: =R79*C_CO2 -> 0
A80: Process Cooling and Refrigeration | B80: =$B$91 -> 0 | C80: =$B$71 -> 1993 | E80: = { | F80: =D80*B80 -> 0 | G80: ÷ (1 - | H80: =TLF_1993 -> 0 | I80: )} x | J80: =CO2EF_1993 -> 0 | K80: )] = | L80: =H80*(1+J80) -> 0 | M80: = | N80: =IF(F80>0,((F80/(1-H80))*J80)/C_CO2,0) -> 0 | O80: = | P80: =N80*Conversions!$B$11 -> 0 | Q80: = | R80: =P80*Short_Metric/1000000 -> 0 | S80: = | T80: =R80*C_CO2 -> 0
A81: Machine Drive | B81: =$B$91 -> 0 | C81: =$B$71 -> 1993 | E81: = { | F81: =D81*B81 -> 0 | G81: ÷ (1 - | H81: =TLF_1993 -> 0 | I81: )} x | J81: =CO2EF_1993 -> 0 | K81: )] = | L81: =H81*(1+J81) -> 0 | M81: = | N81: =IF(F81>0,((F81/(1-H81))*J81)/C_CO2,0) -> 0 | O81: = | P81: =N81*Conversions!$B$11 -> 0 | Q81: = | R81: =P81*Short_Metric/1000000 -> 0 | S81: = | T81: =R81*C_CO2 -> 0
A82: Electro-Chemical Processes | B82: =$B$91 -> 0 | C82: =$B$71 -> 1993 | E82: = { | F82: =D82*B82 -> 0 | G82: ÷ (1 - | H82: =TLF_1993 -> 0 | I82: )} x | J82: =CO2EF_1993 -> 0 | K82: )] = | L82: =H82*(1+J82) -> 0 | M82: = | N82: =IF(F82>0,((F82/(1-H82))*J82)/C_CO2,0) -> 0 | O82: = | P82: =N82*Conversions!$B$11 -> 0 | Q82: = | R82: =P82*Short_Metric/1000000 -> 0 | S82: = | T82: =R82*C_CO2 -> 0
A83: Other Process Use | B83: =$B$91 -> 0 | C83: =$B$71 -> 1993 | E83: = { | F83: =D83*B83 -> 0 | G83: ÷ (1 - | H83: =TLF_1993 -> 0 | I83: )} x | J83: =CO2EF_1993 -> 0 | K83: )] = | L83: =H83*(1+J83) -> 0 | M83: = | N83: =IF(F83>0,((F83/(1-H83))*J83)/C_CO2,0) -> 0 | O83: = | P83: =N83*Conversions!$B$11 -> 0 | Q83: = | R83: =P83*Short_Metric/1000000 -> 0 | S83: = | T83: =R83*C_CO2 -> 0
A84: Direct Uses-Total Nonprocess
A85: Facility HVAC | B85: =$B$91 -> 0 | C85: =$B$71 -> 1993 | E85: = { | F85: =D85*B85 -> 0 | G85: ÷ (1 - | H85: =TLF_1993 -> 0 | I85: )} x | J85: =CO2EF_1993 -> 0 | K85: )] = | L85: =H85*(1+J85) -> 0 | M85: = | N85: =IF(F85>0,((F85/(1-H85))*J85)/C_CO2,0) -> 0 | O85: = | P85: =N85*Conversions!$B$11 -> 0 | Q85: = | R85: =P85*Short_Metric/1000000 -> 0 | S85: = | T85: =R85*C_CO2 -> 0
A86: Facility Lighting | B86: 0 | C86: 1993 | E86: = { | F86: 0 | G86: ÷ (1 - | H86: 0 | I86: )} x | J86: 0 | K86: )] = | L86: 0 | M86: = | N86: 0 | O86: = | P86: =N86*Conversions!$B$11 -> 0 | Q86: = | R86: 0 | S86: = | T86: 0
A87: Other Facility Support | B87: 0 | C87: 1993 | E87: = { | F87: 0 | G87: ÷ (1 - | H87: 0 | I87: )} x | J87: 0 | K87: )] = | L87: 0 | M87: = | N87: 0 | O87: = | P87: =N87*Conversions!$B$11 -> 0 | Q87: = | R87: 0 | S87: = | T87: 0
A88: Onsite Transportation | B88: 0 | C88: 1993 | E88: = { | F88: 0 | G88: ÷ (1 - | H88: 0 | I88: )} x | J88: 0 | K88: )] = | L88: 0 | M88: = | N88: 0 | O88: = | P88: =N88*Conversions!$B$11 -> 0 | Q88: = | R88: 0 | S88: = | T88: 0
A89: Other Nonprocess Use | B89: 0 | C89: 1993 | E89: = { | F89: 0 | G89: ÷ (1 - | H89: 0 | I89: )} x | J89: 0 | K89: )] = | L89: 0 | M89: = | N89: 0 | O89: = | P89: =N89*Conversions!$B$11 -> 0 | Q89: = | R89: 0 | S89: = | T89: 0
A90: Other | B90: 0 | C90: 1993 | E90: = { | F90: 0 | G90: ÷ (1 - | H90: 0 | I90: )} x | J90: 0 | K90: )] = | L90: 0 | M90: = | N90: 0 | O90: = | P90: =N90*Conversions!$B$11 -> 0 | Q90: = | R90: 0 | S90: = | T90: 0
A91: TOTAL | C91: x | D91: =SUM(D76:D77,D79:D83,D85:D90) -> 0 | E91: = { | F91: =SUM(F85:F90,F79:F83,F76:F77) -> 0 | G91: ÷ (1 - | H91: 0 | I91: )} x | J91: 0 | K91: )] = | L91: 0 | M91: = | N91: 0 | O91: = | P91: =N91*Conversions!$B$11 -> 0 | Q91: = | R91: 0 | S91: = | T91: 0
D92: =IF(D91=100%,"Okay", "Column total must equal 100%") -> Column total must equal 100%
A93: Industrial | B93: 1994
B94: Total State | D94: % End Use of Sector | F94: Sub-sector | L94: Emission Factor
B95: Consumption | D95: Consumption | F95: Consumption | H95: Transmission loss | J95: Emission Factor | L95: Including losses | N95: Emissions | P95: Emissions | R95: Emissions | T95: Emissions
A96: Sub-sector | B96: (kWh) | F96: (kWh) | H96: Factor (%) | J96: (lbs CO2E/kWh) | L96: (lbs CO2E/kWh) | N96: (lbs carbon) | P96: (short tons carbon) | R96: (MMTCE) | T96: (MMTCO2E)
A97: Indirect Uses-Boiler Fuel
A98: Conventional Boiler Use | B98: =$B$113 -> 0 | C98: =$B$93 -> 1994 | E98: = { | F98: =D98*B98 -> 0 | G98: ÷ (1 - | H98: =TLF_1994 -> 0 | I98: )} x | J98: =CO2EF_1994 -> 0 | K98: )] = | L98: =H98*(1+J98) -> 0 | M98: = | N98: =IF(F98>0,((F98/(1-H98))*J98)/C_CO2,0) -> 0 | O98: = | P98: =N98*Conversions!$B$11 -> 0 | Q98: = | R98: =P98*Short_Metric/1000000 -> 0 | S98: = | T98: =R98*C_CO2 -> 0
A99: CHP and/or Cogeneration Process | B99: =$B$113 -> 0 | C99: =$B$93 -> 1994 | E99: = { | F99: =D99*B99 -> 0 | G99: ÷ (1 - | H99: =TLF_1994 -> 0 | I99: )} x | J99: =CO2EF_1994 -> 0 | K99: )] = | L99: =H99*(1+J99) -> 0 | M99: = | N99: =IF(F99>0,((F99/(1-H99))*J99)/C_CO2,0) -> 0 | O99: = | P99: =N99*Conversions!$B$11 -> 0 | Q99: = | R99: =P99*Short_Metric/1000000 -> 0 | S99: = | T99: =R99*C_CO2 -> 0 | X99: =IF(ISERROR(VLOOKUP(U99,Ind_Breakout,3,FALSE)),"-",VLOOKUP(U99,Ind_Breakout,3,FALSE)) -> -
A100: Direct Uses-Total Process
A101: Process Heating | B101: =$B$113 -> 0 | C101: =$B$93 -> 1994 | E101: = { | F101: =D101*B101 -> 0 | G101: ÷ (1 - | H101: =TLF_1994 -> 0 | I101: )} x | J101: =CO2EF_1994 -> 0 | K101: )] = | L101: =H101*(1+J101) -> 0 | M101: = | N101: =IF(F101>0,((F101/(1-H101))*J101)/C_CO2,0) -> 0 | O101: = | P101: =N101*Conversions!$B$11 -> 0 | Q101: = | R101: =P101*Short_Metric/1000000 -> 0 | S101: = | T101: =R101*C_CO2 -> 0
A102: Process Cooling and Refrigeration | B102: =$B$113 -> 0 | C102: =$B$93 -> 1994 | E102: = { | F102: =D102*B102 -> 0 | G102: ÷ (1 - | H102: =TLF_1994 -> 0 | I102: )} x | J102: =CO2EF_1994 -> 0 | K102: )] = | L102: =H102*(1+J102) -> 0 | M102: = | N102: =IF(F102>0,((F102/(1-H102))*J102)/C_CO2,0) -> 0 | O102: = | P102: =N102*Conversions!$B$11 -> 0 | Q102: = | R102: =P102*Short_Metric/1000000 -> 0 | S102: = | T102: =R102*C_CO2 -> 0
A103: Machine Drive | B103: =$B$113 -> 0 | C103: =$B$93 -> 1994 | E103: = { | F103: =D103*B103 -> 0 | G103: ÷ (1 - | H103: =TLF_1994 -> 0 | I103: )} x | J103: =CO2EF_1994 -> 0 | K103: )] = | L103: =H103*(1+J103) -> 0 | M103: = | N103: =IF(F103>0,((F103/(1-H103))*J103)/C_CO2,0) -> 0 | O103: = | P103: =N103*Conversions!$B$11 -> 0 | Q103: = | R103: =P103*Short_Metric/1000000 -> 0 | S103: = | T103: =R103*C_CO2 -> 0
A104: Electro-Chemical Processes | B104: =$B$113 -> 0 | C104: =$B$93 -> 1994 | E104: = { | F104: =D104*B104 -> 0 | G104: ÷ (1 - | H104: =TLF_1994 -> 0 | I104: )} x | J104: =CO2EF_1994 -> 0 | K104: )] = | L104: =H104*(1+J104) -> 0 | M104: = | N104: =IF(F104>0,((F104/(1-H104))*J104)/C_CO2,0) -> 0 | O104: = | P104: =N104*Conversions!$B$11 -> 0 | Q104: = | R104: =P104*Short_Metric/1000000 -> 0 | S104: = | T104: =R104*C_CO2 -> 0
A105: Other Process Use | B105: =$B$113 -> 0 | C105: =$B$93 -> 1994 | E105: = { | F105: =D105*B105 -> 0 | G105: ÷ (1 - | H105: =TLF_1994 -> 0 | I105: )} x | J105: =CO2EF_1994 -> 0 | K105: )] = | L105: =H105*(1+J105) -> 0 | M105: = | N105: =IF(F105>0,((F105/(1-H105))*J105)/C_CO2,0) -> 0 | O105: = | P105: =N105*Conversions!$B$11 -> 0 | Q105: = | R105: =P105*Short_Metric/1000000 -> 0 | S105: = | T105: =R105*C_CO2 -> 0
A106: Direct Uses-Total Nonprocess
A107: Facility HVAC | B107: =$B$113 -> 0 | C107: =$B$93 -> 1994 | E107: = { | F107: =D107*B107 -> 0 | G107: ÷ (1 - | H107: =TLF_1994 -> 0 | I107: )} x | J107: =CO2EF_1994 -> 0 | K107: )] = | L107: =H107*(1+J107) -> 0 | M107: = | N107: =IF(F107>0,((F107/(1-H107))*J107)/C_CO2,0) -> 0 | O107: = | P107: =N107*Conversions!$B$11 -> 0 | Q107: = | R107: =P107*Short_Metric/1000000 -> 0 | S107: = | T107: =R107*C_CO2 -> 0
A108: Facility Lighting | B108: 0 | C108: 1994 | E108: = { | F108: 0 | G108: ÷ (1 - | H108: 0 | I108: )} x | J108: 0 | K108: )] = | L108: 0 | M108: = | N108: 0 | O108: = | P108: =N108*Conversions!$B$11 -> 0 | Q108: = | R108: 0 | S108: = | T108: 0
A109: Other Facility Support | B109: 0 | C109: 1994 | E109: = { | F109: 0 | G109: ÷ (1 - | H109: 0 | I109: )} x | J109: 0 | K109: )] = | L109: 0 | M109: = | N109: 0 | O109: = | P109: =N109*Conversions!$B$11 -> 0 | Q109: = | R109: 0 | S109: = | T109: 0
A110: Onsite Transportation | B110: 0 | C110: 1994 | E110: = { | F110: 0 | G110: ÷ (1 - | H110: 0 | I110: )} x | J110: 0 | K110: )] = | L110: 0 | M110: = | N110: 0 | O110: = | P110: =N110*Conversions!$B$11 -> 0 | Q110: = | R110: 0 | S110: = | T110: 0
A111: Other Nonprocess Use | B111: 0 | C111: 1994 | E111: = { | F111: 0 | G111: ÷ (1 - | H111: 0 | I111: )} x | J111: 0 | K111: )] = | L111: 0 | M111: = | N111: 0 | O111: = | P111: =N111*Conversions!$B$11 -> 0 | Q111: = | R111: 0 | S111: = | T111: 0
A112: Other | B112: 0 | C112: 1994 | E112: = { | F112: 0 | G112: ÷ (1 - | H112: 0 | I112: )} x | J112: 0 | K112: )] = | L112: 0 | M112: = | N112: 0 | O112: = | P112: =N112*Conversions!$B$11 -> 0 | Q112: = | R112: 0 | S112: = | T112: 0
A113: TOTAL | C113: x | D113: =SUM(D98:D99,D101:D105,D107:D112) -> 0 | E113: = { | F113: =SUM(F107:F112,F101:F105,F98:F99) -> 0 | G113: ÷ (1 - | H113: 0 | I113: )} x | J113: 0 | K113: )] = | L113: 0 | M113: = | N113: 0 | O113: = | P113: =N113*Conversions!$B$11 -> 0 | Q113: = | R113: 0 | S113: = | T113: 0
D114: =IF(D113=100%,"Okay", "Column total must equal 100%") -> Column total must equal 100%
A115: Industrial | B115: 1995
B116: Total State | D116: % End Use of Sector | F116: Sub-sector | L116: Emission Factor
B117: Consumption | D117: Consumption | F117: Consumption | H117: Transmission loss | J117: Emission Factor | L117: Including losses | N117: Emissions | P117: Emissions | R117: Emissions | T117: Emissions
A118: Sub-sector | B118: (kWh) | F118: (kWh) | H118: Factor (%) | J118: (lbs CO2E/kWh) | L118: (lbs CO2E/kWh) | N118: (lbs carbon) | P118: (short tons carbon) | R118: (MMTCE) | T118: (MMTCO2E)
A119: Indirect Uses-Boiler Fuel
A120: Conventional Boiler Use | B120: =$B$135 -> 0 | C120: =$B$115 -> 1995 | E120: = { | F120: =D120*B120 -> 0 | G120: ÷ (1 - | H120: =TLF_1995 -> 0 | I120: )} x | J120: =CO2EF_1995 -> 0 | K120: )] = | L120: =H120*(1+J120) -> 0 | M120: = | N120: =IF(F120>0,((F120/(1-H120))*J120)/C_CO2,0) -> 0 | O120: = | P120: =N120*Conversions!$B$11 -> 0 | Q120: = | R120: =P120*Short_Metric/1000000 -> 0 | S120: = | T120: =R120*C_CO2 -> 0
A121: CHP and/or Cogeneration Process | B121: =$B$135 -> 0 | C121: =$B$115 -> 1995 | E121: = { | F121: =D121*B121 -> 0 | G121: ÷ (1 - | H121: =TLF_1995 -> 0 | I121: )} x | J121: =CO2EF_1995 -> 0 | K121: )] = | L121: =H121*(1+J121) -> 0 | M121: = | N121: =IF(F121>0,((F121/(1-H121))*J121)/C_CO2,0) -> 0 | O121: = | P121: =N121*Conversions!$B$11 -> 0 | Q121: = | R121: =P121*Short_Metric/1000000 -> 0 | S121: = | T121: =R121*C_CO2 -> 0 | X121: =IF(ISERROR(VLOOKUP(U121,Ind_Breakout,3,FALSE)),"-",VLOOKUP(U121,Ind_Breakout,3,FALSE)) -> -
A122: Direct Uses-Total Process
A123: Process Heating | B123: =$B$135 -> 0 | C123: =$B$115 -> 1995 | E123: = { | F123: =D123*B123 -> 0 | G123: ÷ (1 - | H123: =TLF_1995 -> 0 | I123: )} x | J123: =CO2EF_1995 -> 0 | K123: )] = | L123: =H123*(1+J123) -> 0 | M123: = | N123: =IF(F123>0,((F123/(1-H123))*J123)/C_CO2,0) -> 0 | O123: = | P123: =N123*Conversions!$B$11 -> 0 | Q123: = | R123: =P123*Short_Metric/1000000 -> 0 | S123: = | T123: =R123*C_CO2 -> 0
A124: Process Cooling and Refrigeration | B124: =$B$135 -> 0 | C124: =$B$115 -> 1995 | E124: = { | F124: =D124*B124 -> 0 | G124: ÷ (1 - | H124: =TLF_1995 -> 0 | I124: )} x | J124: =CO2EF_1995 -> 0 | K124: )] = | L124: =H124*(1+J124) -> 0 | M124: = | N124: =IF(F124>0,((F124/(1-H124))*J124)/C_CO2,0) -> 0 | O124: = | P124: =N124*Conversions!$B$11 -> 0 | Q124: = | R124: =P124*Short_Metric/1000000 -> 0 | S124: = | T124: =R124*C_CO2 -> 0
A125: Machine Drive | B125: =$B$135 -> 0 | C125: =$B$115 -> 1995 | E125: = { | F125: =D125*B125 -> 0 | G125: ÷ (1 - | H125: =TLF_1995 -> 0 | I125: )} x | J125: =CO2EF_1995 -> 0 | K125: )] = | L125: =H125*(1+J125) -> 0 | M125: = | N125: =IF(F125>0,((F125/(1-H125))*J125)/C_CO2,0) -> 0 | O125: = | P125: =N125*Conversions!$B$11 -> 0 | Q125: = | R125: =P125*Short_Metric/1000000 -> 0 | S125: = | T125: =R125*C_CO2 -> 0
A126: Electro-Chemical Processes | B126: =$B$135 -> 0 | C126: =$B$115 -> 1995 | E126: = { | F126: =D126*B126 -> 0 | G126: ÷ (1 - | H126: =TLF_1995 -> 0 | I126: )} x | J126: =CO2EF_1995 -> 0 | K126: )] = | L126: =H126*(1+J126) -> 0 | M126: = | N126: =IF(F126>0,((F126/(1-H126))*J126)/C_CO2,0) -> 0 | O126: = | P126: =N126*Conversions!$B$11 -> 0 | Q126: = | R126: =P126*Short_Metric/1000000 -> 0 | S126: = | T126: =R126*C_CO2 -> 0
A127: Other Process Use | B127: =$B$135 -> 0 | C127: =$B$115 -> 1995 | E127: = { | F127: =D127*B127 -> 0 | G127: ÷ (1 - | H127: =TLF_1995 -> 0 | I127: )} x | J127: =CO2EF_1995 -> 0 | K127: )] = | L127: =H127*(1+J127) -> 0 | M127: = | N127: =IF(F127>0,((F127/(1-H127))*J127)/C_CO2,0) -> 0 | O127: = | P127: =N127*Conversions!$B$11 -> 0 | Q127: = | R127: =P127*Short_Metric/1000000 -> 0 | S127: = | T127: =R127*C_CO2 -> 0
A128: Direct Uses-Total Nonprocess
A129: Facility HVAC | B129: =$B$135 -> 0 | C129: =$B$115 -> 1995 | E129: = { | F129: =D129*B129 -> 0 | G129: ÷ (1 - | H129: =TLF_1995 -> 0 | I129: )} x | J129: =CO2EF_1995 -> 0 | K129: )] = | L129: =H129*(1+J129) -> 0 | M129: = | N129: =IF(F129>0,((F129/(1-H129))*J129)/C_CO2,0) -> 0 | O129: = | P129: =N129*Conversions!$B$11 -> 0 | Q129: = | R129: =P129*Short_Metric/1000000 -> 0 | S129: = | T129: =R129*C_CO2 -> 0
A130: Facility Lighting | B130: 0 | C130: 1995 | E130: = { | F130: 0 | G130: ÷ (1 - | H130: 0 | I130: )} x | J130: 0 | K130: )] = | L130: 0 | M130: = | N130: 0 | O130: = | P130: =N130*Conversions!$B$11 -> 0 | Q130: = | R130: 0 | S130: = | T130: 0
A131: Other Facility Support | B131: 0 | C131: 1995 | E131: = { | F131: 0 | G131: ÷ (1 - | H131: 0 | I131: )} x | J131: 0 | K131: )] = | L131: 0 | M131: = | N131: 0 | O131: = | P131: =N131*Conversions!$B$11 -> 0 | Q131: = | R131: 0 | S131: = | T131: 0
A132: Onsite Transportation | B132: 0 | C132: 1995 | E132: = { | F132: 0 | G132: ÷ (1 - | H132: 0 | I132: )} x | J132: 0 | K132: )] = | L132: 0 | M132: = | N132: 0 | O132: = | P132: =N132*Conversions!$B$11 -> 0 | Q132: = | R132: 0 | S132: = | T132: 0
A133: Other Nonprocess Use | B133: 0 | C133: 1995 | E133: = { | F133: 0 | G133: ÷ (1 - | H133: 0 | I133: )} x | J133: 0 | K133: )] = | L133: 0 | M133: = | N133: 0 | O133: = | P133: =N133*Conversions!$B$11 -> 0 | Q133: = | R133: 0 | S133: = | T133: 0
A134: Other | B134: 0 | C134: 1995 | E134: = { | F134: 0 | G134: ÷ (1 - | H134: 0 | I134: )} x | J134: 0 | K134: )] = | L134: 0 | M134: = | N134: 0 | O134: = | P134: =N134*Conversions!$B$11 -> 0 | Q134: = | R134: 0 | S134: = | T134: 0
A135: TOTAL | C135: x | D135: =SUM(D120:D121,D123:D127,D129:D134) -> 0 | E135: = { | F135: =SUM(F129:F134,F123:F127,F120:F121) -> 0 | G135: ÷ (1 - | H135: 0 | I135: )} x | J135: 0 | K135: )] = | L135: 0 | M135: = | N135: 0 | O135: = | P135: =N135*Conversions!$B$11 -> 0 | Q135: = | R135: 0 | S135: = | T135: 0
D136: =IF(D135=100%,"Okay", "Column total must equal 100%") -> Column total must equal 100%
A137: Industrial | B137: 1996
B138: Total State | D138: % End Use of Sector | F138: Sub-sector | L138: Emission Factor
B139: Consumption | D139: Consumption | F139: Consumption | H139: Transmission loss | J139: Emission Factor | L139: Including losses | N139: Emissions | P139: Emissions | R139: Emissions | T139: Emissions
A140: Sub-sector | B140: (kWh) | F140: (kWh) | H140: Factor (%) | J140: (lbs CO2E/kWh) | L140: (lbs CO2E/kWh) | N140: (lbs carbon) | P140: (short tons carbon) | R140: (MMTCE) | T140: (MMTCO2E)
A141: Indirect Uses-Boiler Fuel
A142: Conventional Boiler Use | B142: =$B$157 -> 0 | C142: =$B$137 -> 1996 | E142: = { | F142: =D142*B142 -> 0 | G142: ÷ (1 - | H142: =TLF_1996 -> 0 | I142: )} x | J142: =CO2EF_1996 -> 0 | K142: )] = | L142: =H142*(1+J142) -> 0 | M142: = | N142: =IF(F142>0,((F142/(1-H142))*J142)/C_CO2,0) -> 0 | O142: = | P142: =N142*Conversions!$B$11 -> 0 | Q142: = | R142: =P142*Short_Metric/1000000 -> 0 | S142: = | T142: =R142*C_CO2 -> 0
A143: CHP and/or Cogeneration Process | B143: =$B$157 -> 0 | C143: =$B$137 -> 1996 | E143: = { | F143: =D143*B143 -> 0 | G143: ÷ (1 - | H143: =TLF_1996 -> 0 | I143: )} x | J143: =CO2EF_1996 -> 0 | K143: )] = | L143: =H143*(1+J143) -> 0 | M143: = | N143: =IF(F143>0,((F143/(1-H143))*J143)/C_CO2,0) -> 0 | O143: = | P143: =N143*Conversions!$B$11 -> 0 | Q143: = | R143: =P143*Short_Metric/1000000 -> 0 | S143: = | T143: =R143*C_CO2 -> 0 | X143: =IF(ISERROR(VLOOKUP(U143,Ind_Breakout,3,FALSE)),"-",VLOOKUP(U143,Ind_Breakout,3,FALSE)) -> -
A144: Direct Uses-Total Process
A145: Process Heating | B145: =$B$157 -> 0 | C145: =$B$137 -> 1996 | E145: = { | F145: =D145*B145 -> 0 | G145: ÷ (1 - | H145: =TLF_1996 -> 0 | I145: )} x | J145: =CO2EF_1996 -> 0 | K145: )] = | L145: =H145*(1+J145) -> 0 | M145: = | N145: =IF(F145>0,((F145/(1-H145))*J145)/C_CO2,0) -> 0 | O145: = | P145: =N145*Conversions!$B$11 -> 0 | Q145: = | R145: =P145*Short_Metric/1000000 -> 0 | S145: = | T145: =R145*C_CO2 -> 0
A146: Process Cooling and Refrigeration | B146: =$B$157 -> 0 | C146: =$B$137 -> 1996 | E146: = { | F146: =D146*B146 -> 0 | G146: ÷ (1 - | H146: =TLF_1996 -> 0 | I146: )} x | J146: =CO2EF_1996 -> 0 | K146: )] = | L146: =H146*(1+J146) -> 0 | M146: = | N146: =IF(F146>0,((F146/(1-H146))*J146)/C_CO2,0) -> 0 | O146: = | P146: =N146*Conversions!$B$11 -> 0 | Q146: = | R146: =P146*Short_Metric/1000000 -> 0 | S146: = | T146: =R146*C_CO2 -> 0
A147: Machine Drive | B147: =$B$157 -> 0 | C147: =$B$137 -> 1996 | E147: = { | F147: =D147*B147 -> 0 | G147: ÷ (1 - | H147: =TLF_1996 -> 0 | I147: )} x | J147: =CO2EF_1996 -> 0 | K147: )] = | L147: =H147*(1+J147) -> 0 | M147: = | N147: =IF(F147>0,((F147/(1-H147))*J147)/C_CO2,0) -> 0 | O147: = | P147: =N147*Conversions!$B$11 -> 0 | Q147: = | R147: =P147*Short_Metric/1000000 -> 0 | S147: = | T147: =R147*C_CO2 -> 0
A148: Electro-Chemical Processes | B148: =$B$157 -> 0 | C148: =$B$137 -> 1996 | E148: = { | F148: =D148*B148 -> 0 | G148: ÷ (1 - | H148: =TLF_1996 -> 0 | I148: )} x | J148: =CO2EF_1996 -> 0 | K148: )] = | L148: =H148*(1+J148) -> 0 | M148: = | N148: =IF(F148>0,((F148/(1-H148))*J148)/C_CO2,0) -> 0 | O148: = | P148: =N148*Conversions!$B$11 -> 0 | Q148: = | R148: =P148*Short_Metric/1000000 -> 0 | S148: = | T148: =R148*C_CO2 -> 0
A149: Other Process Use | B149: =$B$157 -> 0 | C149: =$B$137 -> 1996 | E149: = { | F149: =D149*B149 -> 0 | G149: ÷ (1 - | H149: =TLF_1996 -> 0 | I149: )} x | J149: =CO2EF_1996 -> 0 | K149: )] = | L149: =H149*(1+J149) -> 0 | M149: = | N149: =IF(F149>0,((F149/(1-H149))*J149)/C_CO2,0) -> 0 | O149: = | P149: =N149*Conversions!$B$11 -> 0 | Q149: = | R149: =P149*Short_Metric/1000000 -> 0 | S149: = | T149: =R149*C_CO2 -> 0
A150: Direct Uses-Total Nonprocess
A151: Facility HVAC | B151: =$B$157 -> 0 | C151: =$B$137 -> 1996 | E151: = { | F151: =D151*B151 -> 0 | G151: ÷ (1 - | H151: =TLF_1996 -> 0 | I151: )} x | J151: =CO2EF_1996 -> 0 | K151: )] = | L151: =H151*(1+J151) -> 0 | M151: = | N151: =IF(F151>0,((F151/(1-H151))*J151)/C_CO2,0) -> 0 | O151: = | P151: =N151*Conversions!$B$11 -> 0 | Q151: = | R151: =P151*Short_Metric/1000000 -> 0 | S151: = | T151: =R151*C_CO2 -> 0
A152: Facility Lighting | B152: 0 | C152: 1996 | E152: = { | F152: 0 | G152: ÷ (1 - | H152: 0 | I152: )} x | J152: 0 | K152: )] = | L152: 0 | M152: = | N152: 0 | O152: = | P152: =N152*Conversions!$B$11 -> 0 | Q152: = | R152: 0 | S152: = | T152: 0
A153: Other Facility Support | B153: 0 | C153: 1996 | E153: = { | F153: 0 | G153: ÷ (1 - | H153: 0 | I153: )} x | J153: 0 | K153: )] = | L153: 0 | M153: = | N153: 0 | O153: = | P153: =N153*Conversions!$B$11 -> 0 | Q153: = | R153: 0 | S153: = | T153: 0
A154: Onsite Transportation | B154: 0 | C154: 1996 | E154: = { | F154: 0 | G154: ÷ (1 - | H154: 0 | I154: )} x | J154: 0 | K154: )] = | L154: 0 | M154: = | N154: 0 | O154: = | P154: =N154*Conversions!$B$11 -> 0 | Q154: = | R154: 0 | S154: = | T154: 0
A155: Other Nonprocess Use | B155: 0 | C155: 1996 | E155: = { | F155: 0 | G155: ÷ (1 - | H155: 0 | I155: )} x | J155: 0 | K155: )] = | L155: 0 | M155: = | N155: 0 | O155: = | P155: =N155*Conversions!$B$11 -> 0 | Q155: = | R155: 0 | S155: = | T155: 0
A156: Other | B156: 0 | C156: 1996 | E156: = { | F156: 0 | G156: ÷ (1 - | H156: 0 | I156: )} x | J156: 0 | K156: )] = | L156: 0 | M156: = | N156: 0 | O156: = | P156: =N156*Conversions!$B$11 -> 0 | Q156: = | R156: 0 | S156: = | T156: 0
A157: TOTAL | C157: x | D157: =SUM(D142:D143,D145:D149,D151:D156) -> 0 | E157: = { | F157: =SUM(F151:F156,F145:F149,F142:F143) -> 0 | G157: ÷ (1 - | H157: 0 | I157: )} x | J157: 0 | K157: )] = | L157: 0 | M157: = | N157: 0 | O157: = | P157: =N157*Conversions!$B$11 -> 0 | Q157: = | R157: 0 | S157: = | T157: 0
D158: =IF(D157=100%,"Okay", "Column total must equal 100%") -> Column total must equal 100%
A159: Industrial | B159: 1997
B160: Total State | D160: % End Use of Sector | F160: Sub-sector | L160: Emission Factor
B161: Consumption | D161: Consumption | F161: Consumption | H161: Transmission loss | J161: Emission Factor | L161: Including losses | N161: Emissions | P161: Emissions | R161: Emissions | T161: Emissions
A162: Sub-sector | B162: (kWh) | F162: (kWh) | H162: Factor (%) | J162: (lbs CO2E/kWh) | L162: (lbs CO2E/kWh) | N162: (lbs carbon) | P162: (short tons carbon) | R162: (MMTCE) | T162: (MMTCO2E)
A163: Indirect Uses-Boiler Fuel
A164: Conventional Boiler Use | B164: =$B$179 -> 0 | C164: =$B$159 -> 1997 | E164: = { | F164: =D164*B164 -> 0 | G164: ÷ (1 - | H164: =TLF_1997 -> 0 | I164: )} x | J164: =CO2EF_1997 -> 0 | K164: )] = | L164: =H164*(1+J164) -> 0 | M164: = | N164: =IF(F164>0,((F164/(1-H164))*J164)/C_CO2,0) -> 0 | O164: = | P164: =N164*Conversions!$B$11 -> 0 | Q164: = | R164: =P164*Short_Metric/1000000 -> 0 | S164: = | T164: =R164*C_CO2 -> 0
A165: CHP and/or Cogeneration Process | B165: =$B$179 -> 0 | C165: =$B$159 -> 1997 | E165: = { | F165: =D165*B165 -> 0 | G165: ÷ (1 - | H165: =TLF_1997 -> 0 | I165: )} x | J165: =CO2EF_1997 -> 0 | K165: )] = | L165: =H165*(1+J165) -> 0 | M165: = | N165: =IF(F165>0,((F165/(1-H165))*J165)/C_CO2,0) -> 0 | O165: = | P165: =N165*Conversions!$B$11 -> 0 | Q165: = | R165: =P165*Short_Metric/1000000 -> 0 | S165: = | T165: =R165*C_CO2 -> 0 | X165: =IF(ISERROR(VLOOKUP(U165,Ind_Breakout,3,FALSE)),"-",VLOOKUP(U165,Ind_Breakout,3,FALSE)) -> -
A166: Direct Uses-Total Process
A167: Process Heating | B167: =$B$179 -> 0 | C167: =$B$159 -> 1997 | E167: = { | F167: =D167*B167 -> 0 | G167: ÷ (1 - | H167: =TLF_1997 -> 0 | I167: )} x | J167: =CO2EF_1997 -> 0 | K167: )] = | L167: =H167*(1+J167) -> 0 | M167: = | N167: =IF(F167>0,((F167/(1-H167))*J167)/C_CO2,0) -> 0 | O167: = | P167: =N167*Conversions!$B$11 -> 0 | Q167: = | R167: =P167*Short_Metric/1000000 -> 0 | S167: = | T167: =R167*C_CO2 -> 0
A168: Process Cooling and Refrigeration | B168: =$B$179 -> 0 | C168: =$B$159 -> 1997 | E168: = { | F168: =D168*B168 -> 0 | G168: ÷ (1 - | H168: =TLF_1997 -> 0 | I168: )} x | J168: =CO2EF_1997 -> 0 | K168: )] = | L168: =H168*(1+J168) -> 0 | M168: = | N168: =IF(F168>0,((F168/(1-H168))*J168)/C_CO2,0) -> 0 | O168: = | P168: =N168*Conversions!$B$11 -> 0 | Q168: = | R168: =P168*Short_Metric/1000000 -> 0 | S168: = | T168: =R168*C_CO2 -> 0
A169: Machine Drive | B169: =$B$179 -> 0 | C169: =$B$159 -> 1997 | E169: = { | F169: =D169*B169 -> 0 | G169: ÷ (1 - | H169: =TLF_1997 -> 0 | I169: )} x | J169: =CO2EF_1997 -> 0 | K169: )] = | L169: =H169*(1+J169) -> 0 | M169: = | N169: =IF(F169>0,((F169/(1-H169))*J169)/C_CO2,0) -> 0 | O169: = | P169: =N169*Conversions!$B$11 -> 0 | Q169: = | R169: =P169*Short_Metric/1000000 -> 0 | S169: = | T169: =R169*C_CO2 -> 0
A170: Electro-Chemical Processes | B170: =$B$179 -> 0 | C170: =$B$159 -> 1997 | E170: = { | F170: =D170*B170 -> 0 | G170: ÷ (1 - | H170: =TLF_1997 -> 0 | I170: )} x | J170: =CO2EF_1997 -> 0 | K170: )] = | L170: =H170*(1+J170) -> 0 | M170: = | N170: =IF(F170>0,((F170/(1-H170))*J170)/C_CO2,0) -> 0 | O170: = | P170: =N170*Conversions!$B$11 -> 0 | Q170: = | R170: =P170*Short_Metric/1000000 -> 0 | S170: = | T170: =R170*C_CO2 -> 0
A171: Other Process Use | B171: =$B$179 -> 0 | C171: =$B$159 -> 1997 | E171: = { | F171: =D171*B171 -> 0 | G171: ÷ (1 - | H171: =TLF_1997 -> 0 | I171: )} x | J171: =CO2EF_1997 -> 0 | K171: )] = | L171: =H171*(1+J171) -> 0 | M171: = | N171: =IF(F171>0,((F171/(1-H171))*J171)/C_CO2,0) -> 0 | O171: = | P171: =N171*Conversions!$B$11 -> 0 | Q171: = | R171: =P171*Short_Metric/1000000 -> 0 | S171: = | T171: =R171*C_CO2 -> 0
A172: Direct Uses-Total Nonprocess
A173: Facility HVAC | B173: =$B$179 -> 0 | C173: =$B$159 -> 1997 | E173: = { | F173: =D173*B173 -> 0 | G173: ÷ (1 - | H173: =TLF_1997 -> 0 | I173: )} x | J173: =CO2EF_1997 -> 0 | K173: )] = | L173: =H173*(1+J173) -> 0 | M173: = | N173: =IF(F173>0,((F173/(1-H173))*J173)/C_CO2,0) -> 0 | O173: = | P173: =N173*Conversions!$B$11 -> 0 | Q173: = | R173: =P173*Short_Metric/1000000 -> 0 | S173: = | T173: =R173*C_CO2 -> 0
A174: Facility Lighting | B174: 0 | C174: 1997 | E174: = { | F174: 0 | G174: ÷ (1 - | H174: 0 | I174: )} x | J174: 0 | K174: )] = | L174: 0 | M174: = | N174: 0 | O174: = | P174: =N174*Conversions!$B$11 -> 0 | Q174: = | R174: 0 | S174: = | T174: 0
A175: Other Facility Support | B175: 0 | C175: 1997 | E175: = { | F175: 0 | G175: ÷ (1 - | H175: 0 | I175: )} x | J175: 0 | K175: )] = | L175: 0 | M175: = | N175: 0 | O175: = | P175: =N175*Conversions!$B$11 -> 0 | Q175: = | R175: 0 | S175: = | T175: 0
A176: Onsite Transportation | B176: 0 | C176: 1997 | E176: = { | F176: 0 | G176: ÷ (1 - | H176: 0 | I176: )} x | J176: 0 | K176: )] = | L176: 0 | M176: = | N176: 0 | O176: = | P176: =N176*Conversions!$B$11 -> 0 | Q176: = | R176: 0 | S176: = | T176: 0
A177: Other Nonprocess Use | B177: 0 | C177: 1997 | E177: = { | F177: 0 | G177: ÷ (1 - | H177: 0 | I177: )} x | J177: 0 | K177: )] = | L177: 0 | M177: = | N177: 0 | O177: = | P177: =N177*Conversions!$B$11 -> 0 | Q177: = | R177: 0 | S177: = | T177: 0
A178: Other | B178: 0 | C178: 1997 | E178: = { | F178: 0 | G178: ÷ (1 - | H178: 0 | I178: )} x | J178: 0 | K178: )] = | L178: 0 | M178: = | N178: 0 | O178: = | P178: =N178*Conversions!$B$11 -> 0 | Q178: = | R178: 0 | S178: = | T178: 0
A179: TOTAL | C179: x | D179: =SUM(D164:D165,D167:D171,D173:D178) -> 0 | E179: = { | F179: =SUM(F173:F178,F167:F171,F164:F165) -> 0 | G179: ÷ (1 - | H179: 0 | I179: )} x | J179: 0 | K179: )] = | L179: 0 | M179: = | N179: 0 | O179: = | P179: =N179*Conversions!$B$11 -> 0 | Q179: = | R179: 0 | S179: = | T179: 0
D180: =IF(D179=100%,"Okay", "Column total must equal 100%") -> Column total must equal 100%
A181: Industrial | B181: 1998
B182: Total State | D182: % End Use of Sector | F182: Sub-sector | L182: Emission Factor
B183: Consumption | D183: Consumption | F183: Consumption | H183: Transmission loss | J183: Emission Factor | L183: Including losses | N183: Emissions | P183: Emissions | R183: Emissions | T183: Emissions
A184: Sub-sector | B184: (kWh) | F184: (kWh) | H184: Factor (%) | J184: (lbs CO2E/kWh) | L184: (lbs CO2E/kWh) | N184: (lbs carbon) | P184: (short tons carbon) | R184: (MMTCE) | T184: (MMTCO2E)
A185: Indirect Uses-Boiler Fuel
A186: Conventional Boiler Use | B186: =$B$201 -> 0 | C186: =$B$181 -> 1998 | E186: = { | F186: =D186*B186 -> 0 | G186: ÷ (1 - | H186: =TLF_1998 -> 0 | I186: )} x | J186: =CO2EF_1998 -> 0 | K186: )] = | L186: =H186*(1+J186) -> 0 | M186: = | N186: =IF(F186>0,((F186/(1-H186))*J186)/C_CO2,0) -> 0 | O186: = | P186: =N186*Conversions!$B$11 -> 0 | Q186: = | R186: =P186*Short_Metric/1000000 -> 0 | S186: = | T186: =R186*C_CO2 -> 0
A187: CHP and/or Cogeneration Process | B187: =$B$201 -> 0 | C187: =$B$181 -> 1998 | E187: = { | F187: =D187*B187 -> 0 | G187: ÷ (1 - | H187: =TLF_1998 -> 0 | I187: )} x | J187: =CO2EF_1998 -> 0 | K187: )] = | L187: =H187*(1+J187) -> 0 | M187: = | N187: =IF(F187>0,((F187/(1-H187))*J187)/C_CO2,0) -> 0 | O187: = | P187: =N187*Conversions!$B$11 -> 0 | Q187: = | R187: =P187*Short_Metric/1000000 -> 0 | S187: = | T187: =R187*C_CO2 -> 0 | X187: =IF(ISERROR(VLOOKUP(U187,Ind_Breakout,3,FALSE)),"-",VLOOKUP(U187,Ind_Breakout,3,FALSE)) -> -
A188: Direct Uses-Total Process
A189: Process Heating | B189: =$B$201 -> 0 | C189: =$B$181 -> 1998 | E189: = { | F189: =D189*B189 -> 0 | G189: ÷ (1 - | H189: =TLF_1998 -> 0 | I189: )} x | J189: =CO2EF_1998 -> 0 | K189: )] = | L189: =H189*(1+J189) -> 0 | M189: = | N189: =IF(F189>0,((F189/(1-H189))*J189)/C_CO2,0) -> 0 | O189: = | P189: =N189*Conversions!$B$11 -> 0 | Q189: = | R189: =P189*Short_Metric/1000000 -> 0 | S189: = | T189: =R189*C_CO2 -> 0
A190: Process Cooling and Refrigeration | B190: =$B$201 -> 0 | C190: =$B$181 -> 1998 | E190: = { | F190: =D190*B190 -> 0 | G190: ÷ (1 - | H190: =TLF_1998 -> 0 | I190: )} x | J190: =CO2EF_1998 -> 0 | K190: )] = | L190: =H190*(1+J190) -> 0 | M190: = | N190: =IF(F190>0,((F190/(1-H190))*J190)/C_CO2,0) -> 0 | O190: = | P190: =N190*Conversions!$B$11 -> 0 | Q190: = | R190: =P190*Short_Metric/1000000 -> 0 | S190: = | T190: =R190*C_CO2 -> 0
A191: Machine Drive | B191: =$B$201 -> 0 | C191: =$B$181 -> 1998 | E191: = { | F191: =D191*B191 -> 0 | G191: ÷ (1 - | H191: =TLF_1998 -> 0 | I191: )} x | J191: =CO2EF_1998 -> 0 | K191: )] = | L191: =H191*(1+J191) -> 0 | M191: = | N191: =IF(F191>0,((F191/(1-H191))*J191)/C_CO2,0) -> 0 | O191: = | P191: =N191*Conversions!$B$11 -> 0 | Q191: = | R191: =P191*Short_Metric/1000000 -> 0 | S191: = | T191: =R191*C_CO2 -> 0
A192: Electro-Chemical Processes | B192: =$B$201 -> 0 | C192: =$B$181 -> 1998 | E192: = { | F192: =D192*B192 -> 0 | G192: ÷ (1 - | H192: =TLF_1998 -> 0 | I192: )} x | J192: =CO2EF_1998 -> 0 | K192: )] = | L192: =H192*(1+J192) -> 0 | M192: = | N192: =IF(F192>0,((F192/(1-H192))*J192)/C_CO2,0) -> 0 | O192: = | P192: =N192*Conversions!$B$11 -> 0 | Q192: = | R192: =P192*Short_Metric/1000000 -> 0 | S192: = | T192: =R192*C_CO2 -> 0
A193: Other Process Use | B193: =$B$201 -> 0 | C193: =$B$181 -> 1998 | E193: = { | F193: =D193*B193 -> 0 | G193: ÷ (1 - | H193: =TLF_1998 -> 0 | I193: )} x | J193: =CO2EF_1998 -> 0 | K193: )] = | L193: =H193*(1+J193) -> 0 | M193: = | N193: =IF(F193>0,((F193/(1-H193))*J193)/C_CO2,0) -> 0 | O193: = | P193: =N193*Conversions!$B$11 -> 0 | Q193: = | R193: =P193*Short_Metric/1000000 -> 0 | S193: = | T193: =R193*C_CO2 -> 0
A194: Direct Uses-Total Nonprocess
A195: Facility HVAC | B195: =$B$201 -> 0 | C195: =$B$181 -> 1998 | E195: = { | F195: =D195*B195 -> 0 | G195: ÷ (1 - | H195: =TLF_1998 -> 0 | I195: )} x | J195: =CO2EF_1998 -> 0 | K195: )] = | L195: =H195*(1+J195) -> 0 | M195: = | N195: =IF(F195>0,((F195/(1-H195))*J195)/C_CO2,0) -> 0 | O195: = | P195: =N195*Conversions!$B$11 -> 0 | Q195: = | R195: =P195*Short_Metric/1000000 -> 0 | S195: = | T195: =R195*C_CO2 -> 0
A196: Facility Lighting | B196: 0 | C196: 1998 | E196: = { | F196: 0 | G196: ÷ (1 - | H196: 0 | I196: )} x | J196: 0 | K196: )] = | L196: 0 | M196: = | N196: 0 | O196: = | P196: =N196*Conversions!$B$11 -> 0 | Q196: = | R196: 0 | S196: = | T196: 0
A197: Other Facility Support | B197: 0 | C197: 1998 | E197: = { | F197: 0 | G197: ÷ (1 - | H197: 0 | I197: )} x | J197: 0 | K197: )] = | L197: 0 | M197: = | N197: 0 | O197: = | P197: =N197*Conversions!$B$11 -> 0 | Q197: = | R197: 0 | S197: = | T197: 0
A198: Onsite Transportation | B198: 0 | C198: 1998 | E198: = { | F198: 0 | G198: ÷ (1 - | H198: 0 | I198: )} x | J198: 0 | K198: )] = | L198: 0 | M198: = | N198: 0 | O198: = | P198: =N198*Conversions!$B$11 -> 0 | Q198: = | R198: 0 | S198: = | T198: 0
A199: Other Nonprocess Use | B199: 0 | C199: 1998 | E199: = { | F199: 0 | G199: ÷ (1 - | H199: 0 | I199: )} x | J199: 0 | K199: )] = | L199: 0 | M199: = | N199: 0 | O199: = | P199: =N199*Conversions!$B$11 -> 0 | Q199: = | R199: 0 | S199: = | T199: 0
A200: Other | B200: 0 | C200: 1998 | E200: = { | F200: 0 | G200: ÷ (1 - | H200: 0 | I200: )} x | J200: 0 | K200: )] = | L200: 0 | M200: = | N200: 0 | O200: = | P200: =N200*Conversions!$B$11 -> 0 | Q200: = | R200: 0 | S200: = | T200: 0
A201: TOTAL | C201: x | D201: =SUM(D186:D187,D189:D193,D195:D200) -> 0 | E201: = { | F201: =SUM(F195:F200,F189:F193,F186:F187) -> 0 | G201: ÷ (1 - | H201: 0 | I201: )} x | J201: 0 | K201: )] = | L201: 0 | M201: = | N201: 0 | O201: = | P201: =N201*Conversions!$B$11 -> 0 | Q201: = | R201: 0 | S201: = | T201: 0
... 595 more rows

Sheet Summary-MMTCO2E
A1: ="7. "&'List Data'!E3&" Emissions Summary (MMTCO2E)" -> 7. Select a State . . . Emissions Summary (MMTCO2E)
B3: =Tracker!B11 -> Emissions were not calculated for the following sectors: Residential, Commercial, Industrial, and Transportation.
B5: MMTCO2E | C5: 1990 | D5: 1991 | E5: 1992 | F5: 1993 | G5: 1994 | H5: 1995 | I5: 1996 | J5: 1997 | K5: 1998 | L5: 1999 | M5: 2000 | N5: 2001 | O5: 2002 | P5: 2003 | Q5: 2004 | R5: 2005 | S5: 2006 | T5: 2007 | U5: 2008 | V5: 2009 | W5: 2010 | X5: 2011 | Y5: 2012 | Z5: 2013 | AA5: 2014 | AB5: 2015 | AC5: 2016 | AD5: 2017 | AE5: 2018 | AF5: 2019 | AG5: 2020 | AH5: 2021 | AI5: 2022 | AJ5: 2023 | AK5: 2024 | AL5: 2025
B6: Residential | C6: =SUM(C7:C11) -> 0 | D6: 0 | E6: 0 | F6: 0 | G6: 0 | H6: 0 | I6: 0 | J6: 0 | K6: 0 | L6: 0 | M6: =SUM(M7:M11) -> 0 | N6: =SUM(N7:N11) -> 0 | O6: 0 | P6: 0 | Q6: 0 | R6: 0 | S6: 0 | T6: 0 | U6: 0 | V6: 0 | W6: 0 | X6: 0 | Y6: 0 | Z6: 0 | AA6: 0 | AB6: 0 | AC6: 0 | AD6: 0 | AE6: 0 | AF6: 0 | AG6: 0 | AH6: 0 | AI6: 0 | AJ6: 0 | AK6: 0 | AL6: 0
B7: Space Heating | C7: ='Residential C'!T9 -> 0 | D7: ='Residential C'!T20 -> 0 | E7: ='Residential C'!T31 -> 0 | F7: ='Residential C'!T42 -> 0 | G7: ='Residential C'!T53 -> 0 | H7: ='Residential C'!T64 -> 0 | I7: ='Residential C'!T75 -> 0 | J7: ='Residential C'!T86 -> 0 | K7: ='Residential C'!T97 -> 0 | L7: ='Residential C'!T108 -> 0 | M7: ='Residential C'!T119 -> 0 | N7: ='Residential C'!T130 -> 0 | O7: ='Residential C'!T141 -> 0 | P7: ='Residential C'!T152 -> 0 | Q7: ='Residential C'!T163 -> 0 | R7: ='Residential C'!T174 -> 0 | S7: ='Residential C'!T185 -> 0 | T7: ='Residential C'!T196 -> 0 | U7: ='Residential C'!T207 -> 0 | V7: ='Residential C'!T218 -> 0 | W7: ='Residential C'!T229 -> 0 | X7: ='Residential C'!T240 -> 0 | Y7: ='Residential C'!T251 -> 0 | Z7: ='Residential C'!T262 -> 0 | AA7: ='Residential C'!T273 -> 0 | AB7: ='Residential C'!T284 -> 0 | AC7: ='Residential C'!T295 -> 0 | AD7: ='Residential C'!T306 -> 0 | AE7: ='Residential C'!T317 -> 0 | AF7: ='Residential C'!T328 -> 0 | AG7: ='Residential C'!T339 -> 0 | AH7: ='Residential C'!T350 -> 0 | AI7: ='Residential C'!T361 -> 0 | AJ7: ='Residential C'!T372 -> 0 | AK7: ='Residential C'!T383 -> 0 | AL7: ='Residential C'!T394 -> 0
B8: Air-conditioning | C8: ='Residential C'!T10 -> 0 | D8: ='Residential C'!T21 -> 0 | E8: ='Residential C'!T32 -> 0 | F8: ='Residential C'!T43 -> 0 | G8: ='Residential C'!T54 -> 0 | H8: ='Residential C'!T65 -> 0 | I8: ='Residential C'!T76 -> 0 | J8: ='Residential C'!T87 -> 0 | K8: ='Residential C'!T98 -> 0 | L8: ='Residential C'!T109 -> 0 | M8: ='Residential C'!T120 -> 0 | N8: ='Residential C'!T131 -> 0 | O8: ='Residential C'!T142 -> 0 | P8: ='Residential C'!T153 -> 0 | Q8: ='Residential C'!T164 -> 0 | R8: ='Residential C'!T175 -> 0 | S8: ='Residential C'!T186 -> 0 | T8: ='Residential C'!T197 -> 0 | U8: ='Residential C'!T208 -> 0 | V8: ='Residential C'!T219 -> 0 | W8: ='Residential C'!T230 -> 0 | X8: ='Residential C'!T241 -> 0 | Y8: ='Residential C'!T252 -> 0 | Z8: ='Residential C'!T263 -> 0 | AA8: ='Residential C'!T274 -> 0 | AB8: ='Residential C'!T285 -> 0 | AC8: ='Residential C'!T296 -> 0 | AD8: ='Residential C'!T307 -> 0 | AE8: ='Residential C'!T318 -> 0 | AF8: ='Residential C'!T329 -> 0 | AG8: ='Residential C'!T340 -> 0 | AH8: ='Residential C'!T351 -> 0 | AI8: ='Residential C'!T362 -> 0 | AJ8: ='Residential C'!T373 -> 0 | AK8: ='Residential C'!T384 -> 0 | AL8: ='Residential C'!T395 -> 0
B9: Water Heating | C9: ='Residential C'!T11 -> 0 | D9: ='Residential C'!T22 -> 0 | E9: ='Residential C'!T33 -> 0 | F9: ='Residential C'!T44 -> 0 | G9: ='Residential C'!T55 -> 0 | H9: ='Residential C'!T66 -> 0 | I9: ='Residential C'!T77 -> 0 | J9: ='Residential C'!T88 -> 0 | K9: ='Residential C'!T99 -> 0 | L9: ='Residential C'!T110 -> 0 | M9: ='Residential C'!T121 -> 0 | N9: ='Residential C'!T132 -> 0 | O9: ='Residential C'!T143 -> 0 | P9: ='Residential C'!T154 -> 0 | Q9: ='Residential C'!T165 -> 0 | R9: ='Residential C'!T176 -> 0 | S9: ='Residential C'!T187 -> 0 | T9: ='Residential C'!T198 -> 0 | U9: ='Residential C'!T209 -> 0 | V9: ='Residential C'!T220 -> 0 | W9: ='Residential C'!T231 -> 0 | X9: ='Residential C'!T242 -> 0 | Y9: ='Residential C'!T253 -> 0 | Z9: ='Residential C'!T264 -> 0 | AA9: ='Residential C'!T275 -> 0 | AB9: ='Residential C'!T286 -> 0 | AC9: ='Residential C'!T297 -> 0 | AD9: ='Residential C'!T308 -> 0 | AE9: ='Residential C'!T319 -> 0 | AF9: ='Residential C'!T330 -> 0 | AG9: ='Residential C'!T341 -> 0 | AH9: ='Residential C'!T352 -> 0 | AI9: ='Residential C'!T363 -> 0 | AJ9: ='Residential C'!T374 -> 0 | AK9: ='Residential C'!T385 -> 0 | AL9: ='Residential C'!T396 -> 0
B10: Refrigeration | C10: ='Residential C'!T12 -> 0 | D10: ='Residential C'!T23 -> 0 | E10: ='Residential C'!T34 -> 0 | F10: ='Residential C'!T45 -> 0 | G10: ='Residential C'!T56 -> 0 | H10: ='Residential C'!T67 -> 0 | I10: ='Residential C'!T78 -> 0 | J10: ='Residential C'!T89 -> 0 | K10: ='Residential C'!T100 -> 0 | L10: ='Residential C'!T111 -> 0 | M10: ='Residential C'!T122 -> 0 | N10: ='Residential C'!T133 -> 0 | O10: ='Residential C'!T144 -> 0 | P10: ='Residential C'!T155 -> 0 | Q10: ='Residential C'!T166 -> 0 | R10: ='Residential C'!T177 -> 0 | S10: ='Residential C'!T188 -> 0 | T10: ='Residential C'!T199 -> 0 | U10: ='Residential C'!T210 -> 0 | V10: ='Residential C'!T221 -> 0 | W10: ='Residential C'!T232 -> 0 | X10: ='Residential C'!T243 -> 0 | Y10: ='Residential C'!T254 -> 0 | Z10: ='Residential C'!T265 -> 0 | AA10: ='Residential C'!T276 -> 0 | AB10: ='Residential C'!T287 -> 0 | AC10: ='Residential C'!T298 -> 0 | AD10: ='Residential C'!T309 -> 0 | AE10: ='Residential C'!T320 -> 0 | AF10: ='Residential C'!T331 -> 0 | AG10: ='Residential C'!T342 -> 0 | AH10: ='Residential C'!T353 -> 0 | AI10: ='Residential C'!T364 -> 0 | AJ10: ='Residential C'!T375 -> 0 | AK10: ='Residential C'!T386 -> 0 | AL10: ='Residential C'!T397 -> 0
B11: Other Appliances and Lighting | C11: ='Residential C'!T13 -> 0 | D11: ='Residential C'!T24 -> 0 | E11: ='Residential C'!T35 -> 0 | F11: ='Residential C'!T46 -> 0 | G11: ='Residential C'!T57 -> 0 | H11: ='Residential C'!T68 -> 0 | I11: ='Residential C'!T79 -> 0 | J11: ='Residential C'!T90 -> 0 | K11: ='Residential C'!T101 -> 0 | L11: ='Residential C'!T112 -> 0 | M11: ='Residential C'!T123 -> 0 | N11: ='Residential C'!T134 -> 0 | O11: ='Residential C'!T145 -> 0 | P11: ='Residential C'!T156 -> 0 | Q11: ='Residential C'!T167 -> 0 | R11: ='Residential C'!T178 -> 0 | S11: ='Residential C'!T189 -> 0 | T11: ='Residential C'!T200 -> 0 | U11: ='Residential C'!T211 -> 0 | V11: ='Residential C'!T222 -> 0 | W11: ='Residential C'!T233 -> 0 | X11: ='Residential C'!T244 -> 0 | Y11: ='Residential C'!T255 -> 0 | Z11: ='Residential C'!T266 -> 0 | AA11: ='Residential C'!T277 -> 0 | AB11: ='Residential C'!T288 -> 0 | AC11: ='Residential C'!T299 -> 0 | AD11: ='Residential C'!T310 -> 0 | AE11: ='Residential C'!T321 -> 0 | AF11: ='Residential C'!T332 -> 0 | AG11: ='Residential C'!T343 -> 0 | AH11: ='Residential C'!T354 -> 0 | AI11: ='Residential C'!T365 -> 0 | AJ11: ='Residential C'!T376 -> 0 | AK11: ='Residential C'!T387 -> 0 | AL11: ='Residential C'!T398 -> 0
B12: Commercial | C12: =SUM(C13:C22) -> 0 | D12: 0 | E12: 0 | F12: 0 | G12: 0 | H12: 0 | I12: 0 | J12: 0 | K12: 0 | L12: 0 | M12: =SUM(M13:M22) -> 0 | N12: =SUM(N13:N22) -> 0 | O12: 0 | P12: 0 | Q12: 0 | R12: 0 | S12: 0 | T12: 0 | U12: 0 | V12: 0 | W12: 0 | X12: 0 | Y12: 0 | Z12: 0 | AA12: 0 | AB12: 0 | AC12: 0 | AD12: 0 | AE12: 0 | AF12: 0 | AG12: 0 | AH12: 0 | AI12: 0 | AJ12: 0 | AK12: 0 | AL12: 0
B13: Space Heating | C13: ='Commercial C'!T9 -> 0 | D13: ='Commercial C'!T25 -> 0 | E13: ='Commercial C'!T41 -> 0 | F13: ='Commercial C'!T57 -> 0 | G13: ='Commercial C'!T73 -> 0 | H13: ='Commercial C'!T89 -> 0 | I13: ='Commercial C'!T105 -> 0 | J13: ='Commercial C'!T121 -> 0 | K13: ='Commercial C'!T137 -> 0 | L13: ='Commercial C'!T153 -> 0 | M13: ='Commercial C'!T169 -> 0 | N13: ='Commercial C'!T185 -> 0 | O13: ='Commercial C'!T201 -> 0 | P13: ='Commercial C'!T217 -> 0 | Q13: ='Commercial C'!T233 -> 0 | R13: ='Commercial C'!T249 -> 0 | S13: ='Commercial C'!T265 -> 0 | T13: ='Commercial C'!T281 -> 0 | U13: ='Commercial C'!T297 -> 0 | V13: ='Commercial C'!T313 -> 0 | W13: ='Commercial C'!T329 -> 0 | X13: ='Commercial C'!T345 -> 0 | Y13: ='Commercial C'!T361 -> 0 | Z13: ='Commercial C'!T377 -> 0 | AA13: ='Commercial C'!T393 -> 0 | AB13: ='Commercial C'!T409 -> 0 | AC13: ='Commercial C'!T425 -> 0 | AD13: ='Commercial C'!T441 -> 0 | AE13: ='Commercial C'!T457 -> 0 | AF13: ='Commercial C'!T473 -> 0 | AG13: ='Commercial C'!T489 -> 0 | AH13: ='Commercial C'!T505 -> 0 | AI13: ='Commercial C'!T521 -> 0 | AJ13: ='Commercial C'!T537 -> 0 | AK13: ='Commercial C'!T553 -> 0 | AL13: ='Commercial C'!T569 -> 0
B14: Cooling | C14: ='Commercial C'!T10 -> 0 | D14: ='Commercial C'!T26 -> 0 | E14: ='Commercial C'!T42 -> 0 | F14: ='Commercial C'!T58 -> 0 | G14: ='Commercial C'!T74 -> 0 | H14: ='Commercial C'!T90 -> 0 | I14: ='Commercial C'!T106 -> 0 | J14: ='Commercial C'!T122 -> 0 | K14: ='Commercial C'!T138 -> 0 | L14: ='Commercial C'!T154 -> 0 | M14: ='Commercial C'!T170 -> 0 | N14: ='Commercial C'!T186 -> 0 | O14: ='Commercial C'!T202 -> 0 | P14: ='Commercial C'!T218 -> 0 | Q14: ='Commercial C'!T234 -> 0 | R14: ='Commercial C'!T250 -> 0 | S14: ='Commercial C'!T266 -> 0 | T14: ='Commercial C'!T282 -> 0 | U14: ='Commercial C'!T298 -> 0 | V14: ='Commercial C'!T314 -> 0 | W14: ='Commercial C'!T330 -> 0 | X14: ='Commercial C'!T346 -> 0 | Y14: ='Commercial C'!T362 -> 0 | Z14: ='Commercial C'!T378 -> 0 | AA14: ='Commercial C'!T394 -> 0 | AB14: ='Commercial C'!T410 -> 0 | AC14: ='Commercial C'!T426 -> 0 | AD14: ='Commercial C'!T442 -> 0 | AE14: ='Commercial C'!T458 -> 0 | AF14: ='Commercial C'!T474 -> 0 | AG14: ='Commercial C'!T490 -> 0 | AH14: ='Commercial C'!T506 -> 0 | AI14: ='Commercial C'!T522 -> 0 | AJ14: ='Commercial C'!T538 -> 0 | AK14: ='Commercial C'!T554 -> 0 | AL14: ='Commercial C'!T570 -> 0
B15: Ventilation | C15: ='Commercial C'!T11 -> 0 | D15: ='Commercial C'!T27 -> 0 | E15: ='Commercial C'!T43 -> 0 | F15: ='Commercial C'!T59 -> 0 | G15: ='Commercial C'!T75 -> 0 | H15: ='Commercial C'!T91 -> 0 | I15: ='Commercial C'!T107 -> 0 | J15: ='Commercial C'!T123 -> 0 | K15: ='Commercial C'!T139 -> 0 | L15: ='Commercial C'!T155 -> 0 | M15: ='Commercial C'!T171 -> 0 | N15: ='Commercial C'!T187 -> 0 | O15: ='Commercial C'!T203 -> 0 | P15: ='Commercial C'!T219 -> 0 | Q15: ='Commercial C'!T235 -> 0 | R15: ='Commercial C'!T251 -> 0 | S15: ='Commercial C'!T267 -> 0 | T15: ='Commercial C'!T283 -> 0 | U15: ='Commercial C'!T299 -> 0 | V15: ='Commercial C'!T315 -> 0 | W15: ='Commercial C'!T331 -> 0 | X15: ='Commercial C'!T347 -> 0 | Y15: ='Commercial C'!T363 -> 0 | Z15: ='Commercial C'!T379 -> 0 | AA15: ='Commercial C'!T395 -> 0 | AB15: ='Commercial C'!T411 -> 0 | AC15: ='Commercial C'!T427 -> 0 | AD15: ='Commercial C'!T443 -> 0 | AE15: ='Commercial C'!T459 -> 0 | AF15: ='Commercial C'!T475 -> 0 | AG15: ='Commercial C'!T491 -> 0 | AH15: ='Commercial C'!T507 -> 0 | AI15: ='Commercial C'!T523 -> 0 | AJ15: ='Commercial C'!T539 -> 0 | AK15: ='Commercial C'!T555 -> 0 | AL15: ='Commercial C'!T571 -> 0
B16: Water Heating | C16: ='Commercial C'!T12 -> 0 | D16: ='Commercial C'!T28 -> 0 | E16: ='Commercial C'!T44 -> 0 | F16: ='Commercial C'!T60 -> 0 | G16: ='Commercial C'!T76 -> 0 | H16: ='Commercial C'!T92 -> 0 | I16: ='Commercial C'!T108 -> 0 | J16: ='Commercial C'!T124 -> 0 | K16: ='Commercial C'!T140 -> 0 | L16: ='Commercial C'!T156 -> 0 | M16: ='Commercial C'!T172 -> 0 | N16: ='Commercial C'!T188 -> 0 | O16: ='Commercial C'!T204 -> 0 | P16: ='Commercial C'!T220 -> 0 | Q16: ='Commercial C'!T236 -> 0 | R16: ='Commercial C'!T252 -> 0 | S16: ='Commercial C'!T268 -> 0 | T16: ='Commercial C'!T284 -> 0 | U16: ='Commercial C'!T300 -> 0 | V16: ='Commercial C'!T316 -> 0 | W16: ='Commercial C'!T332 -> 0 | X16: ='Commercial C'!T348 -> 0 | Y16: ='Commercial C'!T364 -> 0 | Z16: ='Commercial C'!T380 -> 0 | AA16: ='Commercial C'!T396 -> 0 | AB16: ='Commercial C'!T412 -> 0 | AC16: ='Commercial C'!T428 -> 0 | AD16: ='Commercial C'!T444 -> 0 | AE16: ='Commercial C'!T460 -> 0 | AF16: ='Commercial C'!T476 -> 0 | AG16: ='Commercial C'!T492 -> 0 | AH16: ='Commercial C'!T508 -> 0 | AI16: ='Commercial C'!T524 -> 0 | AJ16: ='Commercial C'!T540 -> 0 | AK16: ='Commercial C'!T556 -> 0 | AL16: ='Commercial C'!T572 -> 0
B17: Lighting | C17: ='Commercial C'!T13 -> 0 | D17: ='Commercial C'!T29 -> 0 | E17: ='Commercial C'!T45 -> 0 | F17: ='Commercial C'!T61 -> 0 | G17: ='Commercial C'!T77 -> 0 | H17: ='Commercial C'!T93 -> 0 | I17: ='Commercial C'!T109 -> 0 | J17: ='Commercial C'!T125 -> 0 | K17: ='Commercial C'!T141 -> 0 | L17: ='Commercial C'!T157 -> 0 | M17: ='Commercial C'!T173 -> 0 | N17: ='Commercial C'!T189 -> 0 | O17: ='Commercial C'!T205 -> 0 | P17: ='Commercial C'!T221 -> 0 | Q17: ='Commercial C'!T237 -> 0 | R17: ='Commercial C'!T253 -> 0 | S17: ='Commercial C'!T269 -> 0 | T17: ='Commercial C'!T285 -> 0 | U17: ='Commercial C'!T301 -> 0 | V17: ='Commercial C'!T317 -> 0 | W17: ='Commercial C'!T333 -> 0 | X17: ='Commercial C'!T349 -> 0 | Y17: ='Commercial C'!T365 -> 0 | Z17: ='Commercial C'!T381 -> 0 | AA17: ='Commercial C'!T397 -> 0 | AB17: ='Commercial C'!T413 -> 0 | AC17: ='Commercial C'!T429 -> 0 | AD17: ='Commercial C'!T445 -> 0 | AE17: ='Commercial C'!T461 -> 0 | AF17: ='Commercial C'!T477 -> 0 | AG17: ='Commercial C'!T493 -> 0 | AH17: ='Commercial C'!T509 -> 0 | AI17: ='Commercial C'!T525 -> 0 | AJ17: ='Commercial C'!T541 -> 0 | AK17: ='Commercial C'!T557 -> 0 | AL17: ='Commercial C'!T573 -> 0
B18: Cooking | C18: ='Commercial C'!T14 -> 0 | D18: ='Commercial C'!T30 -> 0 | E18: ='Commercial C'!T46 -> 0 | F18: ='Commercial C'!T62 -> 0 | G18: ='Commercial C'!T78 -> 0 | H18: ='Commercial C'!T94 -> 0 | I18: ='Commercial C'!T110 -> 0 | J18: ='Commercial C'!T126 -> 0 | K18: ='Commercial C'!T142 -> 0 | L18: ='Commercial C'!T158 -> 0 | M18: ='Commercial C'!T174 -> 0 | N18: ='Commercial C'!T190 -> 0 | O18: ='Commercial C'!T206 -> 0 | P18: ='Commercial C'!T222 -> 0 | Q18: ='Commercial C'!T238 -> 0 | R18: ='Commercial C'!T254 -> 0 | S18: ='Commercial C'!T270 -> 0 | T18: ='Commercial C'!T286 -> 0 | U18: ='Commercial C'!T302 -> 0 | V18: ='Commercial C'!T318 -> 0 | W18: ='Commercial C'!T334 -> 0 | X18: ='Commercial C'!T350 -> 0 | Y18: ='Commercial C'!T366 -> 0 | Z18: ='Commercial C'!T382 -> 0 | AA18: ='Commercial C'!T398 -> 0 | AB18: ='Commercial C'!T414 -> 0 | AC18: ='Commercial C'!T430 -> 0 | AD18: ='Commercial C'!T446 -> 0 | AE18: ='Commercial C'!T462 -> 0 | AF18: ='Commercial C'!T478 -> 0 | AG18: ='Commercial C'!T494 -> 0 | AH18: ='Commercial C'!T510 -> 0 | AI18: ='Commercial C'!T526 -> 0 | AJ18: ='Commercial C'!T542 -> 0 | AK18: ='Commercial C'!T558 -> 0 | AL18: ='Commercial C'!T574 -> 0
B19: Refrigeration | C19: ='Commercial C'!T15 -> 0 | D19: ='Commercial C'!T31 -> 0 | E19: ='Commercial C'!T47 -> 0 | F19: ='Commercial C'!T63 -> 0 | G19: ='Commercial C'!T79 -> 0 | H19: ='Commercial C'!T95 -> 0 | I19: ='Commercial C'!T111 -> 0 | J19: ='Commercial C'!T127 -> 0 | K19: ='Commercial C'!T143 -> 0 | L19: ='Commercial C'!T159 -> 0 | M19: ='Commercial C'!T175 -> 0 | N19: ='Commercial C'!T191 -> 0 | O19: ='Commercial C'!T207 -> 0 | P19: ='Commercial C'!T223 -> 0 | Q19: ='Commercial C'!T239 -> 0 | R19: ='Commercial C'!T255 -> 0 | S19: ='Commercial C'!T271 -> 0 | T19: ='Commercial C'!T287 -> 0 | U19: ='Commercial C'!T303 -> 0 | V19: ='Commercial C'!T319 -> 0 | W19: ='Commercial C'!T335 -> 0 | X19: ='Commercial C'!T351 -> 0 | Y19: ='Commercial C'!T367 -> 0 | Z19: ='Commercial C'!T383 -> 0 | AA19: ='Commercial C'!T399 -> 0 | AB19: ='Commercial C'!T415 -> 0 | AC19: ='Commercial C'!T431 -> 0 | AD19: ='Commercial C'!T447 -> 0 | AE19: ='Commercial C'!T463 -> 0 | AF19: ='Commercial C'!T479 -> 0 | AG19: ='Commercial C'!T495 -> 0 | AH19: ='Commercial C'!T511 -> 0 | AI19: ='Commercial C'!T527 -> 0 | AJ19: ='Commercial C'!T543 -> 0 | AK19: ='Commercial C'!T559 -> 0 | AL19: ='Commercial C'!T575 -> 0
B20: Office Equipment | C20: ='Commercial C'!T16 -> 0 | D20: ='Commercial C'!T32 -> 0 | E20: ='Commercial C'!T48 -> 0 | F20: ='Commercial C'!T64 -> 0 | G20: ='Commercial C'!T80 -> 0 | H20: ='Commercial C'!T96 -> 0 | I20: ='Commercial C'!T112 -> 0 | J20: ='Commercial C'!T128 -> 0 | K20: ='Commercial C'!T144 -> 0 | L20: ='Commercial C'!T160 -> 0 | M20: ='Commercial C'!T176 -> 0 | N20: ='Commercial C'!T192 -> 0 | O20: ='Commercial C'!T208 -> 0 | P20: ='Commercial C'!T224 -> 0 | Q20: ='Commercial C'!T240 -> 0 | R20: ='Commercial C'!T256 -> 0 | S20: ='Commercial C'!T272 -> 0 | T20: ='Commercial C'!T288 -> 0 | U20: ='Commercial C'!T304 -> 0 | V20: ='Commercial C'!T320 -> 0 | W20: ='Commercial C'!T336 -> 0 | X20: ='Commercial C'!T352 -> 0 | Y20: ='Commercial C'!T368 -> 0 | Z20: ='Commercial C'!T384 -> 0 | AA20: ='Commercial C'!T400 -> 0 | AB20: ='Commercial C'!T416 -> 0 | AC20: ='Commercial C'!T432 -> 0 | AD20: ='Commercial C'!T448 -> 0 | AE20: ='Commercial C'!T464 -> 0 | AF20: ='Commercial C'!T480 -> 0 | AG20: ='Commercial C'!T496 -> 0 | AH20: ='Commercial C'!T512 -> 0 | AI20: ='Commercial C'!T528 -> 0 | AJ20: ='Commercial C'!T544 -> 0 | AK20: ='Commercial C'!T560 -> 0 | AL20: ='Commercial C'!T576 -> 0
B21: Computers | C21: ='Commercial C'!T17 -> 0 | D21: ='Commercial C'!T33 -> 0 | E21: ='Commercial C'!T49 -> 0 | F21: ='Commercial C'!T65 -> 0 | G21: ='Commercial C'!T81 -> 0 | H21: ='Commercial C'!T97 -> 0 | I21: ='Commercial C'!T113 -> 0 | J21: ='Commercial C'!T129 -> 0 | K21: ='Commercial C'!T145 -> 0 | L21: ='Commercial C'!T161 -> 0 | M21: ='Commercial C'!T177 -> 0 | N21: ='Commercial C'!T193 -> 0 | O21: ='Commercial C'!T209 -> 0 | P21: ='Commercial C'!T225 -> 0 | Q21: ='Commercial C'!T241 -> 0 | R21: ='Commercial C'!T257 -> 0 | S21: ='Commercial C'!T273 -> 0 | T21: ='Commercial C'!T289 -> 0 | U21: ='Commercial C'!T305 -> 0 | V21: ='Commercial C'!T321 -> 0 | W21: ='Commercial C'!T337 -> 0 | X21: ='Commercial C'!T353 -> 0 | Y21: ='Commercial C'!T369 -> 0 | Z21: ='Commercial C'!T385 -> 0 | AA21: ='Commercial C'!T401 -> 0 | AB21: ='Commercial C'!T417 -> 0 | AC21: ='Commercial C'!T433 -> 0 | AD21: ='Commercial C'!T449 -> 0 | AE21: ='Commercial C'!T465 -> 0 | AF21: ='Commercial C'!T481 -> 0 | AG21: ='Commercial C'!T497 -> 0 | AH21: ='Commercial C'!T513 -> 0 | AI21: ='Commercial C'!T529 -> 0 | AJ21: ='Commercial C'!T545 -> 0 | AK21: ='Commercial C'!T561 -> 0 | AL21: ='Commercial C'!T577 -> 0
B22: Other | C22: ='Commercial C'!T18 -> 0 | D22: ='Commercial C'!T34 -> 0 | E22: ='Commercial C'!T50 -> 0 | F22: ='Commercial C'!T66 -> 0 | G22: ='Commercial C'!T82 -> 0 | H22: ='Commercial C'!T98 -> 0 | I22: ='Commercial C'!T114 -> 0 | J22: ='Commercial C'!T130 -> 0 | K22: ='Commercial C'!T146 -> 0 | L22: ='Commercial C'!T162 -> 0 | M22: ='Commercial C'!T178 -> 0 | N22: ='Commercial C'!T194 -> 0 | O22: ='Commercial C'!T210 -> 0 | P22: ='Commercial C'!T226 -> 0 | Q22: ='Commercial C'!T242 -> 0 | R22: ='Commercial C'!T258 -> 0 | S22: ='Commercial C'!T274 -> 0 | T22: ='Commercial C'!T290 -> 0 | U22: ='Commercial C'!T306 -> 0 | V22: ='Commercial C'!T322 -> 0 | W22: ='Commercial C'!T338 -> 0 | X22: ='Commercial C'!T354 -> 0 | Y22: ='Commercial C'!T370 -> 0 | Z22: ='Commercial C'!T386 -> 0 | AA22: ='Commercial C'!T402 -> 0 | AB22: ='Commercial C'!T418 -> 0 | AC22: ='Commercial C'!T434 -> 0 | AD22: ='Commercial C'!T450 -> 0 | AE22: ='Commercial C'!T466 -> 0 | AF22: ='Commercial C'!T482 -> 0 | AG22: ='Commercial C'!T498 -> 0 | AH22: ='Commercial C'!T514 -> 0 | AI22: ='Commercial C'!T530 -> 0 | AJ22: ='Commercial C'!T546 -> 0 | AK22: ='Commercial C'!T562 -> 0 | AL22: ='Commercial C'!T578 -> 0
B23: Industrial | C23: =SUM(C24,C27,C33,C39) -> 0 | D23: 0 | E23: 0 | F23: 0 | G23: 0 | H23: 0 | I23: 0 | J23: 0 | K23: 0 | L23: 0 | M23: =SUM(M24,M27,M33,M39) -> 0 | N23: =SUM(N24,N27,N33,N39) -> 0 | O23: 0 | P23: 0 | Q23: 0 | R23: 0 | S23: 0 | T23: 0 | U23: 0 | V23: 0 | W23: 0 | X23: 0 | Y23: 0 | Z23: 0 | AA23: 0 | AB23: 0 | AC23: 0 | AD23: 0 | AE23: 0 | AF23: 0 | AG23: 0 | AH23: =SUM(AH24,AH27,AH33,AH39) -> 0 | AI23: 0 | AJ23: 0 | AK23: 0 | AL23: 0
B24: Indirect Uses-Boiler Fuel | C24: =SUM(C25:C26) -> 0 | D24: 0 | E24: 0 | F24: 0 | G24: 0 | H24: 0 | I24: 0 | J24: 0 | K24: 0 | L24: 0 | M24: =SUM(M25:M26) -> 0 | N24: =SUM(N25:N26) -> 0 | O24: 0 | P24: 0 | Q24: 0 | R24: 0 | S24: 0 | T24: 0 | U24: 0 | V24: 0 | W24: 0 | X24: 0 | Y24: 0 | Z24: 0 | AA24: 0 | AB24: 0 | AC24: 0 | AD24: 0 | AE24: 0 | AF24: 0 | AG24: 0 | AH24: =SUM(AH25:AH26) -> 0 | AI24: 0 | AJ24: 0 | AK24: 0 | AL24: 0
B25: Conventional Boiler Use | C25: ='Industrial C'!T10 -> 0 | D25: ='Industrial C'!T32 -> 0 | E25: ='Industrial C'!T54 -> 0 | F25: ='Industrial C'!T76 -> 0 | G25: ='Industrial C'!T98 -> 0 | H25: ='Industrial C'!T120 -> 0 | I25: ='Industrial C'!T142 -> 0 | J25: ='Industrial C'!T164 -> 0 | K25: ='Industrial C'!T186 -> 0 | L25: ='Industrial C'!T208 -> 0 | M25: ='Industrial C'!T230 -> 0 | N25: ='Industrial C'!T252 -> 0 | O25: ='Industrial C'!T274 -> 0 | P25: ='Industrial C'!T296 -> 0 | Q25: ='Industrial C'!T318 -> 0 | R25: ='Industrial C'!T340 -> 0 | S25: ='Industrial C'!T362 -> 0 | T25: ='Industrial C'!T384 -> 0 | U25: ='Industrial C'!T406 -> 0 | V25: ='Industrial C'!T428 -> 0 | W25: ='Industrial C'!T450 -> 0 | X25: ='Industrial C'!T472 -> 0 | Y25: ='Industrial C'!T494 -> 0 | Z25: ='Industrial C'!T516 -> 0 | AA25: ='Industrial C'!T538 -> 0 | AB25: ='Industrial C'!T560 -> 0 | AC25: ='Industrial C'!T582 -> 0 | AD25: ='Industrial C'!T604 -> 0 | AE25: ='Industrial C'!T626 -> 0 | AF25: ='Industrial C'!T648 -> 0 | AG25: ='Industrial C'!T670 -> 0 | AH25: ='Industrial C'!T692 -> 0 | AI25: ='Industrial C'!T714 -> 0 | AJ25: ='Industrial C'!T736 -> 0 | AK25: ='Industrial C'!T758 -> 0 | AL25: ='Industrial C'!T780 -> 0
B26: CHP and/or Cogeneration Process | C26: ='Industrial C'!T11 -> 0 | D26: ='Industrial C'!T33 -> 0 | E26: ='Industrial C'!T55 -> 0 | F26: ='Industrial C'!T77 -> 0 | G26: ='Industrial C'!T99 -> 0 | H26: ='Industrial C'!T121 -> 0 | I26: ='Industrial C'!T143 -> 0 | J26: ='Industrial C'!T165 -> 0 | K26: ='Industrial C'!T187 -> 0 | L26: ='Industrial C'!T209 -> 0 | M26: ='Industrial C'!T231 -> 0 | N26: ='Industrial C'!T253 -> 0 | O26: ='Industrial C'!T275 -> 0 | P26: ='Industrial C'!T297 -> 0 | Q26: ='Industrial C'!T319 -> 0 | R26: ='Industrial C'!T341 -> 0 | S26: ='Industrial C'!T363 -> 0 | T26: ='Industrial C'!T385 -> 0 | U26: ='Industrial C'!T407 -> 0 | V26: ='Industrial C'!T429 -> 0 | W26: ='Industrial C'!T451 -> 0 | X26: ='Industrial C'!T473 -> 0 | Y26: ='Industrial C'!T495 -> 0 | Z26: ='Industrial C'!T517 -> 0 | AA26: ='Industrial C'!T539 -> 0 | AB26: ='Industrial C'!T561 -> 0 | AC26: ='Industrial C'!T583 -> 0 | AD26: ='Industrial C'!T605 -> 0 | AE26: ='Industrial C'!T627 -> 0 | AF26: ='Industrial C'!T649 -> 0 | AG26: ='Industrial C'!T671 -> 0 | AH26: ='Industrial C'!T693 -> 0 | AI26: ='Industrial C'!T715 -> 0 | AJ26: ='Industrial C'!T737 -> 0 | AK26: ='Industrial C'!T759 -> 0 | AL26: ='Industrial C'!T781 -> 0
B27: Direct Uses-Total Process | C27: =SUM(C28:C32) -> 0 | D27: 0 | E27: 0 | F27: 0 | G27: 0 | H27: 0 | I27: 0 | J27: 0 | K27: 0 | L27: 0 | M27: =SUM(M28:M32) -> 0 | N27: =SUM(N28:N32) -> 0 | O27: 0 | P27: 0 | Q27: 0 | R27: 0 | S27: 0 | T27: 0 | U27: 0 | V27: 0 | W27: 0 | X27: 0 | Y27: 0 | Z27: 0 | AA27: 0 | AB27: 0 | AC27: 0 | AD27: 0 | AE27: 0 | AF27: 0 | AG27: 0 | AH27: 0 | AI27: 0 | AJ27: 0 | AK27: 0 | AL27: 0
B28: Process Heating | C28: ='Industrial C'!T13 -> 0 | D28: ='Industrial C'!T35 -> 0 | E28: ='Industrial C'!T57 -> 0 | F28: ='Industrial C'!T79 -> 0 | G28: ='Industrial C'!T101 -> 0 | H28: ='Industrial C'!T123 -> 0 | I28: ='Industrial C'!T145 -> 0 | J28: ='Industrial C'!T167 -> 0 | K28: ='Industrial C'!T189 -> 0 | L28: ='Industrial C'!T211 -> 0 | M28: ='Industrial C'!T233 -> 0 | N28: ='Industrial C'!T255 -> 0 | O28: ='Industrial C'!T277 -> 0 | P28: ='Industrial C'!T299 -> 0 | Q28: ='Industrial C'!T321 -> 0 | R28: ='Industrial C'!T343 -> 0 | S28: ='Industrial C'!T365 -> 0 | T28: ='Industrial C'!T387 -> 0 | U28: ='Industrial C'!T409 -> 0 | V28: ='Industrial C'!T431 -> 0 | W28: ='Industrial C'!T453 -> 0 | X28: ='Industrial C'!T475 -> 0 | Y28: ='Industrial C'!T497 -> 0 | Z28: ='Industrial C'!T519 -> 0 | AA28: ='Industrial C'!T541 -> 0 | AB28: ='Industrial C'!T563 -> 0 | AC28: ='Industrial C'!T585 -> 0 | AD28: ='Industrial C'!T607 -> 0 | AE28: ='Industrial C'!T629 -> 0 | AF28: ='Industrial C'!T651 -> 0 | AG28: ='Industrial C'!T673 -> 0 | AH28: ='Industrial C'!T695 -> 0 | AI28: ='Industrial C'!T717 -> 0 | AJ28: ='Industrial C'!T739 -> 0 | AK28: ='Industrial C'!T761 -> 0 | AL28: ='Industrial C'!T783 -> 0
B29: Process Cooling and Refrigeration | C29: ='Industrial C'!T14 -> 0 | D29: ='Industrial C'!T36 -> 0 | E29: ='Industrial C'!T58 -> 0 | F29: ='Industrial C'!T80 -> 0 | G29: ='Industrial C'!T102 -> 0 | H29: ='Industrial C'!T124 -> 0 | I29: ='Industrial C'!T146 -> 0 | J29: ='Industrial C'!T168 -> 0 | K29: ='Industrial C'!T190 -> 0 | L29: ='Industrial C'!T212 -> 0 | M29: ='Industrial C'!T234 -> 0 | N29: ='Industrial C'!T256 -> 0 | O29: ='Industrial C'!T278 -> 0 | P29: ='Industrial C'!T300 -> 0 | Q29: ='Industrial C'!T322 -> 0 | R29: ='Industrial C'!T344 -> 0 | S29: ='Industrial C'!T366 -> 0 | T29: ='Industrial C'!T388 -> 0 | U29: ='Industrial C'!T410 -> 0 | V29: ='Industrial C'!T432 -> 0 | W29: ='Industrial C'!T454 -> 0 | X29: ='Industrial C'!T476 -> 0 | Y29: ='Industrial C'!T498 -> 0 | Z29: ='Industrial C'!T520 -> 0 | AA29: ='Industrial C'!T542 -> 0 | AB29: ='Industrial C'!T564 -> 0 | AC29: ='Industrial C'!T586 -> 0 | AD29: ='Industrial C'!T608 -> 0 | AE29: ='Industrial C'!T630 -> 0 | AF29: ='Industrial C'!T652 -> 0 | AG29: ='Industrial C'!T674 -> 0 | AH29: ='Industrial C'!T696 -> 0 | AI29: ='Industrial C'!T718 -> 0 | AJ29: ='Industrial C'!T740 -> 0 | AK29: ='Industrial C'!T762 -> 0 | AL29: ='Industrial C'!T784 -> 0
B30: Machine Drive | C30: ='Industrial C'!T15 -> 0 | D30: ='Industrial C'!T37 -> 0 | E30: ='Industrial C'!T59 -> 0 | F30: ='Industrial C'!T81 -> 0 | G30: ='Industrial C'!T103 -> 0 | H30: ='Industrial C'!T125 -> 0 | I30: ='Industrial C'!T147 -> 0 | J30: ='Industrial C'!T169 -> 0 | K30: ='Industrial C'!T191 -> 0 | L30: ='Industrial C'!T213 -> 0 | M30: ='Industrial C'!T235 -> 0 | N30: ='Industrial C'!T257 -> 0 | O30: ='Industrial C'!T279 -> 0 | P30: ='Industrial C'!T301 -> 0 | Q30: ='Industrial C'!T323 -> 0 | R30: ='Industrial C'!T345 -> 0 | S30: ='Industrial C'!T367 -> 0 | T30: ='Industrial C'!T389 -> 0 | U30: ='Industrial C'!T411 -> 0 | V30: ='Industrial C'!T433 -> 0 | W30: ='Industrial C'!T455 -> 0 | X30: ='Industrial C'!T477 -> 0 | Y30: ='Industrial C'!T499 -> 0 | Z30: ='Industrial C'!T521 -> 0 | AA30: ='Industrial C'!T543 -> 0 | AB30: ='Industrial C'!T565 -> 0 | AC30: ='Industrial C'!T587 -> 0 | AD30: ='Industrial C'!T609 -> 0 | AE30: ='Industrial C'!T631 -> 0 | AF30: ='Industrial C'!T653 -> 0 | AG30: ='Industrial C'!T675 -> 0 | AH30: ='Industrial C'!T697 -> 0 | AI30: ='Industrial C'!T719 -> 0 | AJ30: ='Industrial C'!T741 -> 0 | AK30: ='Industrial C'!T763 -> 0 | AL30: ='Industrial C'!T785 -> 0
B31: Electro-Chemical Processes | C31: ='Industrial C'!T16 -> 0 | D31: ='Industrial C'!T38 -> 0 | E31: ='Industrial C'!T60 -> 0 | F31: ='Industrial C'!T82 -> 0 | G31: ='Industrial C'!T104 -> 0 | H31: ='Industrial C'!T126 -> 0 | I31: ='Industrial C'!T148 -> 0 | J31: ='Industrial C'!T170 -> 0 | K31: ='Industrial C'!T192 -> 0 | L31: ='Industrial C'!T214 -> 0 | M31: ='Industrial C'!T236 -> 0 | N31: ='Industrial C'!T258 -> 0 | O31: ='Industrial C'!T280 -> 0 | P31: ='Industrial C'!T302 -> 0 | Q31: ='Industrial C'!T324 -> 0 | R31: ='Industrial C'!T346 -> 0 | S31: ='Industrial C'!T368 -> 0 | T31: ='Industrial C'!T390 -> 0 | U31: ='Industrial C'!T412 -> 0 | V31: ='Industrial C'!T434 -> 0 | W31: ='Industrial C'!T456 -> 0 | X31: ='Industrial C'!T478 -> 0 | Y31: ='Industrial C'!T500 -> 0 | Z31: ='Industrial C'!T522 -> 0 | AA31: ='Industrial C'!T544 -> 0 | AB31: ='Industrial C'!T566 -> 0 | AC31: ='Industrial C'!T588 -> 0 | AD31: ='Industrial C'!T610 -> 0 | AE31: ='Industrial C'!T632 -> 0 | AF31: ='Industrial C'!T654 -> 0 | AG31: ='Industrial C'!T676 -> 0 | AH31: ='Industrial C'!T698 -> 0 | AI31: ='Industrial C'!T720 -> 0 | AJ31: ='Industrial C'!T742 -> 0 | AK31: ='Industrial C'!T764 -> 0 | AL31: ='Industrial C'!T786 -> 0
B32: Other Process Use | C32: ='Industrial C'!T17 -> 0 | D32: ='Industrial C'!T39 -> 0 | E32: ='Industrial C'!T61 -> 0 | F32: ='Industrial C'!T83 -> 0 | G32: ='Industrial C'!T105 -> 0 | H32: ='Industrial C'!T127 -> 0 | I32: ='Industrial C'!T149 -> 0 | J32: ='Industrial C'!T171 -> 0 | K32: ='Industrial C'!T193 -> 0 | L32: ='Industrial C'!T215 -> 0 | M32: ='Industrial C'!T237 -> 0 | N32: ='Industrial C'!T259 -> 0 | O32: ='Industrial C'!T281 -> 0 | P32: ='Industrial C'!T303 -> 0 | Q32: ='Industrial C'!T325 -> 0 | R32: ='Industrial C'!T347 -> 0 | S32: ='Industrial C'!T369 -> 0 | T32: ='Industrial C'!T391 -> 0 | U32: ='Industrial C'!T413 -> 0 | V32: ='Industrial C'!T435 -> 0 | W32: ='Industrial C'!T457 -> 0 | X32: ='Industrial C'!T479 -> 0 | Y32: ='Industrial C'!T501 -> 0 | Z32: ='Industrial C'!T523 -> 0 | AA32: ='Industrial C'!T545 -> 0 | AB32: ='Industrial C'!T567 -> 0 | AC32: ='Industrial C'!T589 -> 0 | AD32: ='Industrial C'!T611 -> 0 | AE32: ='Industrial C'!T633 -> 0 | AF32: ='Industrial C'!T655 -> 0 | AG32: ='Industrial C'!T677 -> 0 | AH32: ='Industrial C'!T699 -> 0 | AI32: ='Industrial C'!T721 -> 0 | AJ32: ='Industrial C'!T743 -> 0 | AK32: ='Industrial C'!T765 -> 0 | AL32: ='Industrial C'!T787 -> 0
B33: Direct Uses-Total Nonprocess | C33: =SUM(C34:C38) -> 0 | D33: 0 | E33: 0 | F33: 0 | G33: 0 | H33: 0 | I33: 0 | J33: 0 | K33: 0 | L33: 0 | M33: =SUM(M34:M38) -> 0 | N33: =SUM(N34:N38) -> 0 | O33: 0 | P33: 0 | Q33: 0 | R33: 0 | S33: 0 | T33: 0 | U33: 0 | V33: 0 | W33: 0 | X33: 0 | Y33: 0 | Z33: 0 | AA33: 0 | AB33: 0 | AC33: 0 | AD33: 0 | AE33: 0 | AF33: 0 | AG33: 0 | AH33: 0 | AI33: 0 | AJ33: 0 | AK33: 0 | AL33: 0
B34: Facility HVAC | C34: ='Industrial C'!T19 -> 0 | D34: ='Industrial C'!T41 -> 0 | E34: ='Industrial C'!T63 -> 0 | F34: ='Industrial C'!T85 -> 0 | G34: ='Industrial C'!T107 -> 0 | H34: ='Industrial C'!T129 -> 0 | I34: ='Industrial C'!T151 -> 0 | J34: ='Industrial C'!T173 -> 0 | K34: ='Industrial C'!T195 -> 0 | L34: ='Industrial C'!T217 -> 0 | M34: ='Industrial C'!T239 -> 0 | N34: ='Industrial C'!T261 -> 0 | O34: ='Industrial C'!T283 -> 0 | P34: ='Industrial C'!T305 -> 0 | Q34: ='Industrial C'!T327 -> 0 | R34: ='Industrial C'!T349 -> 0 | S34: ='Industrial C'!T371 -> 0 | T34: ='Industrial C'!T393 -> 0 | U34: ='Industrial C'!T415 -> 0 | V34: ='Industrial C'!T437 -> 0 | W34: ='Industrial C'!T459 -> 0 | X34: ='Industrial C'!T481 -> 0 | Y34: ='Industrial C'!T503 -> 0 | Z34: ='Industrial C'!T525 -> 0 | AA34: ='Industrial C'!T547 -> 0 | AB34: ='Industrial C'!T569 -> 0 | AC34: ='Industrial C'!T591 -> 0 | AD34: ='Industrial C'!T613 -> 0 | AE34: ='Industrial C'!T635 -> 0 | AF34: ='Industrial C'!T657 -> 0 | AG34: ='Industrial C'!T679 -> 0 | AH34: ='Industrial C'!T701 -> 0 | AI34: ='Industrial C'!T723 -> 0 | AJ34: ='Industrial C'!T745 -> 0 | AK34: ='Industrial C'!T767 -> 0 | AL34: ='Industrial C'!T789 -> 0
B35: Facility Lighting | C35: ='Industrial C'!T20 -> 0 | D35: ='Industrial C'!T42 -> 0 | E35: ='Industrial C'!T64 -> 0 | F35: ='Industrial C'!T86 -> 0 | G35: ='Industrial C'!T108 -> 0 | H35: ='Industrial C'!T130 -> 0 | I35: ='Industrial C'!T152 -> 0 | J35: ='Industrial C'!T174 -> 0 | K35: ='Industrial C'!T196 -> 0 | L35: ='Industrial C'!T218 -> 0 | M35: ='Industrial C'!T240 -> 0 | N35: ='Industrial C'!T262 -> 0 | O35: ='Industrial C'!T284 -> 0 | P35: ='Industrial C'!T306 -> 0 | Q35: ='Industrial C'!T328 -> 0 | R35: ='Industrial C'!T350 -> 0 | S35: ='Industrial C'!T372 -> 0 | T35: ='Industrial C'!T394 -> 0 | U35: ='Industrial C'!T416 -> 0 | V35: ='Industrial C'!T438 -> 0 | W35: ='Industrial C'!T460 -> 0 | X35: ='Industrial C'!T482 -> 0 | Y35: ='Industrial C'!T504 -> 0 | Z35: ='Industrial C'!T526 -> 0 | AA35: ='Industrial C'!T548 -> 0 | AB35: ='Industrial C'!T570 -> 0 | AC35: ='Industrial C'!T592 -> 0 | AD35: ='Industrial C'!T614 -> 0 | AE35: ='Industrial C'!T636 -> 0 | AF35: ='Industrial C'!T658 -> 0 | AG35: ='Industrial C'!T680 -> 0 | AH35: ='Industrial C'!T702 -> 0 | AI35: ='Industrial C'!T724 -> 0 | AJ35: ='Industrial C'!T746 -> 0 | AK35: ='Industrial C'!T768 -> 0 | AL35: ='Industrial C'!T790 -> 0
B36: Other Facility Support | C36: ='Industrial C'!T21 -> 0 | D36: ='Industrial C'!T43 -> 0 | E36: ='Industrial C'!T65 -> 0 | F36: ='Industrial C'!T87 -> 0 | G36: ='Industrial C'!T109 -> 0 | H36: ='Industrial C'!T131 -> 0 | I36: ='Industrial C'!T153 -> 0 | J36: ='Industrial C'!T175 -> 0 | K36: ='Industrial C'!T197 -> 0 | L36: ='Industrial C'!T219 -> 0 | M36: ='Industrial C'!T241 -> 0 | N36: ='Industrial C'!T263 -> 0 | O36: ='Industrial C'!T285 -> 0 | P36: ='Industrial C'!T307 -> 0 | Q36: ='Industrial C'!T329 -> 0 | R36: ='Industrial C'!T351 -> 0 | S36: ='Industrial C'!T373 -> 0 | T36: ='Industrial C'!T395 -> 0 | U36: ='Industrial C'!T417 -> 0 | V36: ='Industrial C'!T439 -> 0 | W36: ='Industrial C'!T461 -> 0 | X36: ='Industrial C'!T483 -> 0 | Y36: ='Industrial C'!T505 -> 0 | Z36: ='Industrial C'!T527 -> 0 | AA36: ='Industrial C'!T549 -> 0 | AB36: ='Industrial C'!T571 -> 0 | AC36: ='Industrial C'!T593 -> 0 | AD36: ='Industrial C'!T615 -> 0 | AE36: ='Industrial C'!T637 -> 0 | AF36: ='Industrial C'!T659 -> 0 | AG36: ='Industrial C'!T681 -> 0 | AH36: ='Industrial C'!T703 -> 0 | AI36: ='Industrial C'!T725 -> 0 | AJ36: ='Industrial C'!T747 -> 0 | AK36: ='Industrial C'!T769 -> 0 | AL36: ='Industrial C'!T791 -> 0
B37: Onsite Transportation | C37: ='Industrial C'!T22 -> 0 | D37: ='Industrial C'!T44 -> 0 | E37: ='Industrial C'!T66 -> 0 | F37: ='Industrial C'!T88 -> 0 | G37: ='Industrial C'!T110 -> 0 | H37: ='Industrial C'!T132 -> 0 | I37: ='Industrial C'!T154 -> 0 | J37: ='Industrial C'!T176 -> 0 | K37: ='Industrial C'!T198 -> 0 | L37: ='Industrial C'!T220 -> 0 | M37: ='Industrial C'!T242 -> 0 | N37: ='Industrial C'!T264 -> 0 | O37: ='Industrial C'!T286 -> 0 | P37: ='Industrial C'!T308 -> 0 | Q37: ='Industrial C'!T330 -> 0 | R37: ='Industrial C'!T352 -> 0 | S37: ='Industrial C'!T374 -> 0 | T37: ='Industrial C'!T396 -> 0 | U37: ='Industrial C'!T418 -> 0 | V37: ='Industrial C'!T440 -> 0 | W37: ='Industrial C'!T462 -> 0 | X37: ='Industrial C'!T484 -> 0 | Y37: ='Industrial C'!T506 -> 0 | Z37: ='Industrial C'!T528 -> 0 | AA37: ='Industrial C'!T550 -> 0 | AB37: ='Industrial C'!T572 -> 0 | AC37: ='Industrial C'!T594 -> 0 | AD37: ='Industrial C'!T616 -> 0 | AE37: ='Industrial C'!T638 -> 0 | AF37: ='Industrial C'!T660 -> 0 | AG37: ='Industrial C'!T682 -> 0 | AH37: ='Industrial C'!T704 -> 0 | AI37: ='Industrial C'!T726 -> 0 | AJ37: ='Industrial C'!T748 -> 0 | AK37: ='Industrial C'!T770 -> 0 | AL37: ='Industrial C'!T792 -> 0
B38: Other Nonprocess Use | C38: ='Industrial C'!T23 -> 0 | D38: ='Industrial C'!T45 -> 0 | E38: ='Industrial C'!T67 -> 0 | F38: ='Industrial C'!T89 -> 0 | G38: ='Industrial C'!T111 -> 0 | H38: ='Industrial C'!T133 -> 0 | I38: ='Industrial C'!T155 -> 0 | J38: ='Industrial C'!T177 -> 0 | K38: ='Industrial C'!T199 -> 0 | L38: ='Industrial C'!T221 -> 0 | M38: ='Industrial C'!T243 -> 0 | N38: ='Industrial C'!T265 -> 0 | O38: ='Industrial C'!T287 -> 0 | P38: ='Industrial C'!T309 -> 0 | Q38: ='Industrial C'!T331 -> 0 | R38: ='Industrial C'!T353 -> 0 | S38: ='Industrial C'!T375 -> 0 | T38: ='Industrial C'!T397 -> 0 | U38: ='Industrial C'!T419 -> 0 | V38: ='Industrial C'!T441 -> 0 | W38: ='Industrial C'!T463 -> 0 | X38: ='Industrial C'!T485 -> 0 | Y38: ='Industrial C'!T507 -> 0 | Z38: ='Industrial C'!T529 -> 0 | AA38: ='Industrial C'!T551 -> 0 | AB38: ='Industrial C'!T573 -> 0 | AC38: ='Industrial C'!T595 -> 0 | AD38: ='Industrial C'!T617 -> 0 | AE38: ='Industrial C'!T639 -> 0 | AF38: ='Industrial C'!T661 -> 0 | AG38: ='Industrial C'!T683 -> 0 | AH38: ='Industrial C'!T705 -> 0 | AI38: ='Industrial C'!T727 -> 0 | AJ38: ='Industrial C'!T749 -> 0 | AK38: ='Industrial C'!T771 -> 0 | AL38: ='Industrial C'!T793 -> 0
B39: Other | C39: ='Industrial C'!T24 -> 0 | D39: ='Industrial C'!T46 -> 0 | E39: ='Industrial C'!T68 -> 0 | F39: ='Industrial C'!T90 -> 0 | G39: ='Industrial C'!T112 -> 0 | H39: ='Industrial C'!T134 -> 0 | I39: ='Industrial C'!T156 -> 0 | J39: ='Industrial C'!T178 -> 0 | K39: ='Industrial C'!T200 -> 0 | L39: ='Industrial C'!T222 -> 0 | M39: ='Industrial C'!T244 -> 0 | N39: ='Industrial C'!T266 -> 0 | O39: ='Industrial C'!T288 -> 0 | P39: ='Industrial C'!T310 -> 0 | Q39: ='Industrial C'!T332 -> 0 | R39: ='Industrial C'!T354 -> 0 | S39: ='Industrial C'!T376 -> 0 | T39: ='Industrial C'!T398 -> 0 | U39: ='Industrial C'!T420 -> 0 | V39: ='Industrial C'!T442 -> 0 | W39: ='Industrial C'!T464 -> 0 | X39: ='Industrial C'!T486 -> 0 | Y39: ='Industrial C'!T508 -> 0 | Z39: ='Industrial C'!T530 -> 0 | AA39: ='Industrial C'!T552 -> 0 | AB39: ='Industrial C'!T574 -> 0 | AC39: ='Industrial C'!T596 -> 0 | AD39: ='Industrial C'!T618 -> 0 | AE39: ='Industrial C'!T640 -> 0 | AF39: ='Industrial C'!T662 -> 0 | AG39: ='Industrial C'!T684 -> 0 | AH39: ='Industrial C'!T706 -> 0 | AI39: ='Industrial C'!T728 -> 0 | AJ39: ='Industrial C'!T750 -> 0 | AK39: ='Industrial C'!T772 -> 0 | AL39: ='Industrial C'!T794 -> 0
B40: Transportation | C40: =SUM(C41:C49) -> 0 | D40: 0 | E40: 0 | F40: 0 | G40: 0 | H40: 0 | I40: 0 | J40: 0 | K40: 0 | L40: 0 | M40: =SUM(M41:M49) -> 0 | N40: =SUM(N41:N49) -> 0 | O40: 0 | P40: 0 | Q40: 0 | R40: 0 | S40: 0 | T40: 0 | U40: 0 | V40: 0 | W40: 0 | X40: 0 | Y40: 0 | Z40: 0 | AA40: 0 | AB40: 0 | AC40: 0 | AD40: 0 | AE40: 0 | AF40: 0 | AG40: 0 | AH40: 0 | AI40: 0 | AJ40: 0 | AK40: 0 | AL40: 0
B41: Automated Guideway | C41: ='Transportation C'!T9 -> 0 | D41: ='Transportation C'!T24 -> 0 | E41: ='Transportation C'!T39 -> 0 | F41: ='Transportation C'!T54 -> 0 | G41: ='Transportation C'!T69 -> 0 | H41: ='Transportation C'!T84 -> 0 | I41: ='Transportation C'!T99 -> 0 | J41: ='Transportation C'!T114 -> 0 | K41: ='Transportation C'!T129 -> 0 | L41: ='Transportation C'!T144 -> 0 | M41: ='Transportation C'!T159 -> 0 | N41: ='Transportation C'!T174 -> 0 | O41: ='Transportation C'!T189 -> 0 | P41: ='Transportation C'!T204 -> 0 | Q41: ='Transportation C'!T219 -> 0 | R41: ='Transportation C'!T234 -> 0 | S41: ='Transportation C'!T249 -> 0 | T41: ='Transportation C'!T264 -> 0 | U41: ='Transportation C'!T279 -> 0 | V41: ='Transportation C'!T294 -> 0 | W41: ='Transportation C'!T309 -> 0 | X41: ='Transportation C'!T324 -> 0 | Y41: ='Transportation C'!T339 -> 0 | Z41: ='Transportation C'!T354 -> 0 | AA41: ='Transportation C'!T369 -> 0 | AB41: ='Transportation C'!T384 -> 0 | AC41: ='Transportation C'!T399 -> 0 | AD41: ='Transportation C'!T414 -> 0 | AE41: ='Transportation C'!T429 -> 0 | AF41: ='Transportation C'!T444 -> 0 | AG41: ='Transportation C'!T459 -> 0 | AH41: ='Transportation C'!T474 -> 0 | AI41: ='Transportation C'!T489 -> 0 | AJ41: ='Transportation C'!T504 -> 0 | AK41: ='Transportation C'!T519 -> 0 | AL41: ='Transportation C'!T534 -> 0
B42: Bus (charged batteries) | C42: ='Transportation C'!T10 -> 0 | D42: ='Transportation C'!T25 -> 0 | E42: ='Transportation C'!T40 -> 0 | F42: ='Transportation C'!T55 -> 0 | G42: ='Transportation C'!T70 -> 0 | H42: ='Transportation C'!T85 -> 0 | I42: ='Transportation C'!T100 -> 0 | J42: ='Transportation C'!T115 -> 0 | K42: ='Transportation C'!T130 -> 0 | L42: ='Transportation C'!T145 -> 0 | M42: ='Transportation C'!T160 -> 0 | N42: ='Transportation C'!T175 -> 0 | O42: ='Transportation C'!T190 -> 0 | P42: ='Transportation C'!T205 -> 0 | Q42: ='Transportation C'!T220 -> 0 | R42: ='Transportation C'!T235 -> 0 | S42: ='Transportation C'!T250 -> 0 | T42: ='Transportation C'!T265 -> 0 | U42: ='Transportation C'!T280 -> 0 | V42: ='Transportation C'!T295 -> 0 | W42: ='Transportation C'!T310 -> 0 | X42: ='Transportation C'!T325 -> 0 | Y42: ='Transportation C'!T340 -> 0 | Z42: ='Transportation C'!T355 -> 0 | AA42: ='Transportation C'!T370 -> 0 | AB42: ='Transportation C'!T385 -> 0 | AC42: ='Transportation C'!T400 -> 0 | AD42: ='Transportation C'!T415 -> 0 | AE42: ='Transportation C'!T430 -> 0 | AF42: ='Transportation C'!T445 -> 0 | AG42: ='Transportation C'!T460 -> 0 | AH42: ='Transportation C'!T475 -> 0 | AI42: ='Transportation C'!T490 -> 0 | AJ42: ='Transportation C'!T505 -> 0 | AK42: ='Transportation C'!T520 -> 0 | AL42: ='Transportation C'!T535 -> 0
B43: Cable Car | C43: ='Transportation C'!T11 -> 0 | D43: ='Transportation C'!T26 -> 0 | E43: ='Transportation C'!T41 -> 0 | F43: ='Transportation C'!T56 -> 0 | G43: ='Transportation C'!T71 -> 0 | H43: ='Transportation C'!T86 -> 0 | I43: ='Transportation C'!T101 -> 0 | J43: ='Transportation C'!T116 -> 0 | K43: ='Transportation C'!T131 -> 0 | L43: ='Transportation C'!T146 -> 0 | M43: ='Transportation C'!T161 -> 0 | N43: ='Transportation C'!T176 -> 0 | O43: ='Transportation C'!T191 -> 0 | P43: ='Transportation C'!T206 -> 0 | Q43: ='Transportation C'!T221 -> 0 | R43: ='Transportation C'!T236 -> 0 | S43: ='Transportation C'!T251 -> 0 | T43: ='Transportation C'!T266 -> 0 | U43: ='Transportation C'!T281 -> 0 | V43: ='Transportation C'!T296 -> 0 | W43: ='Transportation C'!T311 -> 0 | X43: ='Transportation C'!T326 -> 0 | Y43: ='Transportation C'!T341 -> 0 | Z43: ='Transportation C'!T356 -> 0 | AA43: ='Transportation C'!T371 -> 0 | AB43: ='Transportation C'!T386 -> 0 | AC43: ='Transportation C'!T401 -> 0 | AD43: ='Transportation C'!T416 -> 0 | AE43: ='Transportation C'!T431 -> 0 | AF43: ='Transportation C'!T446 -> 0 | AG43: ='Transportation C'!T461 -> 0 | AH43: ='Transportation C'!T476 -> 0 | AI43: ='Transportation C'!T491 -> 0 | AJ43: ='Transportation C'!T506 -> 0 | AK43: ='Transportation C'!T521 -> 0 | AL43: ='Transportation C'!T536 -> 0
B44: Commuter Rail | C44: ='Transportation C'!T12 -> 0 | D44: ='Transportation C'!T27 -> 0 | E44: ='Transportation C'!T42 -> 0 | F44: ='Transportation C'!T57 -> 0 | G44: ='Transportation C'!T72 -> 0 | H44: ='Transportation C'!T87 -> 0 | I44: ='Transportation C'!T102 -> 0 | J44: ='Transportation C'!T117 -> 0 | K44: ='Transportation C'!T132 -> 0 | L44: ='Transportation C'!T147 -> 0 | M44: ='Transportation C'!T162 -> 0 | N44: ='Transportation C'!T177 -> 0 | O44: ='Transportation C'!T192 -> 0 | P44: ='Transportation C'!T207 -> 0 | Q44: ='Transportation C'!T222 -> 0 | R44: ='Transportation C'!T237 -> 0 | S44: ='Transportation C'!T252 -> 0 | T44: ='Transportation C'!T267 -> 0 | U44: ='Transportation C'!T282 -> 0 | V44: ='Transportation C'!T297 -> 0 | W44: ='Transportation C'!T312 -> 0 | X44: ='Transportation C'!T327 -> 0 | Y44: ='Transportation C'!T342 -> 0 | Z44: ='Transportation C'!T357 -> 0 | AA44: ='Transportation C'!T372 -> 0 | AB44: ='Transportation C'!T387 -> 0 | AC44: ='Transportation C'!T402 -> 0 | AD44: ='Transportation C'!T417 -> 0 | AE44: ='Transportation C'!T432 -> 0 | AF44: ='Transportation C'!T447 -> 0 | AG44: ='Transportation C'!T462 -> 0 | AH44: ='Transportation C'!T477 -> 0 | AI44: ='Transportation C'!T492 -> 0 | AJ44: ='Transportation C'!T507 -> 0 | AK44: ='Transportation C'!T522 -> 0 | AL44: ='Transportation C'!T537 -> 0
B45: Heavy Rail | C45: ='Transportation C'!T13 -> 0 | D45: ='Transportation C'!T28 -> 0 | E45: ='Transportation C'!T43 -> 0 | F45: ='Transportation C'!T58 -> 0 | G45: ='Transportation C'!T73 -> 0 | H45: ='Transportation C'!T88 -> 0 | I45: ='Transportation C'!T103 -> 0 | J45: ='Transportation C'!T118 -> 0 | K45: ='Transportation C'!T133 -> 0 | L45: ='Transportation C'!T148 -> 0 | M45: ='Transportation C'!T163 -> 0 | N45: ='Transportation C'!T178 -> 0 | O45: ='Transportation C'!T193 -> 0 | P45: ='Transportation C'!T208 -> 0 | Q45: ='Transportation C'!T223 -> 0 | R45: ='Transportation C'!T238 -> 0 | S45: ='Transportation C'!T253 -> 0 | T45: ='Transportation C'!T268 -> 0 | U45: ='Transportation C'!T283 -> 0 | V45: ='Transportation C'!T298 -> 0 | W45: ='Transportation C'!T313 -> 0 | X45: ='Transportation C'!T328 -> 0 | Y45: ='Transportation C'!T343 -> 0 | Z45: ='Transportation C'!T358 -> 0 | AA45: ='Transportation C'!T373 -> 0 | AB45: ='Transportation C'!T388 -> 0 | AC45: ='Transportation C'!T403 -> 0 | AD45: ='Transportation C'!T418 -> 0 | AE45: ='Transportation C'!T433 -> 0 | AF45: ='Transportation C'!T448 -> 0 | AG45: ='Transportation C'!T463 -> 0 | AH45: ='Transportation C'!T478 -> 0 | AI45: ='Transportation C'!T493 -> 0 | AJ45: ='Transportation C'!T508 -> 0 | AK45: ='Transportation C'!T523 -> 0 | AL45: ='Transportation C'!T538 -> 0
